Workbook

Sheet ACS_Notes (hidden)
A1: NOTES:
A4: Data are based on a sample and are subject to sampling variability. The degree of uncertainty for an estimate arising from sampling variability is represented through the use of a margin of error. The value shown here is the 90 percent margin of error. The margin of error can be interpreted roughly as providing a 90 percent probability that the interval defined by the estimate minus the margin of error and the estimate plus the margin of error (the lower and upper confidence bounds) contains the true value. In addition to sampling variability, the ACS estimates are subject to nonsampling error (for a discussion of nonsampling variability, see Accuracy of the Data). The effect of nonsampling error is not represented in these tables.
A8: In addition to sampling variability, the ACS estimates are subject to nonsampling error (for a discussion of nonsampling variability, see Accuracy of the Data. The link is located at the end of this worksheet.). The effect of nonsampling error is not represented in these tables.
A11: While the 2005-2009 American Community Survey (ACS) data generally reflect the November 2008 Office of Management and Budget (OMB) definitions of metropolitan and micropolitan statistical areas; in certain instances the names, codes, and boundaries of the principal cities shown in ACS tables may differ from the OMB definitions due to differences in the effective dates of the geographic entities.
A15: Estimates of urban and rural population, housing units, and characteristics reflect boundaries of urban areas defined based on Census 2000 data. Boundaries for urban areas have not been updated since Census 2000. As a result, data for urban and rural areas from the ACS do not necessarily reflect the results of ongoing urbanization.
A17: Explanation of Symbols:
A19: 1. An '**' entry in the margin of error column indicates that either no sample observations or too few sample observations were available to compute a standard error and thus the margin of error. A statistical test is not appropriate.
A21: 2. An '-' entry in the estimate column indicates that either no sample observations or too few sample observations were available to compute an estimate, or a ratio of medians cannot be calculated because one or both of the median estimates falls in the lowest interval or upper interval of an open-ended distribution.
A23: 3. An '-' following a median estimate means the median falls in the lowest interval of an open-ended distribution.
A24: 4. An '+' following a median estimate means the median falls in the upper interval of an open-ended distribution.
A25: 5. An '***' entry in the margin of error column indicates that the median falls in the lowest interval or upper interval of an open-ended distribution. A statistical test is not appropriate.
A26: 6. An '*****' entry in the margin of error column indicates that the estimate is controlled. A statistical test for sampling variability is not appropriate.
A28: Accuracy of Data

Sheet StartInstruction
A1: Demographic Profiles for Municipalities in Hillsborough County
A3: To view or print a Demographic Profile follow the steps below
A6: Step 1. | C6: Select the municipality you wish to
C7: Profile from the drop down box below.
A12: Step 2. | C12: Click one of the profile topic buttons below to review or print
C13: the information for the selected geography.
C14: Don't forget to adjust the axis on charts as necessary.
O28: Updated: | Q28: 2022-12-11
O30: Next Update: | Q30: Spring 2024 Annual Employment Date

Sheet ACS_Table_B08303 (hidden)
B1: B08303: TRAVEL TIME TO WORK
B2: Universe: Workers 16 years and over who did not work at home
B3: Data Set: 2006-2010 American Community Survey 3-Year Estimates
C5: Amherst | E5: Antrim | G5: Bedford | I5: Bennington | K5: Brookline | M5: Deering | O5: Francestown | Q5: Goffstown | S5: Greenfield | U5: Greenville | W5: Hancock | Y5: Hillsborough | AA5: Hollis | AC5: Hudson | AE5: Litchfield | AG5: Lyndeborough | AI5: Manchester | AK5: Mason | AM5: Merrimack | AO5: Milford | AQ5: Mont Vernon | AS5: Nashua | AU5: New Boston | AW5: New Ipswich | AY5: Pelham | BA5: Peterborough | BC5: Sharon | BE5: Temple | BG5: Weare | BI5: Wilton | BK5: Windsor
C6: Esitimate | D6: Margin Of Error | E6: Esitimate | F6: Margin Of Error | G6: Esitimate | H6: Margin Of Error | I6: Esitimate | J6: Margin Of Error | K6: Esitimate | L6: Margin Of Error | M6: Esitimate | N6: Margin Of Error | O6: Esitimate | P6: Margin Of Error | Q6: Esitimate | R6: Margin Of Error | S6: Esitimate | T6: Margin Of Error | U6: Esitimate | V6: Margin Of Error | W6: Esitimate | X6: Margin Of Error | Y6: Esitimate | Z6: Margin Of Error | AA6: Esitimate | AB6: Margin Of Error | AC6: Esitimate | AD6: Margin Of Error | AE6: Esitimate | AF6: Margin Of Error | AG6: Esitimate | AH6: Margin Of Error | AI6: Esitimate | AJ6: Margin Of Error | AK6: Esitimate | AL6: Margin Of Error | AM6: Esitimate | AN6: Margin Of Error | AO6: Esitimate | AP6: Margin Of Error | AQ6: Esitimate | AR6: Margin Of Error | AS6: Esitimate | AT6: Margin Of Error | AU6: Esitimate | AV6: Margin Of Error | AW6: Esitimate | AX6: Margin Of Error | AY6: Esitimate | AZ6: Margin Of Error | BA6: Esitimate | BB6: Margin Of Error | BC6: Esitimate | BD6: Margin Of Error | BE6: Esitimate | BF6: Margin Of Error | BG6: Esitimate | BH6: Margin Of Error | BI6: Esitimate | BJ6: Margin Of Error | BK6: Esitimate | BL6: Margin Of Error
B7: Population Older than 16 not working at hom | C7: 4254 | D7: 365 | E7: 1201 | F7: 153 | G7: 9055 | H7: 542 | I7: 645 | J7: 135 | K7: 2675 | L7: 199 | M7: 748 | N7: 110 | O7: 534 | P7: 108 | Q7: 8798 | R7: 448 | S7: 817 | T7: 106 | U7: 984 | V7: 182 | W7: 763 | X7: 153 | Y7: 2547 | Z7: 269 | AA7: 3320 | AB7: 382 | AC7: 12933 | AD7: 709 | AE7: 3689 | AF7: 341 | AG7: 724 | AH7: 81 | AI7: 57807 | AJ7: 1442 | AK7: 653 | AL7: 94 | AM7: 12567 | AN7: 759 | AO7: 7616 | AP7: 499 | AQ7: 1082 | AR7: 130 | AS7: 44175 | AT7: 1306 | AU7: 2711 | AV7: 347 | AW7: 2528 | AX7: 249 | AY7: 6507 | AZ7: 419 | BA7: 3154 | BB7: 331 | BC7: 134 | BD7: 46 | BE7: 572 | BF7: 138 | BG7: 4626 | BH7: 373 | BI7: 1860 | BJ7: 246 | BK7: 100 | BL7: 47
B8: Less than 5 minutes | C8: 66 | D8: 47 | E8: 45 | F8: 36 | G8: 345 | H8: 372 | I8: 15 | J8: 7 | K8: 14 | L8: 17 | M8: 36 | N8: 27 | O8: 13 | P8: 10 | Q8: 352 | R8: 212 | S8: 17 | T8: 12 | U8: 20 | V8: 21 | W8: 18 | X8: 12 | Y8: 106 | Z8: 107 | AA8: 40 | AB8: 50 | AC8: 154 | AD8: 124 | AE8: 85 | AF8: 55 | AG8: 10 | AH8: 11 | AI8: 1115 | AJ8: 305 | AK8: 6 | AL8: 7 | AM8: 373 | AN8: 249 | AO8: 455 | AP8: 292 | AQ8: 17 | AR8: 17 | AS8: 617 | AT8: 180 | AU8: 14 | AV8: 22 | AW8: 225 | AX8: 120 | AY8: 250 | AZ8: 96 | BA8: 400 | BB8: 426 | BC8: 2 | BD8: 3 | BE8: 15 | BF8: 14 | BG8: 27 | BH8: 30 | BI8: 60 | BJ8: 51 | BK8: 5 | BL8: 8
B9: 5 to 9 minutes | C9: 237 | D9: 113 | E9: 47 | F9: 30 | G9: 644 | H9: 216 | I9: 64 | J9: 33 | K9: 137 | L9: 79 | M9: 47 | N9: 21 | O9: 19 | P9: 10 | Q9: 659 | R9: 187 | S9: 8 | T9: 7 | U9: 127 | V9: 108 | W9: 68 | X9: 22 | Y9: 134 | Z9: 91 | AA9: 130 | AB9: 83 | AC9: 686 | AD9: 247 | AE9: 158 | AF9: 76 | AG9: 24 | AH9: 16 | AI9: 6141 | AJ9: 619 | AK9: 36 | AL9: 24 | AM9: 846 | AN9: 230 | AO9: 1006 | AP9: 278 | AQ9: 54 | AR9: 31 | AS9: 4211 | AT9: 526 | AU9: 159 | AV9: 104 | AW9: 259 | AX9: 116 | AY9: 237 | AZ9: 132 | BA9: 533 | BB9: 237 | BC9: 21 | BD9: 14 | BE9: 2 | BF9: 5 | BG9: 425 | BH9: 183 | BI9: 159 | BJ9: 97 | BK9: 5 | BL9: 8
B10: 10 to 14 minutes | C10: 488 | D10: 124 | E10: 108 | F10: 37 | G10: 1471 | H10: 344 | I10: 34 | J10: 22 | K10: 198 | L10: 99 | M10: 44 | N10: 36 | O10: 17 | P10: 10 | Q10: 795 | R10: 228 | S10: 34 | T10: 21 | U10: 112 | V10: 99 | W10: 98 | X10: 38 | Y10: 74 | Z10: 61 | AA10: 407 | AB10: 241 | AC10: 1939 | AD10: 511 | AE10: 255 | AF10: 107 | AG10: 49 | AH10: 25 | AI10: 10666 | AJ10: 943 | AK10: 26 | AL10: 20 | AM10: 1719 | AN10: 347 | AO10: 765 | AP10: 256 | AQ10: 100 | AR10: 76 | AS10: 8687 | AT10: 903 | AU10: 148 | AV10: 84 | AW10: 131 | AX10: 80 | AY10: 602 | AZ10: 177 | BA10: 387 | BB10: 222 | BC10: 10 | BD10: 13 | BE10: 102 | BF10: 59 | BG10: 235 | BH10: 120 | BI10: 165 | BJ10: 115 | BK10: 5 | BL10: 9
B11: 15 to 19 minutes | C11: 630 | D11: 206 | E11: 107 | F11: 53 | G11: 1363 | H11: 291 | I11: 69 | J11: 32 | K11: 293 | L11: 113 | M11: 112 | N11: 42 | O11: 53 | P11: 27 | Q11: 1417 | R11: 313 | S11: 50 | T11: 20 | U11: 218 | V11: 99 | W11: 150 | X11: 58 | Y11: 325 | Z11: 164 | AA11: 582 | AB11: 192 | AC11: 1515 | AD11: 354 | AE11: 428 | AF11: 183 | AG11: 106 | AH11: 40 | AI11: 9693 | AJ11: 958 | AK11: 14 | AL11: 9 | AM11: 2434 | AN11: 479 | AO11: 685 | AP11: 241 | AQ11: 81 | AR11: 41 | AS11: 7604 | AT11: 822 | AU11: 131 | AV11: 106 | AW11: 153 | AX11: 71 | AY11: 783 | AZ11: 190 | BA11: 236 | BB11: 135 | BC11: 10 | BD11: 9 | BE11: 63 | BF11: 42 | BG11: 305 | BH11: 172 | BI11: 379 | BJ11: 142 | BK11: 13 | BL11: 18
B12: 20 to 24 minutes | C12: 748 | D12: 250 | E12: 157 | F12: 63 | G12: 1576 | H12: 363 | I12: 77 | J12: 44 | K12: 308 | L12: 157 | M12: 24 | N12: 15 | O12: 41 | P12: 18 | Q12: 1532 | R12: 354 | S12: 161 | T12: 49 | U12: 109 | V12: 66 | W12: 61 | X12: 32 | Y12: 97 | Z12: 79 | AA12: 565 | AB12: 177 | AC12: 1424 | AD12: 338 | AE12: 796 | AF12: 284 | AG12: 87 | AH12: 31 | AI12: 7944 | AJ12: 784 | AK12: 80 | AL12: 34 | AM12: 2523 | AN12: 439 | AO12: 695 | AP12: 185 | AQ12: 158 | AR12: 66 | AS12: 5001 | AT12: 735 | AU12: 178 | AV12: 102 | AW12: 427 | AX12: 195 | AY12: 753 | AZ12: 180 | BA12: 417 | BB12: 204 | BC12: 10 | BD12: 11 | BE12: 46 | BF12: 22 | BG12: 389 | BH12: 166 | BI12: 245 | BJ12: 243 | BK12: 11 | BL12: 11
B13: 25 to 29 minutes | C13: 228 | D13: 98 | E13: 42 | F13: 33 | G13: 489 | H13: 147 | I13: 21 | J13: 17 | K13: 296 | L13: 95 | M13: 19 | N13: 17 | O13: 36 | P13: 18 | Q13: 758 | R13: 237 | S13: 68 | T13: 34 | U13: 40 | V13: 26 | W13: 21 | X13: 15 | Y13: 74 | Z13: 113 | AA13: 428 | AB13: 155 | AC13: 1078 | AD13: 315 | AE13: 350 | AF13: 149 | AG13: 31 | AH13: 14 | AI13: 5216 | AJ13: 763 | AK13: 53 | AL13: 28 | AM13: 1105 | AN13: 312 | AO13: 605 | AP13: 220 | AQ13: 51 | AR13: 28 | AS13: 2882 | AT13: 500 | AU13: 234 | AV13: 108 | AW13: 151 | AX13: 87 | AY13: 576 | AZ13: 167 | BA13: 133 | BB13: 112 | BC13: 7 | BD13: 8 | BE13: 17 | BF13: 14 | BG13: 293 | BH13: 142 | BI13: 83 | BJ13: 61 | BK13: 20 | BL13: 24
B14: 30 to 34 minutes | C14: 549 | D14: 172 | E14: 224 | F14: 116 | G14: 792 | H14: 211 | I14: 48 | J14: 23 | K14: 450 | L14: 145 | M14: 99 | N14: 44 | O14: 107 | P14: 41 | Q14: 1393 | R14: 307 | S14: 153 | T14: 62 | U14: 80 | V14: 55 | W14: 73 | X14: 35 | Y14: 443 | Z14: 254 | AA14: 486 | AB14: 141 | AC14: 2031 | AD14: 492 | AE14: 395 | AF14: 173 | AG14: 149 | AH14: 58 | AI14: 5924 | AJ14: 846 | AK14: 81 | AL14: 47 | AM14: 1139 | AN14: 327 | AO14: 971 | AP14: 245 | AQ14: 275 | AR14: 87 | AS14: 5317 | AT14: 539 | AU14: 663 | AV14: 281 | AW14: 176 | AX14: 112 | AY14: 1054 | AZ14: 236 | BA14: 195 | BB14: 116 | BC14: 2 | BD14: 4 | BE14: 46 | BF14: 31 | BG14: 970 | BH14: 318 | BI14: 176 | BJ14: 93 | BK14: 4 | BL14: 5
B15: 35 to 39 minutes | C15: 47 | D15: 44 | E15: 81 | F15: 39 | G15: 323 | H15: 214 | I15: 34 | J15: 19 | K15: 115 | L15: 63 | M15: 46 | N15: 26 | O15: 35 | P15: 20 | Q15: 381 | R15: 136 | S15: 81 | T15: 45 | U15: 17 | V15: 19 | W15: 44 | X15: 34 | Y15: 235 | Z15: 128 | AA15: 129 | AB15: 73 | AC15: 617 | AD15: 192 | AE15: 84 | AF15: 57 | AG15: 25 | AH15: 23 | AI15: 1569 | AJ15: 303 | AK15: 59 | AL15: 26 | AM15: 205 | AN15: 120 | AO15: 433 | AP15: 148 | AQ15: 15 | AR15: 17 | AS15: 1367 | AT15: 310 | AU15: 126 | AV15: 105 | AW15: 83 | AX15: 61 | AY15: 294 | AZ15: 124 | BA15: 79 | BB15: 81 | BC15: 1 | BD15: 2 | BE15: 13 | BF15: 13 | BG15: 387 | BH15: 165 | BI15: 93 | BJ15: 77 | BK15: 3 | BL15: 4
B16: 40 to 44 minutes | C16: 226 | D16: 87 | E16: 25 | F16: 21 | G16: 270 | H16: 121 | I16: 34 | J16: 24 | K16: 219 | L16: 98 | M16: 82 | N16: 57 | O16: 38 | P16: 18 | Q16: 248 | R16: 118 | S16: 50 | T16: 36 | U16: 123 | V16: 62 | W16: 36 | X16: 21 | Y16: 251 | Z16: 116 | AA16: 45 | AB16: 48 | AC16: 497 | AD16: 199 | AE16: 139 | AF16: 82 | AG16: 58 | AH16: 28 | AI16: 1353 | AJ16: 303 | AK16: 83 | AL16: 35 | AM16: 209 | AN16: 125 | AO16: 454 | AP16: 156 | AQ16: 89 | AR16: 42 | AS16: 1823 | AT16: 333 | AU16: 327 | AV16: 150 | AW16: 127 | AX16: 84 | AY16: 283 | AZ16: 103 | BA16: 106 | BB16: 63 | BC16: 22 | BD16: 20 | BE16: 18 | BF16: 15 | BG16: 288 | BH16: 129 | BI16: 94 | BJ16: 55 | BK16: 5 | BL16: 5
B17: 45 to 59 minutes | C17: 411 | D17: 129 | E17: 212 | F17: 78 | G17: 777 | H17: 290 | I17: 148 | J17: 65 | K17: 352 | L17: 139 | M17: 84 | N17: 38 | O17: 87 | P17: 35 | Q17: 520 | R17: 213 | S17: 122 | T17: 39 | U17: 68 | V17: 48 | W17: 65 | X17: 25 | Y17: 489 | Z17: 181 | AA17: 172 | AB17: 86 | AC17: 1383 | AD17: 387 | AE17: 345 | AF17: 152 | AG17: 97 | AH17: 31 | AI17: 3653 | AJ17: 639 | AK17: 92 | AL17: 33 | AM17: 720 | AN17: 183 | AO17: 761 | AP17: 209 | AQ17: 82 | AR17: 42 | AS17: 3191 | AT17: 545 | AU17: 334 | AV17: 140 | AW17: 273 | AX17: 122 | AY17: 747 | AZ17: 186 | BA17: 250 | BB17: 148 | BC17: 17 | BD17: 12 | BE17: 92 | BF17: 39 | BG17: 766 | BH17: 276 | BI17: 295 | BJ17: 104 | BK17: 16 | BL17: 12
B18: 60 to 89 minutes | C18: 471 | D18: 212 | E18: 127 | F18: 60 | G18: 669 | H18: 222 | I18: 82 | J18: 50 | K18: 206 | L18: 101 | M18: 76 | N18: 33 | O18: 76 | P18: 43 | Q18: 566 | R18: 187 | S18: 56 | T18: 22 | U18: 33 | V18: 21 | W18: 102 | X18: 77 | Y18: 249 | Z18: 125 | AA18: 245 | AB18: 111 | AC18: 1052 | AD18: 281 | AE18: 499 | AF18: 202 | AG18: 50 | AH18: 20 | AI18: 3228 | AJ18: 545 | AK18: 86 | AL18: 31 | AM18: 846 | AN18: 285 | AO18: 510 | AP18: 169 | AQ18: 67 | AR18: 32 | AS18: 2390 | AT18: 408 | AU18: 256 | AV18: 141 | AW18: 297 | AX18: 123 | AY18: 495 | AZ18: 147 | BA18: 269 | BB18: 128 | BC18: 19 | BD18: 18 | BE18: 145 | BF18: 84 | BG18: 490 | BH18: 176 | BI18: 50 | BJ18: 36 | BK18: 12 | BL18: 12
B19: 90 or more minutes | C19: 153 | D19: 89 | E19: 26 | F19: 25 | G19: 336 | H19: 152 | I19: 19 | J19: 15 | K19: 87 | L19: 58 | M19: 79 | N19: 31 | O19: 12 | P19: 9 | Q19: 177 | R19: 109 | S19: 17 | T19: 13 | U19: 37 | V19: 40 | W19: 27 | X19: 17 | Y19: 70 | Z19: 54 | AA19: 91 | AB19: 126 | AC19: 557 | AD19: 284 | AE19: 155 | AF19: 85 | AG19: 38 | AH19: 23 | AI19: 1305 | AJ19: 321 | AK19: 37 | AL19: 18 | AM19: 448 | AN19: 178 | AO19: 276 | AP19: 112 | AQ19: 93 | AR19: 44 | AS19: 1085 | AT19: 242 | AU19: 141 | AV19: 111 | AW19: 226 | AX19: 117 | AY19: 433 | AZ19: 129 | BA19: 149 | BB19: 111 | BC19: 13 | BD19: 14 | BE19: 13 | BF19: 12 | BG19: 51 | BH19: 42 | BI19: 61 | BJ19: 45 | BK19: 1 | BL19: 3

Sheet PopulationCharacteristics (hidden)
Y1: 2012
B2: =CntyDataLink!A35 -> Antrim
G3: Land Area: | I3: =((CntyDataLink!F35*10.764)/43560)/640 -> 35.6723672 | N3: Water Area: | O3: =((CntyDataLink!G35*10.764)/43560)/640 -> 0.8324968505
B4: POPULATION CHARACTERISTICS
B19: Population | C19: ="Source: US Census; Office of Planning and Development, NH BEA; "& L20&", "&P20&", and "&S20&" American Community Survey Table B01001" -> Source: US Census; Office of Planning and Development, NH BEA; 2008-2012, 2013-2017, and 2018-2022 American Community Survey Table B01001 | N19: Population by Age | P19: ="Source: "& L20&", "&P20&", and "&S20&" American Community Survey Tables B01001 and B01002" -> Source: 2008-2012, 2013-2017, and 2018-2022 American Community Survey Tables B01001 and B01002
L20: 2008-2012 | P20: 2013-2017 | S20: 2018-2022
C21: 1990 | D21: 2000 | E21: 2010 | F21: 2020 | G21: 2018-2022 | H21: 2025 | I21: 2030 | L21: Estimate | N21: Margin of Error | O21: Percent Change | P21: Estimate | Q21: Margin of Error | R21: Percent Change | S21: Estimate | T21: Margin of Error | V21: Percent Change | W21: Statistically Significant Change
C22: =CntyDataLink!$F$20 -> 2360 | D22: =CntyDataLink!$G$20 -> 2449 | E22: =CntyDataLink!$H$20 -> 2637 | F22: =CntyDataLink!$I$20 -> 2651 | G22: =CntyDataLink!$B$132 -> 11712 | H22: =CntyDataLink!$J$20 -> 2763 | I22: =CntyDataLink!$K$20 -> 2851 | K22: Under 15 yrs. | L22: =CntyDataLinkPrior10YearEstimate!$D$132 -> 2522 | N22: =CntyDataLinkPrior10YearEstimate!$E$132 -> 295.9628355 | O22: =L22/SUM($L$22:$L$29) -> 0.225158468 | P22: =CntyDataLinkPrior5YearEstimates!$D$132 -> 2271 | Q22: =CntyDataLinkPrior5YearEstimates!$E$132 -> 342.6309968 | R22: =P22/SUM($P$22:$P$29) -> 0.2020282893 | S22: =CntyDataLink!$D$132 -> 2143 | T22: =CntyDataLink!$E$132 -> 350.1056983 | U22: =S22/SUM($S$22:$S$29) -> 0.1829747268 | V22: =(S22-P22)/P22 -> -0.05636283576 | W22: =StatisticallySignificantCalcs!$A3 -> Y
K23: 15 to 24 yrs. | L23: =CntyDataLinkPrior10YearEstimate!$F$132 -> 1205 | N23: =CntyDataLinkPrior10YearEstimate!$G$132 -> 205.7158234 | O23: =L23/SUM($L$22:$L$29) -> 0.1075796804 | P23: =CntyDataLinkPrior5YearEstimates!$F$132 -> 1413 | Q23: =CntyDataLinkPrior5YearEstimates!$G$132 -> 264.8943185 | R23: =P23/SUM($P$22:$P$29) -> 0.1257005604 | S23: =CntyDataLink!$F$132 -> 1169 | T23: =CntyDataLink!$G$132 -> 246.0426792 | U23: =S23/SUM($S$22:$S$29) -> 0.09981215847 | V23: -0.1726822364 | W23: =StatisticallySignificantCalcs!$A4 -> Y
B24: Percent Change | K24: 25 to 34 yrs. | L24: =CntyDataLinkPrior10YearEstimate!$H$132 -> 840 | N24: =CntyDataLinkPrior10YearEstimate!$I$132 -> 192.6187945 | O24: =L24/SUM($L$22:$L$29) -> 0.07499330417 | P24: =CntyDataLinkPrior5YearEstimates!$H$132 -> 742 | Q24: =CntyDataLinkPrior5YearEstimates!$I$132 -> 165.9126276 | R24: 0.06600836225 | S24: =CntyDataLink!$H$132 -> 952 | T24: =CntyDataLink!$I$132 -> 206.4340088 | U24: 0.08128415301 | V24: 0.2830188679 | W24: =StatisticallySignificantCalcs!$A5 -> Y
D25: =C21&"-2020" -> 1990-2020 | E25: =D21&"-2020" -> 2000-2020 | F25: =E21&"-2020" -> 2010-2020 | G25: =F21&"-2030" -> 2020-2030 | H25: =G21&"-"&H21 -> 2018-2022-2025 | I25: =H21&"-"&I21 -> 2025-2030 | K25: 35 to 44 yrs. | L25: =CntyDataLinkPrior10YearEstimate!$J$132 -> 1424 | N25: =CntyDataLinkPrior10YearEstimate!$K$132 -> 217.977063 | O25: 0.1271315061 | P25: =CntyDataLinkPrior5YearEstimates!$J$132 -> 1048 | Q25: =CntyDataLinkPrior5YearEstimates!$K$132 -> 195.1102253 | R25: 0.09323013967 | S25: =CntyDataLink!$J$132 -> 1411 | T25: =CntyDataLink!$K$132 -> 261.510994 | U25: 0.1204747268 | V25: 0.3463740458 | W25: =StatisticallySignificantCalcs!$A6 -> Y
D26: =(D22-C22)/C22 -> 0.03771186441 | E26: 0.07676602695 | F26: 0.00530906333 | G26: 3.417955488 | H26: -0.7640881148 | I26: 0.03184943902 | K26: 45 to 54 yrs. | L26: =CntyDataLinkPrior10YearEstimate!$L$132 -> 2100 | N26: =CntyDataLinkPrior10YearEstimate!$M$132 -> 231.4087293 | O26: 0.1874832604 | P26: =CntyDataLinkPrior5YearEstimates!$L$132 -> 2109 | Q26: =CntyDataLinkPrior5YearEstimates!$M$132 -> 253.4916172 | R26: 0.1876167601 | S26: =CntyDataLink!$L$132 -> 1760 | T26: =CntyDataLink!$M$132 -> 284.720916 | U26: 0.150273224 | V26: -0.1654812707 | W26: =StatisticallySignificantCalcs!$A7 -> Y
K27: 55 to 64 yrs. | L27: =CntyDataLinkPrior10YearEstimate!$N$132 -> 1810 | N27: =CntyDataLinkPrior10YearEstimate!$O$132 -> 223.9084634 | O27: 0.1615927149 | P27: =CntyDataLinkPrior5YearEstimates!$N$132 -> 1760 | Q27: =CntyDataLinkPrior5YearEstimates!$O$132 -> 211.0023697 | R27: 0.1565697002 | S27: =CntyDataLink!$N$132 -> 2151 | T27: =CntyDataLink!$O$132 -> 293.1023712 | U27: 0.1836577869 | V27: 0.2221590909 | W27: =StatisticallySignificantCalcs!$A8 -> Y
K28: 65 to 74 yrs. | L28: =CntyDataLinkPrior10YearEstimate!$P$132 -> 862 | N28: =CntyDataLinkPrior10YearEstimate!$Q$132 -> 153.5871088 | O28: 0.07695741452 | P28: =CntyDataLinkPrior5YearEstimates!$P$132 -> 1227 | Q28: =CntyDataLinkPrior5YearEstimates!$Q$132 -> 188.8544413 | R28: 0.1091539899 | S28: =CntyDataLink!$P$132 -> 1473 | T28: =CntyDataLink!$Q$132 -> 239.4973904 | U28: 0.1257684426 | V28: 0.2004889976 | W28: =StatisticallySignificantCalcs!$A9 -> Y
K29: Over 74 yrs. | L29: =CntyDataLinkPrior10YearEstimate!$R$132 -> 438 | N29: =CntyDataLinkPrior10YearEstimate!$S$132 -> 106.0377291 | O29: 0.03910365146 | P29: =CntyDataLinkPrior5YearEstimates!$R$132 -> 671 | Q29: =CntyDataLinkPrior5YearEstimates!$S$132 -> 146.5742133 | R29: 0.0596921982 | S29: =CntyDataLink!$R$132 -> 653 | T29: =CntyDataLink!$S$132 -> 221.235169 | U29: 0.05575478142 | V29: -0.02682563338 | W29: =StatisticallySignificantCalcs!$A10 -> Y
K30: Median Age (years) | L30: =CntyDataLinkPrior10YearEstimate!$AX$132 -> 43.5 | N30: =CntyDataLinkPrior10YearEstimate!$AY$132 -> 1.2 | P30: =CntyDataLinkPrior5YearEstimates!$AX132 -> 45.7 | Q30: =CntyDataLinkPrior5YearEstimates!$AY$132 -> 1.7 | S30: =CntyDataLink!$AX$132 -> 46.7 | T30: =CntyDataLink!$AY$132 -> 3.4
B32: Population By Race | M32: Statistically Significant Change
M33: =IF(L36="","-",StatisticallySignificantCalcs!A20) -> N
C34: =$L$20 -> 2008-2012 | F34: =$P$20 -> 2013-2017 | I34: =$S$20 -> 2018-2022 | L34: Statistically Significant Change
C35: Estimate | D35: Margin of Error | F35: Estimate | G35: Margin of Error | I35: Estimate | J35: Margin of Error | L35: 2012-2022 | M35: 2017-2022
B36: White | C36: =CntyDataLinkPrior10YearEstimate!$AL$132 -> 10122 | D36: =CntyDataLinkPrior10YearEstimate!$AM$132 -> 323 | E36: =IF(C$36="-","-",VALUE(C36/$C$41)) -> 0.9036693152 | F36: =CntyDataLinkPrior5YearEstimates!$AL$132 -> 10593 | G36: =CntyDataLinkPrior5YearEstimates!$AM$132 -> 246 | H36: =IF(F$36="-","-",VALUE(F36/$F$41)) -> 0.9423538831 | I36: =CntyDataLink!$AL$132 -> 10201 | J36: =CntyDataLink!$AM$132 -> 333 | K36: =IF(I$36="-","-",VALUE(I36/$I$41)) -> 0.8709870219 | L36: =StatisticallySignificantCalcs!A20 -> N | M36: =StatisticallySignificantCalcs!J20 -> N
B37: Black | C37: =CntyDataLinkPrior10YearEstimate!$AN132 -> 0 | D37: =CntyDataLinkPrior10YearEstimate!$AO$132 -> 18 | E37: =IF(C$37="-","-",VALUE(C37/$C$41)) -> 0 | F37: =CntyDataLinkPrior5YearEstimates!$AN132 -> 87 | G37: =CntyDataLinkPrior5YearEstimates!$AO$132 -> 120 | H37: =IF(F$37="-","-",VALUE(F37/$F$41)) -> 0.007739524953 | I37: =CntyDataLink!$AN$132 -> 40 | J37: =CntyDataLink!$AO$132 -> 65 | K37: =IF(I$37="-","-",VALUE(I37/$I$41)) -> 0.003415300546 | L37: =StatisticallySignificantCalcs!A21 -> N | M37: =StatisticallySignificantCalcs!J21 -> N
B38: American Indian | C38: =CntyDataLinkPrior10YearEstimate!$AP$132 -> 42 | D38: =CntyDataLinkPrior10YearEstimate!$AQ$132 -> 47 | E38: =IF(C$38="-","-",VALUE(C38/$C$41)) -> 0.003749665208 | F38: =CntyDataLinkPrior5YearEstimates!$AP$132 -> 0 | G38: =CntyDataLinkPrior5YearEstimates!$AQ$132 -> 18 | H38: =IF(F$38="-","-",VALUE(F38/$F$41)) -> 0 | I38: =CntyDataLink!$AP$132 -> 39 | J38: =CntyDataLink!$AQ$132 -> 52 | K38: =IF(I$38="-","-",VALUE(I38/$I$41)) -> 0.003329918033 | L38: =StatisticallySignificantCalcs!A22 -> N | M38: =StatisticallySignificantCalcs!J22 -> N
B39: Asian &Pacific Is. | C39: =CntyDataLinkPrior10YearEstimate!$AR$132 -> 194 | D39: =CntyDataLinkPrior10YearEstimate!$AS$132 -> 126.2893503 | E39: =IF(C$39="-","-",VALUE(C39/$C$41)) -> 0.01731988215 | F39: =CntyDataLinkPrior5YearEstimates!$AR$132 -> 131 | G39: =CntyDataLinkPrior5YearEstimates!$AS$132 -> 84.92938243 | H39: =IF(F$39="-","-",VALUE(F39/$F$41)) -> 0.01165376746 | I39: =CntyDataLink!$AR$132 -> 248 | J39: =CntyDataLink!$AS$132 -> 172.9392957 | K39: =IF(I$39="-","-",VALUE(I39/$I$41)) -> 0.02117486339 | L39: =StatisticallySignificantCalcs!A23 -> N | M39: =StatisticallySignificantCalcs!J23 -> N
B40: Other* | C40: =CntyDataLinkPrior10YearEstimate!$AT$132 -> 181 | D40: =CntyDataLinkPrior10YearEstimate!$AU$132 -> 107.5174404 | E40: =IF(C$40="-","-",VALUE(C40/$C$41)) -> 0.01615927149 | F40: =CntyDataLinkPrior5YearEstimates!$AT$132 -> 305 | G40: =CntyDataLinkPrior5YearEstimates!$AU$132 -> 147.3838526 | H40: =IF(F$40="-","-",VALUE(F40/$F$41)) -> 0.02713281737 | I40: =CntyDataLink!$AT$132 -> 163 | J40: =CntyDataLink!$AU$132 -> 95.70788891 | K40: =IF(I$40="-","-",VALUE(I40/$I$41)) -> 0.01391734973 | L40: =StatisticallySignificantCalcs!A25 -> N | M40: =StatisticallySignificantCalcs!J25 -> Y
B41: Total Population | C41: =CntyDataLinkPrior10YearEstimate!$B$132 -> 11201 | D41: =CntyDataLinkPrior10YearEstimate!$C$132 -> 60 | F41: =CntyDataLinkPrior5YearEstimates!$B$132 -> 11241 | G41: =CntyDataLinkPrior5YearEstimates!$C$132 -> 30 | I41: =CntyDataLink!$B$132 -> 11712 | J41: =CntyDataLink!$C$132 -> 24
B42: Hispanic | C42: =CntyDataLinkPrior10YearEstimate!$AV$132 -> 662 | D42: =CntyDataLinkPrior10YearEstimate!$AW$132 -> 278 | E42: =IF(C$42="-","-",VALUE(C42/$C$41)) -> 0.0591018659 | F42: =CntyDataLinkPrior5YearEstimates!$AV132 -> 125 | G42: =CntyDataLinkPrior5YearEstimates!$AW$132 -> 92 | H42: =IF(F$42="-","-",VALUE(F42/$F$41)) -> 0.01112000712 | I42: =CntyDataLink!$AV$132 -> 543 | J42: =CntyDataLink!$AW$132 -> 258 | K42: =IF(I$42="-","-",VALUE(I42/$I$41)) -> 0.04636270492 | L42: =StatisticallySignificantCalcs!A27 -> N | M42: =StatisticallySignificantCalcs!J27 -> N
B44: * | C44: Other includes population of 2 or more races
B46: ="Source: "& L20&", "&P20&", and "&S20&" American Community Survey Table B03002" -> Source: 2008-2012, 2013-2017, and 2018-2022 American Community Survey Table B03002
C48: Households and Families
D49: =$C$34 -> 2008-2012 | G49: =$F$34 -> 2013-2017 | J49: =$I$34 -> 2018-2022 | N49: Percent Change | P49: Percent Change
D50: Estimate | E50: Margin of Error | G50: Estimate | H50: Margin of Error | J50: Estimate | K50: Margin of Error | N50: =$L$35 -> 2012-2022 | P50: =$M$35 -> 2017-2022
C51: Total Households | D51: =CntyDataLinkPrior10YearEstimate!$T$132 -> 4031 | E51: =CntyDataLinkPrior10YearEstimate!$U$132 -> 153 | G51: =CntyDataLinkPrior5YearEstimates!$T$132 -> 3996 | H51: =CntyDataLinkPrior5YearEstimates!$U$132 -> 178 | J51: =CntyDataLink!$T$132 -> 4438 | K51: =CntyDataLink!$U$132 -> 262 | N51: =(J51-D51)/D51 -> 0.1009675019 | P51: =(J51-G51)/G51 -> 0.1106106106
C52: Persons per Household | D52: =CntyDataLinkPrior10YearEstimate!$BD$132 -> 2.778714959 | E52: =CntyDataLinkPrior10YearEstimate!$BE$132 -> 0.11 | G52: =CntyDataLinkPrior5YearEstimates!$BD$132 -> 2.813063063 | H52: =CntyDataLinkPrior5YearEstimates!$BE$132 -> 0.13 | J52: =CntyDataLink!$BD$132 -> 2.639026589 | K52: =CntyDataLink!$BE$132 -> 0.15 | N52: =(J52-D52)/D52 -> -0.05027085274 | P52: =(J52-G52)/G52 -> -0.06186724955
C53: Family Households | D53: =CntyDataLinkPrior10YearEstimate!$V$132 -> 3193 | E53: =CntyDataLinkPrior10YearEstimate!$U$132 -> 153 | G53: =CntyDataLinkPrior5YearEstimates!$V$132 -> 3207 | H53: =CntyDataLinkPrior5YearEstimates!$U$132 -> 178 | J53: =CntyDataLink!$V$132 -> 3405 | K53: =CntyDataLink!$U$132 -> 262 | N53: 0.06639523959 | P53: 0.06173994387
C54: Persons per Family Household | D54: =CntyDataLinkPrior10YearEstimate!$BF$132 -> 3.200438459 | E54: =CntyDataLinkPrior10YearEstimate!$BG$132 -> 0.1546195613 | G54: =CntyDataLinkPrior5YearEstimates!$BF$132 -> 3.178671656 | H54: =CntyDataLinkPrior5YearEstimates!$BG$132 -> 0.2101221437 | J54: =CntyDataLink!$BF$132 -> 3.090455213 | K54: =CntyDataLink!$BG$132 -> 0.2101221437 | N54: -0.03436505579 | P54: -0.02775261253
C55: Married-Couple Family Hh | D55: =CntyDataLinkPrior10YearEstimate!$X$132 -> 2721 | E55: =CntyDataLinkPrior10YearEstimate!$Y$132 -> 165 | G55: =CntyDataLinkPrior5YearEstimates!$X$132 -> 2919 | H55: =CntyDataLinkPrior5YearEstimates!$Y$132 -> 145 | J55: =CntyDataLink!$X$132 -> 3103 | K55: =CntyDataLink!$Y$132 -> 206 | N55: 0.1403895627 | P55: 0.06303528606
C56: Single-Parent Family Hh | D56: =CntyDataLinkPrior10YearEstimate!$Z$132 -> 472 | E56: =CntyDataLinkPrior10YearEstimate!$AA$132 -> 130 | G56: =CntyDataLinkPrior5YearEstimates!$Z$132 -> 288 | H56: =CntyDataLinkPrior5YearEstimates!$AA$132 -> 93 | J56: =CntyDataLink!$Z$132 -> 302 | K56: =CntyDataLink!$AA$132 -> 115 | N56: -0.3601694915 | P56: 0.04861111111
C57: Non-Family Households* | D57: =CntyDataLinkPrior10YearEstimate!$AF$132 -> 838 | E57: =CntyDataLinkPrior10YearEstimate!$AG$132 -> 175 | G57: =CntyDataLinkPrior5YearEstimates!$AF$132 -> 789 | H57: =CntyDataLinkPrior5YearEstimates!$AG$132 -> 169 | J57: =CntyDataLink!$AF$132 -> 1033 | K57: =CntyDataLink!$AG$132 -> 302 | N57: 0.2326968974 | P57: 0.309252218
C58: Persons per Non-Family Hh | D58: =CntyDataLinkPrior10YearEstimate!$BH$132 -> 1.171837709 | E58: =CntyDataLinkPrior10YearEstimate!$BI$132 -> 0.3641678683 | G58: =CntyDataLinkPrior5YearEstimates!$BH$132 -> 1.326996198 | H58: =CntyDataLinkPrior5YearEstimates!$BI$132 -> 0.4809735292 | J58: =CntyDataLink!$BH$132 -> 1.151016457 | K58: =CntyDataLink!$BI$132 -> 0.4809735292 | N58: -0.01776803371 | P58: -0.1326151055
B61: As a result of changes in the American Community Survey, direct comparisons between the data should be made with caution.
B63: ="Source: "&L20&", "&P20&", and "&S20&" American Community Survey Table B11001" -> Source: 2008-2012, 2013-2017, and 2018-2022 American Community Survey Table B11001
B64: POPULATION CHARACTERISTICS

Sheet SchoolEnrolEduAttain (hidden)
C2: =CntyDataLink!A50 -> Antrim
C3: SOCIAL CHARACTERISTICS
C21: School Enrollment | F21: 2008-2012 | I21: 2013-2017 | L21: 2018-2022 | P21: Statistically Significant Change
F22: Estimate | G22: Margin of Error | H22: Percent of Population | I22: Estimate | J22: Margin of Error | K22: Percent of Population | L22: Estimate | M22: Margin of Error | N22: Percent of Population | P22: 2012-2022 | Q22: 2017-2022
C23: Population 3 years and over | F23: =CntyDataLinkPrior10YearEstimate!$B$140 -> 105630 | G23: =CntyDataLinkPrior10YearEstimate!$C$140 -> 395 | I23: =CntyDataLinkPrior5YearEstimates!$B$140 -> 106510 | J23: =CntyDataLinkPrior5YearEstimates!$C$140 -> 411 | L23: =CntyDataLink!$B$140 -> 111052 | M23: =CntyDataLink!$C$140 -> 472 | P23: =StatisticallySignificantCalcs!$A$46 -> Y | Q23: =StatisticallySignificantCalcs!$J$46 -> Y
C24: Population 3 years & over enrolled in school | F24: =CntyDataLinkPrior10YearEstimate!$D$140 -> 25783 | G24: =CntyDataLinkPrior10YearEstimate!$E$140 -> 867 | H24: =F24/$F$23 -> 0.2440878538 | I24: =CntyDataLinkPrior5YearEstimates!$D$140 -> 25773 | J24: =CntyDataLinkPrior5YearEstimates!$E$140 -> 884 | K24: =I24/$I$23 -> 0.2419772791 | L24: =CntyDataLink!$D$140 -> 23574 | M24: =CntyDataLink!$E$140 -> 1116 | N24: =L24/$L$23 -> 0.2122789324 | P24: =StatisticallySignificantCalcs!$A$47 -> N | Q24: =StatisticallySignificantCalcs!$J$47 -> N
C25: Preprimary (Nursery, Preschool, Kindergarten) | F25: =CntyDataLinkPrior10YearEstimate!$F$140 -> 3006 | G25: =CntyDataLinkPrior10YearEstimate!$G$140 -> 407.4616546 | H25: =F25/$F$23 -> 0.02845782448 | I25: =CntyDataLinkPrior5YearEstimates!$F$140 -> 2890 | J25: =CntyDataLinkPrior5YearEstimates!$G$140 -> 404.2091043 | K25: =I25/$I$23 -> 0.02713360248 | L25: =CntyDataLink!$F$140 -> 2610 | M25: =CntyDataLink!$G$140 -> 411.1265012 | N25: =L25/$L$23 -> 0.02350250333 | P25: =StatisticallySignificantCalcs!$A$48 -> Y | Q25: =StatisticallySignificantCalcs!$J$48 -> Y
C26: Nursery school and Preschool | F26: =CntyDataLinkPrior10YearEstimate!$H$140 -> 1631 | G26: =CntyDataLinkPrior10YearEstimate!$I$140 -> 317 | H26: 0.0154406892 | I26: =CntyDataLinkPrior5YearEstimates!$H$140 -> 1400 | J26: =CntyDataLinkPrior5YearEstimates!$I$140 -> 272 | K26: 0.0131443057 | L26: =CntyDataLink!$H$140 -> 64 | M26: =CntyDataLink!$I$140 -> 74 | N26: 0.0005763065951 | P26: =StatisticallySignificantCalcs!$A$49 -> Y | Q26: =StatisticallySignificantCalcs!$J$49 -> Y
C27: Kindergarten | F27: =CntyDataLinkPrior10YearEstimate!$J$140 -> 1375 | G27: =CntyDataLinkPrior10YearEstimate!$K$140 -> 256 | H27: 0.01301713528 | I27: =CntyDataLinkPrior5YearEstimates!$J$140 -> 1490 | J27: =CntyDataLinkPrior5YearEstimates!$K$140 -> 299 | K27: 0.01398929678 | L27: =CntyDataLink!$J$140 -> 58 | M27: =CntyDataLink!$K$140 -> 46 | N27: =L27/$L$23 -> 0.0005222778518 | P27: =StatisticallySignificantCalcs!$A$50 -> Y | Q27: =StatisticallySignificantCalcs!$J$50 -> N
C28: Elementary through High school | F28: =CntyDataLinkPrior10YearEstimate!$P$140 -> 15851 | G28: =CntyDataLinkPrior10YearEstimate!$Q$140 -> 897.1766827 | H28: 0.1500615355 | I28: =CntyDataLinkPrior5YearEstimates!$P$140 -> 14577 | J28: =CntyDataLinkPrior5YearEstimates!$Q$140 -> 763.4611974 | K28: =I28/$I$23 -> 0.1368603887 | L28: =CntyDataLink!$P$140 -> 13638 | M28: =CntyDataLink!$Q$140 -> 905.4280756 | N28: 0.1228073335 | P28: =StatisticallySignificantCalcs!$A$51 -> Y | Q28: =StatisticallySignificantCalcs!$J$51 -> N
C29: Elementary school (grades 1-8) | F29: =CntyDataLinkPrior10YearEstimate!$L$140 -> 10142 | G29: =CntyDataLinkPrior10YearEstimate!$M$140 -> 744.2613788 | H29: 0.09601438985 | I29: =CntyDataLinkPrior5YearEstimates!$L$140 -> 9333 | J29: =CntyDataLinkPrior5YearEstimates!$M$140 -> 630.8510125 | K29: 0.08762557506 | L29: =CntyDataLink!$L$140 -> 9001 | M29: =CntyDataLink!$M$140 -> 734.0980861 | N29: 0.08105211973 | P29: =StatisticallySignificantCalcs!$A$52 -> Y | Q29: =StatisticallySignificantCalcs!$J$52 -> N
C30: High school (grades 9-12) | F30: =CntyDataLinkPrior10YearEstimate!$N$140 -> 5709 | G30: =CntyDataLinkPrior10YearEstimate!$O$140 -> 501 | H30: 0.0540471457 | I30: =CntyDataLinkPrior5YearEstimates!$N$140 -> 5244 | J30: =CntyDataLinkPrior5YearEstimates!$O$140 -> 430 | K30: 0.04923481363 | L30: =CntyDataLink!$N$140 -> 4637 | M30: =CntyDataLink!$O$140 -> 530 | N30: 0.04175521377 | P30: =StatisticallySignificantCalcs!$A$53 -> N | Q30: =StatisticallySignificantCalcs!$J$53 -> N
C31: College or Graduate School | F31: =CntyDataLinkPrior10YearEstimate!$R$140 -> 6926 | G31: =CntyDataLinkPrior10YearEstimate!$S$140 -> 622.2877148 | H31: 0.0655684938 | I31: =CntyDataLinkPrior5YearEstimates!$R$140 -> 8306 | J31: =CntyDataLinkPrior5YearEstimates!$S$140 -> 613.8607334 | K31: 0.07798328795 | L31: =CntyDataLink!$R$140 -> 7326 | M31: =CntyDataLink!$S$140 -> 871.656469 | N31: 0.06596909556 | P31: =StatisticallySignificantCalcs!$A$54 -> Y | Q31: =StatisticallySignificantCalcs!$J$54 -> Y
C33: ="Source: "&F21&", "& I21&" and "&L21&" American Community Survey Table B14001" -> Source: 2008-2012, 2013-2017 and 2018-2022 American Community Survey Table B14001
C50: Educational Attainment | F50: =$F$21 -> 2008-2012 | I50: =$I$21 -> 2013-2017 | L50: =$L$21 -> 2018-2022 | P50: Statistically Significant Change
F51: Estimate | G51: Margin of Error | H51: Percent of Population | I51: Estimate | J51: Margin of Error | K51: Percent of Population | L51: Estimate | M51: Margin of Error | N51: Percent of Population | P51: =P22 -> 2012-2022 | Q51: 2017-2022
C52: Population 25 years and over | F52: =CntyDataLinkPrior10YearEstimate!$V$140 -> 74135 | G52: =CntyDataLinkPrior10YearEstimate!$W$140 -> 860 | I52: =CntyDataLinkPrior5YearEstimates!$V$140 -> 76381 | J52: =CntyDataLinkPrior5YearEstimates!$W$140 -> 880 | L52: =CntyDataLink!$V$140 -> 82193 | M52: =CntyDataLink!$W$140 -> 747 | P52: =StatisticallySignificantCalcs!A55 -> N | Q52: =StatisticallySignificantCalcs!$J$55 -> N
C53: Less than 9th Grade | F53: =CntyDataLinkPrior10YearEstimate!$X$140 -> 3354 | G53: =CntyDataLinkPrior10YearEstimate!$Y$140 -> 388.8277253 | H53: =F53/$F$52 -> 0.04524178863 | I53: =CntyDataLinkPrior5YearEstimates!$X$140 -> 3037 | J53: =CntyDataLinkPrior5YearEstimates!$Y$140 -> 391.6707801 | K53: =I53/$I$52 -> 0.03976119716 | L53: =CntyDataLink!$X$140 -> 2832 | M53: =CntyDataLink!$Y$140 -> 507.2050867 | N53: =L53/$L$52 -> 0.03445548891 | P53: =StatisticallySignificantCalcs!A56 -> N | Q53: =StatisticallySignificantCalcs!$J$56 -> N
C54: 9th to 12th Grade, no Diploma | F54: =CntyDataLinkPrior10YearEstimate!$Z$140 -> 5978 | G54: =CntyDataLinkPrior10YearEstimate!$AA$140 -> 515.3678298 | H54: =F54/$F$52 -> 0.08063667633 | I54: =CntyDataLinkPrior5YearEstimates!$Z$140 -> 5405 | J54: =CntyDataLinkPrior5YearEstimates!$AA$140 -> 471.8548506 | K54: 0.07076367159 | L54: =CntyDataLink!$Z$140 -> 5354 | M54: =CntyDataLink!$AA$140 -> 606.4107519 | N54: 0.0651393671 | P54: =StatisticallySignificantCalcs!A57 -> N | Q54: =StatisticallySignificantCalcs!$J$57 -> N
C55: High School Graduate | F55: =CntyDataLinkPrior10YearEstimate!$AB$140 -> 24469 | G55: =CntyDataLinkPrior10YearEstimate!$AC$140 -> 941.7266058 | H55: 0.3300600256 | I55: =CntyDataLinkPrior5YearEstimates!$AB$140 -> 23924 | J55: =CntyDataLinkPrior5YearEstimates!$AC$140 -> 907.6574244 | K55: 0.3132192561 | L55: =CntyDataLink!$AB$140 -> 23644 | M55: =CntyDataLink!$AC$140 -> 1101.825758 | N55: 0.2876643996 | P55: =StatisticallySignificantCalcs!A58 -> N | Q55: =StatisticallySignificantCalcs!$J$58 -> N
C56: Some College, No Degree | F56: =CntyDataLinkPrior10YearEstimate!$AD$140 -> 13881 | G56: =CntyDataLinkPrior10YearEstimate!$AE$140 -> 795.2923991 | H56: 0.1872394955 | I56: =CntyDataLinkPrior5YearEstimates!$AD$140 -> 14609 | J56: =CntyDataLinkPrior5YearEstimates!$AE$140 -> 802.7315865 | K56: 0.1912648434 | L56: =CntyDataLink!$AD$140 -> 15458 | M56: =CntyDataLink!$AE$140 -> 1048.807418 | N56: 0.1880695436 | P56: =StatisticallySignificantCalcs!A59 -> N | Q56: =StatisticallySignificantCalcs!$J$59 -> N
C57: Associate Degree | F57: =CntyDataLinkPrior10YearEstimate!$AF$140 -> 6397 | G57: =CntyDataLinkPrior10YearEstimate!$AG$140 -> 516.5675174 | H57: 0.08628852769 | I57: =CntyDataLinkPrior5YearEstimates!$AF$140 -> 6864 | J57: =CntyDataLinkPrior5YearEstimates!$AG$140 -> 657.4077882 | K57: 0.08986528063 | L57: =CntyDataLink!$AF$140 -> 7504 | M57: =CntyDataLink!$AG$140 -> 715.4390261 | N57: 0.09129731242 | P57: =StatisticallySignificantCalcs!A60 -> Y | Q57: =StatisticallySignificantCalcs!$J$60 -> Y
C58: Bachelor's Degree | F58: =CntyDataLinkPrior10YearEstimate!$AH$140 -> 12840 | G58: =CntyDataLinkPrior10YearEstimate!$AI$140 -> 761.5700887 | H58: 0.173197545 | I58: =CntyDataLinkPrior5YearEstimates!$AH$140 -> 14481 | J58: =CntyDataLinkPrior5YearEstimates!$AI$140 -> 816.0912939 | K58: 0.1895890339 | L58: =CntyDataLink!$AH$140 -> 17655 | M58: =CntyDataLink!$AI$140 -> 1081.218294 | N58: 0.2147993138 | P58: =StatisticallySignificantCalcs!A61 -> Y | Q58: =StatisticallySignificantCalcs!$J$61 -> Y
C59: Graduate or Professional Degree | F59: =CntyDataLinkPrior10YearEstimate!$AJ$140 -> 3393 | G59: =CntyDataLinkPrior10YearEstimate!$AK$140 -> 403.3509638 | H59: 0.04576785594 | I59: =CntyDataLinkPrior5YearEstimates!$AJ$140 -> 6887 | J59: =CntyDataLinkPrior5YearEstimates!$AK$140 -> 492.0101625 | K59: 0.09016640264 | L59: =CntyDataLink!$AJ$140 -> 8555 | M59: =CntyDataLink!$AK$140 -> 782.0652147 | N59: 0.1040842894 | P59: =StatisticallySignificantCalcs!A62 -> Y | Q59: =StatisticallySignificantCalcs!$J$62 -> Y
C61: Percent of High School Graduate or Higher | H61: =SUM(F55:F59)/F52 -> 0.8225534498 | K61: =SUM(I55:I59)/I52 -> 0.8741048166 | N61: =SUM(L55:L59)/L52 -> 0.8859148589
C62: Percent of Bachelor's Degree or Higher | H62: =SUM(F58:F59)/F52 -> 0.218965401 | K62: =SUM(I58:I59)/I52 -> 0.2797554366 | N62: =SUM(L58:L59)/L52 -> 0.3188836032
C64: ="Source: "&F21&", "&I21&" and "&L21&" American Community Survey Table B15002" -> Source: 2008-2012, 2013-2017 and 2018-2022 American Community Survey Table B15002 | H64: Data from the American Community Survey are estimates
C66: As a result of changes in the American Community Survey, direct comparisons between the data should be made with caution.

Sheet HousingCharacteristics (hidden)
B2: =CntyDataLink!$A35 -> Antrim
B4: HOUSING CHARACTERISTICS
D27: ="Source: "& " "&D69&", "&G69&" and "&J69& " American Community Survey Table B25004; B25024; B25032" -> Source: 2008-2012, 2013-2017 and 2018-2022 American Community Survey Table B25004; B25024; B25032
B28: Units by Tenure & Vacancy
C30: 2008-2012 | F30: 2013-2017 | I30: 2018-2022 | L30: Percent Change | O30: Statistically Significant Change
C31: Estimate | D31: Margin of Error | E31: % | F31: Estimate | G31: Margin of Error | H31: % | I31: Estimate | J31: Margin of Error | K31: % | L31: 2011-2022 | M31: 2017-2022 | O31: 2012-2022 | P31: 2017-2022
B32: Total Units | C32: =CntyDataLinkPrior10YearEstimate!$B$108 -> 37392 | D32: =CntyDataLinkPrior5YearEstimates!$C$108 -> 609 | F32: =CntyDataLinkPrior5YearEstimates!$B$108 -> 37054 | G32: =CntyDataLinkPrior5YearEstimates!$C$108 -> 609 | I32: =CntyDataLink!$B$108 -> 39085 | J32: =CntyDataLink!$C$108 -> 801 | L32: =IF(I32="-","-",(I32-C32)/C32) -> 0.04527706461 | M32: =IF(I32="-","-",(I32-F32)/F32) -> 0.05481189615 | O32: =StatisticallySignificantCalcs!$A63 -> Y | P32: =StatisticallySignificantCalcs!$J63 -> Y
B33: Occupied Units | C33: =CntyDataLinkPrior10YearEstimate!$D$108 -> 35209 | D33: =CntyDataLinkPrior5YearEstimates!$E$108 -> 583 | E33: =ROUND(C33/C32,2)*100&"% of Total" -> 94% of Total | F33: =CntyDataLinkPrior5YearEstimates!$D$108 -> 35374 | G33: =CntyDataLinkPrior5YearEstimates!$E$108 -> 583 | H33: =ROUND(F33/F32,2)*100&"% of Total" -> 95% of Total | I33: =CntyDataLink!$D$108 -> 37478 | J33: =CntyDataLink!$E$108 -> 849 | K33: =ROUND(I33/I32,2)*100&"% of Total" -> 96% of Total | L33: =IF(I33="-","-",(I33-C33)/C33) -> 0.06444375018 | M33: 0.05947871318 | O33: =StatisticallySignificantCalcs!$A64 -> N | P33: =StatisticallySignificantCalcs!$J64 -> Y
B34: Owner Occupied | C34: =CntyDataLinkPrior10YearEstimate!$F$108 -> 20740 | D34: =CntyDataLinkPrior5YearEstimates!$G$108 -> 602 | E34: =ROUND(C34/C33,2)*100&"% of Occ." -> 59% of Occ. | F34: =CntyDataLinkPrior5YearEstimates!$F$108 -> 19121 | G34: =CntyDataLinkPrior5YearEstimates!$G$108 -> 602 | H34: =ROUND(F34/F33,2)*100&"% of Occ." -> 54% of Occ. | I34: =CntyDataLink!$F$108 -> 20817 | J34: =CntyDataLink!$G$108 -> 669 | K34: =ROUND(I34/I33,2)*100&"% of Occ." -> 56% of Occ. | L34: =IF(I34="-","-",(I34-C34)/C34) -> 0.003712632594 | M34: 0.08869828984 | O34: =StatisticallySignificantCalcs!$A65 -> Y | P34: =StatisticallySignificantCalcs!$J65 -> Y
B35: Renter Occupied | C35: =CntyDataLinkPrior10YearEstimate!$H$108 -> 14469 | D35: =CntyDataLinkPrior5YearEstimates!$I$108 -> 557 | E35: =ROUND(C35/C33,2)*100&"% of Occ." -> 41% of Occ. | F35: =CntyDataLinkPrior5YearEstimates!$H$108 -> 16253 | G35: =CntyDataLinkPrior5YearEstimates!$I$108 -> 557 | H35: =ROUND(F35/F33,2)*100&"% of Occ." -> 46% of Occ. | I35: =CntyDataLink!$H$108 -> 16661 | J35: =CntyDataLink!$I$108 -> 855 | K35: =ROUND(I35/I33,2)*100&"% of Occ." -> 44% of Occ. | L35: =IF(I35="-","-",(I35-C35)/C35) -> 0.1514963024 | M35: 0.0251030579 | O35: =StatisticallySignificantCalcs!$A66 -> Y | P35: =StatisticallySignificantCalcs!$J66 -> Y
B36: Vacant Units | C36: =CntyDataLinkPrior10YearEstimate!$J$108 -> 2278 | D36: =CntyDataLinkPrior5YearEstimates!$K$108 -> 349 | E36: =ROUND(C36/C32,2)*100&"% of Total" -> 6% of Total | F36: =CntyDataLinkPrior5YearEstimates!$J$108 -> 1680 | G36: =CntyDataLinkPrior5YearEstimates!$K$108 -> 349 | H36: =ROUND(F36/F32,2)*100&"% of Total" -> 5% of Total | I36: =CntyDataLink!$J$108 -> 1607 | J36: =CntyDataLink!$K$108 -> 407 | K36: =ROUND(I36/I32,2)*100&"% of Total" -> 4% of Total | L36: =IF(I36="-",I36,VALUE((I36-C36)/C36)) -> -0.2945566286 | M36: -0.04345238095 | O36: =StatisticallySignificantCalcs!$A67 -> Y | P36: =StatisticallySignificantCalcs!$J67 -> N
B37: Vacant For Sale | C37: =CntyDataLinkPrior10YearEstimate!$P$108 -> 329 | D37: =CntyDataLinkPrior5YearEstimates!$Q$108 -> 106 | E37: =ROUND(C37/(C$36),3)*100&"% Vac." -> 14.4% Vac. | F37: =CntyDataLinkPrior5YearEstimates!$P$108 -> 153 | G37: =CntyDataLinkPrior5YearEstimates!$Q$108 -> 106 | H37: =ROUND(F37/(F$36),3)*100&"% Vac." -> 9.1% Vac. | I37: =CntyDataLink!$P$108 -> 73 | J37: =CntyDataLink!$Q$108 -> 72 | K37: =ROUND(I37/(I$36),3)*100&"% Vac." -> 4.5% Vac. | L37: =IF(I37="-",I37,VALUE((I37-C37)/C37)) -> -0.7781155015 | M37: -0.522875817 | O37: =StatisticallySignificantCalcs!$A68 -> Y | P37: =StatisticallySignificantCalcs!$J68 -> N
B38: Vacant For Rent | C38: =CntyDataLinkPrior10YearEstimate!$L$108 -> 829 | D38: =CntyDataLinkPrior5YearEstimates!$M$108 -> 154 | E38: =ROUND(C38/(C$36),3)*100&"% Vac." -> 36.4% Vac. | F38: =CntyDataLinkPrior5YearEstimates!$L$108 -> 331 | G38: =CntyDataLinkPrior5YearEstimates!$M$108 -> 154 | H38: =ROUND(F38/(F$36),3)*100&"% Vac." -> 19.7% Vac. | I38: =CntyDataLink!$L$108 -> 223 | J38: =CntyDataLink!$M$108 -> 133 | K38: =ROUND(I38/(I$36),3)*100&"% Vac." -> 13.9% Vac. | L38: =IF(I38="-",I38,VALUE((I38-C38)/C38)) -> -0.7310012063 | M38: -0.3262839879 | O38: =StatisticallySignificantCalcs!$A69 -> N | P38: =StatisticallySignificantCalcs!$J69 -> N
B39: Vacant Seasonal | C39: =CntyDataLinkPrior10YearEstimate!$T$108 -> 256 | D39: =CntyDataLinkPrior5YearEstimates!$U$108 -> 117 | E39: =ROUND(C39/(C$36),3)*100&"% Vac." -> 11.2% Vac. | F39: =CntyDataLinkPrior5YearEstimates!$T$108 -> 177 | G39: =CntyDataLinkPrior5YearEstimates!$U$108 -> 117 | H39: =ROUND(F39/(F$36),3)*100&"% Vac." -> 10.5% Vac. | I39: =CntyDataLink!$T$108 -> 253 | J39: =CntyDataLink!$U$108 -> 113 | K39: =ROUND(I39/(I$36),3)*100&"% Vac." -> 15.7% Vac. | L39: =IF(I39="-",I39,VALUE((I39-C39)/C39)) -> -0.01171875 | M39: 0.4293785311 | O39: =StatisticallySignificantCalcs!$A70 -> Y | P39: =StatisticallySignificantCalcs!$J70 -> Y
B41: Data from the American Community Survey are estimates
B44: HOUSING CHARACTERISTICS
D65: ="Source: "& " "&D69&", "&G69&" and "&J69& " American Community Survey Table B25024; B25032" -> Source: 2008-2012, 2013-2017 and 2018-2022 American Community Survey Table B25024; B25032
C67: Units by Type
D69: =$C$30 -> 2008-2012 | G69: =$F$30 -> 2013-2017 | J69: =$I$30 -> 2018-2022 | M69: Percent Change | O69: Statistically Significant Change
D70: Estimate | E70: Margin of Error | F70: % of Total | G70: Estimate | H70: Margin of Error | I70: % of Total | J70: Estimate | K70: Margin of Error | L70: % of Total | M70: =L31 -> 2011-2022 | N70: 2017-2022 | O70: =O31 -> 2012-2022 | P70: 2017-2022
C71: Total Units | D71: =CntyDataLinkPrior10YearEstimate!$B$108 -> 37392 | E71: =CntyDataLinkPrior10YearEstimate!$C$108 -> 524 | G71: =CntyDataLinkPrior5YearEstimates!$B$108 -> 37054 | H71: =CntyDataLinkPrior5YearEstimates!$C$108 -> 609 | J71: =CntyDataLink!$B$108 -> 39085 | K71: =CntyDataLink!$C$108 -> 801 | O71: =StatisticallySignificantCalcs!$A71 -> N | P71: =StatisticallySignificantCalcs!$J71 -> Y
C72: Single Family Units | D72: =CntyDataLinkPrior10YearEstimate!$AT$108 -> 17173 | E72: =CntyDataLinkPrior10YearEstimate!$AU$108 -> 580 | F72: =IF(D72="-","-",($D$72/$D$71)) -> 0.4592693624 | G72: =CntyDataLinkPrior5YearEstimates!$AT$108 -> 16415 | H72: =CntyDataLinkPrior5YearEstimates!$AU$108 -> 573 | I72: =IF(G72="-","-",($G$72/$G$71)) -> 0.443002105 | J72: =CntyDataLink!$AT$108 -> 17455 | K72: =CntyDataLink!$AU$108 -> 638 | L72: =IF(J72="-","-",($J$72/$J$71)) -> 0.4465907637 | M72: =IF(J72="-","-",($J72-$D72)/$D72) -> 0.01642112619 | N72: =IF(J72="-","-",($J72-$G72)/$G72) -> 0.06335668596 | O72: =StatisticallySignificantCalcs!$A72 -> N | P72: =StatisticallySignificantCalcs!$J72 -> Y
C73: SF Owner Occ. | D73: =CntyDataLinkPrior10YearEstimate!$AF$108 -> 15774 | E73: =CntyDataLinkPrior10YearEstimate!$AG$108 -> 547 | G73: =CntyDataLinkPrior5YearEstimates!$AF$108 -> 14512 | H73: =CntyDataLinkPrior5YearEstimates!$AG$108 -> 478 | J73: =CntyDataLink!$AF$108 -> 15588 | K73: =CntyDataLink!$AG$108 -> 622 | O73: =StatisticallySignificantCalcs!$A73 -> Y | P73: =StatisticallySignificantCalcs!$J73 -> N
C74: SF Renter Occ. | D74: =CntyDataLinkPrior10YearEstimate!$AN$108 -> 1018 | E74: =CntyDataLinkPrior10YearEstimate!$AO$108 -> 215 | G74: =CntyDataLinkPrior5YearEstimates!$AN$108 -> 1307 | H74: =CntyDataLinkPrior5YearEstimates!$AO$108 -> 246 | J74: =CntyDataLink!$AN$108 -> 1550 | K74: =CntyDataLink!$AO$108 -> 372 | O74: =StatisticallySignificantCalcs!$A74 -> N | P74: =StatisticallySignificantCalcs!$J74 -> N
C75: Multi-family Units | D75: =CntyDataLinkPrior10YearEstimate!$AV$108 -> 19234 | E75: =CntyDataLinkPrior10YearEstimate!$AW$108 -> 883.7211099 | F75: =IF(D75="-","-",$D$75/$D$71) -> 0.5143881044 | G75: =CntyDataLinkPrior5YearEstimates!$AV$108 -> 19821 | H75: =CntyDataLinkPrior5YearEstimates!$AW$108 -> 922.8250105 | I75: =IF(G75="-","-",$G$75/$G$71) -> 0.5349220057 | J75: =CntyDataLink!$AV$108 -> 20667 | K75: =CntyDataLink!$AW$108 -> 1152.741081 | L75: =IF(J75="-","-",$J$75/$J$71) -> 0.5287706281 | M75: =IF(J75="-","-",($J75-$D75)/$D75) -> 0.07450348341 | N75: =IF(J75="-","-",($J75-$G75)/$G75) -> 0.04268200394 | O75: =StatisticallySignificantCalcs!$A75 -> N | P75: =StatisticallySignificantCalcs!$J75 -> N
C76: MF Owner Occ. | D76: =CntyDataLinkPrior10YearEstimate!$AH$108 -> 4184 | E76: =CntyDataLinkPrior10YearEstimate!$AI$108 -> 415.1481663 | G76: =CntyDataLinkPrior5YearEstimates!$AH$108 -> 3838 | H76: =CntyDataLinkPrior5YearEstimates!$AI$108 -> 387.7370243 | J76: =CntyDataLink!$AH$108 -> 4322 | K76: =CntyDataLink!$AI$108 -> 556.9452397 | O76: =StatisticallySignificantCalcs!$A76 -> N | P76: =StatisticallySignificantCalcs!$J76 -> N
C77: MF Renter Occ. | D77: =CntyDataLinkPrior10YearEstimate!$AP$108 -> 9319 | E77: =CntyDataLinkPrior10YearEstimate!$AQ$108 -> 672.1168053 | G77: =CntyDataLinkPrior5YearEstimates!$AP$108 -> 9908 | H77: =CntyDataLinkPrior5YearEstimates!$AQ$108 -> 687.698335 | J77: =CntyDataLink!$AP$108 -> 9749 | K77: =CntyDataLink!$AQ$108 -> 822.8213658 | O77: =StatisticallySignificantCalcs!$A77 -> N | P77: =StatisticallySignificantCalcs!$J77 -> N
C78: Mobile Home & Other | D78: =CntyDataLinkPrior10YearEstimate!$AX$108 -> 985 | E78: =CntyDataLinkPrior10YearEstimate!$AY$108 -> 157.3340395 | F78: =IF(D78="-","-",($D$78/$D$71)) -> 0.02634253316 | G78: =CntyDataLinkPrior5YearEstimates!$AX$108 -> 818 | H78: =CntyDataLinkPrior5YearEstimates!$AY$108 -> 125.9285512 | I78: =IF(G78="-","-",($G$78/$G$71)) -> 0.02207588924 | J78: =CntyDataLink!$AX$108 -> 963 | K78: =CntyDataLink!$AY$108 -> 226.8832299 | L78: =IF(J78="-","-",($J$78/$J$71)) -> 0.02463860816 | M78: =IF(J78="-","-",($J78-$D78)/$D78) -> -0.02233502538 | N78: =IF(J78="-","-",($J78-$G78)/$G78) -> 0.1772616137 | O78: =StatisticallySignificantCalcs!$A78 -> N | P78: =StatisticallySignificantCalcs!$J78 -> N
B80: Data from the American Community Survey are estimates
B83: Units by Number of Bedrooms
D84: ="Source: "& " "&D69&", "&G69&" and "&J69& " American Community Survey Table B25041" -> Source: 2008-2012, 2013-2017 and 2018-2022 American Community Survey Table B25041
C86: 2005-2009 | G86: 2010-2014 | K86: 2018-2022 | O86: Statistically Significant Change
B87: Bedrooms | C87: Estimate | D87: Margin of Error | E87: % of Total | G87: Estimate | H87: Margin of Error | I87: % of Total | K87: Estimate | L87: Margin of Error | M87: % of Total | O87: =O31 -> 2012-2022 | P87: 2017-2022
B88: No Bedrooms | C88: =CntyDataLinkPrior10YearEstimate!$BR$108 -> 963 | D88: =CntyDataLinkPrior10YearEstimate!$BS$108 -> 297 | E88: =C88/SUM($C$88:$C$92) -> 0.02575417202 | G88: =CntyDataLinkPrior5YearEstimates!$BR$108 -> 780 | H88: =CntyDataLinkPrior5YearEstimates!$BS$108 -> 199 | I88: =G88/SUM($G$88:$G$92) -> 0.02105035894 | K88: =CntyDataLink!$BT$108 -> 964 | L88: =CntyDataLink!$BU$108 -> 289 | M88: =K88/SUM($K$88:$K$92) -> 0.02466419342 | O88: =StatisticallySignificantCalcs!$A79 -> N | P88: =StatisticallySignificantCalcs!$J79 -> N
B89: 1 Bedroom | C89: =CntyDataLinkPrior10YearEstimate!$BT$108 -> 5144 | D89: =CntyDataLinkPrior10YearEstimate!$BU$108 -> 447 | E89: =C89/SUM($C$88:$C$92) -> 0.1375695336 | G89: =CntyDataLinkPrior5YearEstimates!$BT$108 -> 5518 | H89: =CntyDataLinkPrior5YearEstimates!$BU$108 -> 478 | I89: =G89/SUM($G$88:$G$92) -> 0.1489177956 | K89: =CntyDataLink!$BV$108 -> 5898 | L89: =CntyDataLink!$BW$108 -> 590 | M89: =K89/SUM($K$88:$K$92) -> 0.1509018805 | O89: =StatisticallySignificantCalcs!$A80 -> N | P89: =StatisticallySignificantCalcs!$J80 -> N
B90: 2 Bedrooms | C90: =CntyDataLinkPrior10YearEstimate!$BV$108 -> 12179 | D90: =CntyDataLinkPrior10YearEstimate!$BW$108 -> 612 | E90: =C90/SUM($C$88:$C$92) -> 0.3257113821 | G90: =CntyDataLinkPrior5YearEstimates!$BV$108 -> 12665 | H90: =CntyDataLinkPrior5YearEstimates!$BW$108 -> 570 | I90: =G90/SUM($G$88:$G$92) -> 0.3417984563 | K90: =CntyDataLink!$BX$108 -> 13364 | L90: =CntyDataLink!$BY$108 -> 772 | M90: =K90/SUM($K$88:$K$92) -> 0.3419214532 | O90: =StatisticallySignificantCalcs!$A81 -> N | P90: =StatisticallySignificantCalcs!$J81 -> N
B91: 3 Bedrooms | C91: =CntyDataLinkPrior10YearEstimate!$BX$108 -> 12466 | D91: =CntyDataLinkPrior10YearEstimate!$BY$108 -> 577 | E91: =C91/SUM($C$88:$C$92) -> 0.3333868207 | G91: =CntyDataLinkPrior5YearEstimates!$BX$108 -> 11474 | H91: =CntyDataLinkPrior5YearEstimates!$BY$108 -> 624 | I91: =G91/SUM($G$88:$G$92) -> 0.3096561775 | K91: =CntyDataLink!$BZ$108 -> 11636 | L91: =CntyDataLink!$CA$108 -> 574 | M91: =K91/SUM($K$88:$K$92) -> 0.297710119 | O91: =StatisticallySignificantCalcs!$A82 -> N | P91: =StatisticallySignificantCalcs!$J82 -> N
B92: 4+ Bedrooms | C92: =CntyDataLinkPrior10YearEstimate!$BZ$108 -> 6640 | D92: =CntyDataLinkPrior10YearEstimate!$CA$108 -> 467.2868498 | E92: =C92/SUM($C$88:$C$92) -> 0.1775780916 | G92: =CntyDataLinkPrior5YearEstimates!$BZ$108 -> 6617 | H92: =CntyDataLinkPrior5YearEstimates!$CA$108 -> 548.9672121 | I92: =G92/SUM($G$88:$G$92) -> 0.1785772116 | K92: =CntyDataLink!$CB$108 -> 7223 | L92: =CntyDataLink!$CC$108 -> 565.9257902 | M92: =K92/SUM($K$88:$K$92) -> 0.1848023538 | O92: =StatisticallySignificantCalcs!$A83 -> N | P92: =StatisticallySignificantCalcs!$J83 -> N
B95: Data from the American Community Survey are estimates
B97: Units by Year Built
B98: ="Source: "&K86& " American Community Survey Table B25034" -> Source: 2018-2022 American Community Survey Table B25034
D100: Year Built | G100: Units | I100: % of Total | K100: Margin of Error
F101: 2020 or later | G101: =CntyDataLink!$AZ$108 -> 80 | I101: =G101/SUM($G$101:$G$110) -> 0.002046821031 | K101: =CntyDataLink!$BA$108 -> 78
F102: 2010 through 2019 | G102: =CntyDataLink!$BB$108 -> 1909 | I102: 0.04884226685 | K102: =CntyDataLink!$BC$108 -> 311
F103: 2000 through 2009 | G103: =CntyDataLink!$BD$108 -> 2207 | I103: 0.0564666752 | K103: =CntyDataLink!$BE$108 -> 365
F104: 1990 through 1999 | G104: =CntyDataLink!$BF$108 -> 2382 | I104: 0.0609440962 | K104: =CntyDataLink!$BG$108 -> 461
F105: 1980 through 1989 | G105: =CntyDataLink!$BH$108 -> 8931 | I105: 0.2285019829 | K105: =CntyDataLink!$BI$108 -> 730
F106: 1970 through 1979 | G106: =CntyDataLink!$BJ$108 -> 7214 | I106: 0.1845720865 | K106: =CntyDataLink!$BK$108 -> 536
F107: 1960 through 1969 | G107: =CntyDataLink!$BL$108 -> 4953 | I107: 0.1267238071 | K107: =CntyDataLink!$BM$108 -> 448
F108: 1950 through 1959 | G108: =CntyDataLink!$BN$108 -> 2807 | I108: 0.07181783293 | K108: =CntyDataLink!$BO$108 -> 400
F109: 1940 through 1949 | G109: =CntyDataLink!$BP$108 -> 1132 | I109: 0.02896251759 | K109: =CntyDataLink!$BQ$108 -> 291
F110: 1939 and earlier | G110: =CntyDataLink!$BR$108 -> 7470 | I110: 0.1911219138 | K110: =CntyDataLink!$BS$108 -> 685
B112: Data from the American Community Survey are estimates

Sheet CntyDataLink (hidden)
A1: 1 | B1: =A1+1 -> 2 | C1: =B1+1 -> 3 | D1: 4 | E1: 5 | F1: 6 | G1: 7 | H1: 8 | I1: 9 | J1: 10 | K1: 11 | L1: 12 | M1: 13 | N1: 14 | O1: 15 | P1: =O1+1 -> 16 | Q1: 17 | R1: 18 | S1: 19 | T1: 20 | U1: 21 | V1: 22 | W1: 23 | X1: 24 | Y1: 25 | Z1: 26 | AA1: 27 | AB1: 28 | AC1: 29 | AD1: 30 | AE1: 31 | AF1: 32 | AG1: 33 | AH1: 34 | AI1: 35 | AJ1: 36 | AK1: 37 | AL1: 38 | AM1: 39 | AN1: 40 | AO1: 41 | AP1: 42 | AQ1: 43 | AR1: 44 | AS1: 45 | AT1: 46 | AU1: 47 | AV1: 48 | AW1: 49 | AX1: 50 | AY1: 51 | AZ1: 52 | BA1: 53 | BB1: 54 | BC1: 55 | BD1: 56 | BE1: 57 | BF1: 58 | BG1: 59 | BH1: 60 | BI1: 61 | BJ1: 62 | BK1: 63 | BL1: 64 | BM1: 65 | BN1: 66 | BO1: =BN1+1 -> 67 | BP1: 68 | BQ1: 69 | BR1: 70 | BS1: 71 | BT1: 72 | BU1: 73 | BV1: 74 | BW1: 75 | BX1: 76 | BY1: 77 | BZ1: 78 | CA1: 79 | CB1: 80 | CC1: 81 | CD1: 82 | CE1: 83 | CF1: 84 | CG1: 85 | CH1: 86 | CI1: 87 | CJ1: 88 | CK1: 89 | CL1: 90 | CM1: 91 | CN1: 92 | CO1: 93 | CP1: 94 | CQ1: 95 | CR1: 96 | CS1: 97 | CT1: 98 | CU1: 99 | CV1: 100 | CW1: 101 | CX1: 102 | CY1: 103 | CZ1: 104 | DA1: 105 | DB1: 106 | DC1: 107 | DD1: 108 | DE1: 109 | DF1: 110 | DG1: 111 | DH1: 112 | DI1: 113 | DJ1: 114 | DK1: 115 | DL1: 116 | DM1: 117 | DN1: 118 | DO1: 119 | DP1: 120 | DQ1: 121 | DR1: 122 | DS1: 123 | DT1: 124 | DU1: 125 | DV1: 126 | DW1: 127 | DX1: 128 | DY1: 129 | DZ1: 130 | EA1: =DZ1+1 -> 131 | EB1: 132 | EC1: 133 | ED1: 134 | EE1: 135 | EF1: 136 | EG1: 137 | EH1: 138 | EI1: 139 | EJ1: 140 | EK1: 141 | EL1: 142 | EM1: 143 | EN1: 144 | EO1: 145 | EP1: 146 | EQ1: 147 | ER1: 148 | ES1: 149 | ET1: 150 | EU1: 151 | EV1: 152 | EW1: 153 | EX1: 154 | EY1: 155 | EZ1: 156 | FA1: 157 | FB1: 158 | FC1: 159 | FD1: 160 | FE1: 161 | FF1: 162 | FG1: 163 | FH1: 164 | FI1: 165 | FJ1: 166 | FK1: 167 | FL1: 168 | FM1: 169 | FN1: 170 | FO1: 171 | FP1: 172 | FQ1: 173 | FR1: 174 | FS1: 175 | FT1: 176 | FU1: 177 | FV1: 178 | FW1: 179 | FX1: 180 | FY1: 181 | FZ1: 182 | GA1: 183 | GB1: 184 | GC1: 185 | GD1: 186 | GE1: 187 | GF1: 188 | GG1: 189 | GH1: 190 | GI1: 191 | GJ1: 192 | GK1: 193 | GL1: 194 | GM1: =GL1+1 -> 195 | GN1: 196 | GO1: 197 | GP1: 198 | GQ1: 199 | GR1: 200 | GS1: 201 | GT1: 202 | GU1: 203 | GV1: 204 | GW1: 205 | GX1: 206 | GY1: 207 | GZ1: 208 | HA1: 209 | HB1: 210 | HC1: 211 | HD1: 212 | HE1: 213 | HF1: 214 | HG1: 215 | HH1: 216 | HI1: 217 | HJ1: 218 | HK1: 219 | HL1: 220 | HM1: 221 | HN1: 222 | HO1: 223 | HP1: 224 | HQ1: 225 | HR1: 226 | HS1: 227 | HT1: 228 | HU1: 229 | HV1: 230 | HW1: 231 | HX1: 232 | HY1: 233 | HZ1: 234 | IA1: 235 | IB1: 236 | IC1: 237 | ID1: 238 | IE1: 239 | IF1: 240 | IG1: 241 | IH1: 242 | II1: 243 | IJ1: 244 | IK1: 245 | IL1: 246 | IM1: 247 | IN1: 248 | IO1: 249 | IP1: 250 | IQ1: 251 | IR1: 252 | IS1: 253 | IT1: 254 | IU1: 255
A3: Census 1990 Data - Query Name: DPCnty90Census
A4: TownName | B4: Cnty_Code | C4: Census_Cnty_Code | D4: LandAcres | E4: WaterAcres | F4: HousingUnits90Cen | G4: Persons90Cen | H4: Families90Cen | I4: Households90cen | J4: MalePop90cen | K4: FemalePop90cen | L4: WhitePop | M4: BlackPop | N4: AmerIndianPop | O4: AsianPIPop | P4: OtherRacePop | Q4: HispanicOrPop | R4: AgeUnder15_90cen | S4: Age15to24_90cen | T4: Age25to34_90cen | U4: Age35to44_90cen | V4: Age45to54_90cen | W4: Age55to64_90cen | X4: Age65to74_90cen | Y4: Age75andOver_90cen | Z4: PersonsInHH90cen | AA4: PersonsInFamHH90cen | AB4: PersonsInGC | AC4: PersonsPerHH90cen | AD4: PersonsPerFam90Cen | AE4: SinglePersonHH90cen | AF4: MarriedCoupleHH90cen | AG4: SingleParentHH90cen | AH4: NonFamilyHH90cen | AI4: TotalHousingUnits | AJ4: OccupiedHousingUnits | AK4: VacantHousingUnits | AL4: OwnerOccHU | AM4: RenterOccHU | AN4: VacantForRent90 | AO4: VacantForSale90 | AP4: VacantSeasonalRec | AQ4: SingFamHU90cen | AR4: MultiFamHU90cen | AS4: MobileHom90cen | AT4: SingFamOwnHU90cen | AU4: MultiFamOwnHU90cen | AV4: MobileHomOwnHU90cen | AW4: SingFamRntrHU90cen | AX4: MultiFamRntrHU90cen | AY4: MobileHomRntrHU90cen | AZ4: HU<5yrs90cen | BA4: HU5to20yrs90cen | BB4: HU20to50yrs90cen | BC4: HU>50yrs90cen | BD4: Units0Bedroom90cen | BE4: Units1Bedroom90cen | BF4: Units2Bedroom90cen | BG4: Units3Bedroom90cen | BH4: Units4+Bedroom90cen | BI4: HI<5K | BJ4: HI5Kto10K | BK4: HI10Kto15K | BL4: HI15Kto25K | BM4: HI25Kto35K | BN4: HI35Kto50K | BO4: HI50Kto75K | BP4: HI75Kto100K | BQ4: HI>100K | BR4: MedHI | BS4: HH<25HI<5K | BT4: HH<25HI5Kto10K | BU4: HH<25HI10Kto15K | BV4: HH<25HI15Kto25K | BW4: HH<25HI25Kto35K | BX4: HH<25HI35Kto50K | BY4: HH<25HI50Kto75K | BZ4: HH<25HI75Kto100K | CA4: HH<25HI>100K | CB4: HH25to34HI<5K | CC4: HH25to34HI5Kto10K | CD4: HH25to34HI10Kto15K | CE4: HH25to34HI15Kto25K | CF4: HH25to34HI25Kto35K | CG4: HH25to34HI35Kto50K | CH4: HH25to34HI50Kto75K | CI4: HH25to34HI75Kto100K | CJ4: HH25to34HI>100K | CK4: HH35to44HI<5K | CL4: HH35to44HI5Kto10K | CM4: HH35to44HI10Kto15K | CN4: HH35to44HI15Kto25K | CO4: HH35to44HI25Kto35K | CP4: HH35to44HI35Kto50K | CQ4: HH35to44HI50Kto75K | CR4: HH35to44HI75Kto100K | CS4: HH35to44HI>100K | CT4: HH45to54HI<5K | CU4: HH45to54HI5Kto10K | CV4: HH45to54HI10Kto15K | CW4: HH45to54HI15Kto25K | CX4: HH45to54HI25Kto35K | CY4: HH45to54HI35Kto50K | CZ4: HH45to54HI50Kto75K | DA4: HH45to54HI75Kto100K | DB4: HH45to54HI>100K | DC4: HH55to64HI<5K | DD4: HH55to64HI5Kto10K | DE4: HH55to64HI10Kto15K | DF4: HH55to64HI15Kto25K | DG4: HH55to64HI25Kto35K | DH4: HH55to64HI35Kto50K | DI4: HH55to64HI50Kto75K | DJ4: HH55to64HI75Kto100K | DK4: HH55to64HI>100K | DL4: HH65to74HI<5K | DM4: HH65to74HI5Kto10K | DN4: HH65to74HI10Kto15K | DO4: HH65to74HI15Kto25K | DP4: HH65to74HI25Kto35K | DQ4: HH65to74HI35Kto50K | DR4: HH65to74HI50Kto75K | DS4: HH65to74HI75Kto100K | DT4: HH65to74HI>100K | DU4: HH>75HI<5K | DV4: HH>75HI5Kto10K | DW4: HH>75HI10Kto15K | DX4: HH>75HI15Kto25K | DY4: HH>75HI25Kto35K | DZ4: HH>75HI35Kto50K | EA4: HH>75HI50Kto75K | EB4: HH>75HI75Kto100K | EC4: HH>75HI>100K | ED4: SchoolEnrollment1thru12 | EE4: Pop25andOver | EF4: HSGradorHigher | EG4: CollGradorHigher | EH4: NativePop | EI4: ForeignBornPop | EJ4: BornStateOfRes | EK4: NativePop2 | EL4: ForeignBornPop2 | EM4: DroveAlone | EN4: CarPooled | EO4: PublicTranspt | EP4: Walked | EQ4: OtherMeans | ER4: WorkedAtHome | ES4: HHInc<10K | ET4: HHInc10to15K | EU4: HHInc15to25K | EV4: HHInc25to35K | EW4: HHInc35to50K | EX4: HHInc50to75K | EY4: HHInc75to100K | EZ4: HHInc100to150K | FA4: HHInc>150K
A5: =VLOOKUP(DropDownList!$A$47,CntyQuery!$A$4:$FI$46,A1) -> Antrim | B5: =VLOOKUP(DropDownList!$A$47,CntyQuery!$A$4:$FA$46,B1) -> 11010 | C5: =VLOOKUP(DropDownList!$A$47,CntyQuery!$A$4:$FA$46,C1) -> 01700 | D5: =VLOOKUP(DropDownList!$A$47,CntyQuery!$A$4:$FA$46,D1) -> 22833.25 | E5: =VLOOKUP(DropDownList!$A$47,CntyQuery!$A$4:$FA$46,E1) -> 534.33 | F5: =VLOOKUP(DropDownList!$A$47,CntyQuery!$A$4:$FA$46,F1) -> 1162 | G5: =VLOOKUP(DropDownList!$A$47,CntyQuery!$A$4:$FA$46,G1) -> 2360 | H5: =VLOOKUP(DropDownList!$A$47,CntyQuery!$A$4:$FA$46,H1) -> 630 | I5: =VLOOKUP(DropDownList!$A$47,CntyQuery!$A$4:$FA$46,I1) -> 866 | J5: =VLOOKUP(DropDownList!$A$47,CntyQuery!$A$4:$FA$46,J1) -> 1145 | K5: =VLOOKUP(DropDownList!$A$47,CntyQuery!$A$4:$FA$46,K1) -> 1215 | L5: =VLOOKUP(DropDownList!$A$47,CntyQuery!$A$4:$FA$46,L1) -> 2338 | M5: =VLOOKUP(DropDownList!$A$47,CntyQuery!$A$4:$FA$46,M1) -> 1 | N5: =VLOOKUP(DropDownList!$A$47,CntyQuery!$A$4:$FA$46,N1) -> 8 | O5: =VLOOKUP(DropDownList!$A$47,CntyQuery!$A$4:$FA$46,O1) -> 13 | P5: =VLOOKUP(DropDownList!$A$47,CntyQuery!$A$4:$FA$46,P1) -> 0 | Q5: =VLOOKUP(DropDownList!$A$47,CntyQuery!$A$4:$FA$46,Q1) -> 10 | R5: =VLOOKUP(DropDownList!$A$47,CntyQuery!$A$4:$FA$46,R1) -> 585 | S5: =VLOOKUP(DropDownList!$A$47,CntyQuery!$A$4:$FA$46,S1) -> 240 | T5: =VLOOKUP(DropDownList!$A$47,CntyQuery!$A$4:$FA$46,T1) -> 387 | U5: =VLOOKUP(DropDownList!$A$47,CntyQuery!$A$4:$FA$46,U1) -> 419 | V5: =VLOOKUP(DropDownList!$A$47,CntyQuery!$A$4:$FA$46,V1) -> 239 | W5: =VLOOKUP(DropDownList!$A$47,CntyQuery!$A$4:$FA$46,W1) -> 196 | X5: =VLOOKUP(DropDownList!$A$47,CntyQuery!$A$4:$FA$46,X1) -> 138 | Y5: =VLOOKUP(DropDownList!$A$47,CntyQuery!$A$4:$FA$46,Y1) -> 156 | Z5: =VLOOKUP(DropDownList!$A$47,CntyQuery!$A$4:$FA$46,Z1) -> 2333 | AA5: =VLOOKUP(DropDownList!$A$47,CntyQuery!$A$4:$FA$46,AA1) -> 2028 | AB5: =VLOOKUP(DropDownList!$A$47,CntyQuery!$A$4:$FA$46,AB1) -> 27 | AC5: =VLOOKUP(DropDownList!$A$47,CntyQuery!$A$4:$FA$46,AC1) -> 2.693995381 | AD5: =VLOOKUP(DropDownList!$A$47,CntyQuery!$A$4:$FA$46,AD1) -> 3.219047619 | AE5: =VLOOKUP(DropDownList!$A$47,CntyQuery!$A$4:$FA$46,AE1) -> 181 | AF5: =VLOOKUP(DropDownList!$A$47,CntyQuery!$A$4:$FA$46,AF1) -> 541 | AG5: =VLOOKUP(DropDownList!$A$47,CntyQuery!$A$4:$FA$46,AG1) -> 89 | AH5: =VLOOKUP(DropDownList!$A$47,CntyQuery!$A$4:$FA$46,AH1) -> 55 | AI5: =VLOOKUP(DropDownList!$A$47,CntyQuery!$A$4:$FA$46,AI1) -> 1162 | AJ5: =VLOOKUP(DropDownList!$A$47,CntyQuery!$A$4:$FA$46,AJ1) -> 866 | AK5: =VLOOKUP(DropDownList!$A$47,CntyQuery!$A$4:$FA$46,AK1) -> 296 | AL5: =VLOOKUP(DropDownList!$A$47,CntyQuery!$A$4:$FA$46,AL1) -> 644 | AM5: =VLOOKUP(DropDownList!$A$47,CntyQuery!$A$4:$FA$46,AM1) -> 222 | AN5: =VLOOKUP(DropDownList!$A$47,CntyQuery!$A$4:$FA$46,AN1) -> 27 | AO5: =VLOOKUP(DropDownList!$A$47,CntyQuery!$A$4:$FA$46,AO1) -> 15 | AP5: =VLOOKUP(DropDownList!$A$47,CntyQuery!$A$4:$FA$46,AP1) -> 216 | AQ5: =VLOOKUP(DropDownList!$A$47,CntyQuery!$A$4:$FA$46,AQ1) -> 846 | AR5: =VLOOKUP(DropDownList!$A$47,CntyQuery!$A$4:$FA$46,AR1) -> 237 | AS5: =VLOOKUP(DropDownList!$A$47,CntyQuery!$A$4:$FA$46,AS1) -> 79 | AT5: =VLOOKUP(DropDownList!$A$47,CntyQuery!$A$4:$FA$46,AT1) -> 548 | AU5: =VLOOKUP(DropDownList!$A$47,CntyQuery!$A$4:$FA$46,AU1) -> 50 | AV5: =VLOOKUP(DropDownList!$A$47,CntyQuery!$A$4:$FA$46,AV1) -> 79 | AW5: =VLOOKUP(DropDownList!$A$47,CntyQuery!$A$4:$FA$46,AW1) -> 60 | AX5: =VLOOKUP(DropDownList!$A$47,CntyQuery!$A$4:$FA$46,AX1) -> 151 | AY5: =VLOOKUP(DropDownList!$A$47,CntyQuery!$A$4:$FA$46,AY1) -> 11 | AZ5: =VLOOKUP(DropDownList!$A$47,CntyQuery!$A$4:$FA$46,AZ1) -> 211 | BA5: =VLOOKUP(DropDownList!$A$47,CntyQuery!$A$4:$FA$46,BA1) -> 238 | BB5: =VLOOKUP(DropDownList!$A$47,CntyQuery!$A$4:$FA$46,BB1) -> 304 | BC5: =VLOOKUP(DropDownList!$A$47,CntyQuery!$A$4:$FA$46,BC1) -> 499 | BD5: =VLOOKUP(DropDownList!$A$47,CntyQuery!$A$4:$FA$46,BD1) -> 11 | BE5: =VLOOKUP(DropDownList!$A$47,CntyQuery!$A$4:$FA$46,BE1) -> 240 | BF5: =VLOOKUP(DropDownList!$A$47,CntyQuery!$A$4:$FA$46,BF1) -> 354 | BG5: =VLOOKUP(DropDownList!$A$47,CntyQuery!$A$4:$FA$46,BG1) -> 395 | BH5: =VLOOKUP(DropDownList!$A$47,CntyQuery!$A$4:$FA$46,BH1) -> 252 | BI5: =VLOOKUP(DropDownList!$A$47,CntyQuery!$A$4:$FA$46,BI1) -> 42 | BJ5: =VLOOKUP(DropDownList!$A$47,CntyQuery!$A$4:$FA$46,BJ1) -> 53 | BK5: =VLOOKUP(DropDownList!$A$47,CntyQuery!$A$4:$FA$46,BK1) -> 58 | BL5: =VLOOKUP(DropDownList!$A$47,CntyQuery!$A$4:$FA$46,BL1) -> 108 | BM5: =VLOOKUP(DropDownList!$A$47,CntyQuery!$A$4:$FA$46,BM1) -> 120 | BN5: =VLOOKUP(DropDownList!$A$47,CntyQuery!$A$4:$FA$46,BN1) -> 301 | BO5: =VLOOKUP(DropDownList!$A$47,CntyQuery!$A$4:$FA$46,BO1) -> 147 | BP5: =VLOOKUP(DropDownList!$A$47,CntyQuery!$A$4:$FA$46,BP1) -> 34 | BQ5: =VLOOKUP(DropDownList!$A$47,CntyQuery!$A$4:$FA$46,BQ1) -> 23 | BR5: =VLOOKUP(DropDownList!$A$47,CntyQuery!$A$4:$FA$46,BR1) -> 37246 | BS5: =VLOOKUP(DropDownList!$A$47,CntyQuery!$A$4:$FA$46,BS1) -> 0 | BT5: =VLOOKUP(DropDownList!$A$47,CntyQuery!$A$4:$FA$46,BT1) -> 0 | BU5: =VLOOKUP(DropDownList!$A$47,CntyQuery!$A$4:$FA$46,BU1) -> 0 | BV5: =VLOOKUP(DropDownList!$A$47,CntyQuery!$A$4:$FA$46,BV1) -> 0 | BW5: =VLOOKUP(DropDownList!$A$47,CntyQuery!$A$4:$FA$46,BW1) -> 0 | BX5: =VLOOKUP(DropDownList!$A$47,CntyQuery!$A$4:$FA$46,BX1) -> 11 | BY5: =VLOOKUP(DropDownList!$A$47,CntyQuery!$A$4:$FA$46,BY1) -> 0 | BZ5: =VLOOKUP(DropDownList!$A$47,CntyQuery!$A$4:$FA$46,BZ1) -> 0 | CA5: =VLOOKUP(DropDownList!$A$47,CntyQuery!$A$4:$FA$46,CA1) -> 0 | CB5: =VLOOKUP(DropDownList!$A$47,CntyQuery!$A$4:$FA$46,CB1) -> 7 | CC5: =VLOOKUP(DropDownList!$A$47,CntyQuery!$A$4:$FA$46,CC1) -> 0 | CD5: =VLOOKUP(DropDownList!$A$47,CntyQuery!$A$4:$FA$46,CD1) -> 19 | CE5: =VLOOKUP(DropDownList!$A$47,CntyQuery!$A$4:$FA$46,CE1) -> 38 | CF5: =VLOOKUP(DropDownList!$A$47,CntyQuery!$A$4:$FA$46,CF1) -> 38 | CG5: =VLOOKUP(DropDownList!$A$47,CntyQuery!$A$4:$FA$46,CG1) -> 109 | CH5: =VLOOKUP(DropDownList!$A$47,CntyQuery!$A$4:$FA$46,CH1) -> 18 | CI5: =VLOOKUP(DropDownList!$A$47,CntyQuery!$A$4:$FA$46,CI1) -> 0 | CJ5: =VLOOKUP(DropDownList!$A$47,CntyQuery!$A$4:$FA$46,CJ1) -> 0 | CK5: =VLOOKUP(DropDownList!$A$47,CntyQuery!$A$4:$FA$46,CK1) -> 12 | CL5: =VLOOKUP(DropDownList!$A$47,CntyQuery!$A$4:$FA$46,CL1) -> 6 | CM5: =VLOOKUP(DropDownList!$A$47,CntyQuery!$A$4:$FA$46,CM1) -> 0 | CN5: =VLOOKUP(DropDownList!$A$47,CntyQuery!$A$4:$FA$46,CN1) -> 25 | CO5: =VLOOKUP(DropDownList!$A$47,CntyQuery!$A$4:$FA$46,CO1) -> 27 | CP5: =VLOOKUP(DropDownList!$A$47,CntyQuery!$A$4:$FA$46,CP1) -> 47 | CQ5: =VLOOKUP(DropDownList!$A$47,CntyQuery!$A$4:$FA$46,CQ1) -> 35 | CR5: =VLOOKUP(DropDownList!$A$47,CntyQuery!$A$4:$FA$46,CR1) -> 6 | CS5: =VLOOKUP(DropDownList!$A$47,CntyQuery!$A$4:$FA$46,CS1) -> 8 | CT5: =VLOOKUP(DropDownList!$A$47,CntyQuery!$A$4:$FA$46,CT1) -> 11 | CU5: =VLOOKUP(DropDownList!$A$47,CntyQuery!$A$4:$FA$46,CU1) -> 6 | CV5: =VLOOKUP(DropDownList!$A$47,CntyQuery!$A$4:$FA$46,CV1) -> 0 | CW5: =VLOOKUP(DropDownList!$A$47,CntyQuery!$A$4:$FA$46,CW1) -> 6 | CX5: =VLOOKUP(DropDownList!$A$47,CntyQuery!$A$4:$FA$46,CX1) -> 18 | CY5: =VLOOKUP(DropDownList!$A$47,CntyQuery!$A$4:$FA$46,CY1) -> 63 | CZ5: =VLOOKUP(DropDownList!$A$47,CntyQuery!$A$4:$FA$46,CZ1) -> 50 | DA5: =VLOOKUP(DropDownList!$A$47,CntyQuery!$A$4:$FA$46,DA1) -> 11 | DB5: =VLOOKUP(DropDownList!$A$47,CntyQuery!$A$4:$FA$46,DB1) -> 0 | DC5: =VLOOKUP(DropDownList!$A$47,CntyQuery!$A$4:$FA$46,DC1) -> 0 | DD5: =VLOOKUP(DropDownList!$A$47,CntyQuery!$A$4:$FA$46,DD1) -> 11 | DE5: =VLOOKUP(DropDownList!$A$47,CntyQuery!$A$4:$FA$46,DE1) -> 12 | DF5: =VLOOKUP(DropDownList!$A$47,CntyQuery!$A$4:$FA$46,DF1) -> 33 | DG5: =VLOOKUP(DropDownList!$A$47,CntyQuery!$A$4:$FA$46,DG1) -> 0 | DH5: =VLOOKUP(DropDownList!$A$47,CntyQuery!$A$4:$FA$46,DH1) -> 45 | DI5: =VLOOKUP(DropDownList!$A$47,CntyQuery!$A$4:$FA$46,DI1) -> 36 | DJ5: =VLOOKUP(DropDownList!$A$47,CntyQuery!$A$4:$FA$46,DJ1) -> 17 | DK5: =VLOOKUP(DropDownList!$A$47,CntyQuery!$A$4:$FA$46,DK1) -> 15 | DL5: =VLOOKUP(DropDownList!$A$47,CntyQuery!$A$4:$FA$46,DL1) -> 0 | DM5: =VLOOKUP(DropDownList!$A$47,CntyQuery!$A$4:$FA$46,DM1) -> 6 | DN5: =VLOOKUP(DropDownList!$A$47,CntyQuery!$A$4:$FA$46,DN1) -> 22 | DO5: =VLOOKUP(DropDownList!$A$47,CntyQuery!$A$4:$FA$46,DO1) -> 0 | DP5: =VLOOKUP(DropDownList!$A$47,CntyQuery!$A$4:$FA$46,DP1) -> 24 | DQ5: =VLOOKUP(DropDownList!$A$47,CntyQuery!$A$4:$FA$46,DQ1) -> 26 | DR5: =VLOOKUP(DropDownList!$A$47,CntyQuery!$A$4:$FA$46,DR1) -> 8 | DS5: =VLOOKUP(DropDownList!$A$47,CntyQuery!$A$4:$FA$46,DS1) -> 0 | DT5: =VLOOKUP(DropDownList!$A$47,CntyQuery!$A$4:$FA$46,DT1) -> 0 | DU5: =VLOOKUP(DropDownList!$A$47,CntyQuery!$A$4:$FA$46,DU1) -> 12 | DV5: =VLOOKUP(DropDownList!$A$47,CntyQuery!$A$4:$FA$46,DV1) -> 24 | DW5: =VLOOKUP(DropDownList!$A$47,CntyQuery!$A$4:$FA$46,DW1) -> 5 | DX5: =VLOOKUP(DropDownList!$A$47,CntyQuery!$A$4:$FA$46,DX1) -> 6 | DY5: =VLOOKUP(DropDownList!$A$47,CntyQuery!$A$4:$FA$46,DY1) -> 13 | DZ5: =VLOOKUP(DropDownList!$A$47,CntyQuery!$A$4:$FA$46,DZ1) -> 0 | EA5: =VLOOKUP(DropDownList!$A$47,CntyQuery!$A$4:$FA$46,EA1) -> 0 | EB5: =VLOOKUP(DropDownList!$A$47,CntyQuery!$A$4:$FA$46,EB1) -> 0 | EC5: =VLOOKUP(DropDownList!$A$47,CntyQuery!$A$4:$FA$46,EC1) -> 0 | ED5: =VLOOKUP(DropDownList!$A$47,CntyQuery!$A$4:$FA$46,ED1) -> 442 | EE5: =VLOOKUP(DropDownList!$A$47,CntyQuery!$A$4:$FA$46,EE1) -> 1630 | EF5: =VLOOKUP(DropDownList!$A$47,CntyQuery!$A$4:$FA$46,EF1) -> 1276 | EG5: =VLOOKUP(DropDownList!$A$47,CntyQuery!$A$4:$FA$46,EG1) -> 292 | EH5: =VLOOKUP(DropDownList!$A$47,CntyQuery!$A$4:$FA$46,EH1) -> 2392 | EI5: =VLOOKUP(DropDownList!$A$47,CntyQuery!$A$4:$FA$46,EI1) -> 43 | EJ5: =VLOOKUP(DropDownList!$A$47,CntyQuery!$A$4:$FA$46,EJ1) -> 1159 | EK5: =VLOOKUP(DropDownList!$A$47,CntyQuery!$A$4:$FA$46,EK1) -> 2392 | EL5: =VLOOKUP(DropDownList!$A$47,CntyQuery!$A$4:$FA$46,EL1) -> 43 | EM5: =VLOOKUP(DropDownList!$A$47,CntyQuery!$A$4:$FA$46,EM1) -> 961 | EN5: =VLOOKUP(DropDownList!$A$47,CntyQuery!$A$4:$FA$46,EN1) -> 143 | EO5: =VLOOKUP(DropDownList!$A$47,CntyQuery!$A$4:$FA$46,EO1) -> 6 | EP5: =VLOOKUP(DropDownList!$A$47,CntyQuery!$A$4:$FA$46,EP1) -> 39 | EQ5: =VLOOKUP(DropDownList!$A$47,CntyQuery!$A$4:$FA$46,EQ1) -> 0 | ER5: =VLOOKUP(DropDownList!$A$47,CntyQuery!$A$4:$FA$46,ER1) -> 33 | ES5: =VLOOKUP(DropDownList!$A$47,CntyQuery!$A$4:$FA$46,ES1) -> 95 | ET5: =VLOOKUP(DropDownList!$A$47,CntyQuery!$A$4:$FA$46,ET1) -> 58 | EU5: =VLOOKUP(DropDownList!$A$47,CntyQuery!$A$4:$FA$46,EU1) -> 108 | EV5: =VLOOKUP(DropDownList!$A$47,CntyQuery!$A$4:$FA$46,EV1) -> 120 | EW5: =VLOOKUP(DropDownList!$A$47,CntyQuery!$A$4:$FA$46,EW1) -> 301 | EX5: =VLOOKUP(DropDownList!$A$47,CntyQuery!$A$4:$FA$46,EX1) -> 147 | EY5: =VLOOKUP(DropDownList!$A$47,CntyQuery!$A$4:$FA$46,EY1) -> 34 | EZ5: =VLOOKUP(DropDownList!$A$47,CntyQuery!$A$4:$FA$46,EZ1) -> 15 | FA5: =VLOOKUP(DropDownList!$A$47,CntyQuery!$A$4:$FA$46,FA1) -> 8
A8: Census 1990 Data - Query Name: TownSTF1Qry1
A9: NAME | B9: COUSUBFP | C9: Census_Cnty_Code | D9: FIPS | E9: LandAcres | F9: WaterAcres | G9: HousingUnits90Cen | H9: P01Persons90Cen | I9: P02Families90Cen | J9: P03Households90cen | K9: P05MalePop90cen | L9: P05FemalePop90cen | M9: P06WhitePop | N9: P06BlackPop | O9: P06AmerIndianPop | P9: P06AsianPIPop | Q9: P06OtherRacePop | R9: P08HispanicOrPop | S9: P11AgeUnder15_90cen | T9: P11Age15to24_90cen | U9: P11Age25to34_90cen | V9: P11Age35to44_90cen | W9: P11Age45to54_90cen | X9: P11Age55to64_90cen | Y9: P11Age65to74_90cen | Z9: P11Age75andOver_90cen | AA9: P15PersonsInHH90cen | AB9: P15PersonsInFamHH90cen | AC9: P15PersonsInGC | AD9: PersonsPerHH90cen | AE9: PersonsPerFam90Cen | AF9: P16SinglePersonHH90cen | AG9: P16MarriedCoupleHH90cen | AH9: P16SingleParentHH90cen | AI9: P16NonFamilyHH90cen | AJ9: H01TotalHousingUnits | AK9: H02OccupiedHousingUnits | AL9: H02VacantHousingUnits | AM9: H03OwnerOccHU | AN9: H03RenterOccHU | AO9: H05VacantForRent90 | AP9: H05VacantForSale90 | AQ9: H05VacantSeasonalRec | AR9: H23OOHUVal<15k | AS9: H23OOHUVal15to19k | AT9: H23OOHUVal20to24k | AU9: H23OOHUVal25to29k | AV9: H23OOHUVal30to34k | AW9: H23OOHUVal35to39k | AX9: H23OOHUVal40to44k | AY9: H23OOHUVal45to49k | AZ9: H23OOHUVal50to59k | BA9: H23OOHUVal60to74k | BB9: H23OOHUVal75to99k | BC9: H23OOHUVal100to124k | BD9: H23OOHUVal125to149k | BE9: H23OOHUVal150to174k | BF9: H23OOHUVal175to199k | BG9: H23OOHUVal200to249k | BH9: H23OOHUVal250to299k | BI9: H23OOHUVal300to399k | BJ9: H23OOHUVal400to499k | BK9: H23OOHUVal500kOrMore | BL9: H23BOOHUMedVal | BM9: H41SingFamHU90cen | BN9: H41MultiFamHU90cen | BO9: H41MobileHom90cen | BP9: H43SingFamOwnHU90cen | BQ9: H43MultiFamOwnHU90cen | BR9: H43MobileHomOwnHU90cen | BS9: H43SingFamRntrHU90cen | BT9: H43MultiFamRntrHU90cen | BU9: H43MobileHomRntrHU90cen | BV9: H41HU1UnitDet | BW9: H41HU1UnitAtt | BX9: H41HU2Unit | BY9: H41HU3to4Unit | BZ9: H41HU5to9Unit | CA9: H41HU10to19Unit | CB9: H41HU20to49Unit | CC9: H41HU50PlusUnit | CD9: H41HUMobilH | CE9: H41HUOther
A10: =VLOOKUP(DropDownList!$B$47,CntyQuery!$A$51:$CE$93,A$1) -> Antrim | B10: =VLOOKUP(DropDownList!$B$47,CntyQuery!$A$51:$CE$93,B$1) -> 602 | C10: =VLOOKUP(DropDownList!$B$47,CntyQuery!$A$51:$CE$93,C$1) -> 11010 | D10: =VLOOKUP(DropDownList!$B$47,CntyQuery!$A$51:$CE$93,D$1) -> 01700 | E10: =VLOOKUP(DropDownList!$B$47,CntyQuery!$A$51:$CE$93,E$1) -> 22833.25 | F10: =VLOOKUP(DropDownList!$B$47,CntyQuery!$A$51:$CE$93,F$1) -> 534.33 | G10: =VLOOKUP(DropDownList!$B$47,CntyQuery!$A$51:$CE$93,G$1) -> 1162 | H10: =VLOOKUP(DropDownList!$B$47,CntyQuery!$A$51:$CE$93,H$1) -> 2360 | I10: =VLOOKUP(DropDownList!$B$47,CntyQuery!$A$51:$CE$93,I$1) -> 630 | J10: =VLOOKUP(DropDownList!$B$47,CntyQuery!$A$51:$CE$93,J$1) -> 866 | K10: =VLOOKUP(DropDownList!$B$47,CntyQuery!$A$51:$CE$93,K$1) -> 1145 | L10: =VLOOKUP(DropDownList!$B$47,CntyQuery!$A$51:$CE$93,L$1) -> 1215 | M10: =VLOOKUP(DropDownList!$B$47,CntyQuery!$A$51:$CE$93,M$1) -> 2338 | N10: =VLOOKUP(DropDownList!$B$47,CntyQuery!$A$51:$CE$93,N$1) -> 1 | O10: =VLOOKUP(DropDownList!$B$47,CntyQuery!$A$51:$CE$93,O$1) -> 8 | P10: =VLOOKUP(DropDownList!$B$47,CntyQuery!$A$51:$CE$93,P$1) -> 13 | Q10: =VLOOKUP(DropDownList!$B$47,CntyQuery!$A$51:$CE$93,Q$1) -> 0 | R10: =VLOOKUP(DropDownList!$B$47,CntyQuery!$A$51:$CE$93,R$1) -> 10 | S10: =VLOOKUP(DropDownList!$B$47,CntyQuery!$A$51:$CE$93,S$1) -> 585 | T10: =VLOOKUP(DropDownList!$B$47,CntyQuery!$A$51:$CE$93,T$1) -> 240 | U10: =VLOOKUP(DropDownList!$B$47,CntyQuery!$A$51:$CE$93,U$1) -> 387 | V10: =VLOOKUP(DropDownList!$B$47,CntyQuery!$A$51:$CE$93,V$1) -> 419 | W10: =VLOOKUP(DropDownList!$B$47,CntyQuery!$A$51:$CE$93,W$1) -> 239 | X10: =VLOOKUP(DropDownList!$B$47,CntyQuery!$A$51:$CE$93,X$1) -> 196 | Y10: =VLOOKUP(DropDownList!$B$47,CntyQuery!$A$51:$CE$93,Y$1) -> 138 | Z10: =VLOOKUP(DropDownList!$B$47,CntyQuery!$A$51:$CE$93,Z$1) -> 156 | AA10: =VLOOKUP(DropDownList!$B$47,CntyQuery!$A$51:$CE$93,AA$1) -> 2333 | AB10: =VLOOKUP(DropDownList!$B$47,CntyQuery!$A$51:$CE$93,AB$1) -> 2028 | AC10: =VLOOKUP(DropDownList!$B$47,CntyQuery!$A$51:$CE$93,AC$1) -> 27 | AD10: =VLOOKUP(DropDownList!$B$47,CntyQuery!$A$51:$CE$93,AD$1) -> 2.693995381 | AE10: =VLOOKUP(DropDownList!$B$47,CntyQuery!$A$51:$CE$93,AE$1) -> 3.219047619 | AF10: =VLOOKUP(DropDownList!$B$47,CntyQuery!$A$51:$CE$93,AF$1) -> 181 | AG10: =VLOOKUP(DropDownList!$B$47,CntyQuery!$A$51:$CE$93,AG$1) -> 541 | AH10: =VLOOKUP(DropDownList!$B$47,CntyQuery!$A$51:$CE$93,AH$1) -> 89 | AI10: =VLOOKUP(DropDownList!$B$47,CntyQuery!$A$51:$CE$93,AI$1) -> 55 | AJ10: =VLOOKUP(DropDownList!$B$47,CntyQuery!$A$51:$CE$93,AJ$1) -> 1162 | AK10: =VLOOKUP(DropDownList!$B$47,CntyQuery!$A$51:$CE$93,AK$1) -> 866 | AL10: =VLOOKUP(DropDownList!$B$47,CntyQuery!$A$51:$CE$93,AL$1) -> 296 | AM10: =VLOOKUP(DropDownList!$B$47,CntyQuery!$A$51:$CE$93,AM$1) -> 644 | AN10: =VLOOKUP(DropDownList!$B$47,CntyQuery!$A$51:$CE$93,AN$1) -> 222 | AO10: =VLOOKUP(DropDownList!$B$47,CntyQuery!$A$51:$CE$93,AO$1) -> 27 | AP10: =VLOOKUP(DropDownList!$B$47,CntyQuery!$A$51:$CE$93,AP$1) -> 15 | AQ10: =VLOOKUP(DropDownList!$B$47,CntyQuery!$A$51:$CE$93,AQ$1) -> 216 | AR10: =VLOOKUP(DropDownList!$B$47,CntyQuery!$A$51:$CE$93,AR$1) -> 0 | AS10: =VLOOKUP(DropDownList!$B$47,CntyQuery!$A$51:$CE$93,AS$1) -> 2 | AT10: =VLOOKUP(DropDownList!$B$47,CntyQuery!$A$51:$CE$93,AT$1) -> 3 | AU10: =VLOOKUP(DropDownList!$B$47,CntyQuery!$A$51:$CE$93,AU$1) -> 1 | AV10: =VLOOKUP(DropDownList!$B$47,CntyQuery!$A$51:$CE$93,AV$1) -> 5 | AW10: =VLOOKUP(DropDownList!$B$47,CntyQuery!$A$51:$CE$93,AW$1) -> 2 | AX10: =VLOOKUP(DropDownList!$B$47,CntyQuery!$A$51:$CE$93,AX$1) -> 6 | AY10: =VLOOKUP(DropDownList!$B$47,CntyQuery!$A$51:$CE$93,AY$1) -> 3 | AZ10: =VLOOKUP(DropDownList!$B$47,CntyQuery!$A$51:$CE$93,AZ$1) -> 9 | BA10: =VLOOKUP(DropDownList!$B$47,CntyQuery!$A$51:$CE$93,BA$1) -> 29 | BB10: =VLOOKUP(DropDownList!$B$47,CntyQuery!$A$51:$CE$93,BB$1) -> 103 | BC10: =VLOOKUP(DropDownList!$B$47,CntyQuery!$A$51:$CE$93,BC$1) -> 128 | BD10: =VLOOKUP(DropDownList!$B$47,CntyQuery!$A$51:$CE$93,BD$1) -> 70 | BE10: =VLOOKUP(DropDownList!$B$47,CntyQuery!$A$51:$CE$93,BE$1) -> 27 | BF10: =VLOOKUP(DropDownList!$B$47,CntyQuery!$A$51:$CE$93,BF$1) -> 10 | BG10: =VLOOKUP(DropDownList!$B$47,CntyQuery!$A$51:$CE$93,BG$1) -> 8 | BH10: =VLOOKUP(DropDownList!$B$47,CntyQuery!$A$51:$CE$93,BH$1) -> 6 | BI10: =VLOOKUP(DropDownList!$B$47,CntyQuery!$A$51:$CE$93,BI$1) -> 4 | BJ10: =VLOOKUP(DropDownList!$B$47,CntyQuery!$A$51:$CE$93,BJ$1) -> 0 | BK10: =VLOOKUP(DropDownList!$B$47,CntyQuery!$A$51:$CE$93,BK$1) -> 0 | BL10: =VLOOKUP(DropDownList!$B$47,CntyQuery!$A$51:$CE$93,BL$1) -> 108800 | BM10: =VLOOKUP(DropDownList!$B$47,CntyQuery!$A$51:$CE$93,BM$1) -> 846 | BN10: =VLOOKUP(DropDownList!$B$47,CntyQuery!$A$51:$CE$93,BN$1) -> 237 | BO10: =VLOOKUP(DropDownList!$B$47,CntyQuery!$A$51:$CE$93,BO$1) -> 79 | BP10: =VLOOKUP(DropDownList!$B$47,CntyQuery!$A$51:$CE$93,BP$1) -> 548 | BQ10: =VLOOKUP(DropDownList!$B$47,CntyQuery!$A$51:$CE$93,BQ$1) -> 50 | BR10: =VLOOKUP(DropDownList!$B$47,CntyQuery!$A$51:$CE$93,BR$1) -> 46 | BS10: =VLOOKUP(DropDownList!$B$47,CntyQuery!$A$51:$CE$93,BS$1) -> 60 | BT10: =VLOOKUP(DropDownList!$B$47,CntyQuery!$A$51:$CE$93,BT$1) -> 151 | BU10: =VLOOKUP(DropDownList!$B$47,CntyQuery!$A$51:$CE$93,BU$1) -> 11 | BV10: =VLOOKUP(DropDownList!$B$47,CntyQuery!$A$51:$CE$93,BV$1) -> 846 | BW10: =VLOOKUP(DropDownList!$B$47,CntyQuery!$A$51:$CE$93,BW$1) -> 36 | BX10: =VLOOKUP(DropDownList!$B$47,CntyQuery!$A$51:$CE$93,BX$1) -> 73 | BY10: =VLOOKUP(DropDownList!$B$47,CntyQuery!$A$51:$CE$93,BY$1) -> 38 | BZ10: =VLOOKUP(DropDownList!$B$47,CntyQuery!$A$51:$CE$93,BZ$1) -> 58 | CA10: =VLOOKUP(DropDownList!$B$47,CntyQuery!$A$51:$CE$93,CA$1) -> 32 | CB10: =VLOOKUP(DropDownList!$B$47,CntyQuery!$A$51:$CE$93,CB$1) -> 0 | CC10: =VLOOKUP(DropDownList!$B$47,CntyQuery!$A$51:$CE$93,CC$1) -> 0 | CD10: =VLOOKUP(DropDownList!$B$47,CntyQuery!$A$51:$CE$93,CD$1) -> 56 | CE10: =VLOOKUP(DropDownList!$B$47,CntyQuery!$A$51:$CE$93,CE$1) -> 23
A13: Census 1990 Data - Query Name: TownSTF3Qry1
A14: NAME | B14: FIPS | C14: COUSUBFP | D14: LandAcres | E14: WaterAcres | F14: HousingUnits90Cen | G14: P01Persons90Cen | H14: P02Families90Cen | I14: P03Households90cen | J14: H25HU<5yrs90cen | K14: H25HU5to20yrs90cen | L14: H25HU20to50yrs90cen | M14: H25HU>50yrs90cen | N14: H31Units0Bedroom90cen | O14: H31Units1Bedroom90cen | P14: H31Units2Bedroom90cen | Q14: H31Units3Bedroom90cen | R14: H31Units4Bedroom90cen | S14: H31Units5+Bedroom90cen | T14: P80HI<5K | U14: P80HI5Kto10K | V14: P80HI10Kto15K | W14: P80HI15Kto25K | X14: P80HI25Kto35K | Y14: P80HI35Kto50K | Z14: P80HI50Kto75K | AA14: P80HI75Kto100K | AB14: P80HI>100K | AC14: P80AMedHI | AD14: P86HH<25HI<5K | AE14: P86HH<25HI5Kto10K | AF14: P86HH<25HI10Kto15K | AG14: P86HH<25HI15Kto25K | AH14: P86HH<25HI25Kto35K | AI14: P86HH<25HI35Kto50K | AJ14: P86HH<25HI50Kto75K | AK14: P86HH<25HI75Kto100K | AL14: P86HH<25HI>100K | AM14: P86HH25to34HI<5K | AN14: P86HH25to34HI5Kto10K | AO14: P86HH25to34HI10Kto15K | AP14: P86HH25to34HI15Kto25K | AQ14: P86HH25to34HI25Kto35K | AR14: P86HH25to34HI35Kto50K | AS14: P86HH25to34HI50Kto75K | AT14: P86HH25to34HI75Kto100K | AU14: P86HH25to34HI>100K | AV14: P86HH35to44HI<5K | AW14: P86HH35to44HI5Kto10K | AX14: P86HH35to44HI10Kto15K | AY14: P86HH35to44HI15Kto25K | AZ14: P86HH35to44HI25Kto35K | BA14: P86HH35to44HI35Kto50K | BB14: P86HH35to44HI50Kto75K | BC14: P86HH35to44HI75Kto100K | BD14: P86HH35to44HI>100K | BE14: P86HH45to54HI<5K | BF14: P86HH45to54HI5Kto10K | BG14: P86HH45to54HI10Kto15K | BH14: P86HH45to54HI15Kto25K | BI14: P86HH45to54HI25Kto35K | BJ14: P86HH45to54HI35Kto50K | BK14: P86HH45to54HI50Kto75K | BL14: P86HH45to54HI75Kto100K | BM14: P86HH45to54HI>100K | BN14: P86HH55to64HI<5K | BO14: P86HH55to64HI5Kto10K | BP14: P86HH55to64HI10Kto15K | BQ14: P86HH55to64HI15Kto25K | BR14: P86HH55to64HI25Kto35K | BS14: P86HH55to64HI35Kto50K | BT14: P86HH55to64HI50Kto75K | BU14: P86HH55to64HI75Kto100K | BV14: P86HH55to64HI>100K | BW14: P86HH65to74HI<5K | BX14: P86HH65to74HI5Kto10K | BY14: P86HH65to74HI10Kto15K | BZ14: P86HH65to74HI15Kto25K | CA14: P86HH65to74HI25Kto35K | CB14: P86HH65to74HI35Kto50K | CC14: P86HH65to74HI50Kto75K | CD14: P86HH65to74HI75Kto100K | CE14: P86HH65to74HI>100K | CF14: P86HH>75HI<5K | CG14: P86HH>75HI5Kto10K | CH14: P86HH>75HI10Kto15K | CI14: P86HH>75HI15Kto25K | CJ14: P86HH>75HI25Kto35K | CK14: P86HH>75HI35Kto50K | CL14: P86HH>75HI50Kto75K | CM14: P86HH>75HI75Kto100K | CN14: P86HH>75HI>100K | CO14: P54SchlEnrlPrePrim | CP14: P54SchlEnrlElemThrHS | CQ14: P54SchlEnrlCollege | CR14: P54NotEnrlInSch | CS14: P57Pop25andOver | CT14: P57LessThan9thGrade | CU14: P579thto12thNoDip | CV14: P57HSGrad | CW14: P57SomeCollege | CX14: P57AssocDeg | CY14: P57BachelDeg | CZ14: P57GradorProfDeg | DA14: P57HSGradorHigher | DB14: P57CollGradorHigher | DC14: P42NativePop | DD14: P42ForeignBornPop | DE14: P42BornStateOfRes | DF14: P37NativePop2 | DG14: P37ForeignBornPop2 | DH14: P49DroveAlone | DI14: P49CarPooled | DJ14: P49PublicTranspt | DK14: P49Walked | DL14: P49OtherMeans | DM14: P49WorkedAtHome | DN14: P80HHInc<10K | DO14: P80HHInc10to15K | DP14: P80HHInc15to25K | DQ14: P80HHInc25to35K | DR14: P80HHInc35to50K | DS14: P80HHInc50to75K | DT14: P80HHInc75to100K | DU14: P80HHInc100to150K | DV14: P80HHInc>150K | DW14: H25YearStBlt89to90 | DX14: H25YearStBlt85to88 | DY14: H25YearStBlt80to84 | DZ14: H25YearStBlt70to79 | EA14: H25YearStBlt60to69 | EB14: H25YearStBlt50to59 | EC14: H25YearStBlt40to49 | ED14: H25YearStBlt39earlier | EE14: P107FamInc<10K | EF14: P107FamInc10to15K | EG14: P107FamInc15to25K | EH14: P107FamInc25to35K | EI14: P107FamInc35to50K | EJ14: P107FamInc50to75K | EK14: P107FamInc75to100K | EL14: P107FamInc100to150K | EM14: P107FamInc>150K | EN14: P107AMedFamInc | EO14: P110NonFamInc<10K | EP14: P110NonFamInc10to15K | EQ14: P110NonFamInc15to25K | ER14: P110NonFamInc25to35K | ES14: P110NonFamInc35to50K | ET14: P110NonFamInc50to75K | EU14: P110NonFamInc75to100K | EV14: P110NonFamInc100to150K | EW14: P110NonFamInc>150K | EX14: P110AMedNonFamInc | EY14: H16HU1Room | EZ14: H16HU2Room | FA14: H16HU3Room | FB14: H16HU4Room | FC14: H16HU5Room | FD14: H16HU6Room | FE14: H16HU7Room | FF14: H16HU8Room | FG14: H16HU9+Room | FH14: H43GrossRnt<100 | FI14: H43GrossRnt100to149 | FJ14: H43GrossRnt150to199 | FK14: H43GrossRnt200to249 | FL14: H43GrossRnt250to299 | FM14: H43GrossRnt300to349 | FN14: H43GrossRnt350to399 | FO14: H43GrossRnt400to449 | FP14: H43GrossRnt450to499 | FQ14: H43GrossRnt500to549 | FR14: H43GrossRnt550to599 | FS14: H43GrossRnt600to649 | FT14: H43GrossRnt650to699 | FU14: H43GrossRnt700to749 | FV14: H43GrossRnt750to999 | FW14: H43GrossRnt1000Plus | FX14: H43NoCashRent | FY14: H43MedGrossRent | FZ14: H51GrossRnt<20PctHHInc | GA14: H51GrossRnt20to24PctHHInc | GB14: H51GrossRnt25to29PctHHInc | GC14: H51GrossRnt30to34PctHHInc | GD14: H51GrossRnt35PctOrMoreHHInc | GE14: H51GrossRntAsPctHHIncNotComp | GF14: H52HUwMtgMoOwnCst<200 | GG14: H52HUwMtgMoOwnCst200to299 | GH14: H52HUwMtgMoOwnCst300to399 | GI14: H52HUwMtgMoOwnCst400to499 | GJ14: H52HUwMtgMoOwnCst500to599 | GK14: H52HUwMtgMoOwnCst600to699 | GL14: H52HUwMtgMoOwnCst700to799 | GM14: H52HUwMtgMoOwnCst800to899 | GN14: H52HUwMtgMoOwnCst900to999 | GO14: H52HUwMtgMoOwnCst1000to1249 | GP14: H52HUwMtgMoOwnCst1250to1499 | GQ14: H52HUwMtgMoOwnCst1500to1999 | GR14: H52HUwMtgMoOwnCst2000More | GS14: H52HUwNoMtgMoOwnCst<100 | GT14: H52HUwNoMtgMoOwnCst100to149 | GU14: H52HUwNoMtgMoOwnCst150to199 | GV14: H52HUwNoMtgMoOwnCst200to249 | GW14: H52HUwNoMtgMoOwnCst250to299 | GX14: H52HUwNoMtgMoOwnCst300to349 | GY14: H52HUwNoMtgMoOwnCst350to399 | GZ14: H52HUwNoMtgMoOwnCst400More | HA14: H52AMedMoOwnCstWMortg | HB14: H52AMedMoOwnCstWNoMortg | HC14: H58HUwMtgMOC<20pHHInc | HD14: H58HUwMtgMOC20to24pHHInc | HE14: H58HUwMtgMOC25to29pHHInc | HF14: H58HUwMtgMOC30to34pHHInc | HG14: H58wMtgMOC>35pHHInc | HH14: H58HUwMtgMOCNotComp | HI14: H58HUwNoMtgMOC<20pHHInc | HJ14: H58HUwNoMtgMOC20to24pHHInc | HK14: H58HUwNoMtgMOC25to29pHHInc | HL14: H58HUwNoMtgMOC30to34pHHInc | HM14: H58wNoMtgMOC>35pHHInc | HN14: H58HUwNoMtgMOCNotComp | HO14: H61OOHUVal<15k | HP14: H61OOHUVal15to19k | HQ14: H61OOHUVal20to24k | HR14: H61OOHUVal25to29k | HS14: H61OOHUVal30to34k | HT14: H61OOHUVal35to39k | HU14: H61OOHUVal40to44k | HV14: H61OOHUVal45to49k | HW14: H61OOHUVal50to59k | HX14: H61OOHUVal60to74k | HY14: H61OOHUVal75to99k | HZ14: H61OOHUVal100to124k | IA14: H61OOHUVal125to149k | IB14: H61OOHUVal150to174k | IC14: H61OOHUVal175to199k | ID14: H61OOHUVal200to249k | IE14: H61OOHUVal250to299k | IF14: H61OOHUVal300to399k | IG14: H61OOHUVal400to499k | IH14: H61OOHUVal500kOrMore | II14: H61aOOHUMedVal
A18: Other Demo Data - Query Name: QryAllTowns-ACSDemographicSheet
A19: TOWN_NAME | B19: FIPS | C19: TOWNCNTY | D19: COUSUB | E19: POP80 | F19: POP90CDCEN | G19: POP2000CEN | H19: POP2010CEN | I19: POP2020CEN | J19: POP2025-Proj | K19: POP2030-Proj | L19: POP2035-Proj | M19: SF80 | N19: MF80 | O19: MH80 | P19: SF81 | Q19: MF81 | R19: MH81 | S19: SF82 | T19: MF82 | U19: MH82 | V19: SF83 | W19: MF83 | X19: MH83 | Y19: SF84_OSP | Z19: MF84_OSP | AA19: MH84_OSP | AB19: SF85_OSP | AC19: MF85_OSP | AD19: MH85_OSP | AE19: SF86_OSP | AF19: MF86_OSP | AG19: MH86_OSP | AH19: SF87_OSP | AI19: MF87_OSP | AJ19: MH87_OSP | AK19: SF88_OSP | AL19: MF88_OSP | AM19: MH88_OSP | AN19: SF89_OSP | AO19: MF89_OSP | AP19: MH89_OSP | AQ19: SF90_OSP | AR19: MF90_OSP | AS19: MH90_OSP | AT19: SF91_OSP | AU19: MF91_OSP | AV19: MH91_OSP | AW19: SF92_OSP | AX19: MF92_OSP | AY19: MH92_OSP | AZ19: SF93_OSP | BA19: MF93_OSP | BB19: MH93_OSP | BC19: SF94_OSP | BD19: MF94_OSP | BE19: MH94_OSP | BF19: SF95_OSP | BG19: MF95_OSP | BH19: MH95_OSP | BI19: SF96_OSP | BJ19: MF96_OSP | BK19: MH96_OSP | BL19: SF97_OSP | BM19: MF97_OSP | BN19: MH97_OSP | BO19: SF98_OSP | BP19: MF98_OSP | BQ19: MH98_OSP | BR19: SF99_OSP | BS19: MF99_OSP | BT19: MH99_OSP | BU19: SF00_OSP | BV19: MF00_OSP | BW19: MH00_OSP | BX19: SF01_OSP | BY19: MF01_OSP | BZ19: MH01_OSP | CA19: SF02_OSP | CB19: MF02_OSP | CC19: MH02_OSP | CD19: SF03_OSP | CE19: MF03_OSP | CF19: MH03_OSP | CG19: SF04_OSP | CH19: MF04_OSP | CI19: MH04_OSP | CJ19: SF05_OSP | CK19: MF05_OSP | CL19: MH05_OSP | CM19: SF06_OSP | CN19: MF06_OSP | CO19: MH06_OSP | CP19: SF07_OSP | CQ19: MF07_OSP | CR19: MH07_OSP | CS19: SF08_OSP | CT19: MF08_OSP | CU19: MH08_OSP | CV19: SF09_OSP | CW19: MF09_OSP | CX19: MH09_OSP | CY19: SF10_OSP | CZ19: MF10_OSP | DA19: MH10_OSP | DB19: SF11_OSP | DC19: MF11_OSP | DD19: MH11_OSP | DE19: SF12_OSP | DF19: MF12_OSP | DG19: MH12_OSP | DH19: SF13_OSP | DI19: MF13_OSP | DJ19: MH13_OSP | DK19: SF14_OSP | DL19: MF14_OSP | DM19: MH14_OSP | DN19: SF15_OSP | DO19: MF15_OSP | DP19: MH15_OSP | DQ19: SF16_OSP | DR19: MF16_OSP | DS19: MH16_OSP | DT19: SF17_OSP | DU19: MF17_OSP | DV19: MH17_OSP | DW19: SF18_OSP | DX19: MF18_OSP | DY19: MH18_OSP | DZ19: SF19_OSP | EA19: MF19_OSP | EB19: MH19_OSP | EC19: SF20_OSP | ED19: MF20_OSP | EE19: MH20_OSP | EF19: SF20 Census_OSP | EG19: MF20 Census OSP | EH19: MH20 Census_OSP | EI19: SF21_OSP | EJ19: MF21_OSP | EK19: MH21_OSP | EL19: COMMENTS | EM19: CNTY_CODE
A20: =VLOOKUP(DropDownList!$B$47,CntyQuery!$A$118:$FZ148,A$1) -> Antrim | B20: =VLOOKUP(DropDownList!$B$47,CntyQuery!$A$118:$FZ148,B$1) -> 11010 | C20: =VLOOKUP(DropDownList!$B$47,CntyQuery!$A$118:$FZ148,C$1) -> 602 | D20: =VLOOKUP(DropDownList!$B$47,CntyQuery!$A$118:$FZ148,D$1) -> 01700 | E20: =VLOOKUP(DropDownList!$B$47,CntyQuery!$A$118:$FZ148,E$1) -> 2208 | F20: =VLOOKUP(DropDownList!$B$47,CntyQuery!$A$118:$FZ148,F$1) -> 2360 | G20: =VLOOKUP(DropDownList!$B$47,CntyQuery!$A$118:$FZ148,G$1) -> 2449 | H20: =VLOOKUP(DropDownList!$B$47,CntyQuery!$A$118:$FZ148,H$1) -> 2637 | I20: =VLOOKUP(DropDownList!$B$47,CntyQuery!$A$118:$FZ148,I$1) -> 2651 | J20: =VLOOKUP(DropDownList!$B$47,CntyQuery!$A$118:$FZ148,J$1) -> 2763 | K20: =VLOOKUP(DropDownList!$B$47,CntyQuery!$A$118:$FZ148,K$1) -> 2851 | L20: =VLOOKUP(DropDownList!$B$47,CntyQuery!$A$118:$FZ148,L$1) -> 2914 | M20: =VLOOKUP(DropDownList!$B$47,CntyQuery!$A$118:$FZ148,M$1) -> 16 | N20: =VLOOKUP(DropDownList!$B$47,CntyQuery!$A$118:$FZ148,N$1) -> 0 | O20: =VLOOKUP(DropDownList!$B$47,CntyQuery!$A$118:$FZ148,O$1) -> 1 | P20: =VLOOKUP(DropDownList!$B$47,CntyQuery!$A$118:$FZ148,P$1) -> 4 | Q20: =VLOOKUP(DropDownList!$B$47,CntyQuery!$A$118:$FZ148,Q$1) -> 0 | R20: =VLOOKUP(DropDownList!$B$47,CntyQuery!$A$118:$FZ148,R$1) -> 2 | S20: =VLOOKUP(DropDownList!$B$47,CntyQuery!$A$118:$FZ148,S$1) -> 3 | T20: =VLOOKUP(DropDownList!$B$47,CntyQuery!$A$118:$FZ148,T$1) -> 40 | U20: =VLOOKUP(DropDownList!$B$47,CntyQuery!$A$118:$FZ148,U$1) -> 0 | V20: =VLOOKUP(DropDownList!$B$47,CntyQuery!$A$118:$FZ148,V$1) -> 9 | W20: =VLOOKUP(DropDownList!$B$47,CntyQuery!$A$118:$FZ148,W$1) -> 0 | X20: =VLOOKUP(DropDownList!$B$47,CntyQuery!$A$118:$FZ148,X$1) -> 1 | Y20: =VLOOKUP(DropDownList!$B$47,CntyQuery!$A$118:$FZ148,Y$1) -> 20 | Z20: =VLOOKUP(DropDownList!$B$47,CntyQuery!$A$118:$FZ148,Z$1) -> 2 | AA20: =VLOOKUP(DropDownList!$B$47,CntyQuery!$A$118:$FZ148,AA$1) -> 2 | AB20: =VLOOKUP(DropDownList!$B$47,CntyQuery!$A$118:$FZ148,AB$1) -> 27 | AC20: =VLOOKUP(DropDownList!$B$47,CntyQuery!$A$118:$FZ148,AC$1) -> 22 | AD20: =VLOOKUP(DropDownList!$B$47,CntyQuery!$A$118:$FZ148,AD$1) -> 2 | AE20: =VLOOKUP(DropDownList!$B$47,CntyQuery!$A$118:$FZ148,AE$1) -> 38 | AF20: =VLOOKUP(DropDownList!$B$47,CntyQuery!$A$118:$FZ148,AF$1) -> 25 | AG20: =VLOOKUP(DropDownList!$B$47,CntyQuery!$A$118:$FZ148,AG$1) -> 4 | AH20: =VLOOKUP(DropDownList!$B$47,CntyQuery!$A$118:$FZ148,AH$1) -> 30 | AI20: =VLOOKUP(DropDownList!$B$47,CntyQuery!$A$118:$FZ148,AI$1) -> 21 | AJ20: =VLOOKUP(DropDownList!$B$47,CntyQuery!$A$118:$FZ148,AJ$1) -> 0 | AK20: =VLOOKUP(DropDownList!$B$47,CntyQuery!$A$118:$FZ148,AK$1) -> 23 | AL20: =VLOOKUP(DropDownList!$B$47,CntyQuery!$A$118:$FZ148,AL$1) -> 13 | AM20: =VLOOKUP(DropDownList!$B$47,CntyQuery!$A$118:$FZ148,AM$1) -> 0 | AN20: =VLOOKUP(DropDownList!$B$47,CntyQuery!$A$118:$FZ148,AN$1) -> 20 | AO20: =VLOOKUP(DropDownList!$B$47,CntyQuery!$A$118:$FZ148,AO$1) -> 2 | AP20: =VLOOKUP(DropDownList!$B$47,CntyQuery!$A$118:$FZ148,AP$1) -> 0 | AQ20: =VLOOKUP(DropDownList!$B$47,CntyQuery!$A$118:$FZ148,AQ$1) -> 9 | AR20: =VLOOKUP(DropDownList!$B$47,CntyQuery!$A$118:$FZ148,AR$1) -> 1 | AS20: =VLOOKUP(DropDownList!$B$47,CntyQuery!$A$118:$FZ148,AS$1) -> 2 | AT20: =VLOOKUP(DropDownList!$B$47,CntyQuery!$A$118:$FZ148,AT$1) -> 1 | AU20: =VLOOKUP(DropDownList!$B$47,CntyQuery!$A$118:$FZ148,AU$1) -> 0 | AV20: =VLOOKUP(DropDownList!$B$47,CntyQuery!$A$118:$FZ148,AV$1) -> 0 | AW20: =VLOOKUP(DropDownList!$B$47,CntyQuery!$A$118:$FZ148,AW$1) -> -1 | AX20: =VLOOKUP(DropDownList!$B$47,CntyQuery!$A$118:$FZ148,AX$1) -> 1 | AY20: =VLOOKUP(DropDownList!$B$47,CntyQuery!$A$118:$FZ148,AY$1) -> 0 | AZ20: =VLOOKUP(DropDownList!$B$47,CntyQuery!$A$118:$FZ148,AZ$1) -> 3 | BA20: =VLOOKUP(DropDownList!$B$47,CntyQuery!$A$118:$FZ148,BA$1) -> 0 | BB20: =VLOOKUP(DropDownList!$B$47,CntyQuery!$A$118:$FZ148,BB$1) -> 2 | BC20: =VLOOKUP(DropDownList!$B$47,CntyQuery!$A$118:$FZ148,BC$1) -> 0 | BD20: =VLOOKUP(DropDownList!$B$47,CntyQuery!$A$118:$FZ148,BD$1) -> 0 | BE20: =VLOOKUP(DropDownList!$B$47,CntyQuery!$A$118:$FZ148,BE$1) -> 0 | BF20: =VLOOKUP(DropDownList!$B$47,CntyQuery!$A$118:$FZ148,BF$1) -> -1 | BG20: =VLOOKUP(DropDownList!$B$47,CntyQuery!$A$118:$FZ148,BG$1) -> 0 | BH20: =VLOOKUP(DropDownList!$B$47,CntyQuery!$A$118:$FZ148,BH$1) -> 1 | BI20: =VLOOKUP(DropDownList!$B$47,CntyQuery!$A$118:$FZ148,BI$1) -> 3 | BJ20: =VLOOKUP(DropDownList!$B$47,CntyQuery!$A$118:$FZ148,BJ$1) -> 0 | BK20: =VLOOKUP(DropDownList!$B$47,CntyQuery!$A$118:$FZ148,BK$1) -> 0 | BL20: =VLOOKUP(DropDownList!$B$47,CntyQuery!$A$118:$FZ148,BL$1) -> 0 | BM20: =VLOOKUP(DropDownList!$B$47,CntyQuery!$A$118:$FZ148,BM$1) -> 0 | BN20: =VLOOKUP(DropDownList!$B$47,CntyQuery!$A$118:$FZ148,BN$1) -> 1 | BO20: =VLOOKUP(DropDownList!$B$47,CntyQuery!$A$118:$FZ148,BO$1) -> 3 | BP20: =VLOOKUP(DropDownList!$B$47,CntyQuery!$A$118:$FZ148,BP$1) -> 3 | BQ20: =VLOOKUP(DropDownList!$B$47,CntyQuery!$A$118:$FZ148,BQ$1) -> 0 | BR20: =VLOOKUP(DropDownList!$B$47,CntyQuery!$A$118:$FZ148,BR$1) -> 10 | BS20: =VLOOKUP(DropDownList!$B$47,CntyQuery!$A$118:$FZ148,BS$1) -> 0 | BT20: =VLOOKUP(DropDownList!$B$47,CntyQuery!$A$118:$FZ148,BT$1) -> 0 | BU20: =VLOOKUP(DropDownList!$B$47,CntyQuery!$A$118:$FZ148,BU$1) -> 8 | BV20: =VLOOKUP(DropDownList!$B$47,CntyQuery!$A$118:$FZ148,BV$1) -> 0 | BW20: =VLOOKUP(DropDownList!$B$47,CntyQuery!$A$118:$FZ148,BW$1) -> 2 | BX20: =VLOOKUP(DropDownList!$B$47,CntyQuery!$A$118:$FZ148,BX$1) -> 4 | BY20: =VLOOKUP(DropDownList!$B$47,CntyQuery!$A$118:$FZ148,BY$1) -> 0 | BZ20: =VLOOKUP(DropDownList!$B$47,CntyQuery!$A$118:$FZ148,BZ$1) -> 0 | CA20: =VLOOKUP(DropDownList!$B$47,CntyQuery!$A$118:$FZ148,CA$1) -> 21 | CB20: =VLOOKUP(DropDownList!$B$47,CntyQuery!$A$118:$FZ148,CB$1) -> 11 | CC20: =VLOOKUP(DropDownList!$B$47,CntyQuery!$A$118:$FZ148,CC$1) -> 0 | CD20: =VLOOKUP(DropDownList!$B$47,CntyQuery!$A$118:$FZ148,CD$1) -> 19 | CE20: =VLOOKUP(DropDownList!$B$47,CntyQuery!$A$118:$FZ148,CE$1) -> 0 | CF20: =VLOOKUP(DropDownList!$B$47,CntyQuery!$A$118:$FZ148,CF$1) -> 2 | CG20: =VLOOKUP(DropDownList!$B$47,CntyQuery!$A$118:$FZ148,CG$1) -> 23 | CH20: =VLOOKUP(DropDownList!$B$47,CntyQuery!$A$118:$FZ148,CH$1) -> 0 | CI20: =VLOOKUP(DropDownList!$B$47,CntyQuery!$A$118:$FZ148,CI$1) -> 1 | CJ20: =VLOOKUP(DropDownList!$B$47,CntyQuery!$A$118:$FZ148,CJ$1) -> 26 | CK20: =VLOOKUP(DropDownList!$B$47,CntyQuery!$A$118:$FZ148,CK$1) -> 0 | CL20: =VLOOKUP(DropDownList!$B$47,CntyQuery!$A$118:$FZ148,CL$1) -> 0 | CM20: =VLOOKUP(DropDownList!$B$47,CntyQuery!$A$118:$FZ148,CM$1) -> 13 | CN20: =VLOOKUP(DropDownList!$B$47,CntyQuery!$A$118:$FZ148,CN$1) -> 1 | CO20: =VLOOKUP(DropDownList!$B$47,CntyQuery!$A$118:$FZ148,CO$1) -> 0 | CP20: =VLOOKUP(DropDownList!$B$47,CntyQuery!$A$118:$FZ148,CP$1) -> 11 | CQ20: =VLOOKUP(DropDownList!$B$47,CntyQuery!$A$118:$FZ148,CQ$1) -> 0 | CR20: =VLOOKUP(DropDownList!$B$47,CntyQuery!$A$118:$FZ148,CR$1) -> 0 | CS20: =VLOOKUP(DropDownList!$B$47,CntyQuery!$A$118:$FZ148,CS$1) -> 4 | CT20: =VLOOKUP(DropDownList!$B$47,CntyQuery!$A$118:$FZ148,CT$1) -> 0 | CU20: =VLOOKUP(DropDownList!$B$47,CntyQuery!$A$118:$FZ148,CU$1) -> 0 | CV20: =VLOOKUP(DropDownList!$B$47,CntyQuery!$A$118:$FZ148,CV$1) -> 1 | CW20: =VLOOKUP(DropDownList!$B$47,CntyQuery!$A$118:$FZ148,CW$1) -> 0 | CX20: =VLOOKUP(DropDownList!$B$47,CntyQuery!$A$118:$FZ148,CX$1) -> 0 | CY20: =VLOOKUP(DropDownList!$B$47,CntyQuery!$A$118:$FZ148,CY$1) -> 2 | CZ20: =VLOOKUP(DropDownList!$B$47,CntyQuery!$A$118:$FZ148,CZ$1) -> 0 | DA20: =VLOOKUP(DropDownList!$B$47,CntyQuery!$A$118:$FZ148,DA$1) -> 0 | DB20: =VLOOKUP(DropDownList!$B$47,CntyQuery!$A$118:$FZ148,DB$1) -> 2 | DC20: =VLOOKUP(DropDownList!$B$47,CntyQuery!$A$118:$FZ148,DC$1) -> 0 | DD20: =VLOOKUP(DropDownList!$B$47,CntyQuery!$A$118:$FZ148,DD$1) -> 0 | DE20: =VLOOKUP(DropDownList!$B$47,CntyQuery!$A$118:$FZ148,DE$1) -> 5 | DF20: =VLOOKUP(DropDownList!$B$47,CntyQuery!$A$118:$FZ148,DF$1) -> 0 | DG20: =VLOOKUP(DropDownList!$B$47,CntyQuery!$A$118:$FZ148,DG$1) -> 0 | DH20: =VLOOKUP(DropDownList!$B$47,CntyQuery!$A$118:$FZ148,DH$1) -> 2 | DI20: =VLOOKUP(DropDownList!$B$47,CntyQuery!$A$118:$FZ148,DI$1) -> 0 | DJ20: =VLOOKUP(DropDownList!$B$47,CntyQuery!$A$118:$FZ148,DJ$1) -> 0 | DK20: =VLOOKUP(DropDownList!$B$47,CntyQuery!$A$118:$FZ148,DK$1) -> 2 | DL20: =VLOOKUP(DropDownList!$B$47,CntyQuery!$A$118:$FZ148,DL$1) -> 0 | DM20: =VLOOKUP(DropDownList!$B$47,CntyQuery!$A$118:$FZ148,DM$1) -> 0 | DN20: =VLOOKUP(DropDownList!$B$47,CntyQuery!$A$118:$FZ148,DN$1) -> -2 | DO20: =VLOOKUP(DropDownList!$B$47,CntyQuery!$A$118:$FZ148,DO$1) -> 0 | DP20: =VLOOKUP(DropDownList!$B$47,CntyQuery!$A$118:$FZ148,DP$1) -> -2 | DQ20: =VLOOKUP(DropDownList!$B$47,CntyQuery!$A$118:$FZ148,DQ$1) -> 2 | DR20: =VLOOKUP(DropDownList!$B$47,CntyQuery!$A$118:$FZ148,DR$1) -> 0 | DS20: =VLOOKUP(DropDownList!$B$47,CntyQuery!$A$118:$FZ148,DS$1) -> 0 | DT20: =VLOOKUP(DropDownList!$B$47,CntyQuery!$A$118:$FZ148,DT$1) -> 4 | DU20: =VLOOKUP(DropDownList!$B$47,CntyQuery!$A$118:$FZ148,DU$1) -> 0 | DV20: =VLOOKUP(DropDownList!$B$47,CntyQuery!$A$118:$FZ148,DV$1) -> 0 | DW20: =VLOOKUP(DropDownList!$B$47,CntyQuery!$A$118:$FZ148,DW$1) -> 6 | DX20: =VLOOKUP(DropDownList!$B$47,CntyQuery!$A$118:$FZ148,DX$1) -> 0 | DY20: =VLOOKUP(DropDownList!$B$47,CntyQuery!$A$118:$FZ148,DY$1) -> 0 | DZ20: =VLOOKUP(DropDownList!$B$47,CntyQuery!$A$118:$FZ148,DZ$1) -> 0 | EA20: =VLOOKUP(DropDownList!$B$47,CntyQuery!$A$118:$FZ148,EA$1) -> 0 | EB20: =VLOOKUP(DropDownList!$B$47,CntyQuery!$A$118:$FZ148,EB$1) -> 0 | EC20: =VLOOKUP(DropDownList!$B$47,CntyQuery!$A$118:$FZ148,EC$1) -> 9 | ED20: =VLOOKUP(DropDownList!$B$47,CntyQuery!$A$118:$FZ148,ED$1) -> 0 | EE20: =VLOOKUP(DropDownList!$B$47,CntyQuery!$A$118:$FZ148,EE$1) -> 0 | EF20: =VLOOKUP(DropDownList!$B$47,CntyQuery!$A$118:$FZ148,EF$1) -> 0 | EG20: =VLOOKUP(DropDownList!$B$47,CntyQuery!$A$118:$FZ148,EG$1) -> 0 | EH20: =VLOOKUP(DropDownList!$B$47,CntyQuery!$A$118:$FZ148,EH$1) -> 0 | EI20: =VLOOKUP(DropDownList!$B$47,CntyQuery!$A$118:$FZ148,EI$1) -> 10 | EJ20: =VLOOKUP(DropDownList!$B$47,CntyQuery!$A$118:$FZ148,EJ$1) -> 1 | EK20: =VLOOKUP(DropDownList!$B$47,CntyQuery!$A$118:$FZ148,EK$1) -> 0 | EL20: =VLOOKUP(DropDownList!$B$47,CntyQuery!$A$118:$FZ148,EL$1) ->  | EM20: =VLOOKUP(DropDownList!$B$47,CntyQuery!$A$118:$FZ148,EM$1) -> 6
A23: NH Employment Data | B23: Query Name: DPQryEmploymentByCnty
A24: AreaName | B24: COUNTYCODE | C24: TOTP & G2001 | D24: TOT2001 | E24: GOODPRO2001 | F24: SERVICEPROMAN2001 | G24: WAGEP & G2001 | H24: WAGETOT2001 | I24: WAGEGOODPRO2001 | J24: WAGESERVICEPRO2001 | K24: TOTP & G2002 | L24: TOT2002 | M24: GOODPRO2002 | N24: SERVICEPROMAN2002 | O24: WAGEP & G2002 | P24: WAGETOT2002 | Q24: WAGEGOODPRO2002 | R24: WAGESERVICEPRO2002 | S24: TOTP & G2003 | T24: TOT2003 | U24: GOODPRO2003 | V24: SERVICEPROMAN2003 | W24: WAGEP & G2003 | X24: WAGETOT2003 | Y24: WAGEGOODPRO2003 | Z24: WAGESERVICEPRO2003 | AA24: TOTP & G2004 | AB24: TOT2004 | AC24: GOODPRO2004 | AD24: SERVICEPROMAN2004 | AE24: WAGEP & G2004 | AF24: WAGETOT2004 | AG24: WAGEGOODPRO2004 | AH24: WAGESERVICEPRO2004 | AI24: TOTP & G2005 | AJ24: TOT2005 | AK24: GOODPRO2005 | AL24: SERVICEPROMAN2005 | AM24: WAGEP & G2005 | AN24: WAGETOT2005 | AO24: WAGEGOODPRO2005 | AP24: WAGESERVICEPRO2005 | AQ24: TOTP & G2006 | AR24: TOT2006 | AS24: GOODPRO2006 | AT24: SERVICEPROMAN2006 | AU24: WAGEP & G2006 | AV24: WAGETOT2006 | AW24: WAGEGOODPRO2006 | AX24: WAGESERVICEPRO2006 | AY24: TOTP & G2007 | AZ24: TOT2007 | BA24: GOODPRO2007 | BB24: SERVICEPROMAN2007 | BC24: WAGEP & G2007 | BD24: WAGETOT2007 | BE24: WAGEGOODPRO2007 | BF24: WAGESERVICEPRO2007 | BG24: TOTP & G2008 | BH24: TOT2008 | BI24: GOODPRO2008 | BJ24: SERVICEPROMAN2008 | BK24: WAGEP & G2008 | BL24: WAGETOT2008 | BM24: WAGEGOODPRO2008 | BN24: WAGESERVICEPRO2008 | BO24: TOTP & G2009 | BP24: TOT2009 | BQ24: GOODPRO2009 | BR24: SERVICEPROMAN2009 | BS24: WAGEP & G2009 | BT24: WAGETOT2009 | BU24: WAGEGOODPRO2009 | BV24: WAGESERVICEPRO2009 | BW24: TOTP & G2010 | BX24: TOT2010 | BY24: GOODPRO2010 | BZ24: SERVICEPROMAN2010 | CA24: WAGEP & G2010 | CB24: WAGETOT2010 | CC24: WAGEGOODPRO2010 | CD24: WAGESERVICEPRO2010 | CE24: TOTP & G2011 | CF24: TOT2011 | CG24: GOODPRO2011 | CH24: SERVICEPROMAN2011 | CI24: WAGEP & G2011 | CJ24: WAGETOT2011 | CK24: WAGEGOODPRO2011 | CL24: WAGESERVICEPRO2011 | CM24: TOTP & G2012 | CN24: TOT2012 | CO24: GOODPRO2012 | CP24: SERVICEPROMAN2012 | CQ24: WAGEP & G2012 | CR24: WAGETOT2012 | CS24: WAGEGOODPRO2012 | CT24: WAGESERVICEPRO2012 | CU24: TOTP & G2013 | CV24: TOT2013 | CW24: GOODPRO2013 | CX24: SERVICEPROMAN2013 | CY24: WAGEP & G2013 | CZ24: WAGETOT2013 | DA24: WAGEGOODPRO2013 | DB24: WAGESERVICEPRO2013 | DC24: TOTP & G2014 | DD24: TOT2014 | DE24: GOODPRO2014 | DF24: SERVICEPROMAN2014 | DG24: WAGEP & G2014 | DH24: WAGETOT2014 | DI24: WAGEGOODPRO2014 | DJ24: WAGESERVICEPRO2014 | DK24: TOTP & G2015 | DL24: TOT2015 | DM24: GOODPRO2015 | DN24: SERVICEPROMAN2015 | DO24: WAGEP & G2015 | DP24: WAGETOT2015 | DQ24: WAGEGOODPRO2015 | DR24: WAGESERVICEPRO2015 | DS24: TOTP & G2016 | DT24: TOT2016 | DU24: GOODPRO2016 | DV24: SERVICEPROMAN2016 | DW24: WAGEP & G2016 | DX24: WAGETOT2016 | DY24: WAGEGOODPRO2016 | DZ24: WAGESERVICEPRO2016 | EA24: TOTP & G2017 | EB24: TOT2017 | EC24: GOODPRO2017 | ED24: SERVICEPROMAN2017 | EE24: WAGEP & G2017 | EF24: WAGETOT2017 | EG24: WAGEGOODPRO2017 | EH24: WAGESERVICEPRO2017 | EI24: TOTP & G2018 | EJ24: TOT2018 | EK24: GOODPRO2018 | EL24: SERVICEPROMAN2018 | EM24: WAGEP & G2018 | EN24: WAGETOT2018 | EO24: WAGEGOODPRO2018 | EP24: WAGESERVICEPRO2018 | EQ24: TOTP & G2019 | ER24: TOT2019 | ES24: TOTGov2019 | ET24: GOODPRO2019 | EU24: SERVICEPROMAN2019 | EV24: WAGEP & G2019 | EW24: WAGETOT2019 | EX24: WAGEGov2019 | EY24: WAGEGOODPRO2019 | EZ24: WAGESERVICEPRO2019 | FA24: TOTP & G2020 | FB24: TOT2020 | FC24: TOTGov2020 | FD24: GOODPRO2020 | FE24: SERVICEPROMAN2020 | FF24: WAGEP & G2020 | FG24: WAGETOT2020 | FH24: WAGEGov2020 | FI24: WAGEGOODPRO2020 | FJ24: WAGESERVICEPRO2020 | FK24: TOTP & G2021 | FL24: TOT2021 | FM24: TOTGov2021 | FN24: GOODPRO2021 | FO24: SERVICEPROMAN2021 | FP24: WAGEP & G2021 | FQ24: WAGETOT2021 | FR24: WAGEGov2021 | FS24: WAGEGOODPRO2021 | FT24: WAGESERVICEPRO2021 | FU24: TOTP & G2022 | FV24: TOT2022 | FW24: TOTGov2022 | FX24: GOODPRO2022 | FY24: SERVICEPROMAN2022 | FZ24: WAGEP & G2022 | GA24: WAGETOT2022 | GB24: WAGEGov2022 | GC24: WAGEGOODPRO2022 | GD24: WAGESERVICEPRO2022 | GE24: COUNTYCODE
A25: =VLOOKUP(DropDownList!$B$47,CntyQuery!$A$170:$FU$213,A$1) -> Antrim | B25: =VLOOKUP(DropDownList!$B$47,CntyQuery!$A$170:$FU$213,B$1) -> 6 | C25: =VLOOKUP(DropDownList!$B$47,CntyQuery!$A$170:$FU$213,C$1) -> 456 | D25: =VLOOKUP(DropDownList!$B$47,CntyQuery!$A$170:$FU$213,D$1) -> 415 | E25: =VLOOKUP(DropDownList!$B$47,CntyQuery!$A$170:$FU$213,E$1) -> 127 | F25: =VLOOKUP(DropDownList!$B$47,CntyQuery!$A$170:$FU$213,F$1) -> 289 | G25: =VLOOKUP(DropDownList!$B$47,CntyQuery!$A$170:$FU$213,G$1) -> 397.62 | H25: =VLOOKUP(DropDownList!$B$47,CntyQuery!$A$170:$FU$213,H$1) -> 395.59 | I25: =VLOOKUP(DropDownList!$B$47,CntyQuery!$A$170:$FU$213,I$1) -> 373.94 | J25: =VLOOKUP(DropDownList!$B$47,CntyQuery!$A$170:$FU$213,J$1) -> 405.08 | K25: =VLOOKUP(DropDownList!$B$47,CntyQuery!$A$170:$FU$213,K$1) -> 449 | L25: =VLOOKUP(DropDownList!$B$47,CntyQuery!$A$170:$FU$213,L$1) -> 410 | M25: =VLOOKUP(DropDownList!$B$47,CntyQuery!$A$170:$FU$213,M$1) -> 118 | N25: =VLOOKUP(DropDownList!$B$47,CntyQuery!$A$170:$FU$213,N$1) -> 292 | O25: =VLOOKUP(DropDownList!$B$47,CntyQuery!$A$170:$FU$213,O$1) -> 421.85 | P25: =VLOOKUP(DropDownList!$B$47,CntyQuery!$A$170:$FU$213,P$1) -> 417.92 | Q25: =VLOOKUP(DropDownList!$B$47,CntyQuery!$A$170:$FU$213,Q$1) -> 454.75 | R25: =VLOOKUP(DropDownList!$B$47,CntyQuery!$A$170:$FU$213,R$1) -> 403.02 | S25: =VLOOKUP(DropDownList!$B$47,CntyQuery!$A$170:$FU$213,S$1) -> 452 | T25: =VLOOKUP(DropDownList!$B$47,CntyQuery!$A$170:$FU$213,T$1) -> 411 | U25: =VLOOKUP(DropDownList!$B$47,CntyQuery!$A$170:$FU$213,U$1) -> 66 | V25: =VLOOKUP(DropDownList!$B$47,CntyQuery!$A$170:$FU$213,V$1) -> 344 | W25: =VLOOKUP(DropDownList!$B$47,CntyQuery!$A$170:$FU$213,W$1) -> 457.43 | X25: =VLOOKUP(DropDownList!$B$47,CntyQuery!$A$170:$FU$213,X$1) -> 451.05 | Y25: =VLOOKUP(DropDownList!$B$47,CntyQuery!$A$170:$FU$213,Y$1) -> 611.27 | Z25: =VLOOKUP(DropDownList!$B$47,CntyQuery!$A$170:$FU$213,Z$1) -> 420.17 | AA25: =VLOOKUP(DropDownList!$B$47,CntyQuery!$A$170:$FU$213,AA$1) -> 422 | AB25: =VLOOKUP(DropDownList!$B$47,CntyQuery!$A$170:$FU$213,AB$1) -> 377 | AC25: =VLOOKUP(DropDownList!$B$47,CntyQuery!$A$170:$FU$213,AC$1) -> 60 | AD25: =VLOOKUP(DropDownList!$B$47,CntyQuery!$A$170:$FU$213,AD$1) -> 316 | AE25: =VLOOKUP(DropDownList!$B$47,CntyQuery!$A$170:$FU$213,AE$1) -> 480.59 | AF25: =VLOOKUP(DropDownList!$B$47,CntyQuery!$A$170:$FU$213,AF$1) -> 480.33 | AG25: =VLOOKUP(DropDownList!$B$47,CntyQuery!$A$170:$FU$213,AG$1) -> 640.08 | AH25: =VLOOKUP(DropDownList!$B$47,CntyQuery!$A$170:$FU$213,AH$1) -> 449.79 | AI25: =VLOOKUP(DropDownList!$B$47,CntyQuery!$A$170:$FU$213,AI$1) -> 420 | AJ25: =VLOOKUP(DropDownList!$B$47,CntyQuery!$A$170:$FU$213,AJ$1) -> 375 | AK25: =VLOOKUP(DropDownList!$B$47,CntyQuery!$A$170:$FU$213,AK$1) -> 61 | AL25: =VLOOKUP(DropDownList!$B$47,CntyQuery!$A$170:$FU$213,AL$1) -> 314 | AM25: =VLOOKUP(DropDownList!$B$47,CntyQuery!$A$170:$FU$213,AM$1) -> 530.15 | AN25: =VLOOKUP(DropDownList!$B$47,CntyQuery!$A$170:$FU$213,AN$1) -> 526.7 | AO25: =VLOOKUP(DropDownList!$B$47,CntyQuery!$A$170:$FU$213,AO$1) -> 658.24 | AP25: =VLOOKUP(DropDownList!$B$47,CntyQuery!$A$170:$FU$213,AP$1) -> 501.12 | AQ25: =VLOOKUP(DropDownList!$B$47,CntyQuery!$A$170:$FU$213,AQ$1) -> 449 | AR25: =VLOOKUP(DropDownList!$B$47,CntyQuery!$A$170:$FU$213,AR$1) -> 391 | AS25: =VLOOKUP(DropDownList!$B$47,CntyQuery!$A$170:$FU$213,AS$1) -> 70 | AT25: =VLOOKUP(DropDownList!$B$47,CntyQuery!$A$170:$FU$213,AT$1) -> 321 | AU25: =VLOOKUP(DropDownList!$B$47,CntyQuery!$A$170:$FU$213,AU$1) -> 469.19 | AV25: =VLOOKUP(DropDownList!$B$47,CntyQuery!$A$170:$FU$213,AV$1) -> 459.48 | AW25: =VLOOKUP(DropDownList!$B$47,CntyQuery!$A$170:$FU$213,AW$1) -> 666.51 | AX25: =VLOOKUP(DropDownList!$B$47,CntyQuery!$A$170:$FU$213,AX$1) -> 414.69 | AY25: =VLOOKUP(DropDownList!$B$47,CntyQuery!$A$170:$FU$213,AY$1) -> 435 | AZ25: =VLOOKUP(DropDownList!$B$47,CntyQuery!$A$170:$FU$213,AZ$1) -> 373 | BA25: =VLOOKUP(DropDownList!$B$47,CntyQuery!$A$170:$FU$213,BA$1) -> 65 | BB25: =VLOOKUP(DropDownList!$B$47,CntyQuery!$A$170:$FU$213,BB$1) -> 308 | BC25: =VLOOKUP(DropDownList!$B$47,CntyQuery!$A$170:$FU$213,BC$1) -> 497.8 | BD25: =VLOOKUP(DropDownList!$B$47,CntyQuery!$A$170:$FU$213,BD$1) -> 478.58 | BE25: =VLOOKUP(DropDownList!$B$47,CntyQuery!$A$170:$FU$213,BE$1) -> 664.17 | BF25: =VLOOKUP(DropDownList!$B$47,CntyQuery!$A$170:$FU$213,BF$1) -> 439.42 | BG25: =VLOOKUP(DropDownList!$B$47,CntyQuery!$A$170:$FU$213,BG$1) -> 413 | BH25: =VLOOKUP(DropDownList!$B$47,CntyQuery!$A$170:$FU$213,BH$1) -> 360 | BI25: =VLOOKUP(DropDownList!$B$47,CntyQuery!$A$170:$FU$213,BI$1) -> 59 | BJ25: =VLOOKUP(DropDownList!$B$47,CntyQuery!$A$170:$FU$213,BJ$1) -> 301 | BK25: =VLOOKUP(DropDownList!$B$47,CntyQuery!$A$170:$FU$213,BK$1) -> 520.36 | BL25: =VLOOKUP(DropDownList!$B$47,CntyQuery!$A$170:$FU$213,BL$1) -> 497.1 | BM25: =VLOOKUP(DropDownList!$B$47,CntyQuery!$A$170:$FU$213,BM$1) -> 659.26 | BN25: =VLOOKUP(DropDownList!$B$47,CntyQuery!$A$170:$FU$213,BN$1) -> 465.35 | BO25: =VLOOKUP(DropDownList!$B$47,CntyQuery!$A$170:$FU$213,BO$1) -> 401 | BP25: =VLOOKUP(DropDownList!$B$47,CntyQuery!$A$170:$FU$213,BP$1) -> 351 | BQ25: =VLOOKUP(DropDownList!$B$47,CntyQuery!$A$170:$FU$213,BQ$1) -> 48 | BR25: =VLOOKUP(DropDownList!$B$47,CntyQuery!$A$170:$FU$213,BR$1) -> 303 | BS25: =VLOOKUP(DropDownList!$B$47,CntyQuery!$A$170:$FU$213,BS$1) -> 516.76 | BT25: =VLOOKUP(DropDownList!$B$47,CntyQuery!$A$170:$FU$213,BT$1) -> 490.27 | BU25: =VLOOKUP(DropDownList!$B$47,CntyQuery!$A$170:$FU$213,BU$1) -> 580.96 | BV25: =VLOOKUP(DropDownList!$B$47,CntyQuery!$A$170:$FU$213,BV$1) -> 475.8 | BW25: =VLOOKUP(DropDownList!$B$47,CntyQuery!$A$170:$FU$213,BW$1) -> 387 | BX25: =VLOOKUP(DropDownList!$B$47,CntyQuery!$A$170:$FU$213,BX$1) -> 339 | BY25: =VLOOKUP(DropDownList!$B$47,CntyQuery!$A$170:$FU$213,BY$1) -> 42 | BZ25: =VLOOKUP(DropDownList!$B$47,CntyQuery!$A$170:$FU$213,BZ$1) -> 297 | CA25: =VLOOKUP(DropDownList!$B$47,CntyQuery!$A$170:$FU$213,CA$1) -> 552.62 | CB25: =VLOOKUP(DropDownList!$B$47,CntyQuery!$A$170:$FU$213,CB$1) -> 528.31 | CC25: =VLOOKUP(DropDownList!$B$47,CntyQuery!$A$170:$FU$213,CC$1) -> 642.48 | CD25: =VLOOKUP(DropDownList!$B$47,CntyQuery!$A$170:$FU$213,CD$1) -> 512.03 | CE25: =VLOOKUP(DropDownList!$B$47,CntyQuery!$A$170:$FU$213,CE$1) -> 373 | CF25: =VLOOKUP(DropDownList!$B$47,CntyQuery!$A$170:$FU$213,CF$1) -> 325 | CG25: =VLOOKUP(DropDownList!$B$47,CntyQuery!$A$170:$FU$213,CG$1) -> 44 | CH25: =VLOOKUP(DropDownList!$B$47,CntyQuery!$A$170:$FU$213,CH$1) -> 281 | CI25: =VLOOKUP(DropDownList!$B$47,CntyQuery!$A$170:$FU$213,CI$1) -> 529.78 | CJ25: =VLOOKUP(DropDownList!$B$47,CntyQuery!$A$170:$FU$213,CJ$1) -> 503.15 | CK25: =VLOOKUP(DropDownList!$B$47,CntyQuery!$A$170:$FU$213,CK$1) -> 619.67 | CL25: =VLOOKUP(DropDownList!$B$47,CntyQuery!$A$170:$FU$213,CL$1) -> 484.79 | CM25: =VLOOKUP(DropDownList!$B$47,CntyQuery!$A$170:$FU$213,CM$1) -> 378 | CN25: =VLOOKUP(DropDownList!$B$47,CntyQuery!$A$170:$FU$213,CN$1) -> 324 | CO25: =VLOOKUP(DropDownList!$B$47,CntyQuery!$A$170:$FU$213,CO$1) -> 49 | CP25: =VLOOKUP(DropDownList!$B$47,CntyQuery!$A$170:$FU$213,CP$1) -> 275 | CQ25: =VLOOKUP(DropDownList!$B$47,CntyQuery!$A$170:$FU$213,CQ$1) -> 537.56 | CR25: =VLOOKUP(DropDownList!$B$47,CntyQuery!$A$170:$FU$213,CR$1) -> 505.7 | CS25: =VLOOKUP(DropDownList!$B$47,CntyQuery!$A$170:$FU$213,CS$1) -> 634.24 | CT25: =VLOOKUP(DropDownList!$B$47,CntyQuery!$A$170:$FU$213,CT$1) -> 483.02 | CU25: =VLOOKUP(DropDownList!$B$47,CntyQuery!$A$170:$FU$213,CU$1) -> 365 | CV25: =VLOOKUP(DropDownList!$B$47,CntyQuery!$A$170:$FU$213,CV$1) -> 313 | CW25: =VLOOKUP(DropDownList!$B$47,CntyQuery!$A$170:$FU$213,CW$1) -> 44 | CX25: =VLOOKUP(DropDownList!$B$47,CntyQuery!$A$170:$FU$213,CX$1) -> 269 | CY25: =VLOOKUP(DropDownList!$B$47,CntyQuery!$A$170:$FU$213,CY$1) -> 569.32 | CZ25: =VLOOKUP(DropDownList!$B$47,CntyQuery!$A$170:$FU$213,CZ$1) -> 538.42 | DA25: =VLOOKUP(DropDownList!$B$47,CntyQuery!$A$170:$FU$213,DA$1) -> 687.61 | DB25: =VLOOKUP(DropDownList!$B$47,CntyQuery!$A$170:$FU$213,DB$1) -> 514.05 | DC25: =VLOOKUP(DropDownList!$B$47,CntyQuery!$A$170:$FU$213,DC$1) -> 331 | DD25: =VLOOKUP(DropDownList!$B$47,CntyQuery!$A$170:$FU$213,DD$1) -> 283 | DE25: =VLOOKUP(DropDownList!$B$47,CntyQuery!$A$170:$FU$213,DE$1) -> 48 | DF25: =VLOOKUP(DropDownList!$B$47,CntyQuery!$A$170:$FU$213,DF$1) -> 235 | DG25: =VLOOKUP(DropDownList!$B$47,CntyQuery!$A$170:$FU$213,DG$1) -> 631.65 | DH25: =VLOOKUP(DropDownList!$B$47,CntyQuery!$A$170:$FU$213,DH$1) -> 593.41 | DI25: =VLOOKUP(DropDownList!$B$47,CntyQuery!$A$170:$FU$213,DI$1) -> 690.32 | DJ25: =VLOOKUP(DropDownList!$B$47,CntyQuery!$A$170:$FU$213,DJ$1) -> 573.85 | DK25: =VLOOKUP(DropDownList!$B$47,CntyQuery!$A$170:$FU$213,DK$1) -> 356 | DL25: =VLOOKUP(DropDownList!$B$47,CntyQuery!$A$170:$FU$213,DL$1) -> 303 | DM25: =VLOOKUP(DropDownList!$B$47,CntyQuery!$A$170:$FU$213,DM$1) -> 45 | DN25: =VLOOKUP(DropDownList!$B$47,CntyQuery!$A$170:$FU$213,DN$1) -> 258 | DO25: =VLOOKUP(DropDownList!$B$47,CntyQuery!$A$170:$FU$213,DO$1) -> 695.29 | DP25: =VLOOKUP(DropDownList!$B$47,CntyQuery!$A$170:$FU$213,DP$1) -> 681.13 | DQ25: =VLOOKUP(DropDownList!$B$47,CntyQuery!$A$170:$FU$213,DQ$1) -> 725.44 | DR25: =VLOOKUP(DropDownList!$B$47,CntyQuery!$A$170:$FU$213,DR$1) -> 673.47 | DS25: =VLOOKUP(DropDownList!$B$47,CntyQuery!$A$170:$FU$213,DS$1) -> 364 | DT25: =VLOOKUP(DropDownList!$B$47,CntyQuery!$A$170:$FU$213,DT$1) -> 306 | DU25: =VLOOKUP(DropDownList!$B$47,CntyQuery!$A$170:$FU$213,DU$1) -> 43 | DV25: =VLOOKUP(DropDownList!$B$47,CntyQuery!$A$170:$FU$213,DV$1) -> 263 | DW25: =VLOOKUP(DropDownList!$B$47,CntyQuery!$A$170:$FU$213,DW$1) -> 683.73 | DX25: =VLOOKUP(DropDownList!$B$47,CntyQuery!$A$170:$FU$213,DX$1) -> 676.24 | DY25: =VLOOKUP(DropDownList!$B$47,CntyQuery!$A$170:$FU$213,DY$1) -> 746.75 | DZ25: =VLOOKUP(DropDownList!$B$47,CntyQuery!$A$170:$FU$213,DZ$1) -> 664.6 | EA25: =VLOOKUP(DropDownList!$B$47,CntyQuery!$A$170:$FU$213,EA$1) -> 365 | EB25: =VLOOKUP(DropDownList!$B$47,CntyQuery!$A$170:$FU$213,EB$1) -> 311 | EC25: =VLOOKUP(DropDownList!$B$47,CntyQuery!$A$170:$FU$213,EC$1) -> 48 | ED25: =VLOOKUP(DropDownList!$B$47,CntyQuery!$A$170:$FU$213,ED$1) -> 263 | EE25: =VLOOKUP(DropDownList!$B$47,CntyQuery!$A$170:$FU$213,EE$1) -> 700.91 | EF25: =VLOOKUP(DropDownList!$B$47,CntyQuery!$A$170:$FU$213,EF$1) -> 686.88 | EG25: =VLOOKUP(DropDownList!$B$47,CntyQuery!$A$170:$FU$213,EG$1) -> 758.28 | EH25: =VLOOKUP(DropDownList!$B$47,CntyQuery!$A$170:$FU$213,EH$1) -> 673.95 | EI25: =VLOOKUP(DropDownList!$B$47,CntyQuery!$A$170:$FU$213,EI$1) -> 374 | EJ25: =VLOOKUP(DropDownList!$B$47,CntyQuery!$A$170:$FU$213,EJ$1) -> 324 | EK25: =VLOOKUP(DropDownList!$B$47,CntyQuery!$A$170:$FU$213,EK$1) -> 55 | EL25: =VLOOKUP(DropDownList!$B$47,CntyQuery!$A$170:$FU$213,EL$1) -> 269 | EM25: =VLOOKUP(DropDownList!$B$47,CntyQuery!$A$170:$FU$213,EM$1) -> 737.61 | EN25: =VLOOKUP(DropDownList!$B$47,CntyQuery!$A$170:$FU$213,EN$1) -> 723.24 | EO25: =VLOOKUP(DropDownList!$B$47,CntyQuery!$A$170:$FU$213,EO$1) -> 765.03 | EP25: =VLOOKUP(DropDownList!$B$47,CntyQuery!$A$170:$FU$213,EP$1) -> 714.67 | EQ25: =VLOOKUP(DropDownList!$B$47,CntyQuery!$A$170:$FU$213,EQ$1) -> 372 | ER25: =VLOOKUP(DropDownList!$B$47,CntyQuery!$A$170:$FU$213,ER$1) -> 320 | ES25: =VLOOKUP(DropDownList!$B$47,CntyQuery!$A$170:$FU$213,ES$1) -> 52 | ET25: =VLOOKUP(DropDownList!$B$47,CntyQuery!$A$170:$FU$213,ET$1) -> 52 | EU25: =VLOOKUP(DropDownList!$B$47,CntyQuery!$A$170:$FU$213,EU$1) -> 268 | EV25: =VLOOKUP(DropDownList!$B$47,CntyQuery!$A$170:$FU$213,EV$1) -> 743.37 | EW25: =VLOOKUP(DropDownList!$B$47,CntyQuery!$A$170:$FU$213,EW$1) -> 731.58 | EX25: =VLOOKUP(DropDownList!$B$47,CntyQuery!$A$170:$FU$213,EX$1) -> 816.37 | EY25: =VLOOKUP(DropDownList!$B$47,CntyQuery!$A$170:$FU$213,EY$1) -> 761.73 | EZ25: =VLOOKUP(DropDownList!$B$47,CntyQuery!$A$170:$FU$213,EZ$1) -> 725.71 | FA25: =VLOOKUP(DropDownList!$B$47,CntyQuery!$A$170:$FU$213,FA$1) -> 377 | FB25: =VLOOKUP(DropDownList!$B$47,CntyQuery!$A$170:$FU$213,FB$1) -> 325 | FC25: =VLOOKUP(DropDownList!$B$47,CntyQuery!$A$170:$FU$213,FC$1) -> 52 | FD25: =VLOOKUP(DropDownList!$B$47,CntyQuery!$A$170:$FU$213,FD$1) -> 50 | FE25: =VLOOKUP(DropDownList!$B$47,CntyQuery!$A$170:$FU$213,FE$1) -> 275 | FF25: =VLOOKUP(DropDownList!$B$47,CntyQuery!$A$170:$FU$213,FF$1) -> 765.96 | FG25: =VLOOKUP(DropDownList!$B$47,CntyQuery!$A$170:$FU$213,FG$1) -> 751.68 | FH25: =VLOOKUP(DropDownList!$B$47,CntyQuery!$A$170:$FU$213,FH$1) -> 854.85 | FI25: =VLOOKUP(DropDownList!$B$47,CntyQuery!$A$170:$FU$213,FI$1) -> 796.41 | FJ25: =VLOOKUP(DropDownList!$B$47,CntyQuery!$A$170:$FU$213,FJ$1) -> 743.47 | FK25: =VLOOKUP(DropDownList!$B$47,CntyQuery!$A$170:$FU$213,FK$1) -> 411 | FL25: =VLOOKUP(DropDownList!$B$47,CntyQuery!$A$170:$FU$213,FL$1) -> 360 | FM25: =VLOOKUP(DropDownList!$B$47,CntyQuery!$A$170:$FU$213,FM$1) -> 51 | FN25: =VLOOKUP(DropDownList!$B$47,CntyQuery!$A$170:$FU$213,FN$1) -> 51 | FO25: =VLOOKUP(DropDownList!$B$47,CntyQuery!$A$170:$FU$213,FO$1) -> 309 | FP25: =VLOOKUP(DropDownList!$B$47,CntyQuery!$A$170:$FU$213,FP$1) -> 818.96 | FQ25: =VLOOKUP(DropDownList!$B$47,CntyQuery!$A$170:$FU$213,FQ$1) -> 807.72 | FR25: =VLOOKUP(DropDownList!$B$47,CntyQuery!$A$170:$FU$213,FR$1) -> 898.06 | FS25: =VLOOKUP(DropDownList!$B$47,CntyQuery!$A$170:$FU$213,FS$1) -> 829.9 | FT25: =VLOOKUP(DropDownList!$B$47,CntyQuery!$A$170:$FU$213,FT$1) -> 804.06 | FU25: =VLOOKUP(DropDownList!$B$47,CntyQuery!$A$170:$GZ$213,FU$1) -> 433 | FV25: =VLOOKUP(DropDownList!$B$47,CntyQuery!$A$170:$GZ$213,FV$1) -> 380 | FW25: =VLOOKUP(DropDownList!$B$47,CntyQuery!$A$170:$GZ$213,FW$1) -> 53 | FX25: =VLOOKUP(DropDownList!$B$47,CntyQuery!$A$170:$GZ$213,FX$1) -> 59 | FY25: =VLOOKUP(DropDownList!$B$47,CntyQuery!$A$170:$GZ$213,FY$1) -> 321 | FZ25: =VLOOKUP(DropDownList!$B$47,CntyQuery!$A$170:$GZ$213,FZ$1) -> 891 | GA25: =VLOOKUP(DropDownList!$B$47,CntyQuery!$A$170:$GZ$213,GA$1) -> 891 | GB25: =VLOOKUP(DropDownList!$B$47,CntyQuery!$A$170:$GZ$213,GB$1) -> 888 | GC25: =VLOOKUP(DropDownList!$B$47,CntyQuery!$A$170:$GZ$213,GC$1) -> 890 | GD25: =VLOOKUP(DropDownList!$B$47,CntyQuery!$A$170:$GZ$213,GD$1) -> 891 | GE25: =VLOOKUP(DropDownList!$B$47,CntyQuery!$A$170:$GZ$213,GE$1) -> 6
A28: Labor Force and Unemployment Rate | B28: Query Name: DPQryUnempByCnty
A29: PlaceName | B29: LaborForce1990 | C29: LaborForce1991 | D29: LaborForce1992 | E29: LaborForce1993 | F29: LaborForce1994 | G29: LaborForce1995 | H29: LaborForce1996 | I29: LaborForce1997 | J29: LaborForce1998 | K29: LaborForce1999 | L29: LaborForce2000 | M29: LaborForce2001 | N29: LaborForce2002 | O29: LaborForce2003 | P29: NumbEmployed1990 | Q29: NumbEmployed1991 | R29: NumbEmployed1992 | S29: NumbEmployed1993 | T29: NumbEmployed1994 | U29: NumbEmployed1995 | V29: NumbEmployed1996 | W29: NumbEmployed1997 | X29: NumbEmployed1998 | Y29: NumbEmployed1999 | Z29: NumbEmployed2000 | AA29: NumbEmployed2001 | AB29: NumbEmployed2002 | AC29: NumbEmployed2003 | AD29: UnempRate1990 | AE29: UnempRate1991 | AF29: UnempRate1992 | AG29: UnempRate1993 | AH29: UnempRate1994 | AI29: UnempRate1995 | AJ29: UnempRate1996 | AK29: UnempRate1997 | AL29: UnempRate1998 | AM29: UnempRate1999 | AN29: UnempRate2000 | AO29: UnempRate2001 | AP29: UnempRate2002 | AQ29: UnempRate2003 | AR29: NumbUnEmp1990 | AS29: NumbUnEmp1991 | AT29: NumbUnEmp1992 | AU29: NumbUnEmp1993 | AV29: NumbUnEmp1994 | AW29: NumbUnEmp1995 | AX29: NumbUnEmp1996 | AY29: NumbUnEmp1997 | AZ29: NumbUnEmp1998 | BA29: NumbUnEmp1999 | BB29: NumbUnEmp2000 | BC29: NumbUnEmp2001 | BD29: NumbUnEmp2002 | BE29: NumbUnEmp2003 | BF29: LaborForce2004 | BG29: NumbEmployed2004 | BH29: UnempRate2004 | BI29: NumbUnEmp2004 | BJ29: LaborForce2005 | BK29: NumbEmployed2005 | BL29: NumbUnEmp2005 | BM29: UnempRate2005 | BN29: LaborForce2006 | BO29: NumbEmployed2006 | BP29: NumbUnEmp2006 | BQ29: UnempRate2006 | BR29: LaborForce2007 | BS29: NumbEmployed2007 | BT29: NumbUnEmp2007 | BU29: UnempRate2007 | BV29: LaborForce2008 | BW29: NumbEmployed2008 | BX29: NumbUnEmp2008 | BY29: UnempRate2008 | BZ29: LaborForce2009 | CA29: NumbEmployed2009 | CB29: NumbUnEmp2009 | CC29: UnempRate2009 | CD29: LaborForce2010 | CE29: NumbEmployed2010 | CF29: NumbUnEmp2010 | CG29: UnempRate2010 | CH29: LaborForce2011 | CI29: NumbEmployed2011 | CJ29: NumbUnEmp2011 | CK29: UnempRate2011 | CL29: LaborForce2012 | CM29: NumbEmployed2012 | CN29: NumbUnEmp2012 | CO29: UnempRate2012 | CP29: LaborForce2013 | CQ29: NumbEmployed2013 | CR29: NumbUnEmp2013 | CS29: UnempRate2013 | CT29: LaborForce2014 | CU29: NumbEmployed2014 | CV29: NumbUnEmp2014 | CW29: UnempRate2014 | CX29: LaborForce2015 | CY29: NumbEmployed2015 | CZ29: NumbUnEmp2015 | DA29: UnempRate2015 | DB29: LaborForce2016 | DC29: NumbEmployed2016 | DD29: NumbUnEmp2016 | DE29: UnempRate2016 | DF29: LaborForce2017 | DG29: NumbEmployed2017 | DH29: NumbUnEmp2017 | DI29: UnempRate2017 | DJ29: LaborForce2018 | DK29: NumbEmployed2018 | DL29: NumbUnEmp2018 | DM29: UnempRate2018 | DN29: LaborForce2019 | DO29: NumbEmployed2019 | DP29: NumbUnEmp2019 | DQ29: UnempRate2019 | DR29: LaborForce2020 | DS29: NumbEmployed2020 | DT29: NumbUnEmp2020 | DU29: UnempRate2020 | DV29: LaborForce2021 | DW29: NumbEmployed2021 | DX29: NumbUnEmp2021 | DY29: UnempRate2021 | DZ29: LaborForce2022 | EA29: NumbEmployed2022 | EB29: NumbUnEmp2022 | EC29: UnempRate2022 | ED29: Place-TownIDNumber
A30: =VLOOKUP(DropDownList!$B$47,CntyQuery!$A$220:$EE$229,A$1) ->  | B30: =VLOOKUP(DropDownList!$B$47,CntyQuery!$A$220:$EE$229,B$1) ->  | C30: =VLOOKUP(DropDownList!$B$47,CntyQuery!$A$220:$EE$229,C$1) ->  | D30: =VLOOKUP(DropDownList!$B$47,CntyQuery!$A$220:$EE$229,D$1) ->  | E30: =VLOOKUP(DropDownList!$B$47,CntyQuery!$A$220:$EE$229,E$1) ->  | F30: =VLOOKUP(DropDownList!$B$47,CntyQuery!$A$220:$EE$229,F$1) ->  | G30: =VLOOKUP(DropDownList!$B$47,CntyQuery!$A$220:$EE$229,G$1) ->  | H30: =VLOOKUP(DropDownList!$B$47,CntyQuery!$A$220:$EE$229,H$1) ->  | I30: =VLOOKUP(DropDownList!$B$47,CntyQuery!$A$220:$EE$229,I$1) ->  | J30: =VLOOKUP(DropDownList!$B$47,CntyQuery!$A$220:$EE$229,J$1) ->  | K30: =VLOOKUP(DropDownList!$B$47,CntyQuery!$A$220:$EE$229,K$1) ->  | L30: =VLOOKUP(DropDownList!$B$47,CntyQuery!$A$220:$EE$229,L$1) ->  | M30: =VLOOKUP(DropDownList!$B$47,CntyQuery!$A$220:$EE$229,M$1) ->  | N30: =VLOOKUP(DropDownList!$B$47,CntyQuery!$A$220:$EE$229,N$1) ->  | O30: =VLOOKUP(DropDownList!$B$47,CntyQuery!$A$220:$EE$229,O$1) ->  | P30: =VLOOKUP(DropDownList!$B$47,CntyQuery!$A$220:$EE$229,P$1) ->  | Q30: =VLOOKUP(DropDownList!$B$47,CntyQuery!$A$220:$EE$229,Q$1) ->  | R30: =VLOOKUP(DropDownList!$B$47,CntyQuery!$A$220:$EE$229,R$1) ->  | S30: =VLOOKUP(DropDownList!$B$47,CntyQuery!$A$220:$EE$229,S$1) ->  | T30: =VLOOKUP(DropDownList!$B$47,CntyQuery!$A$220:$EE$229,T$1) ->  | U30: =VLOOKUP(DropDownList!$B$47,CntyQuery!$A$220:$EE$229,U$1) ->  | V30: =VLOOKUP(DropDownList!$B$47,CntyQuery!$A$220:$EE$229,V$1) ->  | W30: =VLOOKUP(DropDownList!$B$47,CntyQuery!$A$220:$EE$229,W$1) ->  | X30: =VLOOKUP(DropDownList!$B$47,CntyQuery!$A$220:$EE$229,X$1) ->  | Y30: =VLOOKUP(DropDownList!$B$47,CntyQuery!$A$220:$EE$229,Y$1) ->  | Z30: =VLOOKUP(DropDownList!$B$47,CntyQuery!$A$220:$EE$229,Z$1) ->  | AA30: =VLOOKUP(DropDownList!$B$47,CntyQuery!$A$220:$EE$229,AA$1) ->  | AB30: =VLOOKUP(DropDownList!$B$47,CntyQuery!$A$220:$EE$229,AB$1) ->  | AC30: =VLOOKUP(DropDownList!$B$47,CntyQuery!$A$220:$EE$229,AC$1) ->  | AD30: =VLOOKUP(DropDownList!$B$47,CntyQuery!$A$220:$EE$229,AD$1) ->  | AE30: =VLOOKUP(DropDownList!$B$47,CntyQuery!$A$220:$EE$229,AE$1) ->  | AF30: =VLOOKUP(DropDownList!$B$47,CntyQuery!$A$220:$EE$229,AF$1) ->  | AG30: =VLOOKUP(DropDownList!$B$47,CntyQuery!$A$220:$EE$229,AG$1) ->  | AH30: =VLOOKUP(DropDownList!$B$47,CntyQuery!$A$220:$EE$229,AH$1) ->  | AI30: =VLOOKUP(DropDownList!$B$47,CntyQuery!$A$220:$EE$229,AI$1) ->  | AJ30: =VLOOKUP(DropDownList!$B$47,CntyQuery!$A$220:$EE$229,AJ$1) ->  | AK30: =VLOOKUP(DropDownList!$B$47,CntyQuery!$A$220:$EE$229,AK$1) ->  | AL30: =VLOOKUP(DropDownList!$B$47,CntyQuery!$A$220:$EE$229,AL$1) ->  | AM30: =VLOOKUP(DropDownList!$B$47,CntyQuery!$A$220:$EE$229,AM$1) ->  | AN30: =VLOOKUP(DropDownList!$B$47,CntyQuery!$A$220:$EE$229,AN$1) ->  | AO30: =VLOOKUP(DropDownList!$B$47,CntyQuery!$A$220:$EE$229,AO$1) ->  | AP30: =VLOOKUP(DropDownList!$B$47,CntyQuery!$A$220:$EE$229,AP$1) ->  | AQ30: =VLOOKUP(DropDownList!$B$47,CntyQuery!$A$220:$EE$229,AQ$1) ->  | AR30: =VLOOKUP(DropDownList!$B$47,CntyQuery!$A$220:$EE$229,AR$1) ->  | AS30: =VLOOKUP(DropDownList!$B$47,CntyQuery!$A$220:$EE$229,AS$1) ->  | AT30: =VLOOKUP(DropDownList!$B$47,CntyQuery!$A$220:$EE$229,AT$1) ->  | AU30: =VLOOKUP(DropDownList!$B$47,CntyQuery!$A$220:$EE$229,AU$1) ->  | AV30: =VLOOKUP(DropDownList!$B$47,CntyQuery!$A$220:$EE$229,AV$1) ->  | AW30: =VLOOKUP(DropDownList!$B$47,CntyQuery!$A$220:$EE$229,AW$1) ->  | AX30: =VLOOKUP(DropDownList!$B$47,CntyQuery!$A$220:$EE$229,AX$1) ->  | AY30: =VLOOKUP(DropDownList!$B$47,CntyQuery!$A$220:$EE$229,AY$1) ->  | AZ30: =VLOOKUP(DropDownList!$B$47,CntyQuery!$A$220:$EE$229,AZ$1) ->  | BA30: =VLOOKUP(DropDownList!$B$47,CntyQuery!$A$220:$EE$229,BA$1) ->  | BB30: =VLOOKUP(DropDownList!$B$47,CntyQuery!$A$220:$EE$229,BB$1) ->  | BC30: =VLOOKUP(DropDownList!$B$47,CntyQuery!$A$220:$EE$229,BC$1) ->  | BD30: =VLOOKUP(DropDownList!$B$47,CntyQuery!$A$220:$EE$229,BD$1) ->  | BE30: =VLOOKUP(DropDownList!$B$47,CntyQuery!$A$220:$EE$229,BE$1) ->  | BF30: =VLOOKUP(DropDownList!$B$47,CntyQuery!$A$220:$EE$229,BF$1) ->  | BG30: =VLOOKUP(DropDownList!$B$47,CntyQuery!$A$220:$EE$229,BG$1) ->  | BH30: =VLOOKUP(DropDownList!$B$47,CntyQuery!$A$220:$EE$229,BH$1) ->  | BI30: =VLOOKUP(DropDownList!$B$47,CntyQuery!$A$220:$EE$229,BI$1) ->  | BJ30: =VLOOKUP(DropDownList!$B$47,CntyQuery!$A$220:$EE$229,BJ$1) ->  | BK30: =VLOOKUP(DropDownList!$B$47,CntyQuery!$A$220:$EE$229,BK$1) ->  | BL30: =VLOOKUP(DropDownList!$B$47,CntyQuery!$A$220:$EE$229,BL$1) ->  | BM30: =VLOOKUP(DropDownList!$B$47,CntyQuery!$A$220:$EE$229,BM$1) ->  | BN30: =VLOOKUP(DropDownList!$B$47,CntyQuery!$A$220:$EE$229,BN$1) ->  | BO30: =VLOOKUP(DropDownList!$B$47,CntyQuery!$A$220:$EE$229,BO$1) ->  | BP30: =VLOOKUP(DropDownList!$B$47,CntyQuery!$A$220:$EE$229,BP$1) ->  | BQ30: =VLOOKUP(DropDownList!$B$47,CntyQuery!$A$220:$EE$229,BQ$1) ->  | BR30: =VLOOKUP(DropDownList!$B$47,CntyQuery!$A$220:$EE$229,BR$1) ->  | BS30: =VLOOKUP(DropDownList!$B$47,CntyQuery!$A$220:$EE$229,BS$1) ->  | BT30: =VLOOKUP(DropDownList!$B$47,CntyQuery!$A$220:$EE$229,BT$1) ->  | BU30: =VLOOKUP(DropDownList!$B$47,CntyQuery!$A$220:$EE$229,BU$1) ->  | BV30: =VLOOKUP(DropDownList!$B$47,CntyQuery!$A$220:$EE$229,BV$1) ->  | BW30: =VLOOKUP(DropDownList!$B$47,CntyQuery!$A$220:$EE$229,BW$1) ->  | BX30: =VLOOKUP(DropDownList!$B$47,CntyQuery!$A$220:$EE$229,BX$1) ->  | BY30: =VLOOKUP(DropDownList!$B$47,CntyQuery!$A$220:$EE$229,BY$1) ->  | BZ30: =VLOOKUP(DropDownList!$B$47,CntyQuery!$A$220:$EE$229,BZ$1) ->  | CA30: =VLOOKUP(DropDownList!$B$47,CntyQuery!$A$220:$EE$229,CA$1) ->  | CB30: =VLOOKUP(DropDownList!$B$47,CntyQuery!$A$220:$EE$229,CB$1) ->  | CC30: =VLOOKUP(DropDownList!$B$47,CntyQuery!$A$220:$EE$229,CC$1) ->  | CD30: =VLOOKUP(DropDownList!$B$47,CntyQuery!$A$220:$EE$229,CD$1) ->  | CE30: =VLOOKUP(DropDownList!$B$47,CntyQuery!$A$220:$EE$229,CE$1) ->  | CF30: =VLOOKUP(DropDownList!$B$47,CntyQuery!$A$220:$EE$229,CF$1) ->  | CG30: =VLOOKUP(DropDownList!$B$47,CntyQuery!$A$220:$EE$229,CG$1) ->  | CH30: =VLOOKUP(DropDownList!$B$47,CntyQuery!$A$220:$EE$229,CH$1) ->  | CI30: =VLOOKUP(DropDownList!$B$47,CntyQuery!$A$220:$EE$229,CI$1) ->  | CJ30: =VLOOKUP(DropDownList!$B$47,CntyQuery!$A$220:$EE$229,CJ$1) ->  | CK30: =VLOOKUP(DropDownList!$B$47,CntyQuery!$A$220:$EE$229,CK$1) ->  | CL30: =VLOOKUP(DropDownList!$B$47,CntyQuery!$A$220:$EE$229,CL$1) ->  | CM30: =VLOOKUP(DropDownList!$B$47,CntyQuery!$A$220:$EE$229,CM$1) ->  | CN30: =VLOOKUP(DropDownList!$B$47,CntyQuery!$A$220:$EE$229,CN$1) ->  | CO30: =VLOOKUP(DropDownList!$B$47,CntyQuery!$A$220:$EE$229,CO$1) ->  | CP30: =VLOOKUP(DropDownList!$B$47,CntyQuery!$A$220:$EE$229,CP$1) ->  | CQ30: =VLOOKUP(DropDownList!$B$47,CntyQuery!$A$220:$EE$229,CQ$1) ->  | CR30: =VLOOKUP(DropDownList!$B$47,CntyQuery!$A$220:$EE$229,CR$1) ->  | CS30: =VLOOKUP(DropDownList!$B$47,CntyQuery!$A$220:$EE$229,CS$1) ->  | CT30: =VLOOKUP(DropDownList!$B$47,CntyQuery!$A$220:$EE$229,CT$1) ->  | CU30: =VLOOKUP(DropDownList!$B$47,CntyQuery!$A$220:$EE$229,CU$1) ->  | CV30: =VLOOKUP(DropDownList!$B$47,CntyQuery!$A$220:$EE$229,CV$1) ->  | CW30: =VLOOKUP(DropDownList!$B$47,CntyQuery!$A$220:$EE$229,CW$1) ->  | CX30: =VLOOKUP(DropDownList!$B$47,CntyQuery!$A$220:$EE$229,CX$1) ->  | CY30: =VLOOKUP(DropDownList!$B$47,CntyQuery!$A$220:$EE$229,CY$1) ->  | CZ30: =VLOOKUP(DropDownList!$B$47,CntyQuery!$A$220:$EE$229,CZ$1) ->  | DA30: =VLOOKUP(DropDownList!$B$47,CntyQuery!$A$220:$EE$229,DA$1) ->  | DB30: =VLOOKUP(DropDownList!$B$47,CntyQuery!$A$220:$EE$229,DB$1) ->  | DC30: =VLOOKUP(DropDownList!$B$47,CntyQuery!$A$220:$EE$229,DC$1) ->  | DD30: =VLOOKUP(DropDownList!$B$47,CntyQuery!$A$220:$EE$229,DD$1) ->  | DE30: =VLOOKUP(DropDownList!$B$47,CntyQuery!$A$220:$EE$229,DE$1) ->  | DF30: =VLOOKUP(DropDownList!$B$47,CntyQuery!$A$220:$EE$229,DF$1) ->  | DG30: =VLOOKUP(DropDownList!$B$47,CntyQuery!$A$220:$EE$229,DG$1) ->  | DH30: =VLOOKUP(DropDownList!$B$47,CntyQuery!$A$220:$EE$229,DH$1) ->  | DI30: =VLOOKUP(DropDownList!$B$47,CntyQuery!$A$220:$EE$229,DI$1) ->  | DJ30: =VLOOKUP(DropDownList!$B$47,CntyQuery!$A$220:$EE$229,DJ$1) ->  | DK30: =VLOOKUP(DropDownList!$B$47,CntyQuery!$A$220:$EE$229,DK$1) ->  | DL30: =VLOOKUP(DropDownList!$B$47,CntyQuery!$A$220:$EE$229,DL$1) ->  | DM30: =VLOOKUP(DropDownList!$B$47,CntyQuery!$A$220:$EE$229,DM$1) ->  | DN30: =VLOOKUP(DropDownList!$B$47,CntyQuery!$A$220:$EE$229,DN$1) ->  | DO30: =VLOOKUP(DropDownList!$B$47,CntyQuery!$A$220:$EE$229,DO$1) ->  | DP30: =VLOOKUP(DropDownList!$B$47,CntyQuery!$A$220:$EE$229,DP$1) ->  | DQ30: =VLOOKUP(DropDownList!$B$47,CntyQuery!$A$220:$EE$229,DQ$1) ->  | DR30: =VLOOKUP(DropDownList!$B$47,CntyQuery!$A$220:$EE$229,DR$1) ->  | DS30: =VLOOKUP(DropDownList!$B$47,CntyQuery!$A$220:$EE$229,DS$1) ->  | DT30: =VLOOKUP(DropDownList!$B$47,CntyQuery!$A$220:$EE$229,DT$1) ->  | DU30: =VLOOKUP(DropDownList!$B$47,CntyQuery!$A$220:$EE$229,DU$1) ->  | DV30: =VLOOKUP(DropDownList!$B$47,CntyQuery!$A$220:$EE$229,DV$1) ->  | DW30: =VLOOKUP(DropDownList!$B$47,CntyQuery!$A$220:$EE$229,DW$1) ->  | DX30: =VLOOKUP(DropDownList!$B$47,CntyQuery!$A$220:$EE$229,DX$1) ->  | DY30: =VLOOKUP(DropDownList!$B$47,CntyQuery!$A$220:$EE$229,DY$1) ->  | DZ30: =VLOOKUP(DropDownList!$B$47,CntyQuery!$A$220:$EE$229,DZ$1) ->  | EA30: =VLOOKUP(DropDownList!$B$47,CntyQuery!$A$220:$EE$229,EA$1) ->  | EB30: =VLOOKUP(DropDownList!$B$47,CntyQuery!$A$220:$EE$229,EB$1) ->  | EC30: =VLOOKUP(DropDownList!$B$47,CntyQuery!$A$220:$EE$229,EC$1) ->  | ED30: =VLOOKUP(DropDownList!$B$47,CntyQuery!$A$220:$EE$229,ED$1) -> 
M32: =IF((CntyDataLink!$BL$25)="n",NA(),IF(VALUE(CntyDataLink!$BL$25)="",NA(),VALUE(CntyDataLink!$BL$25))) -> 497.1
A33: Census 2000 - Query Name: TownAllQuery3 | B33: 2 | C33: =B33+1 -> 3 | D33: =C33+1 -> 4 | E33: 5 | F33: 6 | G33: 7 | H33: 8 | I33: 9 | J33: 10 | K33: 11 | L33: 12 | M33: 13 | N33: 14 | O33: 15 | P33: 16 | Q33: 17 | R33: 18 | S33: 19 | T33: 20 | U33: 21 | V33: 22 | W33: 23 | X33: 24 | Y33: 25 | Z33: 26 | AA33: 27 | AB33: 28 | AC33: 29 | AD33: 30 | AE33: 31 | AF33: 32 | AG33: 33 | AH33: 34 | AI33: 35 | AJ33: 36 | AK33: 37 | AL33: 38 | AM33: 39 | AN33: 40 | AO33: 41 | AP33: 42 | AQ33: 43 | AR33: 44 | AS33: 45 | AT33: 46 | AU33: 47 | AV33: 48 | AW33: 49 | AX33: 50 | AY33: 51 | AZ33: 52 | BA33: 53 | BB33: 54 | BC33: 55 | BD33: 56 | BE33: 57 | BF33: 58 | BG33: 59 | BH33: 60 | BI33: 61 | BJ33: 62 | BK33: 63 | BL33: 64 | BM33: 65 | BN33: 66 | BO33: 67 | BP33: =BO33+1 -> 68 | BQ33: 69 | BR33: 70 | BS33: 71 | BT33: 72 | BU33: 73 | BV33: 74 | BW33: 75 | BX33: 76 | BY33: 77 | BZ33: 78 | CA33: 79 | CB33: 80 | CC33: 81 | CD33: 82 | CE33: 83 | CF33: 84 | CG33: 85 | CH33: 86 | CI33: 87 | CJ33: 88 | CK33: 89 | CL33: 90 | CM33: 91 | CN33: 92 | CO33: 93 | CP33: 94 | CQ33: 95 | CR33: 96 | CS33: 97 | CT33: 98 | CU33: 99 | CV33: 100 | CW33: 101 | CX33: 102
A34: NAME | B34: COUNTY | C34: LOGRECNO | D34: COUSUB | E34: TRACT | F34: AREALAND | G34: AREAWATR | H34: POP100 | I34: HU100 | J34: 2000Population | K34: PopOfOneRace | L34: PopWhite | M34: PopBlack | N34: PopAmIndian | O34: PopAsian | P34: PopHawaiian | Q34: PopOtherRace | R34: Pop2orMoreRaces | S34: PopHispanicLatino | T34: PopNotHispanicLatino | U34: PopMale | V34: PopMale<15 | W34: PopMale15to24 | X34: PopMale25to34 | Y34: PopMale35to44 | Z34: PopMale45to54 | AA34: PopMale55to64 | AB34: PopMale65to74 | AC34: PopMale75to84 | AD34: PopMale85andOver | AE34: PopFemale | AF34: PopFemale<15 | AG34: PopFemale15to24 | AH34: PopFemale25to34 | AI34: PopFemale35t44 | AJ34: PopFemale45to54 | AK34: PopFemale55to64 | AL34: PopFemale65to74 | AM34: PopFemale75to84 | AN34: PopFemale85andOver | AO34: Households2000 | AP34: PopInHH | AQ34: AvgHHSize | AR34: HHs1Person | AS34: HHs2orMorePerson | AT34: HHsFamily | AU34: HHMarriedCoupleFam | AV34: HHSingleParentFam | AW34: HHsNonFamily | AX34: Families | AY34: PopInFam | AZ34: AvgFamSize | BA34: TotHsUnits | BB34: OccHsUnits | BC34: OwnerOccHU | BD34: RenterOccHU | BE34: VctHsUnits | BF34: VctHUForRent | BG34: VctHUForSale | BH34: VctHUSeasonal | BI34: PopInOccHU | BJ34: PopInOwnOccHU | BK34: PopInRntOccHU | BL34: AvgHHSize2 | BM34: AvgHHSizOwnOcc | BN34: AvgHHSizRntOcc | BO34: OwnOccWhtHsHldr | BP34: OwnOccBlkHsHldr | BQ34: OwnOccAmIHsHldr | BR34: OwnOccAsnHsHldr | BS34: OwnOccPIsHsHldr | BT34: OwnOccORHsHldr | BU34: OwnOcc2RcHsHldr | BV34: RntOccWhtHsHldr | BW34: RntOccBlkHsHldr | BX34: RntOccAmIHsHldr | BY34: RntOccAsnHsHldr | BZ34: RntOccPIsHsHldr | CA34: RntOccORHsHldr | CB34: RntOcc2RcHsHldr | CC34: OwnOccHH15to24 | CD34: OwnOccHH25to34 | CE34: OwnOccHH35to44 | CF34: OwnOccHH45to54 | CG34: OwnOccHH55to64 | CH34: OwnOccHH65to74 | CI34: OwnOccHH75to84 | CJ34: OwnOccHH85Over | CK34: RntOccHH15to24 | CL34: RntOccHH25to34 | CM34: RntOccHH35to44 | CN34: RntOccHH45to54 | CO34: RntOccHH55to64 | CP34: RntOccHH65to74 | CQ34: RntOccHH75to84 | CR34: RntOccHH85Over | CS34: P27TotalPop | CT34: P27PopInHseHlds | CU34: P27PopInGrpQtrs | CV34: Median Age Total | CW34: Median Age (Male) | CX34: Median Age (Female)
A35: =VLOOKUP(DropDownList!$B$47,CntyQryCensus!$A$4:$CX$46,A$1) -> Antrim | B35: =VLOOKUP(DropDownList!$B$47,CntyQryCensus!$A$4:$CX$46,B$1) -> 011 | C35: =VLOOKUP(DropDownList!$B$47,CntyQryCensus!$A$4:$CX$46,C$1) -> 0014508 | D35: =VLOOKUP(DropDownList!$B$47,CntyQryCensus!$A$4:$CX$46,D$1) -> 01700 | E35: =VLOOKUP(DropDownList!$B$47,CntyQryCensus!$A$4:$CX$46,E$1) ->  | F35: =VLOOKUP(DropDownList!$B$47,CntyQryCensus!$A$4:$CX$46,F$1) -> 92390238 | G35: =VLOOKUP(DropDownList!$B$47,CntyQryCensus!$A$4:$CX$46,G$1) -> 2156139 | H35: =VLOOKUP(DropDownList!$B$47,CntyQryCensus!$A$4:$CX$46,H$1) -> 2449 | I35: =VLOOKUP(DropDownList!$B$47,CntyQryCensus!$A$4:$CX$46,I$1) -> 1160 | J35: =VLOOKUP(DropDownList!$B$47,CntyQryCensus!$A$4:$CX$46,J$1) -> 2449 | K35: =VLOOKUP(DropDownList!$B$47,CntyQryCensus!$A$4:$CX$46,K$1) -> 2426 | L35: =VLOOKUP(DropDownList!$B$47,CntyQryCensus!$A$4:$CX$46,L$1) -> 2401 | M35: =VLOOKUP(DropDownList!$B$47,CntyQryCensus!$A$4:$CX$46,M$1) -> 6 | N35: =VLOOKUP(DropDownList!$B$47,CntyQryCensus!$A$4:$CX$46,N$1) -> 9 | O35: =VLOOKUP(DropDownList!$B$47,CntyQryCensus!$A$4:$CX$46,O$1) -> 9 | P35: =VLOOKUP(DropDownList!$B$47,CntyQryCensus!$A$4:$CX$46,P$1) -> 0 | Q35: =VLOOKUP(DropDownList!$B$47,CntyQryCensus!$A$4:$CX$46,Q$1) -> 1 | R35: =VLOOKUP(DropDownList!$B$47,CntyQryCensus!$A$4:$CX$46,R$1) -> 23 | S35: =VLOOKUP(DropDownList!$B$47,CntyQryCensus!$A$4:$CX$46,S$1) -> 19 | T35: =VLOOKUP(DropDownList!$B$47,CntyQryCensus!$A$4:$CX$46,T$1) -> 2430 | U35: =VLOOKUP(DropDownList!$B$47,CntyQryCensus!$A$4:$CX$46,U$1) -> 1215 | V35: =VLOOKUP(DropDownList!$B$47,CntyQryCensus!$A$4:$CX$46,V$1) -> 309 | W35: =VLOOKUP(DropDownList!$B$47,CntyQryCensus!$A$4:$CX$46,W$1) -> 141 | X35: =VLOOKUP(DropDownList!$B$47,CntyQryCensus!$A$4:$CX$46,X$1) -> 119 | Y35: =VLOOKUP(DropDownList!$B$47,CntyQryCensus!$A$4:$CX$46,Y$1) -> 214 | Z35: =VLOOKUP(DropDownList!$B$47,CntyQryCensus!$A$4:$CX$46,Z$1) -> 185 | AA35: =VLOOKUP(DropDownList!$B$47,CntyQryCensus!$A$4:$CX$46,AA$1) -> 123 | AB35: =VLOOKUP(DropDownList!$B$47,CntyQryCensus!$A$4:$CX$46,AB$1) -> 77 | AC35: =VLOOKUP(DropDownList!$B$47,CntyQryCensus!$A$4:$CX$46,AC$1) -> 40 | AD35: =VLOOKUP(DropDownList!$B$47,CntyQryCensus!$A$4:$CX$46,AD$1) -> 7 | AE35: =VLOOKUP(DropDownList!$B$47,CntyQryCensus!$A$4:$CX$46,AE$1) -> 1234 | AF35: =VLOOKUP(DropDownList!$B$47,CntyQryCensus!$A$4:$CX$46,AF$1) -> 285 | AG35: =VLOOKUP(DropDownList!$B$47,CntyQryCensus!$A$4:$CX$46,AG$1) -> 129 | AH35: =VLOOKUP(DropDownList!$B$47,CntyQryCensus!$A$4:$CX$46,AH$1) -> 135 | AI35: =VLOOKUP(DropDownList!$B$47,CntyQryCensus!$A$4:$CX$46,AI$1) -> 222 | AJ35: =VLOOKUP(DropDownList!$B$47,CntyQryCensus!$A$4:$CX$46,AJ$1) -> 198 | AK35: =VLOOKUP(DropDownList!$B$47,CntyQryCensus!$A$4:$CX$46,AK$1) -> 119 | AL35: =VLOOKUP(DropDownList!$B$47,CntyQryCensus!$A$4:$CX$46,AL$1) -> 75 | AM35: =VLOOKUP(DropDownList!$B$47,CntyQryCensus!$A$4:$CX$46,AM$1) -> 53 | AN35: =VLOOKUP(DropDownList!$B$47,CntyQryCensus!$A$4:$CX$46,AN$1) -> 18 | AO35: =VLOOKUP(DropDownList!$B$47,CntyQryCensus!$A$4:$CX$46,AO$1) -> 932 | AP35: =VLOOKUP(DropDownList!$B$47,CntyQryCensus!$A$4:$CX$46,AP$1) -> 2439 | AQ35: =VLOOKUP(DropDownList!$B$47,CntyQryCensus!$A$4:$CX$46,AQ$1) -> 2.62 | AR35: =VLOOKUP(DropDownList!$B$47,CntyQryCensus!$A$4:$CX$46,AR$1) -> 242 | AS35: =VLOOKUP(DropDownList!$B$47,CntyQryCensus!$A$4:$CX$46,AS$1) -> 690 | AT35: =VLOOKUP(DropDownList!$B$47,CntyQryCensus!$A$4:$CX$46,AT$1) -> 624 | AU35: =VLOOKUP(DropDownList!$B$47,CntyQryCensus!$A$4:$CX$46,AU$1) -> 516 | AV35: =VLOOKUP(DropDownList!$B$47,CntyQryCensus!$A$4:$CX$46,AV$1) -> 108 | AW35: =VLOOKUP(DropDownList!$B$47,CntyQryCensus!$A$4:$CX$46,AW$1) -> 66 | AX35: =VLOOKUP(DropDownList!$B$47,CntyQryCensus!$A$4:$CX$46,AX$1) -> 624 | AY35: =VLOOKUP(DropDownList!$B$47,CntyQryCensus!$A$4:$CX$46,AY$1) -> 1978 | AZ35: =VLOOKUP(DropDownList!$B$47,CntyQryCensus!$A$4:$CX$46,AZ$1) -> 3.17 | BA35: =VLOOKUP(DropDownList!$B$47,CntyQryCensus!$A$4:$CX$46,BA$1) -> 1160 | BB35: =VLOOKUP(DropDownList!$B$47,CntyQryCensus!$A$4:$CX$46,BB$1) -> 932 | BC35: =VLOOKUP(DropDownList!$B$47,CntyQryCensus!$A$4:$CX$46,BC$1) -> 690 | BD35: =VLOOKUP(DropDownList!$B$47,CntyQryCensus!$A$4:$CX$46,BD$1) -> 242 | BE35: =VLOOKUP(DropDownList!$B$47,CntyQryCensus!$A$4:$CX$46,BE$1) -> 228 | BF35: =VLOOKUP(DropDownList!$B$47,CntyQryCensus!$A$4:$CX$46,BF$1) -> 4 | BG35: =VLOOKUP(DropDownList!$B$47,CntyQryCensus!$A$4:$CX$46,BG$1) -> 11 | BH35: =VLOOKUP(DropDownList!$B$47,CntyQryCensus!$A$4:$CX$46,BH$1) -> 207 | BI35: =VLOOKUP(DropDownList!$B$47,CntyQryCensus!$A$4:$CX$46,BI$1) -> 2439 | BJ35: =VLOOKUP(DropDownList!$B$47,CntyQryCensus!$A$4:$CX$46,BJ$1) -> 1877 | BK35: =VLOOKUP(DropDownList!$B$47,CntyQryCensus!$A$4:$CX$46,BK$1) -> 562 | BL35: =VLOOKUP(DropDownList!$B$47,CntyQryCensus!$A$4:$CX$46,BL$1) -> 2.62 | BM35: =VLOOKUP(DropDownList!$B$47,CntyQryCensus!$A$4:$CX$46,BM$1) -> 2.72 | BN35: =VLOOKUP(DropDownList!$B$47,CntyQryCensus!$A$4:$CX$46,BN$1) -> 2.32 | BO35: =VLOOKUP(DropDownList!$B$47,CntyQryCensus!$A$4:$CX$46,BO$1) -> 687 | BP35: =VLOOKUP(DropDownList!$B$47,CntyQryCensus!$A$4:$CX$46,BP$1) -> 1 | BQ35: =VLOOKUP(DropDownList!$B$47,CntyQryCensus!$A$4:$CX$46,BQ$1) -> 1 | BR35: =VLOOKUP(DropDownList!$B$47,CntyQryCensus!$A$4:$CX$46,BR$1) -> 1 | BS35: =VLOOKUP(DropDownList!$B$47,CntyQryCensus!$A$4:$CX$46,BS$1) -> 0 | BT35: =VLOOKUP(DropDownList!$B$47,CntyQryCensus!$A$4:$CX$46,BT$1) -> 0 | BU35: =VLOOKUP(DropDownList!$B$47,CntyQryCensus!$A$4:$CX$46,BU$1) -> 0 | BV35: =VLOOKUP(DropDownList!$B$47,CntyQryCensus!$A$4:$CX$46,BV$1) -> 235 | BW35: =VLOOKUP(DropDownList!$B$47,CntyQryCensus!$A$4:$CX$46,BW$1) -> 2 | BX35: =VLOOKUP(DropDownList!$B$47,CntyQryCensus!$A$4:$CX$46,BX$1) -> 1 | BY35: =VLOOKUP(DropDownList!$B$47,CntyQryCensus!$A$4:$CX$46,BY$1) -> 0 | BZ35: =VLOOKUP(DropDownList!$B$47,CntyQryCensus!$A$4:$CX$46,BZ$1) -> 0 | CA35: =VLOOKUP(DropDownList!$B$47,CntyQryCensus!$A$4:$CX$46,CA$1) -> 0 | CB35: =VLOOKUP(DropDownList!$B$47,CntyQryCensus!$A$4:$CX$46,CB$1) -> 4 | CC35: =VLOOKUP(DropDownList!$B$47,CntyQryCensus!$A$4:$CX$46,CC$1) -> 11 | CD35: =VLOOKUP(DropDownList!$B$47,CntyQryCensus!$A$4:$CX$46,CD$1) -> 53 | CE35: =VLOOKUP(DropDownList!$B$47,CntyQryCensus!$A$4:$CX$46,CE$1) -> 187 | CF35: =VLOOKUP(DropDownList!$B$47,CntyQryCensus!$A$4:$CX$46,CF$1) -> 179 | CG35: =VLOOKUP(DropDownList!$B$47,CntyQryCensus!$A$4:$CX$46,CG$1) -> 127 | CH35: =VLOOKUP(DropDownList!$B$47,CntyQryCensus!$A$4:$CX$46,CH$1) -> 79 | CI35: =VLOOKUP(DropDownList!$B$47,CntyQryCensus!$A$4:$CX$46,CI$1) -> 48 | CJ35: =VLOOKUP(DropDownList!$B$47,CntyQryCensus!$A$4:$CX$46,CJ$1) -> 6 | CK35: =VLOOKUP(DropDownList!$B$47,CntyQryCensus!$A$4:$CX$46,CK$1) -> 25 | CL35: =VLOOKUP(DropDownList!$B$47,CntyQryCensus!$A$4:$CX$46,CL$1) -> 54 | CM35: =VLOOKUP(DropDownList!$B$47,CntyQryCensus!$A$4:$CX$46,CM$1) -> 57 | CN35: =VLOOKUP(DropDownList!$B$47,CntyQryCensus!$A$4:$CX$46,CN$1) -> 42 | CO35: =VLOOKUP(DropDownList!$B$47,CntyQryCensus!$A$4:$CX$46,CO$1) -> 16 | CP35: =VLOOKUP(DropDownList!$B$47,CntyQryCensus!$A$4:$CX$46,CP$1) -> 11 | CQ35: =VLOOKUP(DropDownList!$B$47,CntyQryCensus!$A$4:$CX$46,CQ$1) -> 24 | CR35: =VLOOKUP(DropDownList!$B$47,CntyQryCensus!$A$4:$CX$46,CR$1) -> 13 | CS35: =VLOOKUP(DropDownList!$B$47,CntyQryCensus!$A$4:$CX$46,CS$1) -> 2449 | CT35: =VLOOKUP(DropDownList!$B$47,CntyQryCensus!$A$4:$CX$46,CT$1) -> 2439 | CU35: =VLOOKUP(DropDownList!$B$47,CntyQryCensus!$A$4:$CX$46,CU$1) -> 10 | CV35: =VLOOKUP(DropDownList!$B$47,CntyQryCensus!$A$4:$CX$46,CV$1) -> 37.4 | CW35: =VLOOKUP(DropDownList!$B$47,CntyQryCensus!$A$4:$CX$46,CW$1) -> 36.8 | CX35: =VLOOKUP(DropDownList!$B$47,CntyQryCensus!$A$4:$CX$46,CX$1) -> 37.8
A38: Census 2000 DemoProfile Sample Data Tables 2&3 - DPTab23TownQry
A39: NAME | B39: COUSUB | C39: AREANAME | D39: PopInSchool | E39: Preschool | F39: Kindergarten | G39: Elementary | H39: HighSchool | I39: College | J39: Pop25andOver | K39: HighSchoolGrad | L39: SomeCollege | M39: AssocDegree | N39: BachelDegree | O39: GradDegree | P39: HSGradorHigher | Q39: CollegeGradorHigher | R39: Pop5to20yrs | S39: Pop5to20wDis | T39: Pop21to64 | U39: Pop21to64wDis | V39: Pop65over | W39: Pop65overwDis | X39: Pop5yrsOver | Y39: SameHUin95 | Z39: DiffHUinUSin95 | AA39: HUinSameCountyin95 | AB39: HUinSameStatein95 | AC39: TotalPop | AD39: NativePop | AE39: NatPopBornUS | AF39: NatPopBornInStatRes | AG39: NatPopBornDiffState | AH39: NatPopBornOutUS | AI39: FornBornPop | AJ39: FornPopEnt90to00 | AK39: FornPopNatCit | AL39: FornPopNotCit | AM39: Households | AN39: HHIncLessThn10k | AO39: HHInc10to15K | AP39: HHInc15to25K | AQ39: HHInc25to35K | AR39: HHInc35to50K | AS39: HHInc50to75K | AT39: HHInc75to100K | AU39: HHInc100to150K | AV39: HHInc150to200K | AW39: HHIncOver200K | AX39: MedianHHInc | AY39: HHwithPubAssistInc | AZ39: MeanPubAssist | BA39: FamilyHH | BB39: FHHIncLessThn10k | BC39: FHHInc10to15K | BD39: FHHInc15to25K | BE39: FHHInc25to35K | BF39: FHHInc35to50K | BG39: FHHInc50to75K | BH39: FHHInc75to100K | BI39: FHHInc100to150K | BJ39: FHHInc150to200K | BK39: FHHIncOver200K | BL39: MedianFHHInc | BM39: PerCapitaInc | BN39: PovStatFamilies | BO39: PovStatFHHwChilUnd18 | BP39: PovStatFHHwChilUnd5 | BQ39: PovStFmalHH | BR39: DP3088 | BS39: DP3089 | BT39: PovStatIndiv | BU39: PovStatIndiv18yrOver | BV39: PovStatIndiv65yrOver | BW39: DP3093 | BX39: DP3094 | BY39: DP3095
A40: =VLOOKUP(DropDownList!$B$47,CntyQryCensus!$A$54:$BY$96,A$1) -> Antrim | B40: =VLOOKUP(DropDownList!$B$47,CntyQryCensus!$A$54:$BY$96,B$1) -> 01700 | C40: =VLOOKUP(DropDownList!$B$47,CntyQryCensus!$A$54:$BY$96,C$1) -> Antrim town, Hillsborough County, New Hampshire | D40: =VLOOKUP(DropDownList!$B$47,CntyQryCensus!$A$54:$BY$96,D$1) -> 698 | E40: =VLOOKUP(DropDownList!$B$47,CntyQryCensus!$A$54:$BY$96,E$1) -> 36 | F40: =VLOOKUP(DropDownList!$B$47,CntyQryCensus!$A$54:$BY$96,F$1) -> 16 | G40: =VLOOKUP(DropDownList!$B$47,CntyQryCensus!$A$54:$BY$96,G$1) -> 428 | H40: =VLOOKUP(DropDownList!$B$47,CntyQryCensus!$A$54:$BY$96,H$1) -> 172 | I40: =VLOOKUP(DropDownList!$B$47,CntyQryCensus!$A$54:$BY$96,I$1) -> 46 | J40: =VLOOKUP(DropDownList!$B$47,CntyQryCensus!$A$54:$BY$96,J$1) -> 1592 | K40: =VLOOKUP(DropDownList!$B$47,CntyQryCensus!$A$54:$BY$96,K$1) -> 560 | L40: =VLOOKUP(DropDownList!$B$47,CntyQryCensus!$A$54:$BY$96,L$1) -> 314 | M40: =VLOOKUP(DropDownList!$B$47,CntyQryCensus!$A$54:$BY$96,M$1) -> 106 | N40: =VLOOKUP(DropDownList!$B$47,CntyQryCensus!$A$54:$BY$96,N$1) -> 230 | O40: =VLOOKUP(DropDownList!$B$47,CntyQryCensus!$A$54:$BY$96,O$1) -> 141 | P40: =VLOOKUP(DropDownList!$B$47,CntyQryCensus!$A$54:$BY$96,P$1) -> 1351 | Q40: =VLOOKUP(DropDownList!$B$47,CntyQryCensus!$A$54:$BY$96,Q$1) -> 371 | R40: =VLOOKUP(DropDownList!$B$47,CntyQryCensus!$A$54:$BY$96,R$1) -> 650 | S40: =VLOOKUP(DropDownList!$B$47,CntyQryCensus!$A$54:$BY$96,S$1) -> 15 | T40: =VLOOKUP(DropDownList!$B$47,CntyQryCensus!$A$54:$BY$96,T$1) -> 1399 | U40: =VLOOKUP(DropDownList!$B$47,CntyQryCensus!$A$54:$BY$96,U$1) -> 174 | V40: =VLOOKUP(DropDownList!$B$47,CntyQryCensus!$A$54:$BY$96,V$1) -> 268 | W40: =VLOOKUP(DropDownList!$B$47,CntyQryCensus!$A$54:$BY$96,W$1) -> 69 | X40: =VLOOKUP(DropDownList!$B$47,CntyQryCensus!$A$54:$BY$96,X$1) -> 2322 | Y40: =VLOOKUP(DropDownList!$B$47,CntyQryCensus!$A$54:$BY$96,Y$1) -> 1426 | Z40: =VLOOKUP(DropDownList!$B$47,CntyQryCensus!$A$54:$BY$96,Z$1) -> 892 | AA40: =VLOOKUP(DropDownList!$B$47,CntyQryCensus!$A$54:$BY$96,AA$1) -> 628 | AB40: =VLOOKUP(DropDownList!$B$47,CntyQryCensus!$A$54:$BY$96,AB$1) -> 264 | AC40: =VLOOKUP(DropDownList!$B$47,CntyQryCensus!$A$54:$BY$96,AC$1) -> 2449 | AD40: =VLOOKUP(DropDownList!$B$47,CntyQryCensus!$A$54:$BY$96,AD$1) -> 2412 | AE40: =VLOOKUP(DropDownList!$B$47,CntyQryCensus!$A$54:$BY$96,AE$1) -> 2400 | AF40: =VLOOKUP(DropDownList!$B$47,CntyQryCensus!$A$54:$BY$96,AF$1) -> 1239 | AG40: =VLOOKUP(DropDownList!$B$47,CntyQryCensus!$A$54:$BY$96,AG$1) -> 1161 | AH40: =VLOOKUP(DropDownList!$B$47,CntyQryCensus!$A$54:$BY$96,AH$1) -> 12 | AI40: =VLOOKUP(DropDownList!$B$47,CntyQryCensus!$A$54:$BY$96,AI$1) -> 37 | AJ40: =VLOOKUP(DropDownList!$B$47,CntyQryCensus!$A$54:$BY$96,AJ$1) -> 4 | AK40: =VLOOKUP(DropDownList!$B$47,CntyQryCensus!$A$54:$BY$96,AK$1) -> 25 | AL40: =VLOOKUP(DropDownList!$B$47,CntyQryCensus!$A$54:$BY$96,AL$1) -> 12 | AM40: =VLOOKUP(DropDownList!$B$47,CntyQryCensus!$A$54:$BY$96,AM$1) -> 925 | AN40: =VLOOKUP(DropDownList!$B$47,CntyQryCensus!$A$54:$BY$96,AN$1) -> 119 | AO40: =VLOOKUP(DropDownList!$B$47,CntyQryCensus!$A$54:$BY$96,AO$1) -> 56 | AP40: =VLOOKUP(DropDownList!$B$47,CntyQryCensus!$A$54:$BY$96,AP$1) -> 79 | AQ40: =VLOOKUP(DropDownList!$B$47,CntyQryCensus!$A$54:$BY$96,AQ$1) -> 119 | AR40: =VLOOKUP(DropDownList!$B$47,CntyQryCensus!$A$54:$BY$96,AR$1) -> 135 | AS40: =VLOOKUP(DropDownList!$B$47,CntyQryCensus!$A$54:$BY$96,AS$1) -> 250 | AT40: =VLOOKUP(DropDownList!$B$47,CntyQryCensus!$A$54:$BY$96,AT$1) -> 88 | AU40: =VLOOKUP(DropDownList!$B$47,CntyQryCensus!$A$54:$BY$96,AU$1) -> 58 | AV40: =VLOOKUP(DropDownList!$B$47,CntyQryCensus!$A$54:$BY$96,AV$1) -> 10 | AW40: =VLOOKUP(DropDownList!$B$47,CntyQryCensus!$A$54:$BY$96,AW$1) -> 11 | AX40: =VLOOKUP(DropDownList!$B$47,CntyQryCensus!$A$54:$BY$96,AX$1) -> 45677 | AY40: =VLOOKUP(DropDownList!$B$47,CntyQryCensus!$A$54:$BY$96,AY$1) -> 41 | AZ40: =VLOOKUP(DropDownList!$B$47,CntyQryCensus!$A$54:$BY$96,AZ$1) -> 2890 | BA40: =VLOOKUP(DropDownList!$B$47,CntyQryCensus!$A$54:$BY$96,BA$1) -> 629 | BB40: =VLOOKUP(DropDownList!$B$47,CntyQryCensus!$A$54:$BY$96,BB$1) -> 38 | BC40: =VLOOKUP(DropDownList!$B$47,CntyQryCensus!$A$54:$BY$96,BC$1) -> 18 | BD40: =VLOOKUP(DropDownList!$B$47,CntyQryCensus!$A$54:$BY$96,BD$1) -> 53 | BE40: =VLOOKUP(DropDownList!$B$47,CntyQryCensus!$A$54:$BY$96,BE$1) -> 72 | BF40: =VLOOKUP(DropDownList!$B$47,CntyQryCensus!$A$54:$BY$96,BF$1) -> 127 | BG40: =VLOOKUP(DropDownList!$B$47,CntyQryCensus!$A$54:$BY$96,BG$1) -> 181 | BH40: =VLOOKUP(DropDownList!$B$47,CntyQryCensus!$A$54:$BY$96,BH$1) -> 74 | BI40: =VLOOKUP(DropDownList!$B$47,CntyQryCensus!$A$54:$BY$96,BI$1) -> 45 | BJ40: =VLOOKUP(DropDownList!$B$47,CntyQryCensus!$A$54:$BY$96,BJ$1) -> 10 | BK40: =VLOOKUP(DropDownList!$B$47,CntyQryCensus!$A$54:$BY$96,BK$1) -> 11 | BL40: =VLOOKUP(DropDownList!$B$47,CntyQryCensus!$A$54:$BY$96,BL$1) -> 50650 | BM40: =VLOOKUP(DropDownList!$B$47,CntyQryCensus!$A$54:$BY$96,BM$1) -> 18978 | BN40: =VLOOKUP(DropDownList!$B$47,CntyQryCensus!$A$54:$BY$96,BN$1) -> 52 | BO40: =VLOOKUP(DropDownList!$B$47,CntyQryCensus!$A$54:$BY$96,BO$1) -> 30 | BP40: =VLOOKUP(DropDownList!$B$47,CntyQryCensus!$A$54:$BY$96,BP$1) -> 30 | BQ40: =VLOOKUP(DropDownList!$B$47,CntyQryCensus!$A$54:$BY$96,BQ$1) -> 22 | BR40: =VLOOKUP(DropDownList!$B$47,CntyQryCensus!$A$54:$BY$96,BR$1) -> 22 | BS40: =VLOOKUP(DropDownList!$B$47,CntyQryCensus!$A$54:$BY$96,BS$1) -> 22 | BT40: =VLOOKUP(DropDownList!$B$47,CntyQryCensus!$A$54:$BY$96,BT$1) -> 277 | BU40: =VLOOKUP(DropDownList!$B$47,CntyQryCensus!$A$54:$BY$96,BU$1) -> 174 | BV40: =VLOOKUP(DropDownList!$B$47,CntyQryCensus!$A$54:$BY$96,BV$1) -> 43 | BW40: =VLOOKUP(DropDownList!$B$47,CntyQryCensus!$A$54:$BY$96,BW$1) -> 96 | BX40: =VLOOKUP(DropDownList!$B$47,CntyQryCensus!$A$54:$BY$96,BX$1) -> 54 | BY40: =VLOOKUP(DropDownList!$B$47,CntyQryCensus!$A$54:$BY$96,BY$1) -> 98
A43: Census 2000 DemoProfile Sample Data Table 4 - DPTab4TownQry
A44: NAME | B44: COUSUB | C44: TotHousingUnits | D44: 1UnitDet | E44: 1UnitAtt | F44: 2Units | G44: 3to4Units | H44: 5to9Units | I44: 10to19Units | J44: 20orMoreUnits | K44: MobileHomes | L44: BoatRvVan | M44: SingleFamilyUnits | N44: MultiFamUnits | O44: MobileHomeUnits | P44: YearBuilt99to00 | Q44: YearBuilt95to98 | R44: YearBUilt90to94 | S44: YearBuilt80to89 | T44: YearBuilt70to79 | U44: YearBuilt60to69 | V44: YearBuilt40to59 | W44: YearBuilt39orEarlier | X44: Rooms1 | Y44: Rooms2 | Z44: Rooms3 | AA44: Rooms4 | AB44: Rooms5 | AC44: Rooms6 | AD44: Rooms7 | AE44: Rooms8 | AF44: Rooms9orMore | AG44: MedianRooms | AH44: OccHU1 | AI44: YrHHMvdIn99to00 | AJ44: YrHHMvdIn95to98 | AK44: YrHHMvdIn90to94 | AL44: YrHHMvdIn80to89 | AM44: YrHHMvdIn70to79 | AN44: YrHHMvdIn69orBefore | AO44: HeatFuelNatGas | AP44: HeatFuelBotGas | AQ44: HeatFuelElectric | AR44: HeatFuelOil | AS44: HeatFuelCoal | AT44: HeatFuelWood | AU44: HeatFuelSolar | AV44: HeatFuelOther | AW44: HeatFuelNone | AX44: LackCompPlumb | AY44: LackCompKit | AZ44: NoTelephone | BA44: OccHU | BB44: OccPerRm1orLess | BC44: OccPerRm1to1_5 | BD44: OccPerRm1_5orMore | BE44: SpecOwnOccUnits | BF44: Value<50K | BG44: Value50to100K | BH44: Value100to150K | BI44: Value150to200K | BJ44: Value200to300K | BK44: Value300to500K | BL44: Value500Kto1mil | BM44: Value1MilorMore | BN44: MedianValue | BO44: WithMortg | BP44: MnthOwnCst<300 | BQ44: MnthOwnCst300to500 | BR44: MnthOwnCst500to700 | BS44: MnthOwnCst700to1000 | BT44: MnthOwnCst1000to1500 | BU44: MnthOwnCst1500to2000 | BV44: MnthOwnCst2000orMore | BW44: MediMnthOwnCst | BX44: NotMrtg | BY44: NotMrtgMediMnthOwnCst | BZ44: OwnCst%HHInc<15 | CA44: OwnCst%HHInc15to20 | CB44: OwnCst%HHInc20to25 | CC44: OwnCst%HHInc25to30 | CD44: OwnCst%HHInc30to35 | CE44: OwnCst%HHInc35orMor | CF44: NotComputed | CG44: SpecRntOccUnits | CH44: Rnt<200 | CI44: Rnt200to300 | CJ44: Rnt300to500 | CK44: Rnt500to750 | CL44: Rnt750to1000 | CM44: Rnt1000to1500 | CN44: Rnt1500orMore | CO44: NoRent | CP44: MedianRent | CQ44: Rnt%HHInc<15 | CR44: Rnt%HHInc15to20 | CS44: Rnt%HHInc20to25 | CT44: Rnt%HHInc25to30 | CU44: Rnt%HHInc30to35 | CV44: Rnt%HHInc35orMore | CW44: Rnt%NotCompute
A45: =VLOOKUP(DropDownList!$B$47,CntyQryCensus!$A$104:$CX$146,A$1) -> Antrim | B45: =VLOOKUP(DropDownList!$B$47,CntyQryCensus!$A$104:$CX$146,B$1) -> 01700 | C45: =VLOOKUP(DropDownList!$B$47,CntyQryCensus!$A$104:$CX$146,C$1) -> 1160 | D45: =VLOOKUP(DropDownList!$B$47,CntyQryCensus!$A$104:$CX$146,D$1) -> 869 | E45: =VLOOKUP(DropDownList!$B$47,CntyQryCensus!$A$104:$CX$146,E$1) -> 38 | F45: =VLOOKUP(DropDownList!$B$47,CntyQryCensus!$A$104:$CX$146,F$1) -> 63 | G45: =VLOOKUP(DropDownList!$B$47,CntyQryCensus!$A$104:$CX$146,G$1) -> 51 | H45: =VLOOKUP(DropDownList!$B$47,CntyQryCensus!$A$104:$CX$146,H$1) -> 66 | I45: =VLOOKUP(DropDownList!$B$47,CntyQryCensus!$A$104:$CX$146,I$1) -> 13 | J45: =VLOOKUP(DropDownList!$B$47,CntyQryCensus!$A$104:$CX$146,J$1) -> 4 | K45: =VLOOKUP(DropDownList!$B$47,CntyQryCensus!$A$104:$CX$146,K$1) -> 56 | L45: =VLOOKUP(DropDownList!$B$47,CntyQryCensus!$A$104:$CX$146,L$1) -> 0 | M45: =VLOOKUP(DropDownList!$B$47,CntyQryCensus!$A$104:$CX$146,M$1) -> 869 | N45: =VLOOKUP(DropDownList!$B$47,CntyQryCensus!$A$104:$CX$146,N$1) -> 235 | O45: =VLOOKUP(DropDownList!$B$47,CntyQryCensus!$A$104:$CX$146,O$1) -> 56 | P45: =VLOOKUP(DropDownList!$B$47,CntyQryCensus!$A$104:$CX$146,P$1) -> 6 | Q45: =VLOOKUP(DropDownList!$B$47,CntyQryCensus!$A$104:$CX$146,Q$1) -> 29 | R45: =VLOOKUP(DropDownList!$B$47,CntyQryCensus!$A$104:$CX$146,R$1) -> 14 | S45: =VLOOKUP(DropDownList!$B$47,CntyQryCensus!$A$104:$CX$146,S$1) -> 212 | T45: =VLOOKUP(DropDownList!$B$47,CntyQryCensus!$A$104:$CX$146,T$1) -> 177 | U45: =VLOOKUP(DropDownList!$B$47,CntyQryCensus!$A$104:$CX$146,U$1) -> 99 | V45: =VLOOKUP(DropDownList!$B$47,CntyQryCensus!$A$104:$CX$146,V$1) -> 183 | W45: =VLOOKUP(DropDownList!$B$47,CntyQryCensus!$A$104:$CX$146,W$1) -> 440 | X45: =VLOOKUP(DropDownList!$B$47,CntyQryCensus!$A$104:$CX$146,X$1) -> 5 | Y45: =VLOOKUP(DropDownList!$B$47,CntyQryCensus!$A$104:$CX$146,Y$1) -> 32 | Z45: =VLOOKUP(DropDownList!$B$47,CntyQryCensus!$A$104:$CX$146,Z$1) -> 165 | AA45: =VLOOKUP(DropDownList!$B$47,CntyQryCensus!$A$104:$CX$146,AA$1) -> 202 | AB45: =VLOOKUP(DropDownList!$B$47,CntyQryCensus!$A$104:$CX$146,AB$1) -> 249 | AC45: =VLOOKUP(DropDownList!$B$47,CntyQryCensus!$A$104:$CX$146,AC$1) -> 172 | AD45: =VLOOKUP(DropDownList!$B$47,CntyQryCensus!$A$104:$CX$146,AD$1) -> 129 | AE45: =VLOOKUP(DropDownList!$B$47,CntyQryCensus!$A$104:$CX$146,AE$1) -> 88 | AF45: =VLOOKUP(DropDownList!$B$47,CntyQryCensus!$A$104:$CX$146,AF$1) -> 118 | AG45: =VLOOKUP(DropDownList!$B$47,CntyQryCensus!$A$104:$CX$146,AG$1) -> 5.2 | AH45: =VLOOKUP(DropDownList!$B$47,CntyQryCensus!$A$104:$CX$146,AH$1) -> 932 | AI45: =VLOOKUP(DropDownList!$B$47,CntyQryCensus!$A$104:$CX$146,AI$1) -> 131 | AJ45: =VLOOKUP(DropDownList!$B$47,CntyQryCensus!$A$104:$CX$146,AJ$1) -> 226 | AK45: =VLOOKUP(DropDownList!$B$47,CntyQryCensus!$A$104:$CX$146,AK$1) -> 147 | AL45: =VLOOKUP(DropDownList!$B$47,CntyQryCensus!$A$104:$CX$146,AL$1) -> 230 | AM45: =VLOOKUP(DropDownList!$B$47,CntyQryCensus!$A$104:$CX$146,AM$1) -> 84 | AN45: =VLOOKUP(DropDownList!$B$47,CntyQryCensus!$A$104:$CX$146,AN$1) -> 114 | AO45: =VLOOKUP(DropDownList!$B$47,CntyQryCensus!$A$104:$CX$146,AO$1) -> 11 | AP45: =VLOOKUP(DropDownList!$B$47,CntyQryCensus!$A$104:$CX$146,AP$1) -> 159 | AQ45: =VLOOKUP(DropDownList!$B$47,CntyQryCensus!$A$104:$CX$146,AQ$1) -> 31 | AR45: =VLOOKUP(DropDownList!$B$47,CntyQryCensus!$A$104:$CX$146,AR$1) -> 629 | AS45: =VLOOKUP(DropDownList!$B$47,CntyQryCensus!$A$104:$CX$146,AS$1) -> 14 | AT45: =VLOOKUP(DropDownList!$B$47,CntyQryCensus!$A$104:$CX$146,AT$1) -> 88 | AU45: =VLOOKUP(DropDownList!$B$47,CntyQryCensus!$A$104:$CX$146,AU$1) -> 0 | AV45: =VLOOKUP(DropDownList!$B$47,CntyQryCensus!$A$104:$CX$146,AV$1) -> 0 | AW45: =VLOOKUP(DropDownList!$B$47,CntyQryCensus!$A$104:$CX$146,AW$1) -> 0 | AX45: =VLOOKUP(DropDownList!$B$47,CntyQryCensus!$A$104:$CX$146,AX$1) -> 0 | AY45: =VLOOKUP(DropDownList!$B$47,CntyQryCensus!$A$104:$CX$146,AY$1) -> 0 | AZ45: =VLOOKUP(DropDownList!$B$47,CntyQryCensus!$A$104:$CX$146,AZ$1) -> 9 | BA45: =VLOOKUP(DropDownList!$B$47,CntyQryCensus!$A$104:$CX$146,BA$1) -> 932 | BB45: =VLOOKUP(DropDownList!$B$47,CntyQryCensus!$A$104:$CX$146,BB$1) -> 919 | BC45: =VLOOKUP(DropDownList!$B$47,CntyQryCensus!$A$104:$CX$146,BC$1) -> 4 | BD45: =VLOOKUP(DropDownList!$B$47,CntyQryCensus!$A$104:$CX$146,BD$1) -> 9 | BE45: =VLOOKUP(DropDownList!$B$47,CntyQryCensus!$A$104:$CX$146,BE$1) -> 473 | BF45: =VLOOKUP(DropDownList!$B$47,CntyQryCensus!$A$104:$CX$146,BF$1) -> 12 | BG45: =VLOOKUP(DropDownList!$B$47,CntyQryCensus!$A$104:$CX$146,BG$1) -> 251 | BH45: =VLOOKUP(DropDownList!$B$47,CntyQryCensus!$A$104:$CX$146,BH$1) -> 161 | BI45: =VLOOKUP(DropDownList!$B$47,CntyQryCensus!$A$104:$CX$146,BI$1) -> 24 | BJ45: =VLOOKUP(DropDownList!$B$47,CntyQryCensus!$A$104:$CX$146,BJ$1) -> 9 | BK45: =VLOOKUP(DropDownList!$B$47,CntyQryCensus!$A$104:$CX$146,BK$1) -> 8 | BL45: =VLOOKUP(DropDownList!$B$47,CntyQryCensus!$A$104:$CX$146,BL$1) -> 8 | BM45: =VLOOKUP(DropDownList!$B$47,CntyQryCensus!$A$104:$CX$146,BM$1) -> 0 | BN45: =VLOOKUP(DropDownList!$B$47,CntyQryCensus!$A$104:$CX$146,BN$1) -> 96100 | BO45: =VLOOKUP(DropDownList!$B$47,CntyQryCensus!$A$104:$CX$146,BO$1) -> 352 | BP45: =VLOOKUP(DropDownList!$B$47,CntyQryCensus!$A$104:$CX$146,BP$1) -> 0 | BQ45: =VLOOKUP(DropDownList!$B$47,CntyQryCensus!$A$104:$CX$146,BQ$1) -> 9 | BR45: =VLOOKUP(DropDownList!$B$47,CntyQryCensus!$A$104:$CX$146,BR$1) -> 47 | BS45: =VLOOKUP(DropDownList!$B$47,CntyQryCensus!$A$104:$CX$146,BS$1) -> 123 | BT45: =VLOOKUP(DropDownList!$B$47,CntyQryCensus!$A$104:$CX$146,BT$1) -> 131 | BU45: =VLOOKUP(DropDownList!$B$47,CntyQryCensus!$A$104:$CX$146,BU$1) -> 22 | BV45: =VLOOKUP(DropDownList!$B$47,CntyQryCensus!$A$104:$CX$146,BV$1) -> 20 | BW45: =VLOOKUP(DropDownList!$B$47,CntyQryCensus!$A$104:$CX$146,BW$1) -> 985 | BX45: =VLOOKUP(DropDownList!$B$47,CntyQryCensus!$A$104:$CX$146,BX$1) -> 121 | BY45: =VLOOKUP(DropDownList!$B$47,CntyQryCensus!$A$104:$CX$146,BY$1) -> 388 | BZ45: =VLOOKUP(DropDownList!$B$47,CntyQryCensus!$A$104:$CX$146,BZ$1) -> 125 | CA45: =VLOOKUP(DropDownList!$B$47,CntyQryCensus!$A$104:$CX$146,CA$1) -> 86 | CB45: =VLOOKUP(DropDownList!$B$47,CntyQryCensus!$A$104:$CX$146,CB$1) -> 69 | CC45: =VLOOKUP(DropDownList!$B$47,CntyQryCensus!$A$104:$CX$146,CC$1) -> 47 | CD45: =VLOOKUP(DropDownList!$B$47,CntyQryCensus!$A$104:$CX$146,CD$1) -> 39 | CE45: =VLOOKUP(DropDownList!$B$47,CntyQryCensus!$A$104:$CX$146,CE$1) -> 94 | CF45: =VLOOKUP(DropDownList!$B$47,CntyQryCensus!$A$104:$CX$146,CF$1) -> 13 | CG45: =VLOOKUP(DropDownList!$B$47,CntyQryCensus!$A$104:$CX$146,CG$1) -> 222 | CH45: =VLOOKUP(DropDownList!$B$47,CntyQryCensus!$A$104:$CX$146,CH$1) -> 19 | CI45: =VLOOKUP(DropDownList!$B$47,CntyQryCensus!$A$104:$CX$146,CI$1) -> 17 | CJ45: =VLOOKUP(DropDownList!$B$47,CntyQryCensus!$A$104:$CX$146,CJ$1) -> 71 | CK45: =VLOOKUP(DropDownList!$B$47,CntyQryCensus!$A$104:$CX$146,CK$1) -> 64 | CL45: =VLOOKUP(DropDownList!$B$47,CntyQryCensus!$A$104:$CX$146,CL$1) -> 23 | CM45: =VLOOKUP(DropDownList!$B$47,CntyQryCensus!$A$104:$CX$146,CM$1) -> 13 | CN45: =VLOOKUP(DropDownList!$B$47,CntyQryCensus!$A$104:$CX$146,CN$1) -> 0 | CO45: =VLOOKUP(DropDownList!$B$47,CntyQryCensus!$A$104:$CX$146,CO$1) -> 15 | CP45: =VLOOKUP(DropDownList!$B$47,CntyQryCensus!$A$104:$CX$146,CP$1) -> 482 | CQ45: =VLOOKUP(DropDownList!$B$47,CntyQryCensus!$A$104:$CX$146,CQ$1) -> 50 | CR45: =VLOOKUP(DropDownList!$B$47,CntyQryCensus!$A$104:$CX$146,CR$1) -> 29 | CS45: =VLOOKUP(DropDownList!$B$47,CntyQryCensus!$A$104:$CX$146,CS$1) -> 26 | CT45: =VLOOKUP(DropDownList!$B$47,CntyQryCensus!$A$104:$CX$146,CT$1) -> 31 | CU45: =VLOOKUP(DropDownList!$B$47,CntyQryCensus!$A$104:$CX$146,CU$1) -> 15 | CV45: =VLOOKUP(DropDownList!$B$47,CntyQryCensus!$A$104:$CX$146,CV$1) -> 52 | CW45: =VLOOKUP(DropDownList!$B$47,CntyQryCensus!$A$104:$CX$146,CW$1) -> 19
A48: Census 2000 SummaryFile3 Sample Data - SF3TownQry1SocialChar
A49: NAME | B49: LOGRECNO | C49: COUNTY | D49: P01TotalPopulation | E49: P02SampleCountOfPop | F49: P03Pop100pctCount | G49: P05UrbanPopulation | H49: P05RuralPopulation | I49: P06WhiteAlone | J49: P06BlackOrAfAm | K49: P06AmIndAlone | L49: P06AsianAlone | M49: P06HawaiianOrPI | N49: P06OtherRace | O49: P06TwoPlusRaces | P49: P07NotHispanicOrLatino | Q49: P07HispanicOrLatino | R49: P08MalePop | S49: P08FemalePop | T49: P09PopInHouseholds | U49: P09PopInFamHH | V49: P09PopInNonFamHH | W49: P09PopInGroupQtr | X49: P13TotalHH | Y49: P13FamilyHH | Z49: P13FamHHolder15to24yrs | AA49: P13FamHHolder25to34yrs | AB49: P13FamHHolder35to44yrs | AC49: P13FamHHolder45to54yrs | AD49: P13FamHHolder55to64yrs | AE49: P13FamHHolder65to74yrs | AF49: P13FamHHolder75to84yrs | AG49: P13FamHHolder85yrsOver | AH49: P13NonFamilyHH | AI49: P13NonFamHHolder15to24yrs | AJ49: P13NonFamHHolder25to34yrs | AK49: P13NonFamHHolder35to44yrs | AL49: P13NonFamHHolder45to54yrs | AM49: P13NonFamHHolder55to64yrs | AN49: P13NonFamHHolder65to74yrs | AO49: P13NonFamHHolder75to84yrs | AP49: P13NonFamHHolder85yrsOver | AQ49: P18Pop15yrsOver | AR49: P18MaritalStatNeverMarried | AS49: P18MaritalStatNowMarried | AT49: P18MaritalStatSeparated | AU49: P18MaritalStatWidowed | AV49: P18MaritalStatWidowFemale | AW49: P18MaritalStatDivorced | AX49: P18MaritalStatDivorcedFemale | AY49: P21NativeBornPop | AZ49: P21NatPopBornInState | BA49: P21NatPopBornOtherState | BB49: P021005 | BC49: P021006 | BD49: P021007 | BE49: P021008 | BF49: P21NatPopBornOutUS | BG49: P21ForeignBornPop | BH49: P021014 | BI49: P021015 | BJ49: P24Pop5YrsPlus | BK49: P24ResSameHouseIn95 | BL49: P24ResDiffHouseIn95 | BM49: P24ResDiffHouseInUSIn95 | BN49: P24ResDiffHouseSameCountyIn95 | BO49: P24ResDiffHouseDiffCountyIn95 | BP49: P24ResDiffHouseDiffCntySamStIn95 | BQ49: P24ResDiffHouseDiffCntyDifStIn95 | BR49: P24ResDiffHouseDiffCntyNEStIn95 | BS49: P24ResDiffHouseDiffCntyMWStIn95 | BT49: P24ResDiffHouseDiffCntySoStIn95 | BU49: P24ResDiffHouseDiffCntyWstStIn95 | BV49: P24ResDiffInPR | BW49: P24ResDiffElsewhereIn95 | BX49: P26Workers16yrsOver | BY49: P26WorkedInState | BZ49: P26WorkedInCnty | CA49: P26WorkedOutsideCnty | CB49: P26WorkedOutsideState | CC49: P30Workers16Over | CD49: P30TranspToWrkCar | CE49: P30TranspToWrkPublic | CF49: P30TranspToWrkOther | CG49: P30WrkdAtHome | CH49: P31WrkrsNotWrkAtHom | CI49: P31TravTim<5min | CJ49: P31TravTim5to9Min | CK49: P31TravTim10to14Min | CL49: P31TravTim15to19Min | CM49: P31TravTim20to24Min | CN49: P31TravTim25to29Min | CO49: P31TravTim30to34Min | CP49: P31TravTim35to39Min | CQ49: P31TravTim40to44Min | CR49: P31TravTim45to59Min | CS49: P31TravTim60to89Min | CT49: P31TravTim90MinMore | CU49: P31WorkAtHome | CV49: P36SchEnrlPop3yrOver | CW49: P36NurserSchEnrl | CX49: P36KinderSchEnrl | CY49: P36ElemSchEnrl | CZ49: P36HighSchEnrl | DA49: P36CollGradSchEnrl | DB49: P37Pop25yrsOver | DC49: P37EduAtain<9grd | DD49: P37EduAtainHSnoDip | DE49: P37EduAtainHSgrad | DF49: P37EduAtainCollNoDeg | DG49: P37EduAtainAssocDeg | DH49: P37EduAtainBachDeg | DI49: P37EduAtainGradProfDeg | DJ49: P42NIPop5to15 | DK49: P42NIPop5to15wDisabl | DL49: P42NIPop16to20 | DM49: P42NIPop16to20wDisab | DN49: P42NIPop16to20wDisEmp | DO49: P42NIPop16to21NoDis | DP49: P42NIPop16to21NoDisEmpl | DQ49: P42NIPop21to64 | DR49: P42NIPop21to64wDis | DS49: P42NIPop21to64wDisEmp | DT49: P42NIPop21to64NoDis | DU49: P42NIPop21to64NoDisEmp | DV49: P42NIPop65to74 | DW49: P42NIPop65to74wDis | DX49: P42NIPop75Over | DY49: P42NIPop75OverwDis | DZ49: P43Pop16YrsOver | EA49: P43Pop16OvrInLaborForce | EB49: P43Pop16OvrCivlLabFrc | EC49: P43Pop16OvrCivlLbrFrcEmp | ED49: P48Families | EE49: P48MarriedFam | EF49: P48MarrFamNoWorkers | EG49: P48MarrFam1Worker | EH49: P48MarrFam2Worker | EI49: P48MarrFamHusbWifeWorked | EJ49: P48MarrFamOther | EK49: P48MarrFam3PlusWorker | EL49: P48MarrFam3WorkHsbWif | EM49: P48MarrFam3PlsWrkOther | EN49: P48OtherFam | EO49: P48MaleHHNoWif | EP49: P48MaleHHNoWifNoWorker | EQ49: P48MaleHHNoWif1Worker | ER49: P48MaleHHNoWif2Worker | ES49: P48MaleHHNoWif3PlusWorker | ET49: P48FemaleHHNoHsb | EU49: P48FemaleHHNoHsbNoWorker | EV49: P48FemaleHHNoHsb1Worker | EW49: P48FemaleHHNoHsb2Worker | EX49: P48FemaleHHNoHsb3Worker | EY49: P49EmpCivPop16YrOver | EZ49: P49IndustAgricult | FA49: P49IndustConst | FB49: P49IndustMnftg | FC49: P49IndustWhlslTrd | FD49: P49IndustRtlTrd | FE49: P49IndustTrspWrhsUtlt | FF49: P49IndustInfrm | FG49: P49IndustFinInsRE | FH49: P49IndustPrfsScntfMngmt | FI49: P49IndustEduHlthSocSrv | FJ49: P49IndustArtsEntRec | FK49: P49IndustOthrSrvc | FL49: P49IndustPubAdm | FM49: P50OccupMngmtProfs | FN49: P50OccupService | FO49: P50OccupSalesOff | FP49: P50OccupFarmFishForest | FQ49: P50OccupConstExtrctMaint | FR49: P50OccupPrdctTrnspMatMv
A50: =VLOOKUP(DropDownList!$B$47,CntyQryCensus!$A$156:$FR$198,A$1) -> Antrim | B50: =VLOOKUP(DropDownList!$B$47,CntyQryCensus!$A$156:$FR$198,B$1) -> 0001568 | C50: =VLOOKUP(DropDownList!$B$47,CntyQryCensus!$A$156:$FR$198,C$1) -> 01700 | D50: =VLOOKUP(DropDownList!$B$47,CntyQryCensus!$A$156:$FR$198,D$1) -> 2449 | E50: =VLOOKUP(DropDownList!$B$47,CntyQryCensus!$A$156:$FR$198,E$1) -> 574 | F50: =VLOOKUP(DropDownList!$B$47,CntyQryCensus!$A$156:$FR$198,F$1) -> 2449 | G50: =VLOOKUP(DropDownList!$B$47,CntyQryCensus!$A$156:$FR$198,G$1) -> 0 | H50: =VLOOKUP(DropDownList!$B$47,CntyQryCensus!$A$156:$FR$198,H$1) -> 2449 | I50: =VLOOKUP(DropDownList!$B$47,CntyQryCensus!$A$156:$FR$198,I$1) -> 2411 | J50: =VLOOKUP(DropDownList!$B$47,CntyQryCensus!$A$156:$FR$198,J$1) -> 0 | K50: =VLOOKUP(DropDownList!$B$47,CntyQryCensus!$A$156:$FR$198,K$1) -> 20 | L50: =VLOOKUP(DropDownList!$B$47,CntyQryCensus!$A$156:$FR$198,L$1) -> 4 | M50: =VLOOKUP(DropDownList!$B$47,CntyQryCensus!$A$156:$FR$198,M$1) -> 0 | N50: =VLOOKUP(DropDownList!$B$47,CntyQryCensus!$A$156:$FR$198,N$1) -> 0 | O50: =VLOOKUP(DropDownList!$B$47,CntyQryCensus!$A$156:$FR$198,O$1) -> 14 | P50: =VLOOKUP(DropDownList!$B$47,CntyQryCensus!$A$156:$FR$198,P$1) -> 2449 | Q50: =VLOOKUP(DropDownList!$B$47,CntyQryCensus!$A$156:$FR$198,Q$1) -> 0 | R50: =VLOOKUP(DropDownList!$B$47,CntyQryCensus!$A$156:$FR$198,R$1) -> 1201 | S50: =VLOOKUP(DropDownList!$B$47,CntyQryCensus!$A$156:$FR$198,S$1) -> 1248 | T50: =VLOOKUP(DropDownList!$B$47,CntyQryCensus!$A$156:$FR$198,T$1) -> 2439 | U50: =VLOOKUP(DropDownList!$B$47,CntyQryCensus!$A$156:$FR$198,U$1) -> 2067 | V50: =VLOOKUP(DropDownList!$B$47,CntyQryCensus!$A$156:$FR$198,V$1) -> 372 | W50: =VLOOKUP(DropDownList!$B$47,CntyQryCensus!$A$156:$FR$198,W$1) -> 10 | X50: =VLOOKUP(DropDownList!$B$47,CntyQryCensus!$A$156:$FR$198,X$1) -> 925 | Y50: =VLOOKUP(DropDownList!$B$47,CntyQryCensus!$A$156:$FR$198,Y$1) -> 629 | Z50: =VLOOKUP(DropDownList!$B$47,CntyQryCensus!$A$156:$FR$198,Z$1) -> 20 | AA50: =VLOOKUP(DropDownList!$B$47,CntyQryCensus!$A$156:$FR$198,AA$1) -> 71 | AB50: =VLOOKUP(DropDownList!$B$47,CntyQryCensus!$A$156:$FR$198,AB$1) -> 215 | AC50: =VLOOKUP(DropDownList!$B$47,CntyQryCensus!$A$156:$FR$198,AC$1) -> 168 | AD50: =VLOOKUP(DropDownList!$B$47,CntyQryCensus!$A$156:$FR$198,AD$1) -> 87 | AE50: =VLOOKUP(DropDownList!$B$47,CntyQryCensus!$A$156:$FR$198,AE$1) -> 48 | AF50: =VLOOKUP(DropDownList!$B$47,CntyQryCensus!$A$156:$FR$198,AF$1) -> 20 | AG50: =VLOOKUP(DropDownList!$B$47,CntyQryCensus!$A$156:$FR$198,AG$1) -> 0 | AH50: =VLOOKUP(DropDownList!$B$47,CntyQryCensus!$A$156:$FR$198,AH$1) -> 296 | AI50: =VLOOKUP(DropDownList!$B$47,CntyQryCensus!$A$156:$FR$198,AI$1) -> 20 | AJ50: =VLOOKUP(DropDownList!$B$47,CntyQryCensus!$A$156:$FR$198,AJ$1) -> 16 | AK50: =VLOOKUP(DropDownList!$B$47,CntyQryCensus!$A$156:$FR$198,AK$1) -> 36 | AL50: =VLOOKUP(DropDownList!$B$47,CntyQryCensus!$A$156:$FR$198,AL$1) -> 67 | AM50: =VLOOKUP(DropDownList!$B$47,CntyQryCensus!$A$156:$FR$198,AM$1) -> 59 | AN50: =VLOOKUP(DropDownList!$B$47,CntyQryCensus!$A$156:$FR$198,AN$1) -> 26 | AO50: =VLOOKUP(DropDownList!$B$47,CntyQryCensus!$A$156:$FR$198,AO$1) -> 49 | AP50: =VLOOKUP(DropDownList!$B$47,CntyQryCensus!$A$156:$FR$198,AP$1) -> 23 | AQ50: =VLOOKUP(DropDownList!$B$47,CntyQryCensus!$A$156:$FR$198,AQ$1) -> 1855 | AR50: =VLOOKUP(DropDownList!$B$47,CntyQryCensus!$A$156:$FR$198,AR$1) -> 394 | AS50: =VLOOKUP(DropDownList!$B$47,CntyQryCensus!$A$156:$FR$198,AS$1) -> 1056 | AT50: =VLOOKUP(DropDownList!$B$47,CntyQryCensus!$A$156:$FR$198,AT$1) -> 15 | AU50: =VLOOKUP(DropDownList!$B$47,CntyQryCensus!$A$156:$FR$198,AU$1) -> 124 | AV50: =VLOOKUP(DropDownList!$B$47,CntyQryCensus!$A$156:$FR$198,AV$1) -> 84 | AW50: =VLOOKUP(DropDownList!$B$47,CntyQryCensus!$A$156:$FR$198,AW$1) -> 266 | AX50: =VLOOKUP(DropDownList!$B$47,CntyQryCensus!$A$156:$FR$198,AX$1) -> 140 | AY50: =VLOOKUP(DropDownList!$B$47,CntyQryCensus!$A$156:$FR$198,AY$1) -> 2412 | AZ50: =VLOOKUP(DropDownList!$B$47,CntyQryCensus!$A$156:$FR$198,AZ$1) -> 1239 | BA50: =VLOOKUP(DropDownList!$B$47,CntyQryCensus!$A$156:$FR$198,BA$1) -> 1161 | BB50: =VLOOKUP(DropDownList!$B$47,CntyQryCensus!$A$156:$FR$198,BB$1) -> 956 | BC50: =VLOOKUP(DropDownList!$B$47,CntyQryCensus!$A$156:$FR$198,BC$1) -> 35 | BD50: =VLOOKUP(DropDownList!$B$47,CntyQryCensus!$A$156:$FR$198,BD$1) -> 83 | BE50: =VLOOKUP(DropDownList!$B$47,CntyQryCensus!$A$156:$FR$198,BE$1) -> 87 | BF50: =VLOOKUP(DropDownList!$B$47,CntyQryCensus!$A$156:$FR$198,BF$1) -> 12 | BG50: =VLOOKUP(DropDownList!$B$47,CntyQryCensus!$A$156:$FR$198,BG$1) -> 37 | BH50: =VLOOKUP(DropDownList!$B$47,CntyQryCensus!$A$156:$FR$198,BH$1) -> 25 | BI50: =VLOOKUP(DropDownList!$B$47,CntyQryCensus!$A$156:$FR$198,BI$1) -> 12 | BJ50: =VLOOKUP(DropDownList!$B$47,CntyQryCensus!$A$156:$FR$198,BJ$1) -> 2322 | BK50: =VLOOKUP(DropDownList!$B$47,CntyQryCensus!$A$156:$FR$198,BK$1) -> 1426 | BL50: =VLOOKUP(DropDownList!$B$47,CntyQryCensus!$A$156:$FR$198,BL$1) -> 896 | BM50: =VLOOKUP(DropDownList!$B$47,CntyQryCensus!$A$156:$FR$198,BM$1) -> 892 | BN50: =VLOOKUP(DropDownList!$B$47,CntyQryCensus!$A$156:$FR$198,BN$1) -> 628 | BO50: =VLOOKUP(DropDownList!$B$47,CntyQryCensus!$A$156:$FR$198,BO$1) -> 264 | BP50: =VLOOKUP(DropDownList!$B$47,CntyQryCensus!$A$156:$FR$198,BP$1) -> 136 | BQ50: =VLOOKUP(DropDownList!$B$47,CntyQryCensus!$A$156:$FR$198,BQ$1) -> 128 | BR50: =VLOOKUP(DropDownList!$B$47,CntyQryCensus!$A$156:$FR$198,BR$1) -> 95 | BS50: =VLOOKUP(DropDownList!$B$47,CntyQryCensus!$A$156:$FR$198,BS$1) -> 13 | BT50: =VLOOKUP(DropDownList!$B$47,CntyQryCensus!$A$156:$FR$198,BT$1) -> 12 | BU50: =VLOOKUP(DropDownList!$B$47,CntyQryCensus!$A$156:$FR$198,BU$1) -> 8 | BV50: =VLOOKUP(DropDownList!$B$47,CntyQryCensus!$A$156:$FR$198,BV$1) -> 0 | BW50: =VLOOKUP(DropDownList!$B$47,CntyQryCensus!$A$156:$FR$198,BW$1) -> 4 | BX50: =VLOOKUP(DropDownList!$B$47,CntyQryCensus!$A$156:$FR$198,BX$1) -> 1257 | BY50: =VLOOKUP(DropDownList!$B$47,CntyQryCensus!$A$156:$FR$198,BY$1) -> 1206 | BZ50: =VLOOKUP(DropDownList!$B$47,CntyQryCensus!$A$156:$FR$198,BZ$1) -> 981 | CA50: =VLOOKUP(DropDownList!$B$47,CntyQryCensus!$A$156:$FR$198,CA$1) -> 225 | CB50: =VLOOKUP(DropDownList!$B$47,CntyQryCensus!$A$156:$FR$198,CB$1) -> 51 | CC50: =VLOOKUP(DropDownList!$B$47,CntyQryCensus!$A$156:$FR$198,CC$1) -> 1257 | CD50: =VLOOKUP(DropDownList!$B$47,CntyQryCensus!$A$156:$FR$198,CD$1) -> 1114 | CE50: =VLOOKUP(DropDownList!$B$47,CntyQryCensus!$A$156:$FR$198,CE$1) -> 23 | CF50: =VLOOKUP(DropDownList!$B$47,CntyQryCensus!$A$156:$FR$198,CF$1) -> 0 | CG50: =VLOOKUP(DropDownList!$B$47,CntyQryCensus!$A$156:$FR$198,CG$1) -> 75 | CH50: =VLOOKUP(DropDownList!$B$47,CntyQryCensus!$A$156:$FR$198,CH$1) -> 1182 | CI50: =VLOOKUP(DropDownList!$B$47,CntyQryCensus!$A$156:$FR$198,CI$1) -> 97 | CJ50: =VLOOKUP(DropDownList!$B$47,CntyQryCensus!$A$156:$FR$198,CJ$1) -> 134 | CK50: =VLOOKUP(DropDownList!$B$47,CntyQryCensus!$A$156:$FR$198,CK$1) -> 128 | CL50: =VLOOKUP(DropDownList!$B$47,CntyQryCensus!$A$156:$FR$198,CL$1) -> 128 | CM50: =VLOOKUP(DropDownList!$B$47,CntyQryCensus!$A$156:$FR$198,CM$1) -> 145 | CN50: =VLOOKUP(DropDownList!$B$47,CntyQryCensus!$A$156:$FR$198,CN$1) -> 76 | CO50: =VLOOKUP(DropDownList!$B$47,CntyQryCensus!$A$156:$FR$198,CO$1) -> 153 | CP50: =VLOOKUP(DropDownList!$B$47,CntyQryCensus!$A$156:$FR$198,CP$1) -> 35 | CQ50: =VLOOKUP(DropDownList!$B$47,CntyQryCensus!$A$156:$FR$198,CQ$1) -> 45 | CR50: =VLOOKUP(DropDownList!$B$47,CntyQryCensus!$A$156:$FR$198,CR$1) -> 92 | CS50: =VLOOKUP(DropDownList!$B$47,CntyQryCensus!$A$156:$FR$198,CS$1) -> 91 | CT50: =VLOOKUP(DropDownList!$B$47,CntyQryCensus!$A$156:$FR$198,CT$1) -> 58 | CU50: =VLOOKUP(DropDownList!$B$47,CntyQryCensus!$A$156:$FR$198,CU$1) -> 75 | CV50: =VLOOKUP(DropDownList!$B$47,CntyQryCensus!$A$156:$FR$198,CV$1) -> 2396 | CW50: =VLOOKUP(DropDownList!$B$47,CntyQryCensus!$A$156:$FR$198,CW$1) -> 36 | CX50: =VLOOKUP(DropDownList!$B$47,CntyQryCensus!$A$156:$FR$198,CX$1) -> 16 | CY50: =VLOOKUP(DropDownList!$B$47,CntyQryCensus!$A$156:$FR$198,CY$1) -> 428 | CZ50: =VLOOKUP(DropDownList!$B$47,CntyQryCensus!$A$156:$FR$198,CZ$1) -> 172 | DA50: =VLOOKUP(DropDownList!$B$47,CntyQryCensus!$A$156:$FR$198,DA$1) -> 46 | DB50: =VLOOKUP(DropDownList!$B$47,CntyQryCensus!$A$156:$FR$198,DB$1) -> 1592 | DC50: =VLOOKUP(DropDownList!$B$47,CntyQryCensus!$A$156:$FR$198,DC$1) -> 51 | DD50: =VLOOKUP(DropDownList!$B$47,CntyQryCensus!$A$156:$FR$198,DD$1) -> 190 | DE50: =VLOOKUP(DropDownList!$B$47,CntyQryCensus!$A$156:$FR$198,DE$1) -> 560 | DF50: =VLOOKUP(DropDownList!$B$47,CntyQryCensus!$A$156:$FR$198,DF$1) -> 314 | DG50: =VLOOKUP(DropDownList!$B$47,CntyQryCensus!$A$156:$FR$198,DG$1) -> 106 | DH50: =VLOOKUP(DropDownList!$B$47,CntyQryCensus!$A$156:$FR$198,DH$1) -> 230 | DI50: =VLOOKUP(DropDownList!$B$47,CntyQryCensus!$A$156:$FR$198,DI$1) -> 141 | DJ50: =VLOOKUP(DropDownList!$B$47,CntyQryCensus!$A$156:$FR$198,DJ$1) -> 498 | DK50: =VLOOKUP(DropDownList!$B$47,CntyQryCensus!$A$156:$FR$198,DK$1) -> 4 | DL50: =VLOOKUP(DropDownList!$B$47,CntyQryCensus!$A$156:$FR$198,DL$1) -> 152 | DM50: =VLOOKUP(DropDownList!$B$47,CntyQryCensus!$A$156:$FR$198,DM$1) -> 11 | DN50: =VLOOKUP(DropDownList!$B$47,CntyQryCensus!$A$156:$FR$198,DN$1) -> 6 | DO50: =VLOOKUP(DropDownList!$B$47,CntyQryCensus!$A$156:$FR$198,DO$1) -> 141 | DP50: =VLOOKUP(DropDownList!$B$47,CntyQryCensus!$A$156:$FR$198,DP$1) -> 84 | DQ50: =VLOOKUP(DropDownList!$B$47,CntyQryCensus!$A$156:$FR$198,DQ$1) -> 1399 | DR50: =VLOOKUP(DropDownList!$B$47,CntyQryCensus!$A$156:$FR$198,DR$1) -> 174 | DS50: =VLOOKUP(DropDownList!$B$47,CntyQryCensus!$A$156:$FR$198,DS$1) -> 107 | DT50: =VLOOKUP(DropDownList!$B$47,CntyQryCensus!$A$156:$FR$198,DT$1) -> 1225 | DU50: =VLOOKUP(DropDownList!$B$47,CntyQryCensus!$A$156:$FR$198,DU$1) -> 1031 | DV50: =VLOOKUP(DropDownList!$B$47,CntyQryCensus!$A$156:$FR$198,DV$1) -> 155 | DW50: =VLOOKUP(DropDownList!$B$47,CntyQryCensus!$A$156:$FR$198,DW$1) -> 31 | DX50: =VLOOKUP(DropDownList!$B$47,CntyQryCensus!$A$156:$FR$198,DX$1) -> 113 | DY50: =VLOOKUP(DropDownList!$B$47,CntyQryCensus!$A$156:$FR$198,DY$1) -> 38 | DZ50: =VLOOKUP(DropDownList!$B$47,CntyQryCensus!$A$156:$FR$198,DZ$1) -> 1824 | EA50: =VLOOKUP(DropDownList!$B$47,CntyQryCensus!$A$156:$FR$198,EA$1) -> 1322 | EB50: =VLOOKUP(DropDownList!$B$47,CntyQryCensus!$A$156:$FR$198,EB$1) -> 1317 | EC50: =VLOOKUP(DropDownList!$B$47,CntyQryCensus!$A$156:$FR$198,EC$1) -> 1269 | ED50: =VLOOKUP(DropDownList!$B$47,CntyQryCensus!$A$156:$FR$198,ED$1) -> 629 | EE50: =VLOOKUP(DropDownList!$B$47,CntyQryCensus!$A$156:$FR$198,EE$1) -> 515 | EF50: =VLOOKUP(DropDownList!$B$47,CntyQryCensus!$A$156:$FR$198,EF$1) -> 30 | EG50: =VLOOKUP(DropDownList!$B$47,CntyQryCensus!$A$156:$FR$198,EG$1) -> 78 | EH50: =VLOOKUP(DropDownList!$B$47,CntyQryCensus!$A$156:$FR$198,EH$1) -> 322 | EI50: =VLOOKUP(DropDownList!$B$47,CntyQryCensus!$A$156:$FR$198,EI$1) -> 303 | EJ50: =VLOOKUP(DropDownList!$B$47,CntyQryCensus!$A$156:$FR$198,EJ$1) -> 19 | EK50: =VLOOKUP(DropDownList!$B$47,CntyQryCensus!$A$156:$FR$198,EK$1) -> 85 | EL50: =VLOOKUP(DropDownList!$B$47,CntyQryCensus!$A$156:$FR$198,EL$1) -> 75 | EM50: =VLOOKUP(DropDownList!$B$47,CntyQryCensus!$A$156:$FR$198,EM$1) -> 10 | EN50: =VLOOKUP(DropDownList!$B$47,CntyQryCensus!$A$156:$FR$198,EN$1) -> 114 | EO50: =VLOOKUP(DropDownList!$B$47,CntyQryCensus!$A$156:$FR$198,EO$1) -> 42 | EP50: =VLOOKUP(DropDownList!$B$47,CntyQryCensus!$A$156:$FR$198,EP$1) -> 0 | EQ50: =VLOOKUP(DropDownList!$B$47,CntyQryCensus!$A$156:$FR$198,EQ$1) -> 21 | ER50: =VLOOKUP(DropDownList!$B$47,CntyQryCensus!$A$156:$FR$198,ER$1) -> 16 | ES50: =VLOOKUP(DropDownList!$B$47,CntyQryCensus!$A$156:$FR$198,ES$1) -> 5 | ET50: =VLOOKUP(DropDownList!$B$47,CntyQryCensus!$A$156:$FR$198,ET$1) -> 72 | EU50: =VLOOKUP(DropDownList!$B$47,CntyQryCensus!$A$156:$FR$198,EU$1) -> 10 | EV50: =VLOOKUP(DropDownList!$B$47,CntyQryCensus!$A$156:$FR$198,EV$1) -> 55 | EW50: =VLOOKUP(DropDownList!$B$47,CntyQryCensus!$A$156:$FR$198,EW$1) -> 4 | EX50: =VLOOKUP(DropDownList!$B$47,CntyQryCensus!$A$156:$FR$198,EX$1) -> 3 | EY50: =VLOOKUP(DropDownList!$B$47,CntyQryCensus!$A$156:$FR$198,EY$1) -> 1269 | EZ50: =VLOOKUP(DropDownList!$B$47,CntyQryCensus!$A$156:$FR$198,EZ$1) -> 14 | FA50: =VLOOKUP(DropDownList!$B$47,CntyQryCensus!$A$156:$FR$198,FA$1) -> 107 | FB50: =VLOOKUP(DropDownList!$B$47,CntyQryCensus!$A$156:$FR$198,FB$1) -> 253 | FC50: =VLOOKUP(DropDownList!$B$47,CntyQryCensus!$A$156:$FR$198,FC$1) -> 59 | FD50: =VLOOKUP(DropDownList!$B$47,CntyQryCensus!$A$156:$FR$198,FD$1) -> 170 | FE50: =VLOOKUP(DropDownList!$B$47,CntyQryCensus!$A$156:$FR$198,FE$1) -> 41 | FF50: =VLOOKUP(DropDownList!$B$47,CntyQryCensus!$A$156:$FR$198,FF$1) -> 29 | FG50: =VLOOKUP(DropDownList!$B$47,CntyQryCensus!$A$156:$FR$198,FG$1) -> 50 | FH50: =VLOOKUP(DropDownList!$B$47,CntyQryCensus!$A$156:$FR$198,FH$1) -> 103 | FI50: =VLOOKUP(DropDownList!$B$47,CntyQryCensus!$A$156:$FR$198,FI$1) -> 292 | FJ50: =VLOOKUP(DropDownList!$B$47,CntyQryCensus!$A$156:$FR$198,FJ$1) -> 88 | FK50: =VLOOKUP(DropDownList!$B$47,CntyQryCensus!$A$156:$FR$198,FK$1) -> 38 | FL50: =VLOOKUP(DropDownList!$B$47,CntyQryCensus!$A$156:$FR$198,FL$1) -> 25 | FM50: =VLOOKUP(DropDownList!$B$47,CntyQryCensus!$A$156:$FR$198,FM$1) -> 371 | FN50: =VLOOKUP(DropDownList!$B$47,CntyQryCensus!$A$156:$FR$198,FN$1) -> 192 | FO50: =VLOOKUP(DropDownList!$B$47,CntyQryCensus!$A$156:$FR$198,FO$1) -> 274 | FP50: =VLOOKUP(DropDownList!$B$47,CntyQryCensus!$A$156:$FR$198,FP$1) -> 15 | FQ50: =VLOOKUP(DropDownList!$B$47,CntyQryCensus!$A$156:$FR$198,FQ$1) -> 174 | FR50: =VLOOKUP(DropDownList!$B$47,CntyQryCensus!$A$156:$FR$198,FR$1) -> 243
A53: Census 2000 SummaryFile3 Sample Data - SF3TownQry2aIncomeChar
A54: NAME | B54: LOGRECNO | C54: COUNTY | D54: TotalPop | E54: P52Households1 | F54: P52HHInc<10K | G54: P52HHInc10to15K | H54: P52HHInc15to20K | I54: P52HHInc20to25K | J54: P52HHInc25to30K | K54: P52HHInc30to35K | L54: P52HHInc35to40K | M54: P52HHInc40to45K | N54: P52HHInc45to50K | O54: P52HHInc50to60K | P54: P52HHInc60to75K | Q54: P52HHInc75to100K | R54: P52HHInc100to125K | S54: P52HHInc125to150K | T54: P52HHInc150to200K | U54: P52HHInc>200K | V54: P53MedianHHInc | W54: P54AggregHHInc | X54: P55Households2 | Y54: P55HHUnder25yrs | Z54: P55HH<25HHInc<10K | AA54: P55HH<25HHInc10to15K | AB54: P55HH<25HHInc15to20K | AC54: P55HH<25HHInc20to25K | AD54: P55HH<25HHInc25to30K | AE54: P55HH<25HHInc30to35K | AF54: P55HH<25HHInc35to40K | AG54: P55HH<25HHInc40to45K | AH54: P55HH<25HHInc45to50K | AI54: P55HH<25HHInc50to60K | AJ54: P55HH<25HHInc60to75K | AK54: P55HH<25HHInc75to100K | AL54: P55HH<25HHInc100to125K | AM54: P55HH<25HHInc125to150K | AN54: P55HH<25HHInc150to200K | AO54: P55HH<25HHInc>200K | AP54: P55HH25to34yrs | AQ54: P55HH25to34HHInc<10K | AR54: P55HH25to34HHInc10to15K | AS54: P55HH25to34HHInc15to20K | AT54: P55HH25to34HHInc20to25K | AU54: P55HH25to34HHInc25to30K | AV54: P55HH25to34HHInc30to35K | AW54: P55HH25to34HHInc35to40K | AX54: P55HH25to34HHInc40to45K | AY54: P55HH25to34HHInc45to50K | AZ54: P55HH25to34HHInc50to60K | BA54: P55HH25to34HHInc60to75K | BB54: P55HH25to34HHInc75to100K | BC54: P55HH25to34HHInc100to125K | BD54: P55HH25to34HHInc125to150K | BE54: P55HH25to34HHInc150to200K | BF54: P55HH25to34HHInc>200K | BG54: P55HH35to44yrs | BH54: P55HH35to44HHInc<10K | BI54: P55HH35to44HHInc10to15K | BJ54: P55HH35to44HHInc15to20K | BK54: P55HH35to44HHInc20to25K | BL54: P55HH35to44HHInc25to30K | BM54: P55HH35to44HHInc30to35K | BN54: P55HH35to44HHInc35to40K | BO54: P55HH35to44HHInc40to45K | BP54: P55HH35to44HHInc45to50K | BQ54: P55HH35to44HHInc50to60K | BR54: P55HH35to44HHInc60to75K | BS54: P55HH35to44HHInc75to100K | BT54: P55HH35to44HHInc100to125K | BU54: P55HH35to44HHInc125to150K | BV54: P55HH35to44HHInc150to200K | BW54: P55HH35to44HHInc>200K | BX54: P55HH45to54yrs | BY54: P55HH45to55HHInc<10K | BZ54: P55HH45to55HHInc10to15K | CA54: P55HH45to55HHInc15to20K | CB54: P55HH45to55HHInc20to25K | CC54: P55HH45to55HHInc25to30K | CD54: P55HH45to55HHInc30to35K | CE54: P55HH45to55HHInc35to40K | CF54: P55HH45to55HHInc40to45K | CG54: P55HH45to55HHInc45to50K | CH54: P55HH45to55HHInc50to60K | CI54: P55HH45to55HHInc60to75K | CJ54: P55HH45to55HHInc75to100K | CK54: P55HH45to55HHInc100to125K | CL54: P55HH45to55HHInc125to150K | CM54: P55HH45to55HHInc150to200K | CN54: P55HH45to55HHInc>200K | CO54: P55HH55to64yrs | CP54: P55HH55to64HHInc<10K | CQ54: P55HH55to64HHInc10to15K | CR54: P55HH55to64HHInc15to20K | CS54: P55HH55to64HHInc20to25K | CT54: P55HH55to64HHInc25to30K | CU54: P55HH55to64HHInc30to35K | CV54: P55HH55to64HHInc35to40K | CW54: P55HH55to64HHInc40to45K | CX54: P55HH55to64HHInc45to50K | CY54: P55HH55to64HHInc50to60K | CZ54: P55HH55to64HHInc60to75K | DA54: P55HH55to64HHInc75to100K | DB54: P55HH55to64HHInc100to125K | DC54: P55HH55to64HHInc125to150K | DD54: P55HH55to64HHInc150to200K | DE54: P55HH55to64HHInc>200K | DF54: P55HH65to74yrs | DG54: P55HH65to74HHInc<10K | DH54: P55HH65to74HHInc10to15K | DI54: P55HH65to74HHInc15to20K | DJ54: P55HH65to74HHInc20to25K | DK54: P55HH65to74HHInc25to30K | DL54: P55HH65to74HHInc30to35K | DM54: P55HH65to74HHInc35to40K | DN54: P55HH65to74HHInc40to45K | DO54: P55HH65to74HHInc45to50K | DP54: P55HH65to74HHInc50to60K | DQ54: P55HH65to74HHInc60to75K | DR54: P55HH65to74HHInc75to100K | DS54: P55HH65to74HHInc100to125K | DT54: P55HH65to74HHInc125to150K | DU54: P55HH65to74HHInc150to200K | DV54: P55HH65to74HHInc>200K | DW54: P55HH>75yrs | DX54: P55HH>75HHInc<10K | DY54: P55HH>75HHInc10to15K | DZ54: P55HH>75HHInc15to20K | EA54: P55HH>75HHInc20to25K | EB54: P55HH>75HHInc25to30K | EC54: P55HH>75HHInc30to35K | ED54: P55HH>75HHInc35to40K | EE54: P55HH>75HHInc40to45K | EF54: P55HH>75HHInc45to50K | EG54: P55HH>75HHInc50to60K | EH54: P55HH>75HHInc60to75K | EI54: P55HH>75HHInc75to100K | EJ54: P55HH>75HHInc100to125K | EK54: P55HH>75HHInc125to150K | EL54: P55HH>75HHInc150to200K | EM54: P55HH>75HHInc>200K | EN54: P56MedHHInc | EO54: P56MedHHIncHH<25y | EP54: P56MedHHIncHH25to34y | EQ54: P56MedHHIncHH35to44y | ER54: P56MedHHIncHH45to54y | ES54: P56MedHHIncHH55to64y | ET54: P56MedHHIncHH65to74y | EU54: P56MedHHIncHH>75y | EV54: P58Households3 | EW54: P58HHwithEarnings | EX54: P58HHNoEarnings | EY54: P59HHwWageSalInc | EZ54: P59HHNoWageSalInc | FA54: P60HHwSelfEmpInc | FB54: P60HHNoSelfEmpInc | FC54: P61HHwIndDivInc | FD54: P61HHNoIndDivInc | FE54: P62HHwSocSecInc | FF54: P62HHNoSocSecInc | FG54: P63HHwSSI | FH54: P63HHNoSSI | FI54: P64HHwPubAssInc | FJ54: P64HHNoPubAssInc | FK54: P65HHwRetInc | FL54: P65HHNoRetInc | FM54: P66HHwOtherTypInc | FN54: P66HHNoOtherTypInc | FO54: P67AggregEarnings | FP54: P68AggregWageSalInc | FQ54: P69AggregSelfEmpInc | FR54: P70AggregIntDivInc | FS54: P71AggregSocSecInc | FT54: P72AggregSSIInc | FU54: P73AggregPublicAssInc | FV54: P74AggregRetireInc | FW54: P76Families1 | FX54: P76FamInc<10K | FY54: P76FamInc10to15K | FZ54: P76FamInc15to20K | GA54: P76FamInc20to25K | GB54: P76FamInc25to30K | GC54: P76FamInc30to35K | GD54: P76FamInc35to40K | GE54: P76FamInc40to45K | GF54: P76FamInc45to50K | GG54: P76FamInc50to60K | GH54: P76FamInc60to75K | GI54: P76FamInc75to100K | GJ54: P76FamInc100to125K | GK54: P76FamInc125to150K | GL54: P76FamInc150to200K | GM54: P76FamInc>200K | GN54: P77MedFamInc | GO54: P78AggregFamInc | GP54: P79NonFamHH | GQ54: P79NonFamHHwInc<10K | GR54: P79NonFamHHwInc10to15K | GS54: P79NonFamHHwInc15to20K | GT54: P79NonFamHHwInc20to25K | GU54: P79NonFamHHwInc25to30K | GV54: P79NonFamHHwInc30to35K | GW54: P79NonFamHHwInc35to40K | GX54: P79NonFamHHwInc40to45K | GY54: P79NonFamHHwInc45to50K | GZ54: P79NonFamHHwInc50to60K | HA54: P79NonFamHHwInc60to75K | HB54: P79NonFamHHwInc75to100K | HC54: P79NonFamHHwInc100to125K | HD54: P79NonFamHHwInc125to150K | HE54: P79NonFamHHwInc150to200K | HF54: P79NonFamHHwInc200KorMore | HG54: P80MedNonFamInc | HH54: P82PerCapitaInc
A55: =VLOOKUP(DropDownList!$B$47,CntyQryCensus!$A$206:$HH$248,A$1) -> Antrim | B55: =VLOOKUP(DropDownList!$B$47,CntyQryCensus!$A$206:$HH$248,B$1) -> 0001568 | C55: =VLOOKUP(DropDownList!$B$47,CntyQryCensus!$A$206:$HH$248,C$1) -> 01700 | D55: =VLOOKUP(DropDownList!$B$47,CntyQryCensus!$A$206:$HH$248,D$1) -> 2449 | E55: =VLOOKUP(DropDownList!$B$47,CntyQryCensus!$A$206:$HH$248,E$1) -> 925 | F55: =VLOOKUP(DropDownList!$B$47,CntyQryCensus!$A$206:$HH$248,F$1) -> 119 | G55: =VLOOKUP(DropDownList!$B$47,CntyQryCensus!$A$206:$HH$248,G$1) -> 56 | H55: =VLOOKUP(DropDownList!$B$47,CntyQryCensus!$A$206:$HH$248,H$1) -> 44 | I55: =VLOOKUP(DropDownList!$B$47,CntyQryCensus!$A$206:$HH$248,I$1) -> 35 | J55: =VLOOKUP(DropDownList!$B$47,CntyQryCensus!$A$206:$HH$248,J$1) -> 54 | K55: =VLOOKUP(DropDownList!$B$47,CntyQryCensus!$A$206:$HH$248,K$1) -> 65 | L55: =VLOOKUP(DropDownList!$B$47,CntyQryCensus!$A$206:$HH$248,L$1) -> 36 | M55: =VLOOKUP(DropDownList!$B$47,CntyQryCensus!$A$206:$HH$248,M$1) -> 47 | N55: =VLOOKUP(DropDownList!$B$47,CntyQryCensus!$A$206:$HH$248,N$1) -> 52 | O55: =VLOOKUP(DropDownList!$B$47,CntyQryCensus!$A$206:$HH$248,O$1) -> 111 | P55: =VLOOKUP(DropDownList!$B$47,CntyQryCensus!$A$206:$HH$248,P$1) -> 139 | Q55: =VLOOKUP(DropDownList!$B$47,CntyQryCensus!$A$206:$HH$248,Q$1) -> 88 | R55: =VLOOKUP(DropDownList!$B$47,CntyQryCensus!$A$206:$HH$248,R$1) -> 52 | S55: =VLOOKUP(DropDownList!$B$47,CntyQryCensus!$A$206:$HH$248,S$1) -> 6 | T55: =VLOOKUP(DropDownList!$B$47,CntyQryCensus!$A$206:$HH$248,T$1) -> 10 | U55: =VLOOKUP(DropDownList!$B$47,CntyQryCensus!$A$206:$HH$248,U$1) -> 11 | V55: =VLOOKUP(DropDownList!$B$47,CntyQryCensus!$A$206:$HH$248,V$1) -> 45677 | W55: =VLOOKUP(DropDownList!$B$47,CntyQryCensus!$A$206:$HH$248,W$1) -> 46042000 | X55: =VLOOKUP(DropDownList!$B$47,CntyQryCensus!$A$206:$HH$248,X$1) -> 925 | Y55: =VLOOKUP(DropDownList!$B$47,CntyQryCensus!$A$206:$HH$248,Y$1) -> 40 | Z55: =VLOOKUP(DropDownList!$B$47,CntyQryCensus!$A$206:$HH$248,Z$1) -> 10 | AA55: =VLOOKUP(DropDownList!$B$47,CntyQryCensus!$A$206:$HH$248,AA$1) -> 5 | AB55: =VLOOKUP(DropDownList!$B$47,CntyQryCensus!$A$206:$HH$248,AB$1) -> 0 | AC55: =VLOOKUP(DropDownList!$B$47,CntyQryCensus!$A$206:$HH$248,AC$1) -> 0 | AD55: =VLOOKUP(DropDownList!$B$47,CntyQryCensus!$A$206:$HH$248,AD$1) -> 12 | AE55: =VLOOKUP(DropDownList!$B$47,CntyQryCensus!$A$206:$HH$248,AE$1) -> 4 | AF55: =VLOOKUP(DropDownList!$B$47,CntyQryCensus!$A$206:$HH$248,AF$1) -> 0 | AG55: =VLOOKUP(DropDownList!$B$47,CntyQryCensus!$A$206:$HH$248,AG$1) -> 0 | AH55: =VLOOKUP(DropDownList!$B$47,CntyQryCensus!$A$206:$HH$248,AH$1) -> 5 | AI55: =VLOOKUP(DropDownList!$B$47,CntyQryCensus!$A$206:$HH$248,AI$1) -> 0 | AJ55: =VLOOKUP(DropDownList!$B$47,CntyQryCensus!$A$206:$HH$248,AJ$1) -> 4 | AK55: =VLOOKUP(DropDownList!$B$47,CntyQryCensus!$A$206:$HH$248,AK$1) -> 0 | AL55: =VLOOKUP(DropDownList!$B$47,CntyQryCensus!$A$206:$HH$248,AL$1) -> 0 | AM55: =VLOOKUP(DropDownList!$B$47,CntyQryCensus!$A$206:$HH$248,AM$1) -> 0 | AN55: =VLOOKUP(DropDownList!$B$47,CntyQryCensus!$A$206:$HH$248,AN$1) -> 0 | AO55: =VLOOKUP(DropDownList!$B$47,CntyQryCensus!$A$206:$HH$248,AO$1) -> 0 | AP55: =VLOOKUP(DropDownList!$B$47,CntyQryCensus!$A$206:$HH$248,AP$1) -> 87 | AQ55: =VLOOKUP(DropDownList!$B$47,CntyQryCensus!$A$206:$HH$248,AQ$1) -> 5 | AR55: =VLOOKUP(DropDownList!$B$47,CntyQryCensus!$A$206:$HH$248,AR$1) -> 4 | AS55: =VLOOKUP(DropDownList!$B$47,CntyQryCensus!$A$206:$HH$248,AS$1) -> 5 | AT55: =VLOOKUP(DropDownList!$B$47,CntyQryCensus!$A$206:$HH$248,AT$1) -> 0 | AU55: =VLOOKUP(DropDownList!$B$47,CntyQryCensus!$A$206:$HH$248,AU$1) -> 15 | AV55: =VLOOKUP(DropDownList!$B$47,CntyQryCensus!$A$206:$HH$248,AV$1) -> 0 | AW55: =VLOOKUP(DropDownList!$B$47,CntyQryCensus!$A$206:$HH$248,AW$1) -> 0 | AX55: =VLOOKUP(DropDownList!$B$47,CntyQryCensus!$A$206:$HH$248,AX$1) -> 0 | AY55: =VLOOKUP(DropDownList!$B$47,CntyQryCensus!$A$206:$HH$248,AY$1) -> 7 | AZ55: =VLOOKUP(DropDownList!$B$47,CntyQryCensus!$A$206:$HH$248,AZ$1) -> 37 | BA55: =VLOOKUP(DropDownList!$B$47,CntyQryCensus!$A$206:$HH$248,BA$1) -> 9 | BB55: =VLOOKUP(DropDownList!$B$47,CntyQryCensus!$A$206:$HH$248,BB$1) -> 5 | BC55: =VLOOKUP(DropDownList!$B$47,CntyQryCensus!$A$206:$HH$248,BC$1) -> 0 | BD55: =VLOOKUP(DropDownList!$B$47,CntyQryCensus!$A$206:$HH$248,BD$1) -> 0 | BE55: =VLOOKUP(DropDownList!$B$47,CntyQryCensus!$A$206:$HH$248,BE$1) -> 0 | BF55: =VLOOKUP(DropDownList!$B$47,CntyQryCensus!$A$206:$HH$248,BF$1) -> 0 | BG55: =VLOOKUP(DropDownList!$B$47,CntyQryCensus!$A$206:$HH$248,BG$1) -> 251 | BH55: =VLOOKUP(DropDownList!$B$47,CntyQryCensus!$A$206:$HH$248,BH$1) -> 24 | BI55: =VLOOKUP(DropDownList!$B$47,CntyQryCensus!$A$206:$HH$248,BI$1) -> 6 | BJ55: =VLOOKUP(DropDownList!$B$47,CntyQryCensus!$A$206:$HH$248,BJ$1) -> 11 | BK55: =VLOOKUP(DropDownList!$B$47,CntyQryCensus!$A$206:$HH$248,BK$1) -> 0 | BL55: =VLOOKUP(DropDownList!$B$47,CntyQryCensus!$A$206:$HH$248,BL$1) -> 4 | BM55: =VLOOKUP(DropDownList!$B$47,CntyQryCensus!$A$206:$HH$248,BM$1) -> 32 | BN55: =VLOOKUP(DropDownList!$B$47,CntyQryCensus!$A$206:$HH$248,BN$1) -> 11 | BO55: =VLOOKUP(DropDownList!$B$47,CntyQryCensus!$A$206:$HH$248,BO$1) -> 21 | BP55: =VLOOKUP(DropDownList!$B$47,CntyQryCensus!$A$206:$HH$248,BP$1) -> 14 | BQ55: =VLOOKUP(DropDownList!$B$47,CntyQryCensus!$A$206:$HH$248,BQ$1) -> 15 | BR55: =VLOOKUP(DropDownList!$B$47,CntyQryCensus!$A$206:$HH$248,BR$1) -> 64 | BS55: =VLOOKUP(DropDownList!$B$47,CntyQryCensus!$A$206:$HH$248,BS$1) -> 22 | BT55: =VLOOKUP(DropDownList!$B$47,CntyQryCensus!$A$206:$HH$248,BT$1) -> 23 | BU55: =VLOOKUP(DropDownList!$B$47,CntyQryCensus!$A$206:$HH$248,BU$1) -> 0 | BV55: =VLOOKUP(DropDownList!$B$47,CntyQryCensus!$A$206:$HH$248,BV$1) -> 4 | BW55: =VLOOKUP(DropDownList!$B$47,CntyQryCensus!$A$206:$HH$248,BW$1) -> 0 | BX55: =VLOOKUP(DropDownList!$B$47,CntyQryCensus!$A$206:$HH$248,BX$1) -> 235 | BY55: =VLOOKUP(DropDownList!$B$47,CntyQryCensus!$A$206:$HH$248,BY$1) -> 24 | BZ55: =VLOOKUP(DropDownList!$B$47,CntyQryCensus!$A$206:$HH$248,BZ$1) -> 0 | CA55: =VLOOKUP(DropDownList!$B$47,CntyQryCensus!$A$206:$HH$248,CA$1) -> 0 | CB55: =VLOOKUP(DropDownList!$B$47,CntyQryCensus!$A$206:$HH$248,CB$1) -> 10 | CC55: =VLOOKUP(DropDownList!$B$47,CntyQryCensus!$A$206:$HH$248,CC$1) -> 14 | CD55: =VLOOKUP(DropDownList!$B$47,CntyQryCensus!$A$206:$HH$248,CD$1) -> 3 | CE55: =VLOOKUP(DropDownList!$B$47,CntyQryCensus!$A$206:$HH$248,CE$1) -> 6 | CF55: =VLOOKUP(DropDownList!$B$47,CntyQryCensus!$A$206:$HH$248,CF$1) -> 14 | CG55: =VLOOKUP(DropDownList!$B$47,CntyQryCensus!$A$206:$HH$248,CG$1) -> 17 | CH55: =VLOOKUP(DropDownList!$B$47,CntyQryCensus!$A$206:$HH$248,CH$1) -> 40 | CI55: =VLOOKUP(DropDownList!$B$47,CntyQryCensus!$A$206:$HH$248,CI$1) -> 44 | CJ55: =VLOOKUP(DropDownList!$B$47,CntyQryCensus!$A$206:$HH$248,CJ$1) -> 34 | CK55: =VLOOKUP(DropDownList!$B$47,CntyQryCensus!$A$206:$HH$248,CK$1) -> 12 | CL55: =VLOOKUP(DropDownList!$B$47,CntyQryCensus!$A$206:$HH$248,CL$1) -> 0 | CM55: =VLOOKUP(DropDownList!$B$47,CntyQryCensus!$A$206:$HH$248,CM$1) -> 6 | CN55: =VLOOKUP(DropDownList!$B$47,CntyQryCensus!$A$206:$HH$248,CN$1) -> 11 | CO55: =VLOOKUP(DropDownList!$B$47,CntyQryCensus!$A$206:$HH$248,CO$1) -> 146 | CP55: =VLOOKUP(DropDownList!$B$47,CntyQryCensus!$A$206:$HH$248,CP$1) -> 22 | CQ55: =VLOOKUP(DropDownList!$B$47,CntyQryCensus!$A$206:$HH$248,CQ$1) -> 11 | CR55: =VLOOKUP(DropDownList!$B$47,CntyQryCensus!$A$206:$HH$248,CR$1) -> 12 | CS55: =VLOOKUP(DropDownList!$B$47,CntyQryCensus!$A$206:$HH$248,CS$1) -> 9 | CT55: =VLOOKUP(DropDownList!$B$47,CntyQryCensus!$A$206:$HH$248,CT$1) -> 0 | CU55: =VLOOKUP(DropDownList!$B$47,CntyQryCensus!$A$206:$HH$248,CU$1) -> 10 | CV55: =VLOOKUP(DropDownList!$B$47,CntyQryCensus!$A$206:$HH$248,CV$1) -> 6 | CW55: =VLOOKUP(DropDownList!$B$47,CntyQryCensus!$A$206:$HH$248,CW$1) -> 5 | CX55: =VLOOKUP(DropDownList!$B$47,CntyQryCensus!$A$206:$HH$248,CX$1) -> 5 | CY55: =VLOOKUP(DropDownList!$B$47,CntyQryCensus!$A$206:$HH$248,CY$1) -> 19 | CZ55: =VLOOKUP(DropDownList!$B$47,CntyQryCensus!$A$206:$HH$248,CZ$1) -> 18 | DA55: =VLOOKUP(DropDownList!$B$47,CntyQryCensus!$A$206:$HH$248,DA$1) -> 11 | DB55: =VLOOKUP(DropDownList!$B$47,CntyQryCensus!$A$206:$HH$248,DB$1) -> 14 | DC55: =VLOOKUP(DropDownList!$B$47,CntyQryCensus!$A$206:$HH$248,DC$1) -> 4 | DD55: =VLOOKUP(DropDownList!$B$47,CntyQryCensus!$A$206:$HH$248,DD$1) -> 0 | DE55: =VLOOKUP(DropDownList!$B$47,CntyQryCensus!$A$206:$HH$248,DE$1) -> 0 | DF55: =VLOOKUP(DropDownList!$B$47,CntyQryCensus!$A$206:$HH$248,DF$1) -> 74 | DG55: =VLOOKUP(DropDownList!$B$47,CntyQryCensus!$A$206:$HH$248,DG$1) -> 10 | DH55: =VLOOKUP(DropDownList!$B$47,CntyQryCensus!$A$206:$HH$248,DH$1) -> 6 | DI55: =VLOOKUP(DropDownList!$B$47,CntyQryCensus!$A$206:$HH$248,DI$1) -> 3 | DJ55: =VLOOKUP(DropDownList!$B$47,CntyQryCensus!$A$206:$HH$248,DJ$1) -> 5 | DK55: =VLOOKUP(DropDownList!$B$47,CntyQryCensus!$A$206:$HH$248,DK$1) -> 7 | DL55: =VLOOKUP(DropDownList!$B$47,CntyQryCensus!$A$206:$HH$248,DL$1) -> 11 | DM55: =VLOOKUP(DropDownList!$B$47,CntyQryCensus!$A$206:$HH$248,DM$1) -> 13 | DN55: =VLOOKUP(DropDownList!$B$47,CntyQryCensus!$A$206:$HH$248,DN$1) -> 7 | DO55: =VLOOKUP(DropDownList!$B$47,CntyQryCensus!$A$206:$HH$248,DO$1) -> 0 | DP55: =VLOOKUP(DropDownList!$B$47,CntyQryCensus!$A$206:$HH$248,DP$1) -> 0 | DQ55: =VLOOKUP(DropDownList!$B$47,CntyQryCensus!$A$206:$HH$248,DQ$1) -> 0 | DR55: =VLOOKUP(DropDownList!$B$47,CntyQryCensus!$A$206:$HH$248,DR$1) -> 12 | DS55: =VLOOKUP(DropDownList!$B$47,CntyQryCensus!$A$206:$HH$248,DS$1) -> 0 | DT55: =VLOOKUP(DropDownList!$B$47,CntyQryCensus!$A$206:$HH$248,DT$1) -> 0 | DU55: =VLOOKUP(DropDownList!$B$47,CntyQryCensus!$A$206:$HH$248,DU$1) -> 0 | DV55: =VLOOKUP(DropDownList!$B$47,CntyQryCensus!$A$206:$HH$248,DV$1) -> 0 | DW55: =VLOOKUP(DropDownList!$B$47,CntyQryCensus!$A$206:$HH$248,DW$1) -> 92 | DX55: =VLOOKUP(DropDownList!$B$47,CntyQryCensus!$A$206:$HH$248,DX$1) -> 24 | DY55: =VLOOKUP(DropDownList!$B$47,CntyQryCensus!$A$206:$HH$248,DY$1) -> 24 | DZ55: =VLOOKUP(DropDownList!$B$47,CntyQryCensus!$A$206:$HH$248,DZ$1) -> 13 | EA55: =VLOOKUP(DropDownList!$B$47,CntyQryCensus!$A$206:$HH$248,EA$1) -> 11 | EB55: =VLOOKUP(DropDownList!$B$47,CntyQryCensus!$A$206:$HH$248,EB$1) -> 2 | EC55: =VLOOKUP(DropDownList!$B$47,CntyQryCensus!$A$206:$HH$248,EC$1) -> 5 | ED55: =VLOOKUP(DropDownList!$B$47,CntyQryCensus!$A$206:$HH$248,ED$1) -> 0 | EE55: =VLOOKUP(DropDownList!$B$47,CntyQryCensus!$A$206:$HH$248,EE$1) -> 0 | EF55: =VLOOKUP(DropDownList!$B$47,CntyQryCensus!$A$206:$HH$248,EF$1) -> 4 | EG55: =VLOOKUP(DropDownList!$B$47,CntyQryCensus!$A$206:$HH$248,EG$1) -> 0 | EH55: =VLOOKUP(DropDownList!$B$47,CntyQryCensus!$A$206:$HH$248,EH$1) -> 0 | EI55: =VLOOKUP(DropDownList!$B$47,CntyQryCensus!$A$206:$HH$248,EI$1) -> 4 | EJ55: =VLOOKUP(DropDownList!$B$47,CntyQryCensus!$A$206:$HH$248,EJ$1) -> 3 | EK55: =VLOOKUP(DropDownList!$B$47,CntyQryCensus!$A$206:$HH$248,EK$1) -> 2 | EL55: =VLOOKUP(DropDownList!$B$47,CntyQryCensus!$A$206:$HH$248,EL$1) -> 0 | EM55: =VLOOKUP(DropDownList!$B$47,CntyQryCensus!$A$206:$HH$248,EM$1) -> 0 | EN55: =VLOOKUP(DropDownList!$B$47,CntyQryCensus!$A$206:$HH$248,EN$1) -> 45677 | EO55: =VLOOKUP(DropDownList!$B$47,CntyQryCensus!$A$206:$HH$248,EO$1) -> 27813 | EP55: =VLOOKUP(DropDownList!$B$47,CntyQryCensus!$A$206:$HH$248,EP$1) -> 53281 | EQ55: =VLOOKUP(DropDownList!$B$47,CntyQryCensus!$A$206:$HH$248,EQ$1) -> 55781 | ER55: =VLOOKUP(DropDownList!$B$47,CntyQryCensus!$A$206:$HH$248,ER$1) -> 56625 | ES55: =VLOOKUP(DropDownList!$B$47,CntyQryCensus!$A$206:$HH$248,ES$1) -> 41500 | ET55: =VLOOKUP(DropDownList!$B$47,CntyQryCensus!$A$206:$HH$248,ET$1) -> 33864 | EU55: =VLOOKUP(DropDownList!$B$47,CntyQryCensus!$A$206:$HH$248,EU$1) -> 14375 | EV55: =VLOOKUP(DropDownList!$B$47,CntyQryCensus!$A$206:$HH$248,EV$1) -> 925 | EW55: =VLOOKUP(DropDownList!$B$47,CntyQryCensus!$A$206:$HH$248,EW$1) -> 770 | EX55: =VLOOKUP(DropDownList!$B$47,CntyQryCensus!$A$206:$HH$248,EX$1) -> 155 | EY55: =VLOOKUP(DropDownList!$B$47,CntyQryCensus!$A$206:$HH$248,EY$1) -> 725 | EZ55: =VLOOKUP(DropDownList!$B$47,CntyQryCensus!$A$206:$HH$248,EZ$1) -> 200 | FA55: =VLOOKUP(DropDownList!$B$47,CntyQryCensus!$A$206:$HH$248,FA$1) -> 220 | FB55: =VLOOKUP(DropDownList!$B$47,CntyQryCensus!$A$206:$HH$248,FB$1) -> 705 | FC55: =VLOOKUP(DropDownList!$B$47,CntyQryCensus!$A$206:$HH$248,FC$1) -> 340 | FD55: =VLOOKUP(DropDownList!$B$47,CntyQryCensus!$A$206:$HH$248,FD$1) -> 585 | FE55: =VLOOKUP(DropDownList!$B$47,CntyQryCensus!$A$206:$HH$248,FE$1) -> 229 | FF55: =VLOOKUP(DropDownList!$B$47,CntyQryCensus!$A$206:$HH$248,FF$1) -> 696 | FG55: =VLOOKUP(DropDownList!$B$47,CntyQryCensus!$A$206:$HH$248,FG$1) -> 17 | FH55: =VLOOKUP(DropDownList!$B$47,CntyQryCensus!$A$206:$HH$248,FH$1) -> 908 | FI55: =VLOOKUP(DropDownList!$B$47,CntyQryCensus!$A$206:$HH$248,FI$1) -> 41 | FJ55: =VLOOKUP(DropDownList!$B$47,CntyQryCensus!$A$206:$HH$248,FJ$1) -> 884 | FK55: =VLOOKUP(DropDownList!$B$47,CntyQryCensus!$A$206:$HH$248,FK$1) -> 111 | FL55: =VLOOKUP(DropDownList!$B$47,CntyQryCensus!$A$206:$HH$248,FL$1) -> 814 | FM55: =VLOOKUP(DropDownList!$B$47,CntyQryCensus!$A$206:$HH$248,FM$1) -> 91 | FN55: =VLOOKUP(DropDownList!$B$47,CntyQryCensus!$A$206:$HH$248,FN$1) -> 834 | FO55: =VLOOKUP(DropDownList!$B$47,CntyQryCensus!$A$206:$HH$248,FO$1) -> 38371300 | FP55: =VLOOKUP(DropDownList!$B$47,CntyQryCensus!$A$206:$HH$248,FP$1) -> 34391300 | FQ55: =VLOOKUP(DropDownList!$B$47,CntyQryCensus!$A$206:$HH$248,FQ$1) -> 3980000 | FR55: =VLOOKUP(DropDownList!$B$47,CntyQryCensus!$A$206:$HH$248,FR$1) -> 3104900 | FS55: =VLOOKUP(DropDownList!$B$47,CntyQryCensus!$A$206:$HH$248,FS$1) -> 2369800 | FT55: =VLOOKUP(DropDownList!$B$47,CntyQryCensus!$A$206:$HH$248,FT$1) -> 105400 | FU55: =VLOOKUP(DropDownList!$B$47,CntyQryCensus!$A$206:$HH$248,FU$1) -> 118500 | FV55: =VLOOKUP(DropDownList!$B$47,CntyQryCensus!$A$206:$HH$248,FV$1) -> 1416800 | FW55: =VLOOKUP(DropDownList!$B$47,CntyQryCensus!$A$206:$HH$248,FW$1) -> 629 | FX55: =VLOOKUP(DropDownList!$B$47,CntyQryCensus!$A$206:$HH$248,FX$1) -> 38 | FY55: =VLOOKUP(DropDownList!$B$47,CntyQryCensus!$A$206:$HH$248,FY$1) -> 18 | FZ55: =VLOOKUP(DropDownList!$B$47,CntyQryCensus!$A$206:$HH$248,FZ$1) -> 13 | GA55: =VLOOKUP(DropDownList!$B$47,CntyQryCensus!$A$206:$HH$248,GA$1) -> 40 | GB55: =VLOOKUP(DropDownList!$B$47,CntyQryCensus!$A$206:$HH$248,GB$1) -> 29 | GC55: =VLOOKUP(DropDownList!$B$47,CntyQryCensus!$A$206:$HH$248,GC$1) -> 43 | GD55: =VLOOKUP(DropDownList!$B$47,CntyQryCensus!$A$206:$HH$248,GD$1) -> 36 | GE55: =VLOOKUP(DropDownList!$B$47,CntyQryCensus!$A$206:$HH$248,GE$1) -> 46 | GF55: =VLOOKUP(DropDownList!$B$47,CntyQryCensus!$A$206:$HH$248,GF$1) -> 45 | GG55: =VLOOKUP(DropDownList!$B$47,CntyQryCensus!$A$206:$HH$248,GG$1) -> 82 | GH55: =VLOOKUP(DropDownList!$B$47,CntyQryCensus!$A$206:$HH$248,GH$1) -> 99 | GI55: =VLOOKUP(DropDownList!$B$47,CntyQryCensus!$A$206:$HH$248,GI$1) -> 74 | GJ55: =VLOOKUP(DropDownList!$B$47,CntyQryCensus!$A$206:$HH$248,GJ$1) -> 41 | GK55: =VLOOKUP(DropDownList!$B$47,CntyQryCensus!$A$206:$HH$248,GK$1) -> 4 | GL55: =VLOOKUP(DropDownList!$B$47,CntyQryCensus!$A$206:$HH$248,GL$1) -> 10 | GM55: =VLOOKUP(DropDownList!$B$47,CntyQryCensus!$A$206:$HH$248,GM$1) -> 11 | GN55: =VLOOKUP(DropDownList!$B$47,CntyQryCensus!$A$206:$HH$248,GN$1) -> 50650 | GO55: =VLOOKUP(DropDownList!$B$47,CntyQryCensus!$A$206:$HH$248,GO$1) -> 35968200 | GP55: =VLOOKUP(DropDownList!$B$47,CntyQryCensus!$A$206:$HH$248,GP$1) -> 296 | GQ55: =VLOOKUP(DropDownList!$B$47,CntyQryCensus!$A$206:$HH$248,GQ$1) -> 81 | GR55: =VLOOKUP(DropDownList!$B$47,CntyQryCensus!$A$206:$HH$248,GR$1) -> 44 | GS55: =VLOOKUP(DropDownList!$B$47,CntyQryCensus!$A$206:$HH$248,GS$1) -> 31 | GT55: =VLOOKUP(DropDownList!$B$47,CntyQryCensus!$A$206:$HH$248,GT$1) -> 12 | GU55: =VLOOKUP(DropDownList!$B$47,CntyQryCensus!$A$206:$HH$248,GU$1) -> 25 | GV55: =VLOOKUP(DropDownList!$B$47,CntyQryCensus!$A$206:$HH$248,GV$1) -> 12 | GW55: =VLOOKUP(DropDownList!$B$47,CntyQryCensus!$A$206:$HH$248,GW$1) -> 4 | GX55: =VLOOKUP(DropDownList!$B$47,CntyQryCensus!$A$206:$HH$248,GX$1) -> 5 | GY55: =VLOOKUP(DropDownList!$B$47,CntyQryCensus!$A$206:$HH$248,GY$1) -> 22 | GZ55: =VLOOKUP(DropDownList!$B$47,CntyQryCensus!$A$206:$HH$248,GZ$1) -> 21 | HA55: =VLOOKUP(DropDownList!$B$47,CntyQryCensus!$A$206:$HH$248,HA$1) -> 21 | HB55: =VLOOKUP(DropDownList!$B$47,CntyQryCensus!$A$206:$HH$248,HB$1) -> 9 | HC55: =VLOOKUP(DropDownList!$B$47,CntyQryCensus!$A$206:$HH$248,HC$1) -> 7 | HD55: =VLOOKUP(DropDownList!$B$47,CntyQryCensus!$A$206:$HH$248,HD$1) -> 2 | HE55: =VLOOKUP(DropDownList!$B$47,CntyQryCensus!$A$206:$HH$248,HE$1) -> 0 | HF55: =VLOOKUP(DropDownList!$B$47,CntyQryCensus!$A$206:$HH$248,HF$1) -> 0 | HG55: =VLOOKUP(DropDownList!$B$47,CntyQryCensus!$A$206:$HH$248,HG$1) -> 18667 | HH55: =VLOOKUP(DropDownList!$B$47,CntyQryCensus!$A$206:$HH$248,HH$1) -> 18978
A58: Census 2000 SummaryFile3 Sample Data - SF3TownQry2bPovertyChar
A59: NAME | B59: LOGRECNO | C59: COUNTY | D59: TotalPop | E59: P52Households1 | F59: P82PerCapitaInc | G59: P87PopForPovStatus | H59: P87PopWIncBelowPovStatus | I59: P87PopUnder5yrBelowPoverty | J59: P87Pop5yrBelowPoverty | K59: P87Pop5to11yrBelowPoverty | L59: P87Pop12to17yrBelowPoverty | M59: P87Pop18to64yrBelowPoverty | N59: P87Pop65to74yrBelowPoverty | O59: P87PopOver75yrBelowPoverty | P59: P87PopWIncAbovePovStatus | Q59: P87PopUnder5yrAbovePoverty | R59: P87Pop5yrAbovePoverty | S59: P87Pop5to11yrAbovePoverty | T59: P87Pop12to17yrAbovePoverty | U59: P87Pop18to64yrAbovePoverty | V59: P87Pop65to74yrAbovePoverty | W59: P87PopOver75yrAbovePoverty | X59: P90Families | Y59: P90FamWIncBelowPov | Z59: P90MarCupFamWIncBelowPov | AA59: P90MCFamWRltdChld<18WIncBelowPov | AB59: P90MCFamWRltdChld<5WIncBelowPov | AC59: P90MaleHhlrWIncBelowPov | AD59: P90MaleHhlrWRltdChld<18yrWIncBelowPov | AE59: P90MaleHhlrWRltdChld<5yrWIncBelowPov | AF59: P90FemaleHhlrWIncBelowPov | AG59: P90FemaleHhlrWRltdChld<18yWIncBelowPov | AH59: P90FemaleHhlrWRltdChld<5yWIncBelowPov | AI59: P90FamWIncAbovePov | AJ59: P90MarCupFamWIncAbovePov | AK59: P90MCFamWRltdChld<18WIncAbovePov | AL59: P90MCFamWRltdChld<5WIncAbovePov | AM59: P90MaleHhlrWIncAbovePov | AN59: P90MaleHhlrWRltdChld<18yrWIncAbovePov | AO59: P90MaleHhlrWRltdChld<5yrWIncAbovePov | AP59: P90FemaleHhlrWIncAbovePov | AQ59: P90FemaleHhlrWRltdChld<18yWIncAbovePov | AR59: P90FemaleHhlrWRltdChld<5yWIncAbovePov | AS59: P92Households | AT59: P92HHwIncBelowPov | AU59: P92FamHHwIncBelowPov | AV59: P92MCFamHHwIncBelowPov | AW59: P92MaleFamHHwIncBelowPov | AX59: P92FemaleFamHHwIncBelowPov | AY59: P92NonFamHHwIncBelowPov | AZ59: P92NonFamMaleHHwIncBelowPov | BA59: P92NonFamFemaleHHwIncBelowPov | BB59: P92HHwIncAbovePov | BC59: P92FamHHwIncAbovePov | BD59: P92MCFamHHwIncAbovePov | BE59: P92MaleFamHHwIncAbovePov | BF59: P92FemaleFamHHwIncAbovePov | BG59: P92NonFamHHwIncAbovePov | BH59: P92NonFamMaleHHwIncAbovePov | BI59: P92NonFamFemaleHHwIncAbovePov
A60: =VLOOKUP(DropDownList!$B$47,CntyQryCensus!$A$256:$BI$298,A$1) -> Antrim | B60: =VLOOKUP(DropDownList!$B$47,CntyQryCensus!$A$256:$BI$298,B$1) -> 0001568 | C60: =VLOOKUP(DropDownList!$B$47,CntyQryCensus!$A$256:$BI$298,C$1) -> 01700 | D60: =VLOOKUP(DropDownList!$B$47,CntyQryCensus!$A$256:$BI$298,D$1) -> 2449 | E60: =VLOOKUP(DropDownList!$B$47,CntyQryCensus!$A$256:$BI$298,E$1) -> 925 | F60: =VLOOKUP(DropDownList!$B$47,CntyQryCensus!$A$256:$BI$298,F$1) -> 18978 | G60: =VLOOKUP(DropDownList!$B$47,CntyQryCensus!$A$256:$BI$298,G$1) -> 2411 | H60: =VLOOKUP(DropDownList!$B$47,CntyQryCensus!$A$256:$BI$298,H$1) -> 277 | I60: =VLOOKUP(DropDownList!$B$47,CntyQryCensus!$A$256:$BI$298,I$1) -> 42 | J60: =VLOOKUP(DropDownList!$B$47,CntyQryCensus!$A$256:$BI$298,J$1) -> 0 | K60: =VLOOKUP(DropDownList!$B$47,CntyQryCensus!$A$256:$BI$298,K$1) -> 39 | L60: =VLOOKUP(DropDownList!$B$47,CntyQryCensus!$A$256:$BI$298,L$1) -> 22 | M60: =VLOOKUP(DropDownList!$B$47,CntyQryCensus!$A$256:$BI$298,M$1) -> 131 | N60: =VLOOKUP(DropDownList!$B$47,CntyQryCensus!$A$256:$BI$298,N$1) -> 25 | O60: =VLOOKUP(DropDownList!$B$47,CntyQryCensus!$A$256:$BI$298,O$1) -> 18 | P60: =VLOOKUP(DropDownList!$B$47,CntyQryCensus!$A$256:$BI$298,P$1) -> 2134 | Q60: =VLOOKUP(DropDownList!$B$47,CntyQryCensus!$A$256:$BI$298,Q$1) -> 81 | R60: =VLOOKUP(DropDownList!$B$47,CntyQryCensus!$A$256:$BI$298,R$1) -> 34 | S60: =VLOOKUP(DropDownList!$B$47,CntyQryCensus!$A$256:$BI$298,S$1) -> 262 | T60: =VLOOKUP(DropDownList!$B$47,CntyQryCensus!$A$256:$BI$298,T$1) -> 190 | U60: =VLOOKUP(DropDownList!$B$47,CntyQryCensus!$A$256:$BI$298,U$1) -> 1342 | V60: =VLOOKUP(DropDownList!$B$47,CntyQryCensus!$A$256:$BI$298,V$1) -> 130 | W60: =VLOOKUP(DropDownList!$B$47,CntyQryCensus!$A$256:$BI$298,W$1) -> 95 | X60: =VLOOKUP(DropDownList!$B$47,CntyQryCensus!$A$256:$BI$298,X$1) -> 629 | Y60: =VLOOKUP(DropDownList!$B$47,CntyQryCensus!$A$256:$BI$298,Y$1) -> 52 | Z60: =VLOOKUP(DropDownList!$B$47,CntyQryCensus!$A$256:$BI$298,Z$1) -> 30 | AA60: =VLOOKUP(DropDownList!$B$47,CntyQryCensus!$A$256:$BI$298,AA$1) -> 8 | AB60: =VLOOKUP(DropDownList!$B$47,CntyQryCensus!$A$256:$BI$298,AB$1) -> 8 | AC60: =VLOOKUP(DropDownList!$B$47,CntyQryCensus!$A$256:$BI$298,AC$1) -> 0 | AD60: =VLOOKUP(DropDownList!$B$47,CntyQryCensus!$A$256:$BI$298,AD$1) -> 0 | AE60: =VLOOKUP(DropDownList!$B$47,CntyQryCensus!$A$256:$BI$298,AE$1) -> 0 | AF60: =VLOOKUP(DropDownList!$B$47,CntyQryCensus!$A$256:$BI$298,AF$1) -> 22 | AG60: =VLOOKUP(DropDownList!$B$47,CntyQryCensus!$A$256:$BI$298,AG$1) -> 22 | AH60: =VLOOKUP(DropDownList!$B$47,CntyQryCensus!$A$256:$BI$298,AH$1) -> 0 | AI60: =VLOOKUP(DropDownList!$B$47,CntyQryCensus!$A$256:$BI$298,AI$1) -> 577 | AJ60: =VLOOKUP(DropDownList!$B$47,CntyQryCensus!$A$256:$BI$298,AJ$1) -> 485 | AK60: =VLOOKUP(DropDownList!$B$47,CntyQryCensus!$A$256:$BI$298,AK$1) -> 239 | AL60: =VLOOKUP(DropDownList!$B$47,CntyQryCensus!$A$256:$BI$298,AL$1) -> 32 | AM60: =VLOOKUP(DropDownList!$B$47,CntyQryCensus!$A$256:$BI$298,AM$1) -> 42 | AN60: =VLOOKUP(DropDownList!$B$47,CntyQryCensus!$A$256:$BI$298,AN$1) -> 30 | AO60: =VLOOKUP(DropDownList!$B$47,CntyQryCensus!$A$256:$BI$298,AO$1) -> 4 | AP60: =VLOOKUP(DropDownList!$B$47,CntyQryCensus!$A$256:$BI$298,AP$1) -> 50 | AQ60: =VLOOKUP(DropDownList!$B$47,CntyQryCensus!$A$256:$BI$298,AQ$1) -> 43 | AR60: =VLOOKUP(DropDownList!$B$47,CntyQryCensus!$A$256:$BI$298,AR$1) -> 0 | AS60: =VLOOKUP(DropDownList!$B$47,CntyQryCensus!$A$256:$BI$298,AS$1) -> 925 | AT60: =VLOOKUP(DropDownList!$B$47,CntyQryCensus!$A$256:$BI$298,AT$1) -> 111 | AU60: =VLOOKUP(DropDownList!$B$47,CntyQryCensus!$A$256:$BI$298,AU$1) -> 52 | AV60: =VLOOKUP(DropDownList!$B$47,CntyQryCensus!$A$256:$BI$298,AV$1) -> 30 | AW60: =VLOOKUP(DropDownList!$B$47,CntyQryCensus!$A$256:$BI$298,AW$1) -> 0 | AX60: =VLOOKUP(DropDownList!$B$47,CntyQryCensus!$A$256:$BI$298,AX$1) -> 22 | AY60: =VLOOKUP(DropDownList!$B$47,CntyQryCensus!$A$256:$BI$298,AY$1) -> 59 | AZ60: =VLOOKUP(DropDownList!$B$47,CntyQryCensus!$A$256:$BI$298,AZ$1) -> 24 | BA60: =VLOOKUP(DropDownList!$B$47,CntyQryCensus!$A$256:$BI$298,BA$1) -> 35 | BB60: =VLOOKUP(DropDownList!$B$47,CntyQryCensus!$A$256:$BI$298,BB$1) -> 814 | BC60: =VLOOKUP(DropDownList!$B$47,CntyQryCensus!$A$256:$BI$298,BC$1) -> 577 | BD60: =VLOOKUP(DropDownList!$B$47,CntyQryCensus!$A$256:$BI$298,BD$1) -> 485 | BE60: =VLOOKUP(DropDownList!$B$47,CntyQryCensus!$A$256:$BI$298,BE$1) -> 42 | BF60: =VLOOKUP(DropDownList!$B$47,CntyQryCensus!$A$256:$BI$298,BF$1) -> 50 | BG60: =VLOOKUP(DropDownList!$B$47,CntyQryCensus!$A$256:$BI$298,BG$1) -> 237 | BH60: =VLOOKUP(DropDownList!$B$47,CntyQryCensus!$A$256:$BI$298,BH$1) -> 110 | BI60: =VLOOKUP(DropDownList!$B$47,CntyQryCensus!$A$256:$BI$298,BI$1) -> 127
S61: =SUM(R60:T60) -> 486
A63: Census 2000 SummaryFile3 Sample Data - SF3TownQry7HousingA
A64: NAME | B64: LOGRECNO | C64: COUNTY | D64: TotalPop | E64: H1HousingUnitsTotal | F64: H2SampleHU | G64: H2SampleOccHU | H64: H2SampleVacHU | I64: H3HU100pctCount | J64: H5HUTotal | K64: H5HUUrban | L64: H5HUUrbanInUrbanAreas | M64: H5HUUrbanInUrbanClusters | N64: H5HURural | O64: H5HURuralFarm | P64: H5HURuralNonFarm | Q64: H7HUOcc | R64: H7HUOwnrOcc | S64: H7HURentrOcc | T64: H8HUVacant | U64: H8HUVacantForRent | V64: H8HUVacantForSale | W64: H8HUVacRentedorSold | X64: H8HUVacSeasonal | Y64: H8HUVacForMigrantWrkrs | Z64: H8HUOtherVacant | AA64: H14OccHUa | AB64: H14OwnerOccHU | AC64: H14OwnOccHuHh15to24 | AD64: H14OwnOccHuHh25to34 | AE64: H14OwnOccHuHh35to44 | AF64: H14OwnOccHuHh45to54 | AG64: H14OwnOccHuHh55to59 | AH64: H14OwnOccHuHh60to64 | AI64: H14OwnOccHuHh65to74 | AJ64: H14OwnOccHuHh75to84 | AK64: H14OwnOccHuHh85Over | AL64: H14RenterOccHU1 | AM64: H14RntrOccHuHh15to24 | AN64: H14RntrOccHuHh25to34 | AO64: H14RntrOccHuHh35to44 | AP64: H14RntrOccHuHh45to54 | AQ64: H14RntrOccHuHh55to59 | AR64: H14RntrOccHuHh60to64 | AS64: H14RntrOccHuHh65to74 | AT64: H14RntrOccHuHh75to84 | AU64: H14RntrOccHuHh85Over | AV64: H15PopInOccHU | AW64: H15PopInOwnOccHU1 | AX64: H15PopInRentOccHU1 | AY64: H17OccupHUb | AZ64: H17OwnOccHU2 | BA64: H17OwnOccHU1PersonHH | BB64: H17OwnOccHU2PersonHH | BC64: H17OwnOccHU3PersonHH | BD64: H17OwnOccHU4PersonHH | BE64: H17OwnOccHU5PersonHH | BF64: H17OwnOccHU6PersonHH | BG64: H17OwnOccHU7PlusPersonHH | BH64: H17RentOccHU2 | BI64: H17RntOccHU1PersonHH | BJ64: H17RntOccHU2PersonHH | BK64: H17RntOccHU3PersonHH | BL64: H17RntOccHU4PersonHH | BM64: H17RntOccHU5PersonHH | BN64: H17RntOccHU6PersonHH | BO64: H17RntOccHU7PlusPersonHH | BP64: H18AvgHHSize | BQ64: H18AvgHHSizeOwnOcc | BR64: H18AvgHHSizeRentOcc | BS64: H23TotHU | BT64: H23HU1Room | BU64: H23HU2Room | BV64: H23HU3Room | BW64: H23HU4Room | BX64: H23HU5Room | BY64: H23HU6Room | BZ64: H23HU7Room | CA64: H23HU8Room | CB64: H23HU9orMoreRoom | CC64: H24MedianNumRooms | CD64: H25AggregNumRooms | CE64: H30TotalHU | CF64: H30Det1HU | CG64: H30Att1HU | CH64: H30Units2 | CI64: H30Units3or4 | CJ64: H30Units5to9 | CK64: H30Units10to19 | CL64: H30Units20to49 | CM64: H30Units50orMore | CN64: H30UnitsMobileHome | CO64: H30UnitsBoatRv | CP64: H32OccHUcTotal | CQ64: H32OwnerOccHU3 | CR64: H32OwnOccHU1Det | CS64: H32OwnOccHU1Att | CT64: H32OwnOccHU2Unit | CU64: H32OwnOccHU3to4Unit | CV64: H32OwnOccHU5to9Unit | CW64: H32OwnOccHU10to19Unit | CX64: H32OwnOccHU20to49Unit | CY64: H32OwnOccHU50plusUnit | CZ64: H32OwnOccHUMobHom | DA64: H32OwnOccHUBoatRVOth | DB64: H32RentrOccHU3 | DC64: H32RntrOccHU1Det | DD64: H32RntrOccHU1Att | DE64: H32RntrOccHU2Unit | DF64: H32RntrOccHU3to4Unit | DG64: H32RntrOccHU5to9Unit | DH64: H32RntrOccHU10to19Unit | DI64: H32RntrOccHU20to49Unit | DJ64: H32RntrOccHU50PlusUnit | DK64: H32RntrOccHUMobHom | DL64: H32RntrOccHUBoatRVOth | DM64: H33TotPopInOccHU | DN64: H33PopInOwnOccHU2 | DO64: H33PopInOOHU1Det | DP64: H33PopInOOHU1Att | DQ64: H33PopInOOHU2unit | DR64: H33PopInOOHU3to4Unit | DS64: H33PopInOOHU5to9Unit | DT64: H33PopInOOHU10to19Unit | DU64: H33PopInOOHU20to49Unit | DV64: H33PopInOOHU50PlusUnit | DW64: H33PopInOOHUMobilHome | DX64: H33PopInOOHUOtherUnit | DY64: H33PopInRentOccHU2 | DZ64: H33PopInROHU1Det | EA64: H33PopInROHU1Att | EB64: H33PopInROHU2Unit | EC64: H33PopInROHU3to4Unit | ED64: H33PopInROHU5to9Unit | EE64: H33PopInROHU10to19Unit | EF64: H33PopInROHU20to49Unit | EG64: H33PopInROHU50PlusUnit | EH64: H33PopInROHUMobilHome | EI64: H33PopInROHUOtherUnit | EJ64: H36OccHousingUnitsdTotal | EK64: H36OwnerOccHU4 | EL64: H36OOHUBuilt99to0300 | EM64: H36OOHUBuilt95to98 | EN64: H36OOHUBuilt90to94 | EO64: H36OOHUBuilt80to89 | EP64: H36OOHUBuilt70to79 | EQ64: H36OOHUBuilt60to69 | ER64: H36OOHUBuilt50to59 | ES64: H36OOHUBuilt40to49 | ET64: H36OOHUBuilt39Earlier | EU64: H36RentOccHU4 | EV64: H36ROHUBuilt99to0300 | EW64: H36ROHUBuilt95to98 | EX64: H36ROHUBuilt90to94 | EY64: H36ROHUBuilt80to89 | EZ64: H36ROHUBuilt70to79 | FA64: H36ROHUBuilt60to69 | FB64: H36ROHUBuilt50to59 | FC64: H36ROHUBuilt40to49 | FD64: H36ROHUBuilt39Earlier | FE64: H40OccupHousUnitse | FF64: H40HeatFuelUtilGas | FG64: H40HeatFuelBotGas | FH64: H40HeatFuelElect | FI64: H40HeatFuelOilKero | FJ64: H40HeatFuelCoal | FK64: H40HeatFuelWood | FL64: H40HeatFuelSolar | FM64: H40HeatFuelOther | FN64: H40HeatFuelNone | FO64: H41TotalHU | FP64: H41HUNoBdrm | FQ64: H41HU1Bdrm | FR64: H41HU2Bdrm | FS64: H41HU3Bdrm | FT64: H41HU4Bdrm | FU64: H41HU5MoreBdrm | FV64: H42OccuHousUnitf | FW64: H42OwnerOccHU5 | FX64: H42OOHUNoBdrm | FY64: H42OOHU1Bdrm | FZ64: H42OOHU2Bdrm | GA64: H42OOHU3Bdrm | GB64: H42OOHU4Bdrm | GC64: H42OOHU5PlusBdrm | GD64: H42RentOccHU5 | GE64: H42ROHUNoBdrm | GF64: H42ROHU1Bdrm | GG64: H42ROHU2Bdrm | GH64: H42ROHU3Bdrm | GI64: H42ROHU4Bdrm | GJ64: H42ROHU5PlusBdrm | GK64: H48OccupHousUnitsg | GL64: H48OwnerOccHU6 | GM64: H48OOHUwCompltPlumFacil | GN64: H48OOHULackCompltPlumFacil | GO64: H48RentOccHU6 | GP64: H48ROHUwCompltPlumFacil | GQ64: H48ROHULackCompltPlumFacil | GR64: H51OccupHousUnitf | GS64: H51OwnerOccHU7 | GT64: H51OOHUwCompleteKitFacil | GU64: H51OOHULackCompleteKitFacil | GV64: H51RenterOccHU7 | GW64: H51ROHUwCompleteKitFacil | GX64: H51ROHULackCompleteKitFacil
A65: =VLOOKUP(DropDownList!$B47,CntyQryCensus!$A$306:$GX$348,A$1) -> Antrim | B65: =VLOOKUP(DropDownList!$B47,CntyQryCensus!$A$306:$GX$348,B$1) -> 0001568 | C65: =VLOOKUP(DropDownList!$B47,CntyQryCensus!$A$306:$GX$348,C$1) -> 01700 | D65: =VLOOKUP(DropDownList!$B47,CntyQryCensus!$A$306:$GX$348,D$1) -> 2449 | E65: =VLOOKUP(DropDownList!$B47,CntyQryCensus!$A$306:$GX$348,E$1) -> 1160 | F65: =VLOOKUP(DropDownList!$B47,CntyQryCensus!$A$306:$GX$348,F$1) -> 263 | G65: =VLOOKUP(DropDownList!$B47,CntyQryCensus!$A$306:$GX$348,G$1) -> 216 | H65: =VLOOKUP(DropDownList!$B47,CntyQryCensus!$A$306:$GX$348,H$1) -> 47 | I65: =VLOOKUP(DropDownList!$B47,CntyQryCensus!$A$306:$GX$348,I$1) -> 1160 | J65: =VLOOKUP(DropDownList!$B47,CntyQryCensus!$A$306:$GX$348,J$1) -> 1160 | K65: =VLOOKUP(DropDownList!$B47,CntyQryCensus!$A$306:$GX$348,K$1) -> 0 | L65: =VLOOKUP(DropDownList!$B47,CntyQryCensus!$A$306:$GX$348,L$1) -> 0 | M65: =VLOOKUP(DropDownList!$B47,CntyQryCensus!$A$306:$GX$348,M$1) -> 0 | N65: =VLOOKUP(DropDownList!$B47,CntyQryCensus!$A$306:$GX$348,N$1) -> 1160 | O65: =VLOOKUP(DropDownList!$B47,CntyQryCensus!$A$306:$GX$348,O$1) -> 9 | P65: =VLOOKUP(DropDownList!$B47,CntyQryCensus!$A$306:$GX$348,P$1) -> 1151 | Q65: =VLOOKUP(DropDownList!$B47,CntyQryCensus!$A$306:$GX$348,Q$1) -> 932 | R65: =VLOOKUP(DropDownList!$B47,CntyQryCensus!$A$306:$GX$348,R$1) -> 689 | S65: =VLOOKUP(DropDownList!$B47,CntyQryCensus!$A$306:$GX$348,S$1) -> 243 | T65: =VLOOKUP(DropDownList!$B47,CntyQryCensus!$A$306:$GX$348,T$1) -> 228 | U65: =VLOOKUP(DropDownList!$B47,CntyQryCensus!$A$306:$GX$348,U$1) -> 2 | V65: =VLOOKUP(DropDownList!$B47,CntyQryCensus!$A$306:$GX$348,V$1) -> 13 | W65: =VLOOKUP(DropDownList!$B47,CntyQryCensus!$A$306:$GX$348,W$1) -> 3 | X65: =VLOOKUP(DropDownList!$B47,CntyQryCensus!$A$306:$GX$348,X$1) -> 204 | Y65: =VLOOKUP(DropDownList!$B47,CntyQryCensus!$A$306:$GX$348,Y$1) -> 0 | Z65: =VLOOKUP(DropDownList!$B47,CntyQryCensus!$A$306:$GX$348,Z$1) -> 6 | AA65: =VLOOKUP(DropDownList!$B47,CntyQryCensus!$A$306:$GX$348,AA$1) -> 932 | AB65: =VLOOKUP(DropDownList!$B47,CntyQryCensus!$A$306:$GX$348,AB$1) -> 689 | AC65: =VLOOKUP(DropDownList!$B47,CntyQryCensus!$A$306:$GX$348,AC$1) -> 21 | AD65: =VLOOKUP(DropDownList!$B47,CntyQryCensus!$A$306:$GX$348,AD$1) -> 35 | AE65: =VLOOKUP(DropDownList!$B47,CntyQryCensus!$A$306:$GX$348,AE$1) -> 155 | AF65: =VLOOKUP(DropDownList!$B47,CntyQryCensus!$A$306:$GX$348,AF$1) -> 207 | AG65: =VLOOKUP(DropDownList!$B47,CntyQryCensus!$A$306:$GX$348,AG$1) -> 40 | AH65: =VLOOKUP(DropDownList!$B47,CntyQryCensus!$A$306:$GX$348,AH$1) -> 72 | AI65: =VLOOKUP(DropDownList!$B47,CntyQryCensus!$A$306:$GX$348,AI$1) -> 60 | AJ65: =VLOOKUP(DropDownList!$B47,CntyQryCensus!$A$306:$GX$348,AJ$1) -> 88 | AK65: =VLOOKUP(DropDownList!$B47,CntyQryCensus!$A$306:$GX$348,AK$1) -> 11 | AL65: =VLOOKUP(DropDownList!$B47,CntyQryCensus!$A$306:$GX$348,AL$1) -> 243 | AM65: =VLOOKUP(DropDownList!$B47,CntyQryCensus!$A$306:$GX$348,AM$1) -> 18 | AN65: =VLOOKUP(DropDownList!$B47,CntyQryCensus!$A$306:$GX$348,AN$1) -> 40 | AO65: =VLOOKUP(DropDownList!$B47,CntyQryCensus!$A$306:$GX$348,AO$1) -> 57 | AP65: =VLOOKUP(DropDownList!$B47,CntyQryCensus!$A$306:$GX$348,AP$1) -> 48 | AQ65: =VLOOKUP(DropDownList!$B47,CntyQryCensus!$A$306:$GX$348,AQ$1) -> 21 | AR65: =VLOOKUP(DropDownList!$B47,CntyQryCensus!$A$306:$GX$348,AR$1) -> 0 | AS65: =VLOOKUP(DropDownList!$B47,CntyQryCensus!$A$306:$GX$348,AS$1) -> 0 | AT65: =VLOOKUP(DropDownList!$B47,CntyQryCensus!$A$306:$GX$348,AT$1) -> 31 | AU65: =VLOOKUP(DropDownList!$B47,CntyQryCensus!$A$306:$GX$348,AU$1) -> 28 | AV65: =VLOOKUP(DropDownList!$B47,CntyQryCensus!$A$306:$GX$348,AV$1) -> 2439 | AW65: =VLOOKUP(DropDownList!$B47,CntyQryCensus!$A$306:$GX$348,AW$1) -> 1961 | AX65: =VLOOKUP(DropDownList!$B47,CntyQryCensus!$A$306:$GX$348,AX$1) -> 478 | AY65: =VLOOKUP(DropDownList!$B47,CntyQryCensus!$A$306:$GX$348,AY$1) -> 932 | AZ65: =VLOOKUP(DropDownList!$B47,CntyQryCensus!$A$306:$GX$348,AZ$1) -> 689 | BA65: =VLOOKUP(DropDownList!$B47,CntyQryCensus!$A$306:$GX$348,BA$1) -> 124 | BB65: =VLOOKUP(DropDownList!$B47,CntyQryCensus!$A$306:$GX$348,BB$1) -> 249 | BC65: =VLOOKUP(DropDownList!$B47,CntyQryCensus!$A$306:$GX$348,BC$1) -> 106 | BD65: =VLOOKUP(DropDownList!$B47,CntyQryCensus!$A$306:$GX$348,BD$1) -> 134 | BE65: =VLOOKUP(DropDownList!$B47,CntyQryCensus!$A$306:$GX$348,BE$1) -> 48 | BF65: =VLOOKUP(DropDownList!$B47,CntyQryCensus!$A$306:$GX$348,BF$1) -> 14 | BG65: =VLOOKUP(DropDownList!$B47,CntyQryCensus!$A$306:$GX$348,BG$1) -> 14 | BH65: =VLOOKUP(DropDownList!$B47,CntyQryCensus!$A$306:$GX$348,BH$1) -> 243 | BI65: =VLOOKUP(DropDownList!$B47,CntyQryCensus!$A$306:$GX$348,BI$1) -> 117 | BJ65: =VLOOKUP(DropDownList!$B47,CntyQryCensus!$A$306:$GX$348,BJ$1) -> 58 | BK65: =VLOOKUP(DropDownList!$B47,CntyQryCensus!$A$306:$GX$348,BK$1) -> 12 | BL65: =VLOOKUP(DropDownList!$B47,CntyQryCensus!$A$306:$GX$348,BL$1) -> 24 | BM65: =VLOOKUP(DropDownList!$B47,CntyQryCensus!$A$306:$GX$348,BM$1) -> 23 | BN65: =VLOOKUP(DropDownList!$B47,CntyQryCensus!$A$306:$GX$348,BN$1) -> 0 | BO65: =VLOOKUP(DropDownList!$B47,CntyQryCensus!$A$306:$GX$348,BO$1) -> 9 | BP65: =VLOOKUP(DropDownList!$B47,CntyQryCensus!$A$306:$GX$348,BP$1) -> 3 | BQ65: =VLOOKUP(DropDownList!$B47,CntyQryCensus!$A$306:$GX$348,BQ$1) -> 3 | BR65: =VLOOKUP(DropDownList!$B47,CntyQryCensus!$A$306:$GX$348,BR$1) -> 2 | BS65: =VLOOKUP(DropDownList!$B47,CntyQryCensus!$A$306:$GX$348,BS$1) -> 1160 | BT65: =VLOOKUP(DropDownList!$B47,CntyQryCensus!$A$306:$GX$348,BT$1) -> 5 | BU65: =VLOOKUP(DropDownList!$B47,CntyQryCensus!$A$306:$GX$348,BU$1) -> 32 | BV65: =VLOOKUP(DropDownList!$B47,CntyQryCensus!$A$306:$GX$348,BV$1) -> 165 | BW65: =VLOOKUP(DropDownList!$B47,CntyQryCensus!$A$306:$GX$348,BW$1) -> 202 | BX65: =VLOOKUP(DropDownList!$B47,CntyQryCensus!$A$306:$GX$348,BX$1) -> 249 | BY65: =VLOOKUP(DropDownList!$B47,CntyQryCensus!$A$306:$GX$348,BY$1) -> 172 | BZ65: =VLOOKUP(DropDownList!$B47,CntyQryCensus!$A$306:$GX$348,BZ$1) -> 129 | CA65: =VLOOKUP(DropDownList!$B47,CntyQryCensus!$A$306:$GX$348,CA$1) -> 88 | CB65: =VLOOKUP(DropDownList!$B47,CntyQryCensus!$A$306:$GX$348,CB$1) -> 118 | CC65: =VLOOKUP(DropDownList!$B47,CntyQryCensus!$A$306:$GX$348,CC$1) -> 5 | CD65: =VLOOKUP(DropDownList!$B47,CntyQryCensus!$A$306:$GX$348,CD$1) -> 6436 | CE65: =VLOOKUP(DropDownList!$B47,CntyQryCensus!$A$306:$GX$348,CE$1) -> 1160 | CF65: =VLOOKUP(DropDownList!$B47,CntyQryCensus!$A$306:$GX$348,CF$1) -> 869 | CG65: =VLOOKUP(DropDownList!$B47,CntyQryCensus!$A$306:$GX$348,CG$1) -> 38 | CH65: =VLOOKUP(DropDownList!$B47,CntyQryCensus!$A$306:$GX$348,CH$1) -> 63 | CI65: =VLOOKUP(DropDownList!$B47,CntyQryCensus!$A$306:$GX$348,CI$1) -> 51 | CJ65: =VLOOKUP(DropDownList!$B47,CntyQryCensus!$A$306:$GX$348,CJ$1) -> 66 | CK65: =VLOOKUP(DropDownList!$B47,CntyQryCensus!$A$306:$GX$348,CK$1) -> 13 | CL65: =VLOOKUP(DropDownList!$B47,CntyQryCensus!$A$306:$GX$348,CL$1) -> 4 | CM65: =VLOOKUP(DropDownList!$B47,CntyQryCensus!$A$306:$GX$348,CM$1) -> 0 | CN65: =VLOOKUP(DropDownList!$B47,CntyQryCensus!$A$306:$GX$348,CN$1) -> 56 | CO65: =VLOOKUP(DropDownList!$B47,CntyQryCensus!$A$306:$GX$348,CO$1) -> 0 | CP65: =VLOOKUP(DropDownList!$B47,CntyQryCensus!$A$306:$GX$348,CP$1) -> 932 | CQ65: =VLOOKUP(DropDownList!$B47,CntyQryCensus!$A$306:$GX$348,CQ$1) -> 689 | CR65: =VLOOKUP(DropDownList!$B47,CntyQryCensus!$A$306:$GX$348,CR$1) -> 598 | CS65: =VLOOKUP(DropDownList!$B47,CntyQryCensus!$A$306:$GX$348,CS$1) -> 17 | CT65: =VLOOKUP(DropDownList!$B47,CntyQryCensus!$A$306:$GX$348,CT$1) -> 30 | CU65: =VLOOKUP(DropDownList!$B47,CntyQryCensus!$A$306:$GX$348,CU$1) -> 4 | CV65: =VLOOKUP(DropDownList!$B47,CntyQryCensus!$A$306:$GX$348,CV$1) -> 0 | CW65: =VLOOKUP(DropDownList!$B47,CntyQryCensus!$A$306:$GX$348,CW$1) -> 0 | CX65: =VLOOKUP(DropDownList!$B47,CntyQryCensus!$A$306:$GX$348,CX$1) -> 0 | CY65: =VLOOKUP(DropDownList!$B47,CntyQryCensus!$A$306:$GX$348,CY$1) -> 0 | CZ65: =VLOOKUP(DropDownList!$B47,CntyQryCensus!$A$306:$GX$348,CZ$1) -> 40 | DA65: =VLOOKUP(DropDownList!$B47,CntyQryCensus!$A$306:$GX$348,DA$1) -> 0 | DB65: =VLOOKUP(DropDownList!$B47,CntyQryCensus!$A$306:$GX$348,DB$1) -> 243 | DC65: =VLOOKUP(DropDownList!$B47,CntyQryCensus!$A$306:$GX$348,DC$1) -> 73 | DD65: =VLOOKUP(DropDownList!$B47,CntyQryCensus!$A$306:$GX$348,DD$1) -> 15 | DE65: =VLOOKUP(DropDownList!$B47,CntyQryCensus!$A$306:$GX$348,DE$1) -> 27 | DF65: =VLOOKUP(DropDownList!$B47,CntyQryCensus!$A$306:$GX$348,DF$1) -> 47 | DG65: =VLOOKUP(DropDownList!$B47,CntyQryCensus!$A$306:$GX$348,DG$1) -> 59 | DH65: =VLOOKUP(DropDownList!$B47,CntyQryCensus!$A$306:$GX$348,DH$1) -> 13 | DI65: =VLOOKUP(DropDownList!$B47,CntyQryCensus!$A$306:$GX$348,DI$1) -> 4 | DJ65: =VLOOKUP(DropDownList!$B47,CntyQryCensus!$A$306:$GX$348,DJ$1) -> 0 | DK65: =VLOOKUP(DropDownList!$B47,CntyQryCensus!$A$306:$GX$348,DK$1) -> 5 | DL65: =VLOOKUP(DropDownList!$B47,CntyQryCensus!$A$306:$GX$348,DL$1) -> 0 | DM65: =VLOOKUP(DropDownList!$B47,CntyQryCensus!$A$306:$GX$348,DM$1) -> 2439 | DN65: =VLOOKUP(DropDownList!$B47,CntyQryCensus!$A$306:$GX$348,DN$1) -> 1961 | DO65: =VLOOKUP(DropDownList!$B47,CntyQryCensus!$A$306:$GX$348,DO$1) -> 1681 | DP65: =VLOOKUP(DropDownList!$B47,CntyQryCensus!$A$306:$GX$348,DP$1) -> 32 | DQ65: =VLOOKUP(DropDownList!$B47,CntyQryCensus!$A$306:$GX$348,DQ$1) -> 133 | DR65: =VLOOKUP(DropDownList!$B47,CntyQryCensus!$A$306:$GX$348,DR$1) -> 5 | DS65: =VLOOKUP(DropDownList!$B47,CntyQryCensus!$A$306:$GX$348,DS$1) -> 0 | DT65: =VLOOKUP(DropDownList!$B47,CntyQryCensus!$A$306:$GX$348,DT$1) -> 0 | DU65: =VLOOKUP(DropDownList!$B47,CntyQryCensus!$A$306:$GX$348,DU$1) -> 0 | DV65: =VLOOKUP(DropDownList!$B47,CntyQryCensus!$A$306:$GX$348,DV$1) -> 0 | DW65: =VLOOKUP(DropDownList!$B47,CntyQryCensus!$A$306:$GX$348,DW$1) -> 110 | DX65: =VLOOKUP(DropDownList!$B47,CntyQryCensus!$A$306:$GX$348,DX$1) -> 0 | DY65: =VLOOKUP(DropDownList!$B47,CntyQryCensus!$A$306:$GX$348,DY$1) -> 478 | DZ65: =VLOOKUP(DropDownList!$B47,CntyQryCensus!$A$306:$GX$348,DZ$1) -> 135 | EA65: =VLOOKUP(DropDownList!$B47,CntyQryCensus!$A$306:$GX$348,EA$1) -> 45 | EB65: =VLOOKUP(DropDownList!$B47,CntyQryCensus!$A$306:$GX$348,EB$1) -> 58 | EC65: =VLOOKUP(DropDownList!$B47,CntyQryCensus!$A$306:$GX$348,EC$1) -> 65 | ED65: =VLOOKUP(DropDownList!$B47,CntyQryCensus!$A$306:$GX$348,ED$1) -> 110 | EE65: =VLOOKUP(DropDownList!$B47,CntyQryCensus!$A$306:$GX$348,EE$1) -> 56 | EF65: =VLOOKUP(DropDownList!$B47,CntyQryCensus!$A$306:$GX$348,EF$1) -> 3 | EG65: =VLOOKUP(DropDownList!$B47,CntyQryCensus!$A$306:$GX$348,EG$1) -> 0 | EH65: =VLOOKUP(DropDownList!$B47,CntyQryCensus!$A$306:$GX$348,EH$1) -> 6 | EI65: =VLOOKUP(DropDownList!$B47,CntyQryCensus!$A$306:$GX$348,EI$1) -> 0 | EJ65: =VLOOKUP(DropDownList!$B47,CntyQryCensus!$A$306:$GX$348,EJ$1) -> 932 | EK65: =VLOOKUP(DropDownList!$B47,CntyQryCensus!$A$306:$GX$348,EK$1) -> 689 | EL65: =VLOOKUP(DropDownList!$B47,CntyQryCensus!$A$306:$GX$348,EL$1) -> 5 | EM65: =VLOOKUP(DropDownList!$B47,CntyQryCensus!$A$306:$GX$348,EM$1) -> 23 | EN65: =VLOOKUP(DropDownList!$B47,CntyQryCensus!$A$306:$GX$348,EN$1) -> 9 | EO65: =VLOOKUP(DropDownList!$B47,CntyQryCensus!$A$306:$GX$348,EO$1) -> 140 | EP65: =VLOOKUP(DropDownList!$B47,CntyQryCensus!$A$306:$GX$348,EP$1) -> 107 | EQ65: =VLOOKUP(DropDownList!$B47,CntyQryCensus!$A$306:$GX$348,EQ$1) -> 64 | ER65: =VLOOKUP(DropDownList!$B47,CntyQryCensus!$A$306:$GX$348,ER$1) -> 48 | ES65: =VLOOKUP(DropDownList!$B47,CntyQryCensus!$A$306:$GX$348,ES$1) -> 23 | ET65: =VLOOKUP(DropDownList!$B47,CntyQryCensus!$A$306:$GX$348,ET$1) -> 270 | EU65: =VLOOKUP(DropDownList!$B47,CntyQryCensus!$A$306:$GX$348,EU$1) -> 243 | EV65: =VLOOKUP(DropDownList!$B47,CntyQryCensus!$A$306:$GX$348,EV$1) -> 0 | EW65: =VLOOKUP(DropDownList!$B47,CntyQryCensus!$A$306:$GX$348,EW$1) -> 0 | EX65: =VLOOKUP(DropDownList!$B47,CntyQryCensus!$A$306:$GX$348,EX$1) -> 5 | EY65: =VLOOKUP(DropDownList!$B47,CntyQryCensus!$A$306:$GX$348,EY$1) -> 69 | EZ65: =VLOOKUP(DropDownList!$B47,CntyQryCensus!$A$306:$GX$348,EZ$1) -> 28 | FA65: =VLOOKUP(DropDownList!$B47,CntyQryCensus!$A$306:$GX$348,FA$1) -> 10 | FB65: =VLOOKUP(DropDownList!$B47,CntyQryCensus!$A$306:$GX$348,FB$1) -> 20 | FC65: =VLOOKUP(DropDownList!$B47,CntyQryCensus!$A$306:$GX$348,FC$1) -> 16 | FD65: =VLOOKUP(DropDownList!$B47,CntyQryCensus!$A$306:$GX$348,FD$1) -> 95 | FE65: =VLOOKUP(DropDownList!$B47,CntyQryCensus!$A$306:$GX$348,FE$1) -> 932 | FF65: =VLOOKUP(DropDownList!$B47,CntyQryCensus!$A$306:$GX$348,FF$1) -> 11 | FG65: =VLOOKUP(DropDownList!$B47,CntyQryCensus!$A$306:$GX$348,FG$1) -> 159 | FH65: =VLOOKUP(DropDownList!$B47,CntyQryCensus!$A$306:$GX$348,FH$1) -> 31 | FI65: =VLOOKUP(DropDownList!$B47,CntyQryCensus!$A$306:$GX$348,FI$1) -> 629 | FJ65: =VLOOKUP(DropDownList!$B47,CntyQryCensus!$A$306:$GX$348,FJ$1) -> 14 | FK65: =VLOOKUP(DropDownList!$B47,CntyQryCensus!$A$306:$GX$348,FK$1) -> 88 | FL65: =VLOOKUP(DropDownList!$B47,CntyQryCensus!$A$306:$GX$348,FL$1) -> 0 | FM65: =VLOOKUP(DropDownList!$B47,CntyQryCensus!$A$306:$GX$348,FM$1) -> 0 | FN65: =VLOOKUP(DropDownList!$B47,CntyQryCensus!$A$306:$GX$348,FN$1) -> 0 | FO65: =VLOOKUP(DropDownList!$B47,CntyQryCensus!$A$306:$GX$348,FO$1) -> 1160 | FP65: =VLOOKUP(DropDownList!$B47,CntyQryCensus!$A$306:$GX$348,FP$1) -> 9 | FQ65: =VLOOKUP(DropDownList!$B47,CntyQryCensus!$A$306:$GX$348,FQ$1) -> 214 | FR65: =VLOOKUP(DropDownList!$B47,CntyQryCensus!$A$306:$GX$348,FR$1) -> 344 | FS65: =VLOOKUP(DropDownList!$B47,CntyQryCensus!$A$306:$GX$348,FS$1) -> 410 | FT65: =VLOOKUP(DropDownList!$B47,CntyQryCensus!$A$306:$GX$348,FT$1) -> 128 | FU65: =VLOOKUP(DropDownList!$B47,CntyQryCensus!$A$306:$GX$348,FU$1) -> 55 | FV65: =VLOOKUP(DropDownList!$B47,CntyQryCensus!$A$306:$GX$348,FV$1) -> 932 | FW65: =VLOOKUP(DropDownList!$B47,CntyQryCensus!$A$306:$GX$348,FW$1) -> 689 | FX65: =VLOOKUP(DropDownList!$B47,CntyQryCensus!$A$306:$GX$348,FX$1) -> 0 | FY65: =VLOOKUP(DropDownList!$B47,CntyQryCensus!$A$306:$GX$348,FY$1) -> 47 | FZ65: =VLOOKUP(DropDownList!$B47,CntyQryCensus!$A$306:$GX$348,FZ$1) -> 167 | GA65: =VLOOKUP(DropDownList!$B47,CntyQryCensus!$A$306:$GX$348,GA$1) -> 312 | GB65: =VLOOKUP(DropDownList!$B47,CntyQryCensus!$A$306:$GX$348,GB$1) -> 110 | GC65: =VLOOKUP(DropDownList!$B47,CntyQryCensus!$A$306:$GX$348,GC$1) -> 53 | GD65: =VLOOKUP(DropDownList!$B47,CntyQryCensus!$A$306:$GX$348,GD$1) -> 243 | GE65: =VLOOKUP(DropDownList!$B47,CntyQryCensus!$A$306:$GX$348,GE$1) -> 4 | GF65: =VLOOKUP(DropDownList!$B47,CntyQryCensus!$A$306:$GX$348,GF$1) -> 120 | GG65: =VLOOKUP(DropDownList!$B47,CntyQryCensus!$A$306:$GX$348,GG$1) -> 72 | GH65: =VLOOKUP(DropDownList!$B47,CntyQryCensus!$A$306:$GX$348,GH$1) -> 32 | GI65: =VLOOKUP(DropDownList!$B47,CntyQryCensus!$A$306:$GX$348,GI$1) -> 15 | GJ65: =VLOOKUP(DropDownList!$B47,CntyQryCensus!$A$306:$GX$348,GJ$1) -> 0 | GK65: =VLOOKUP(DropDownList!$B47,CntyQryCensus!$A$306:$GX$348,GK$1) -> 932 | GL65: =VLOOKUP(DropDownList!$B47,CntyQryCensus!$A$306:$GX$348,GL$1) -> 689 | GM65: =VLOOKUP(DropDownList!$B47,CntyQryCensus!$A$306:$GX$348,GM$1) -> 689 | GN65: =VLOOKUP(DropDownList!$B47,CntyQryCensus!$A$306:$GX$348,GN$1) -> 0 | GO65: =VLOOKUP(DropDownList!$B47,CntyQryCensus!$A$306:$GX$348,GO$1) -> 243 | GP65: =VLOOKUP(DropDownList!$B47,CntyQryCensus!$A$306:$GX$348,GP$1) -> 243 | GQ65: =VLOOKUP(DropDownList!$B47,CntyQryCensus!$A$306:$GX$348,GQ$1) -> 0 | GR65: =VLOOKUP(DropDownList!$B47,CntyQryCensus!$A$306:$GX$348,GR$1) -> 932 | GS65: =VLOOKUP(DropDownList!$B47,CntyQryCensus!$A$306:$GX$348,GS$1) -> 689 | GT65: =VLOOKUP(DropDownList!$B47,CntyQryCensus!$A$306:$GX$348,GT$1) -> 689 | GU65: =VLOOKUP(DropDownList!$B47,CntyQryCensus!$A$306:$GX$348,GU$1) -> 0 | GV65: =VLOOKUP(DropDownList!$B47,CntyQryCensus!$A$306:$GX$348,GV$1) -> 243 | GW65: =VLOOKUP(DropDownList!$B47,CntyQryCensus!$A$306:$GX$348,GW$1) -> 243 | GX65: =VLOOKUP(DropDownList!$B47,CntyQryCensus!$A$306:$GX$348,GX$1) -> 0
A68: Census 2000 SummaryFile3 Sample Data - SF3TownQry8HousingCostA
A69: NAME | B69: LOGRECNO | C69: COUNTY | D69: TotalPop | E69: H62RntrOccHU | F69: H62RntrOccHUwRent | G69: H62ROHUGRent<100 | H69: H62ROHUGRent100to149 | I69: H62ROHUGRent150to199 | J69: H62ROHUGRent200to249 | K69: H62ROHUGRent250to299 | L69: H62ROHUGRent300to349 | M69: H62ROHUGRent350to399 | N69: H62ROHUGRent400to449 | O69: H62ROHUGRent450to499 | P69: H62ROHUGRent500to549 | Q69: H62ROHUGRent550to599 | R69: H62ROHUGRent600to649 | S69: H62ROHUGRent650to699 | T69: H62ROHUGRent700to749 | U69: H62ROHUGRent750to799 | V69: H62ROHUGRent800to899 | W69: H62ROHUGRent900to999 | X69: H62ROHUGRent1000to1249 | Y69: H62ROHUGRent1250to1499 | Z69: H62ROHUGRent1500to1999 | AA69: H62ROHUGRent2000> | AB69: H62ROHUNoGRent | AC69: H63MedianGrossRnt | AD69: H69RenterOccHsU | AE69: H69GRnt<10PctHHInc | AF69: H69GRnt10to15PctHHInc | AG69: H69GRnt15to20PctHHInc | AH69: H69GRnt20to25PctHHInc | AI69: H69GRnt25to30PctHHInc | AJ69: H69GRnt30to35PctHHInc | AK69: H69GRnt35to40PctHHInc | AL69: H69GRnt40to50PctHHInc | AM69: H69GRnt>50PctHHInc | AN69: H69GRntPctNotcomputed | AO69: H73RenterOccHU | AP69: H73ROHUHhInc<10k | AQ69: H73ROHUHhInc<10kRnt<20pct | AR69: H73ROHUHhInc<10kRnt20to25pct | AS69: H73ROHUHhInc<10kRnt25to30pct | AT69: H73ROHUHhInc<10kRnt30to35pct | AU69: H73ROHUHhInc<10kRnt>35pct | AV69: H73ROHUHhInc<10kPctNotComput | AW69: H73ROHUHhInc10to20k | AX69: H73ROHUHhInc10to20kRnt<20pct | AY69: H73ROHUHhInc10to20kRnt20to25pct | AZ69: H73ROHUHhInc10to20kRnt25to30pct | BA69: H73ROHUHhInc10to20kRnt30to35pct | BB69: H73ROHUHhInc10to20kRnt>35pct | BC69: H73ROHUHhInc10to20kRntPctNC | BD69: H73ROHUHhInc20to35k | BE69: H73ROHUHhInc20to35kRnt<20pct | BF69: H73ROHUHhInc20to35kRnt20to25pct | BG69: H73ROHUHhInc20to35kRnt25to30pct | BH69: H73ROHUHhInc20to35kRnt30to35pct | BI69: H73ROHUHhInc20to35kRnt>35pct | BJ69: H73ROHUHhInc20to35kRntPctNC | BK69: H73ROHUHhInc35to40k | BL69: H73ROHUHhInc35to40kRnt<20pct | BM69: H73ROHUHhInc35to40kRnt20to25pct | BN69: H73ROHUHhInc35to40kRnt25to30pct | BO69: H73ROHUHhInc35to40kRnt30to35pct | BP69: H73ROHUHhInc35to40kRnt>35pct | BQ69: H73ROHUHhInc35to40kRntPctNC | BR69: H73ROHUHhInc50to75k | BS69: H73ROHUHhInc50to75kRnt<20pct | BT69: H73ROHUHhInc50to75kRnt20to25pct | BU69: H73ROHUHhInc50to75kRnt25to30pct | BV69: H73ROHUHhInc50to75kRnt30to35pct | BW69: H73ROHUHhInc50to75kRnt>35pct | BX69: H73ROHUHhInc50to75kRntPctNC | BY69: H73ROHUHhInc75to100k | BZ69: H73ROHUHhInc75to100kRnt<20pct | CA69: H73ROHUHhInc75to100kRnt20to25pct | CB69: H73ROHUHhInc75to100kRnt25to30pct | CC69: H73ROHUHhInc75to100kRnt30to35pct | CD69: H73ROHUHhInc75to100kRnt>35pct | CE69: H73ROHUHhInc75to100kRntPctNC | CF69: H73ROHUHhInc>100k | CG69: H73ROHUHhInc>100kRnt<20pct | CH69: H73ROHUHhInc>100kRnt20to25pct | CI69: H73ROHUHhInc>100kRnt25to30pct | CJ69: H73ROHUHhInc>100kRnt30to35pct | CK69: H73ROHUHhInc>100kRnt>35pct | CL69: H73ROHUHhInc>100kRntPctNC | CM69: H73ROHUHhInc>100kRntPctNC
A70: =VLOOKUP(DropDownList!$B$47,CntyQryCensus!$A$357:$CM$399,A$1) -> Antrim | B70: =VLOOKUP(DropDownList!$B$47,CntyQryCensus!$A$357:$CM$399,B$1) -> 0001568 | C70: =VLOOKUP(DropDownList!$B$47,CntyQryCensus!$A$357:$CM$399,C$1) -> 01700 | D70: =VLOOKUP(DropDownList!$B$47,CntyQryCensus!$A$357:$CM$399,D$1) -> 2449 | E70: =VLOOKUP(DropDownList!$B$47,CntyQryCensus!$A$357:$CM$399,E$1) -> 222 | F70: =VLOOKUP(DropDownList!$B$47,CntyQryCensus!$A$357:$CM$399,F$1) -> 207 | G70: =VLOOKUP(DropDownList!$B$47,CntyQryCensus!$A$357:$CM$399,G$1) -> 0 | H70: =VLOOKUP(DropDownList!$B$47,CntyQryCensus!$A$357:$CM$399,H$1) -> 19 | I70: =VLOOKUP(DropDownList!$B$47,CntyQryCensus!$A$357:$CM$399,I$1) -> 0 | J70: =VLOOKUP(DropDownList!$B$47,CntyQryCensus!$A$357:$CM$399,J$1) -> 4 | K70: =VLOOKUP(DropDownList!$B$47,CntyQryCensus!$A$357:$CM$399,K$1) -> 13 | L70: =VLOOKUP(DropDownList!$B$47,CntyQryCensus!$A$357:$CM$399,L$1) -> 14 | M70: =VLOOKUP(DropDownList!$B$47,CntyQryCensus!$A$357:$CM$399,M$1) -> 24 | N70: =VLOOKUP(DropDownList!$B$47,CntyQryCensus!$A$357:$CM$399,N$1) -> 23 | O70: =VLOOKUP(DropDownList!$B$47,CntyQryCensus!$A$357:$CM$399,O$1) -> 10 | P70: =VLOOKUP(DropDownList!$B$47,CntyQryCensus!$A$357:$CM$399,P$1) -> 17 | Q70: =VLOOKUP(DropDownList!$B$47,CntyQryCensus!$A$357:$CM$399,Q$1) -> 14 | R70: =VLOOKUP(DropDownList!$B$47,CntyQryCensus!$A$357:$CM$399,R$1) -> 19 | S70: =VLOOKUP(DropDownList!$B$47,CntyQryCensus!$A$357:$CM$399,S$1) -> 14 | T70: =VLOOKUP(DropDownList!$B$47,CntyQryCensus!$A$357:$CM$399,T$1) -> 0 | U70: =VLOOKUP(DropDownList!$B$47,CntyQryCensus!$A$357:$CM$399,U$1) -> 5 | V70: =VLOOKUP(DropDownList!$B$47,CntyQryCensus!$A$357:$CM$399,V$1) -> 14 | W70: =VLOOKUP(DropDownList!$B$47,CntyQryCensus!$A$357:$CM$399,W$1) -> 4 | X70: =VLOOKUP(DropDownList!$B$47,CntyQryCensus!$A$357:$CM$399,X$1) -> 13 | Y70: =VLOOKUP(DropDownList!$B$47,CntyQryCensus!$A$357:$CM$399,Y$1) -> 0 | Z70: =VLOOKUP(DropDownList!$B$47,CntyQryCensus!$A$357:$CM$399,Z$1) -> 0 | AA70: =VLOOKUP(DropDownList!$B$47,CntyQryCensus!$A$357:$CM$399,AA$1) -> 0 | AB70: =VLOOKUP(DropDownList!$B$47,CntyQryCensus!$A$357:$CM$399,AB$1) -> 15 | AC70: =VLOOKUP(DropDownList!$B$47,CntyQryCensus!$A$357:$CM$399,AC$1) -> 483 | AD70: =VLOOKUP(DropDownList!$B$47,CntyQryCensus!$A$357:$CM$399,AD$1) -> 222 | AE70: =VLOOKUP(DropDownList!$B$47,CntyQryCensus!$A$357:$CM$399,AE$1) -> 27 | AF70: =VLOOKUP(DropDownList!$B$47,CntyQryCensus!$A$357:$CM$399,AF$1) -> 23 | AG70: =VLOOKUP(DropDownList!$B$47,CntyQryCensus!$A$357:$CM$399,AG$1) -> 29 | AH70: =VLOOKUP(DropDownList!$B$47,CntyQryCensus!$A$357:$CM$399,AH$1) -> 26 | AI70: =VLOOKUP(DropDownList!$B$47,CntyQryCensus!$A$357:$CM$399,AI$1) -> 31 | AJ70: =VLOOKUP(DropDownList!$B$47,CntyQryCensus!$A$357:$CM$399,AJ$1) -> 15 | AK70: =VLOOKUP(DropDownList!$B$47,CntyQryCensus!$A$357:$CM$399,AK$1) -> 9 | AL70: =VLOOKUP(DropDownList!$B$47,CntyQryCensus!$A$357:$CM$399,AL$1) -> 9 | AM70: =VLOOKUP(DropDownList!$B$47,CntyQryCensus!$A$357:$CM$399,AM$1) -> 34 | AN70: =VLOOKUP(DropDownList!$B$47,CntyQryCensus!$A$357:$CM$399,AN$1) -> 19 | AO70: =VLOOKUP(DropDownList!$B$47,CntyQryCensus!$A$357:$CM$399,AO$1) -> 222 | AP70: =VLOOKUP(DropDownList!$B$47,CntyQryCensus!$A$357:$CM$399,AP$1) -> 49 | AQ70: =VLOOKUP(DropDownList!$B$47,CntyQryCensus!$A$357:$CM$399,AQ$1) -> 5 | AR70: =VLOOKUP(DropDownList!$B$47,CntyQryCensus!$A$357:$CM$399,AR$1) -> 0 | AS70: =VLOOKUP(DropDownList!$B$47,CntyQryCensus!$A$357:$CM$399,AS$1) -> 0 | AT70: =VLOOKUP(DropDownList!$B$47,CntyQryCensus!$A$357:$CM$399,AT$1) -> 0 | AU70: =VLOOKUP(DropDownList!$B$47,CntyQryCensus!$A$357:$CM$399,AU$1) -> 35 | AV70: =VLOOKUP(DropDownList!$B$47,CntyQryCensus!$A$357:$CM$399,AV$1) -> 9 | AW70: =VLOOKUP(DropDownList!$B$47,CntyQryCensus!$A$357:$CM$399,AW$1) -> 50 | AX70: =VLOOKUP(DropDownList!$B$47,CntyQryCensus!$A$357:$CM$399,AX$1) -> 14 | AY70: =VLOOKUP(DropDownList!$B$47,CntyQryCensus!$A$357:$CM$399,AY$1) -> 0 | AZ70: =VLOOKUP(DropDownList!$B$47,CntyQryCensus!$A$357:$CM$399,AZ$1) -> 18 | BA70: =VLOOKUP(DropDownList!$B$47,CntyQryCensus!$A$357:$CM$399,BA$1) -> 9 | BB70: =VLOOKUP(DropDownList!$B$47,CntyQryCensus!$A$357:$CM$399,BB$1) -> 9 | BC70: =VLOOKUP(DropDownList!$B$47,CntyQryCensus!$A$357:$CM$399,BC$1) -> 0 | BD70: =VLOOKUP(DropDownList!$B$47,CntyQryCensus!$A$357:$CM$399,BD$1) -> 57 | BE70: =VLOOKUP(DropDownList!$B$47,CntyQryCensus!$A$357:$CM$399,BE$1) -> 10 | BF70: =VLOOKUP(DropDownList!$B$47,CntyQryCensus!$A$357:$CM$399,BF$1) -> 15 | BG70: =VLOOKUP(DropDownList!$B$47,CntyQryCensus!$A$357:$CM$399,BG$1) -> 13 | BH70: =VLOOKUP(DropDownList!$B$47,CntyQryCensus!$A$357:$CM$399,BH$1) -> 6 | BI70: =VLOOKUP(DropDownList!$B$47,CntyQryCensus!$A$357:$CM$399,BI$1) -> 8 | BJ70: =VLOOKUP(DropDownList!$B$47,CntyQryCensus!$A$357:$CM$399,BJ$1) -> 5 | BK70: =VLOOKUP(DropDownList!$B$47,CntyQryCensus!$A$357:$CM$399,BK$1) -> 10 | BL70: =VLOOKUP(DropDownList!$B$47,CntyQryCensus!$A$357:$CM$399,BL$1) -> 10 | BM70: =VLOOKUP(DropDownList!$B$47,CntyQryCensus!$A$357:$CM$399,BM$1) -> 0 | BN70: =VLOOKUP(DropDownList!$B$47,CntyQryCensus!$A$357:$CM$399,BN$1) -> 0 | BO70: =VLOOKUP(DropDownList!$B$47,CntyQryCensus!$A$357:$CM$399,BO$1) -> 0 | BP70: =VLOOKUP(DropDownList!$B$47,CntyQryCensus!$A$357:$CM$399,BP$1) -> 0 | BQ70: =VLOOKUP(DropDownList!$B$47,CntyQryCensus!$A$357:$CM$399,BQ$1) -> 0 | BR70: =VLOOKUP(DropDownList!$B$47,CntyQryCensus!$A$357:$CM$399,BR$1) -> 38 | BS70: =VLOOKUP(DropDownList!$B$47,CntyQryCensus!$A$357:$CM$399,BS$1) -> 22 | BT70: =VLOOKUP(DropDownList!$B$47,CntyQryCensus!$A$357:$CM$399,BT$1) -> 11 | BU70: =VLOOKUP(DropDownList!$B$47,CntyQryCensus!$A$357:$CM$399,BU$1) -> 0 | BV70: =VLOOKUP(DropDownList!$B$47,CntyQryCensus!$A$357:$CM$399,BV$1) -> 0 | BW70: =VLOOKUP(DropDownList!$B$47,CntyQryCensus!$A$357:$CM$399,BW$1) -> 0 | BX70: =VLOOKUP(DropDownList!$B$47,CntyQryCensus!$A$357:$CM$399,BX$1) -> 5 | BY70: =VLOOKUP(DropDownList!$B$47,CntyQryCensus!$A$357:$CM$399,BY$1) -> 13 | BZ70: =VLOOKUP(DropDownList!$B$47,CntyQryCensus!$A$357:$CM$399,BZ$1) -> 13 | CA70: =VLOOKUP(DropDownList!$B$47,CntyQryCensus!$A$357:$CM$399,CA$1) -> 0 | CB70: =VLOOKUP(DropDownList!$B$47,CntyQryCensus!$A$357:$CM$399,CB$1) -> 0 | CC70: =VLOOKUP(DropDownList!$B$47,CntyQryCensus!$A$357:$CM$399,CC$1) -> 0 | CD70: =VLOOKUP(DropDownList!$B$47,CntyQryCensus!$A$357:$CM$399,CD$1) -> 0 | CE70: =VLOOKUP(DropDownList!$B$47,CntyQryCensus!$A$357:$CM$399,CE$1) -> 0 | CF70: =VLOOKUP(DropDownList!$B$47,CntyQryCensus!$A$357:$CM$399,CF$1) -> 5 | CG70: =VLOOKUP(DropDownList!$B$47,CntyQryCensus!$A$357:$CM$399,CG$1) -> 5 | CH70: =VLOOKUP(DropDownList!$B$47,CntyQryCensus!$A$357:$CM$399,CH$1) -> 0 | CI70: =VLOOKUP(DropDownList!$B$47,CntyQryCensus!$A$357:$CM$399,CI$1) -> 0 | CJ70: =VLOOKUP(DropDownList!$B$47,CntyQryCensus!$A$357:$CM$399,CJ$1) -> 0 | CK70: =VLOOKUP(DropDownList!$B$47,CntyQryCensus!$A$357:$CM$399,CK$1) -> 0 | CL70: =VLOOKUP(DropDownList!$B$47,CntyQryCensus!$A$357:$CM$399,CL$1) -> 0 | CM70: =VLOOKUP(DropDownList!$B$47,CntyQryCensus!$A$357:$CM$399,CM$1) -> 0
A73: Census 2000 SummaryFile3 Sample Data - SF3TownQry8HousingCostB
A74: NAME | B74: LOGRECNO | C74: COUNTY | D74: TotalPop | E74: H74SpecOwnerOccHU | F74: H74OOHU<10k | G74: H74OOHU10to15k | H74: H74OOHU15to20k | I74: H74OOHU20to25k | J74: H74OOHU25to30k | K74: H74OOHU30to35k | L74: H74OOHU35to40k | M74: H74OOHU40to50k | N74: H74OOHU50to60k | O74: H74OOHU60to70k | P74: H74OOHU70to80k | Q74: H74OOHU80to90k | R74: H74OOHU90to100k | S74: H74OOHU100to125k | T74: H74OOHU125to150k | U74: H74OOHU150to175k | V74: H74OOHU175to200k | W74: H74OOHU200to250k | X74: H74OOHU250to300k | Y74: H74OOHU300to400k | Z74: H74OOHU400to500k | AA74: H74OOHU500to750k | AB74: H74OOHU750to1000k | AC74: H74OOHU1000kmore | AD74: H76OOHUMedianVal | AE74: H84OwnerOccHU | AF74: H84AllOOHU<10k | AG74: H84AllOOHU10to15k | AH74: H84AllOOHU15to20k | AI74: H84AllOOHU20to25k | AJ74: H84AllOOHU25to30k | AK74: H84AllOOHU30to35k | AL74: H84AllOOHU35to40k | AM74: H84AllOOHU40to50k | AN74: H84AllOOHU50to60k | AO74: H84AllOOHU60to70k | AP74: H84AllOOHU70to80k | AQ74: H84AllOOHU80to90k | AR74: H84AllOOHU90to100k | AS74: H84AllOOHU100to125k | AT74: H84AllOOHU125to150k | AU74: H84AllOOHU150to175k | AV74: H84AllOOHU175to200k | AW74: H84AllOOHU200to250k | AX74: H84AllOOHU250to300k | AY74: H84AllOOHU300to400k | AZ74: H84AllOOHU400to500k | BA74: H84AllOOHU500to750k | BB74: H84AllOOHU750to1000k | BC74: H84AllOOHU1000kmore | BD74: H85OOHUMedVal | BE74: H90SOOHU | BF74: H90HUwMorgt | BG74: H90HUwMtgHC<200 | BH74: H90HUwMtgHC200to300 | BI74: H90HUwMtgHC300to400 | BJ74: H90HUwMtgHC400to500 | BK74: H90HUwMtgHC500to600 | BL74: H90HUwMtgHC600to700 | BM74: H90HUwMtgHC700to800 | BN74: H90HUwMtgHC800to900 | BO74: H90HUwMtgHC900to1000 | BP74: H90HUwMtgHC1000to1250 | BQ74: H90HUwMtgHC1250to1500 | BR74: H90HUwMtgHC1500to2000 | BS74: H90HUwMtgHC2000to2500 | BT74: H90HUwMtgHC2500to3000 | BU74: H90HUwMtgHC3000orMore | BV74: H90HUwOutMorgt | BW74: H90HUwOutMtgHC<100 | BX74: H90HUwOutMtgHC100to150 | BY74: H90HUwOutMtgHC150to200 | BZ74: H90HUwOutMtgHC200to250 | CA74: H90HUwOutMtgHC250to300 | CB74: H90HUwOutMtgHC300to350 | CC74: H90HUwOutMtgHC350to400 | CD74: H90HUwOutMtgHC400to500 | CE74: H90HUwOutMtgHC500to600 | CF74: H90HUwOutMtgHC600to700 | CG74: H90HUwOutMtgHC700to800 | CH74: H90HUwOutMtgHC800to900 | CI74: H90HUwOutMtgHC900to1000 | CJ74: H90HUwOutMtgHC1000orMore | CK74: H91MedianOCHUwMtg | CL74: H91MedianOCHUwOutMtg | CM74: H94SpecOOHU | CN74: H94HUwMortg | CO74: H94HUwMtgHC<10pct | CP74: H94HUwMtgHC10to15pct | CQ74: H94HUwMtgHC15to20pct | CR74: H94HUwMtgHC20to25pct | CS74: H94HUwMtgHC25to30pct | CT74: H94HUwMtgHC30to35pct | CU74: H94HUwMtgHC35to40pct | CV74: H94HUwMtgHC40to50pct | CW74: H94HUwMtgHC50pctOrMore | CX74: H94HUwMtgHCpctNotComp | CY74: H94HUWOutMortg | CZ74: H94HUWOutMortgHC<10pct | DA74: H94HUWOutMortgHC10to15pct | DB74: H94HUWOutMortgHC15to20pct | DC74: H94HUWOutMortgHC20to25pct | DD74: H94HUWOutMortgHC25to30pct | DE74: H94HUWOutMortgHC30to35pct | DF74: H94HUWOutMortgHC35to40pct | DG74: H94HUWOutMortgHC40to50pct | DH74: H94HUWOutMortgHC50pctOrMore | DI74: H94HUWOutMortgHCpctNotComp | DJ74: H97SpecifOwnOccHU | DK74: H97SOOHUInc<10k | DL74: H97SOOHUInc<10kHC<20pct | DM74: H97SOOHUInc<10kHC20to25pct | DN74: H97SOOHUInc<10kHC25to30pct | DO74: H97SOOHUInc<10kHC30to35pct | DP74: H97SOOHUInc<10kHC>35pct | DQ74: H97SOOHUInc<10kHCpctNotComput | DR74: H97SOOHUInc10to20k | DS74: H97SOOHUInc10to20kHC<20pct | DT74: H97SOOHUInc10to20kHC20to25pct | DU74: H97SOOHUInc10to20kHC25to30pct | DV74: H97SOOHUInc10to20kHC30to35pct | DW74: H97SOOHUInc10to20kHC>35pct | DX74: H97SOOHUInc10to20kHCpctNotComput | DY74: H97SOOHUInc20to35k | DZ74: H97SOOHUInc20to35kRC<20pct | EA74: H97SOOHUInc20to35kRC20to25pct | EB74: H97SOOHUInc20to35kRC25to30pct | EC74: H97SOOHUInc20to35kRC30to35pct | ED74: H97SOOHUInc20to35kRC>35pct | EE74: H97SOOHUInc20to35kRCpctNotComput | EF74: H97SOOHUInc35to50k | EG74: H97SOOHUInc35to50kRC<20pct | EH74: H97SOOHUInc35to50kRC20to25pct | EI74: H97SOOHUInc35to50kRC25to30pct | EJ74: H97SOOHUInc35to50kRC30to35pct | EK74: H97SOOHUInc35to50kRC>35pct | EL74: H97SOOHUInc35to50kRCpctNotCompute | EM74: H97SOOHUInc50to75k | EN74: H97SOOHUInc50to75kRC<20pct | EO74: H97SOOHUInc50to75kRC20to25pct | EP74: H97SOOHUInc50to75kRC25to30pct | EQ74: H97SOOHUInc50to75kRC30to35pct | ER74: H97SOOHUInc50to75kRC>35pct | ES74: H97SOOHUInc50to75kRCpctNotComput | ET74: H97SOOHUInc75to100k | EU74: H97SOOHUInc75to100kRC<20pct | EV74: H97SOOHUInc75to100kRC20to25pct | EW74: H97SOOHUInc75to100kRC25to30pct | EX74: H97SOOHUInc75to100kRC30to35pct | EY74: H97SOOHUInc75to100kRC>35pct | EZ74: H97SOOHUInc75to100kRCpctNotCompute | FA74: H97SOOHUInc100to150k | FB74: H97SOOHUInc100to150kRC<20pct | FC74: H97SOOHUInc100to150kRC20to25pct | FD74: H97SOOHUInc100to150kRC25to30pct | FE74: H97SOOHUInc100to150kRC30to35pct | FF74: H97SOOHUInc100to150kRC>35pct | FG74: H97SOOHUInc100to150kRCpctNotCompute | FH74: H97SOOHUInc>150k | FI74: H97SOOHUInc>150kRC<20pct | FJ74: H97SOOHUInc>150kRC20to25pct | FK74: H97SOOHUInc>150kRC25to30pct | FL74: H97SOOHUInc>150kRC30to35pct | FM74: H97SOOHUInc>150kRC>35pct | FN74: H97SOOHUInc>150kRCpctNotCompute
A75: =VLOOKUP(DropDownList!$B$47,CntyQryCensus!$A$408:$FN$450,A$1) -> Antrim | B75: =VLOOKUP(DropDownList!$B$47,CntyQryCensus!$A$408:$FN$450,B$1) -> 0001568 | C75: =VLOOKUP(DropDownList!$B$47,CntyQryCensus!$A$408:$FN$450,C$1) -> 01700 | D75: =VLOOKUP(DropDownList!$B$47,CntyQryCensus!$A$408:$FN$450,D$1) -> 2449 | E75: =VLOOKUP(DropDownList!$B$47,CntyQryCensus!$A$408:$FN$450,E$1) -> 473 | F75: =VLOOKUP(DropDownList!$B$47,CntyQryCensus!$A$408:$FN$450,F$1) -> 0 | G75: =VLOOKUP(DropDownList!$B$47,CntyQryCensus!$A$408:$FN$450,G$1) -> 0 | H75: =VLOOKUP(DropDownList!$B$47,CntyQryCensus!$A$408:$FN$450,H$1) -> 4 | I75: =VLOOKUP(DropDownList!$B$47,CntyQryCensus!$A$408:$FN$450,I$1) -> 0 | J75: =VLOOKUP(DropDownList!$B$47,CntyQryCensus!$A$408:$FN$450,J$1) -> 0 | K75: =VLOOKUP(DropDownList!$B$47,CntyQryCensus!$A$408:$FN$450,K$1) -> 0 | L75: =VLOOKUP(DropDownList!$B$47,CntyQryCensus!$A$408:$FN$450,L$1) -> 8 | M75: =VLOOKUP(DropDownList!$B$47,CntyQryCensus!$A$408:$FN$450,M$1) -> 0 | N75: =VLOOKUP(DropDownList!$B$47,CntyQryCensus!$A$408:$FN$450,N$1) -> 29 | O75: =VLOOKUP(DropDownList!$B$47,CntyQryCensus!$A$408:$FN$450,O$1) -> 13 | P75: =VLOOKUP(DropDownList!$B$47,CntyQryCensus!$A$408:$FN$450,P$1) -> 76 | Q75: =VLOOKUP(DropDownList!$B$47,CntyQryCensus!$A$408:$FN$450,Q$1) -> 65 | R75: =VLOOKUP(DropDownList!$B$47,CntyQryCensus!$A$408:$FN$450,R$1) -> 68 | S75: =VLOOKUP(DropDownList!$B$47,CntyQryCensus!$A$408:$FN$450,S$1) -> 109 | T75: =VLOOKUP(DropDownList!$B$47,CntyQryCensus!$A$408:$FN$450,T$1) -> 52 | U75: =VLOOKUP(DropDownList!$B$47,CntyQryCensus!$A$408:$FN$450,U$1) -> 4 | V75: =VLOOKUP(DropDownList!$B$47,CntyQryCensus!$A$408:$FN$450,V$1) -> 20 | W75: =VLOOKUP(DropDownList!$B$47,CntyQryCensus!$A$408:$FN$450,W$1) -> 9 | X75: =VLOOKUP(DropDownList!$B$47,CntyQryCensus!$A$408:$FN$450,X$1) -> 0 | Y75: =VLOOKUP(DropDownList!$B$47,CntyQryCensus!$A$408:$FN$450,Y$1) -> 8 | Z75: =VLOOKUP(DropDownList!$B$47,CntyQryCensus!$A$408:$FN$450,Z$1) -> 0 | AA75: =VLOOKUP(DropDownList!$B$47,CntyQryCensus!$A$408:$FN$450,AA$1) -> 8 | AB75: =VLOOKUP(DropDownList!$B$47,CntyQryCensus!$A$408:$FN$450,AB$1) -> 0 | AC75: =VLOOKUP(DropDownList!$B$47,CntyQryCensus!$A$408:$FN$450,AC$1) -> 0 | AD75: =VLOOKUP(DropDownList!$B$47,CntyQryCensus!$A$408:$FN$450,AD$1) -> 96100 | AE75: =VLOOKUP(DropDownList!$B$47,CntyQryCensus!$A$408:$FN$450,AE$1) -> 689 | AF75: =VLOOKUP(DropDownList!$B$47,CntyQryCensus!$A$408:$FN$450,AF$1) -> 0 | AG75: =VLOOKUP(DropDownList!$B$47,CntyQryCensus!$A$408:$FN$450,AG$1) -> 0 | AH75: =VLOOKUP(DropDownList!$B$47,CntyQryCensus!$A$408:$FN$450,AH$1) -> 4 | AI75: =VLOOKUP(DropDownList!$B$47,CntyQryCensus!$A$408:$FN$450,AI$1) -> 4 | AJ75: =VLOOKUP(DropDownList!$B$47,CntyQryCensus!$A$408:$FN$450,AJ$1) -> 5 | AK75: =VLOOKUP(DropDownList!$B$47,CntyQryCensus!$A$408:$FN$450,AK$1) -> 4 | AL75: =VLOOKUP(DropDownList!$B$47,CntyQryCensus!$A$408:$FN$450,AL$1) -> 12 | AM75: =VLOOKUP(DropDownList!$B$47,CntyQryCensus!$A$408:$FN$450,AM$1) -> 10 | AN75: =VLOOKUP(DropDownList!$B$47,CntyQryCensus!$A$408:$FN$450,AN$1) -> 29 | AO75: =VLOOKUP(DropDownList!$B$47,CntyQryCensus!$A$408:$FN$450,AO$1) -> 30 | AP75: =VLOOKUP(DropDownList!$B$47,CntyQryCensus!$A$408:$FN$450,AP$1) -> 89 | AQ75: =VLOOKUP(DropDownList!$B$47,CntyQryCensus!$A$408:$FN$450,AQ$1) -> 95 | AR75: =VLOOKUP(DropDownList!$B$47,CntyQryCensus!$A$408:$FN$450,AR$1) -> 88 | AS75: =VLOOKUP(DropDownList!$B$47,CntyQryCensus!$A$408:$FN$450,AS$1) -> 142 | AT75: =VLOOKUP(DropDownList!$B$47,CntyQryCensus!$A$408:$FN$450,AT$1) -> 88 | AU75: =VLOOKUP(DropDownList!$B$47,CntyQryCensus!$A$408:$FN$450,AU$1) -> 17 | AV75: =VLOOKUP(DropDownList!$B$47,CntyQryCensus!$A$408:$FN$450,AV$1) -> 20 | AW75: =VLOOKUP(DropDownList!$B$47,CntyQryCensus!$A$408:$FN$450,AW$1) -> 23 | AX75: =VLOOKUP(DropDownList!$B$47,CntyQryCensus!$A$408:$FN$450,AX$1) -> 0 | AY75: =VLOOKUP(DropDownList!$B$47,CntyQryCensus!$A$408:$FN$450,AY$1) -> 21 | AZ75: =VLOOKUP(DropDownList!$B$47,CntyQryCensus!$A$408:$FN$450,AZ$1) -> 0 | BA75: =VLOOKUP(DropDownList!$B$47,CntyQryCensus!$A$408:$FN$450,BA$1) -> 8 | BB75: =VLOOKUP(DropDownList!$B$47,CntyQryCensus!$A$408:$FN$450,BB$1) -> 0 | BC75: =VLOOKUP(DropDownList!$B$47,CntyQryCensus!$A$408:$FN$450,BC$1) -> 0 | BD75: =VLOOKUP(DropDownList!$B$47,CntyQryCensus!$A$408:$FN$450,BD$1) -> 97100 | BE75: =VLOOKUP(DropDownList!$B$47,CntyQryCensus!$A$408:$FN$450,BE$1) -> 473 | BF75: =VLOOKUP(DropDownList!$B$47,CntyQryCensus!$A$408:$FN$450,BF$1) -> 352 | BG75: =VLOOKUP(DropDownList!$B$47,CntyQryCensus!$A$408:$FN$450,BG$1) -> 0 | BH75: =VLOOKUP(DropDownList!$B$47,CntyQryCensus!$A$408:$FN$450,BH$1) -> 0 | BI75: =VLOOKUP(DropDownList!$B$47,CntyQryCensus!$A$408:$FN$450,BI$1) -> 0 | BJ75: =VLOOKUP(DropDownList!$B$47,CntyQryCensus!$A$408:$FN$450,BJ$1) -> 9 | BK75: =VLOOKUP(DropDownList!$B$47,CntyQryCensus!$A$408:$FN$450,BK$1) -> 27 | BL75: =VLOOKUP(DropDownList!$B$47,CntyQryCensus!$A$408:$FN$450,BL$1) -> 20 | BM75: =VLOOKUP(DropDownList!$B$47,CntyQryCensus!$A$408:$FN$450,BM$1) -> 44 | BN75: =VLOOKUP(DropDownList!$B$47,CntyQryCensus!$A$408:$FN$450,BN$1) -> 59 | BO75: =VLOOKUP(DropDownList!$B$47,CntyQryCensus!$A$408:$FN$450,BO$1) -> 20 | BP75: =VLOOKUP(DropDownList!$B$47,CntyQryCensus!$A$408:$FN$450,BP$1) -> 53 | BQ75: =VLOOKUP(DropDownList!$B$47,CntyQryCensus!$A$408:$FN$450,BQ$1) -> 78 | BR75: =VLOOKUP(DropDownList!$B$47,CntyQryCensus!$A$408:$FN$450,BR$1) -> 22 | BS75: =VLOOKUP(DropDownList!$B$47,CntyQryCensus!$A$408:$FN$450,BS$1) -> 20 | BT75: =VLOOKUP(DropDownList!$B$47,CntyQryCensus!$A$408:$FN$450,BT$1) -> 0 | BU75: =VLOOKUP(DropDownList!$B$47,CntyQryCensus!$A$408:$FN$450,BU$1) -> 0 | BV75: =VLOOKUP(DropDownList!$B$47,CntyQryCensus!$A$408:$FN$450,BV$1) -> 121 | BW75: =VLOOKUP(DropDownList!$B$47,CntyQryCensus!$A$408:$FN$450,BW$1) -> 0 | BX75: =VLOOKUP(DropDownList!$B$47,CntyQryCensus!$A$408:$FN$450,BX$1) -> 0 | BY75: =VLOOKUP(DropDownList!$B$47,CntyQryCensus!$A$408:$FN$450,BY$1) -> 0 | BZ75: =VLOOKUP(DropDownList!$B$47,CntyQryCensus!$A$408:$FN$450,BZ$1) -> 12 | CA75: =VLOOKUP(DropDownList!$B$47,CntyQryCensus!$A$408:$FN$450,CA$1) -> 21 | CB75: =VLOOKUP(DropDownList!$B$47,CntyQryCensus!$A$408:$FN$450,CB$1) -> 13 | CC75: =VLOOKUP(DropDownList!$B$47,CntyQryCensus!$A$408:$FN$450,CC$1) -> 19 | CD75: =VLOOKUP(DropDownList!$B$47,CntyQryCensus!$A$408:$FN$450,CD$1) -> 23 | CE75: =VLOOKUP(DropDownList!$B$47,CntyQryCensus!$A$408:$FN$450,CE$1) -> 12 | CF75: =VLOOKUP(DropDownList!$B$47,CntyQryCensus!$A$408:$FN$450,CF$1) -> 16 | CG75: =VLOOKUP(DropDownList!$B$47,CntyQryCensus!$A$408:$FN$450,CG$1) -> 5 | CH75: =VLOOKUP(DropDownList!$B$47,CntyQryCensus!$A$408:$FN$450,CH$1) -> 0 | CI75: =VLOOKUP(DropDownList!$B$47,CntyQryCensus!$A$408:$FN$450,CI$1) -> 0 | CJ75: =VLOOKUP(DropDownList!$B$47,CntyQryCensus!$A$408:$FN$450,CJ$1) -> 0 | CK75: =VLOOKUP(DropDownList!$B$47,CntyQryCensus!$A$408:$FN$450,CK$1) -> 985 | CL75: =VLOOKUP(DropDownList!$B$47,CntyQryCensus!$A$408:$FN$450,CL$1) -> 388 | CM75: =VLOOKUP(DropDownList!$B$47,CntyQryCensus!$A$408:$FN$450,CM$1) -> 473 | CN75: =VLOOKUP(DropDownList!$B$47,CntyQryCensus!$A$408:$FN$450,CN$1) -> 352 | CO75: =VLOOKUP(DropDownList!$B$47,CntyQryCensus!$A$408:$FN$450,CO$1) -> 24 | CP75: =VLOOKUP(DropDownList!$B$47,CntyQryCensus!$A$408:$FN$450,CP$1) -> 48 | CQ75: =VLOOKUP(DropDownList!$B$47,CntyQryCensus!$A$408:$FN$450,CQ$1) -> 63 | CR75: =VLOOKUP(DropDownList!$B$47,CntyQryCensus!$A$408:$FN$450,CR$1) -> 64 | CS75: =VLOOKUP(DropDownList!$B$47,CntyQryCensus!$A$408:$FN$450,CS$1) -> 40 | CT75: =VLOOKUP(DropDownList!$B$47,CntyQryCensus!$A$408:$FN$450,CT$1) -> 27 | CU75: =VLOOKUP(DropDownList!$B$47,CntyQryCensus!$A$408:$FN$450,CU$1) -> 22 | CV75: =VLOOKUP(DropDownList!$B$47,CntyQryCensus!$A$408:$FN$450,CV$1) -> 12 | CW75: =VLOOKUP(DropDownList!$B$47,CntyQryCensus!$A$408:$FN$450,CW$1) -> 43 | CX75: =VLOOKUP(DropDownList!$B$47,CntyQryCensus!$A$408:$FN$450,CX$1) -> 9 | CY75: =VLOOKUP(DropDownList!$B$47,CntyQryCensus!$A$408:$FN$450,CY$1) -> 121 | CZ75: =VLOOKUP(DropDownList!$B$47,CntyQryCensus!$A$408:$FN$450,CZ$1) -> 45 | DA75: =VLOOKUP(DropDownList!$B$47,CntyQryCensus!$A$408:$FN$450,DA$1) -> 8 | DB75: =VLOOKUP(DropDownList!$B$47,CntyQryCensus!$A$408:$FN$450,DB$1) -> 23 | DC75: =VLOOKUP(DropDownList!$B$47,CntyQryCensus!$A$408:$FN$450,DC$1) -> 5 | DD75: =VLOOKUP(DropDownList!$B$47,CntyQryCensus!$A$408:$FN$450,DD$1) -> 7 | DE75: =VLOOKUP(DropDownList!$B$47,CntyQryCensus!$A$408:$FN$450,DE$1) -> 12 | DF75: =VLOOKUP(DropDownList!$B$47,CntyQryCensus!$A$408:$FN$450,DF$1) -> 4 | DG75: =VLOOKUP(DropDownList!$B$47,CntyQryCensus!$A$408:$FN$450,DG$1) -> 0 | DH75: =VLOOKUP(DropDownList!$B$47,CntyQryCensus!$A$408:$FN$450,DH$1) -> 13 | DI75: =VLOOKUP(DropDownList!$B$47,CntyQryCensus!$A$408:$FN$450,DI$1) -> 4 | DJ75: =VLOOKUP(DropDownList!$B$47,CntyQryCensus!$A$408:$FN$450,DJ$1) -> 473 | DK75: =VLOOKUP(DropDownList!$B$47,CntyQryCensus!$A$408:$FN$450,DK$1) -> 44 | DL75: =VLOOKUP(DropDownList!$B$47,CntyQryCensus!$A$408:$FN$450,DL$1) -> 0 | DM75: =VLOOKUP(DropDownList!$B$47,CntyQryCensus!$A$408:$FN$450,DM$1) -> 0 | DN75: =VLOOKUP(DropDownList!$B$47,CntyQryCensus!$A$408:$FN$450,DN$1) -> 0 | DO75: =VLOOKUP(DropDownList!$B$47,CntyQryCensus!$A$408:$FN$450,DO$1) -> 4 | DP75: =VLOOKUP(DropDownList!$B$47,CntyQryCensus!$A$408:$FN$450,DP$1) -> 27 | DQ75: =VLOOKUP(DropDownList!$B$47,CntyQryCensus!$A$408:$FN$450,DQ$1) -> 13 | DR75: =VLOOKUP(DropDownList!$B$47,CntyQryCensus!$A$408:$FN$450,DR$1) -> 40 | DS75: =VLOOKUP(DropDownList!$B$47,CntyQryCensus!$A$408:$FN$450,DS$1) -> 4 | DT75: =VLOOKUP(DropDownList!$B$47,CntyQryCensus!$A$408:$FN$450,DT$1) -> 5 | DU75: =VLOOKUP(DropDownList!$B$47,CntyQryCensus!$A$408:$FN$450,DU$1) -> 7 | DV75: =VLOOKUP(DropDownList!$B$47,CntyQryCensus!$A$408:$FN$450,DV$1) -> 8 | DW75: =VLOOKUP(DropDownList!$B$47,CntyQryCensus!$A$408:$FN$450,DW$1) -> 16 | DX75: =VLOOKUP(DropDownList!$B$47,CntyQryCensus!$A$408:$FN$450,DX$1) -> 0 | DY75: =VLOOKUP(DropDownList!$B$47,CntyQryCensus!$A$408:$FN$450,DY$1) -> 66 | DZ75: =VLOOKUP(DropDownList!$B$47,CntyQryCensus!$A$408:$FN$450,DZ$1) -> 15 | EA75: =VLOOKUP(DropDownList!$B$47,CntyQryCensus!$A$408:$FN$450,EA$1) -> 4 | EB75: =VLOOKUP(DropDownList!$B$47,CntyQryCensus!$A$408:$FN$450,EB$1) -> 14 | EC75: =VLOOKUP(DropDownList!$B$47,CntyQryCensus!$A$408:$FN$450,EC$1) -> 12 | ED75: =VLOOKUP(DropDownList!$B$47,CntyQryCensus!$A$408:$FN$450,ED$1) -> 21 | EE75: =VLOOKUP(DropDownList!$B$47,CntyQryCensus!$A$408:$FN$450,EE$1) -> 0 | EF75: =VLOOKUP(DropDownList!$B$47,CntyQryCensus!$A$408:$FN$450,EF$1) -> 74 | EG75: =VLOOKUP(DropDownList!$B$47,CntyQryCensus!$A$408:$FN$450,EG$1) -> 26 | EH75: =VLOOKUP(DropDownList!$B$47,CntyQryCensus!$A$408:$FN$450,EH$1) -> 13 | EI75: =VLOOKUP(DropDownList!$B$47,CntyQryCensus!$A$408:$FN$450,EI$1) -> 12 | EJ75: =VLOOKUP(DropDownList!$B$47,CntyQryCensus!$A$408:$FN$450,EJ$1) -> 3 | EK75: =VLOOKUP(DropDownList!$B$47,CntyQryCensus!$A$408:$FN$450,EK$1) -> 20 | EL75: =VLOOKUP(DropDownList!$B$47,CntyQryCensus!$A$408:$FN$450,EL$1) -> 0 | EM75: =VLOOKUP(DropDownList!$B$47,CntyQryCensus!$A$408:$FN$450,EM$1) -> 145 | EN75: =VLOOKUP(DropDownList!$B$47,CntyQryCensus!$A$408:$FN$450,EN$1) -> 78 | EO75: =VLOOKUP(DropDownList!$B$47,CntyQryCensus!$A$408:$FN$450,EO$1) -> 35 | EP75: =VLOOKUP(DropDownList!$B$47,CntyQryCensus!$A$408:$FN$450,EP$1) -> 14 | EQ75: =VLOOKUP(DropDownList!$B$47,CntyQryCensus!$A$408:$FN$450,EQ$1) -> 8 | ER75: =VLOOKUP(DropDownList!$B$47,CntyQryCensus!$A$408:$FN$450,ER$1) -> 10 | ES75: =VLOOKUP(DropDownList!$B$47,CntyQryCensus!$A$408:$FN$450,ES$1) -> 0 | ET75: =VLOOKUP(DropDownList!$B$47,CntyQryCensus!$A$408:$FN$450,ET$1) -> 53 | EU75: =VLOOKUP(DropDownList!$B$47,CntyQryCensus!$A$408:$FN$450,EU$1) -> 40 | EV75: =VLOOKUP(DropDownList!$B$47,CntyQryCensus!$A$408:$FN$450,EV$1) -> 9 | EW75: =VLOOKUP(DropDownList!$B$47,CntyQryCensus!$A$408:$FN$450,EW$1) -> 0 | EX75: =VLOOKUP(DropDownList!$B$47,CntyQryCensus!$A$408:$FN$450,EX$1) -> 4 | EY75: =VLOOKUP(DropDownList!$B$47,CntyQryCensus!$A$408:$FN$450,EY$1) -> 0 | EZ75: =VLOOKUP(DropDownList!$B$47,CntyQryCensus!$A$408:$FN$450,EZ$1) -> 0 | FA75: =VLOOKUP(DropDownList!$B$47,CntyQryCensus!$A$408:$FN$450,FA$1) -> 38 | FB75: =VLOOKUP(DropDownList!$B$47,CntyQryCensus!$A$408:$FN$450,FB$1) -> 35 | FC75: =VLOOKUP(DropDownList!$B$47,CntyQryCensus!$A$408:$FN$450,FC$1) -> 3 | FD75: =VLOOKUP(DropDownList!$B$47,CntyQryCensus!$A$408:$FN$450,FD$1) -> 0 | FE75: =VLOOKUP(DropDownList!$B$47,CntyQryCensus!$A$408:$FN$450,FE$1) -> 0 | FF75: =VLOOKUP(DropDownList!$B$47,CntyQryCensus!$A$408:$FN$450,FF$1) -> 0 | FG75: =VLOOKUP(DropDownList!$B$47,CntyQryCensus!$A$408:$FN$450,FG$1) -> 0 | FH75: =VLOOKUP(DropDownList!$B$47,CntyQryCensus!$A$408:$FN$450,FH$1) -> 13 | FI75: =VLOOKUP(DropDownList!$B$47,CntyQryCensus!$A$408:$FN$450,FI$1) -> 13 | FJ75: =VLOOKUP(DropDownList!$B$47,CntyQryCensus!$A$408:$FN$450,FJ$1) -> 0 | FK75: =VLOOKUP(DropDownList!$B$47,CntyQryCensus!$A$408:$FN$450,FK$1) -> 0 | FL75: =VLOOKUP(DropDownList!$B$47,CntyQryCensus!$A$408:$FN$450,FL$1) -> 0 | FM75: =VLOOKUP(DropDownList!$B$47,CntyQryCensus!$A$408:$FN$450,FM$1) -> 0 | FN75: =VLOOKUP(DropDownList!$B$47,CntyQryCensus!$A$408:$FN$450,FN$1) -> 0
A78: Census 2000 SummaryFile3 Sample Data - SF3TownQry9HHIncomeByTenure
A79: NAME | B79: LOGRECNO | C79: COUNTY | D79: TotalPop | E79: HCT11OccHU | F79: HCT11OwnOccHU | G79: HCT11OOHUInc<5K | H79: HCT11OOHUInc5to10K | I79: HCT11OOHUInc10to15K | J79: HCT11OOHUInc15to20K | K79: HCT11OOHUInc20to25K | L79: HCT11OOHUInc25to35K | M79: HCT11OOHUInc35to50K | N79: HCT11OOHUInc50to75K | O79: HCT11OOHUInc75to100K | P79: HCT11OOHUInc100to150K | Q79: HCT11OOHUInc>150K | R79: HCT11RentOccHU | S79: HCT11ROHUInc<5K | T79: HCT11ROHUInc5to10K | U79: HCT11ROHUInc10to15K | V79: HCT11ROHUInc15to20K | W79: HCT11ROHUInc20to25K | X79: HCT11ROHUInc25to35K | Y79: HCT11ROHUInc35to50K | Z79: HCT11ROHUInc50to75K | AA79: HCT11ROHUInc75to100K | AB79: HCT11ROHUInc100to150K | AC79: HCT11ROHUInc>150K | AD79: HCT12MedHHInc | AE79: HCT12MedOwnOccHHInc | AF79: HCT12MedRentOccHHInc | AG79: Summary Level
A80: =VLOOKUP(DropDownList!$B$47,CntyQryCensus!$A$459:$AG$501,A$1) -> Antrim | B80: =VLOOKUP(DropDownList!$B$47,CntyQryCensus!$A$459:$AG$501,B$1) -> 0001568 | C80: =VLOOKUP(DropDownList!$B$47,CntyQryCensus!$A$459:$AG$501,C$1) -> 01700 | D80: =VLOOKUP(DropDownList!$B$47,CntyQryCensus!$A$459:$AG$501,D$1) -> Antrim town | E80: =VLOOKUP(DropDownList!$B$47,CntyQryCensus!$A$459:$AG$501,E$1) -> 011 | F80: =VLOOKUP(DropDownList!$B$47,CntyQryCensus!$A$459:$AG$501,F$1) -> 2449 | G80: =VLOOKUP(DropDownList!$B$47,CntyQryCensus!$A$459:$AG$501,G$1) -> 932 | H80: =VLOOKUP(DropDownList!$B$47,CntyQryCensus!$A$459:$AG$501,H$1) -> 689 | I80: =VLOOKUP(DropDownList!$B$47,CntyQryCensus!$A$459:$AG$501,I$1) -> 13 | J80: =VLOOKUP(DropDownList!$B$47,CntyQryCensus!$A$459:$AG$501,J$1) -> 48 | K80: =VLOOKUP(DropDownList!$B$47,CntyQryCensus!$A$459:$AG$501,K$1) -> 29 | L80: =VLOOKUP(DropDownList!$B$47,CntyQryCensus!$A$459:$AG$501,L$1) -> 29 | M80: =VLOOKUP(DropDownList!$B$47,CntyQryCensus!$A$459:$AG$501,M$1) -> 31 | N80: =VLOOKUP(DropDownList!$B$47,CntyQryCensus!$A$459:$AG$501,N$1) -> 74 | O80: =VLOOKUP(DropDownList!$B$47,CntyQryCensus!$A$459:$AG$501,O$1) -> 112 | P80: =VLOOKUP(DropDownList!$B$47,CntyQryCensus!$A$459:$AG$501,P$1) -> 205 | Q80: =VLOOKUP(DropDownList!$B$47,CntyQryCensus!$A$459:$AG$501,Q$1) -> 76 | R80: =VLOOKUP(DropDownList!$B$47,CntyQryCensus!$A$459:$AG$501,R$1) -> 50 | S80: =VLOOKUP(DropDownList!$B$47,CntyQryCensus!$A$459:$AG$501,S$1) -> 22 | T80: =VLOOKUP(DropDownList!$B$47,CntyQryCensus!$A$459:$AG$501,T$1) -> 243 | U80: =VLOOKUP(DropDownList!$B$47,CntyQryCensus!$A$459:$AG$501,U$1) -> 12 | V80: =VLOOKUP(DropDownList!$B$47,CntyQryCensus!$A$459:$AG$501,V$1) -> 42 | W80: =VLOOKUP(DropDownList!$B$47,CntyQryCensus!$A$459:$AG$501,W$1) -> 30 | X80: =VLOOKUP(DropDownList!$B$47,CntyQryCensus!$A$459:$AG$501,X$1) -> 26 | Y80: =VLOOKUP(DropDownList!$B$47,CntyQryCensus!$A$459:$AG$501,Y$1) -> 11 | Z80: =VLOOKUP(DropDownList!$B$47,CntyQryCensus!$A$459:$AG$501,Z$1) -> 46 | AA80: =VLOOKUP(DropDownList!$B$47,CntyQryCensus!$A$459:$AG$501,AA$1) -> 10 | AB80: =VLOOKUP(DropDownList!$B$47,CntyQryCensus!$A$459:$AG$501,AB$1) -> 43 | AC80: =VLOOKUP(DropDownList!$B$47,CntyQryCensus!$A$459:$AG$501,AC$1) -> 18 | AD80: =VLOOKUP(DropDownList!$B$47,CntyQryCensus!$A$459:$AG$501,AD$1) -> 5 | AE80: =VLOOKUP(DropDownList!$B$47,CntyQryCensus!$A$459:$AG$501,AE$1) -> 0 | AF80: =VLOOKUP(DropDownList!$B$47,CntyQryCensus!$A$459:$AG$501,AF$1) -> 45227 | AG80: =VLOOKUP(DropDownList!$B$47,CntyQryCensus!$A$459:$AG$501,AG$1) -> 51012
A86: =VLOOKUP(DropDownList!$B$47,CntyQryCensus!$A$510:$DA$553,A$1) -> Antrim
A94: Census 2000 SummaryFile3 Sample Data - SF3TownQry10Disabil
A95: NAME | B95: LOGRECNO | C95: COUNTY | D95: TotalPop | E95: PCT026001-NonInstPop5yrs+ | F95: PCT026002-MaleNonInstPop5yrs+ | G95: PCT026003 | H95: PCT026004 | I95: PCT026005 | J95: PCT026006 | K95: PCT026007 | L95: PCT026008 | M95: PCT026009 | N95: PCT026010 | O95: PCT026011 | P95: PCT026012 | Q95: PCT026013 | R95: PCT026014 | S95: PCT026015 | T95: PCT026016 | U95: PCT026017 | V95: PCT026018 | W95: PCT026019 | X95: PCT026020 | Y95: PCT026021 | Z95: PCT026022 | AA95: PCT026023 | AB95: PCT026024 | AC95: PCT026025 | AD95: PCT026026 | AE95: PCT026027 | AF95: PCT026028 | AG95: PCT026029 | AH95: PCT026030 | AI95: PCT026031 | AJ95: PCT026032 | AK95: PCT026033 | AL95: PCT026034 | AM95: PCT026035 | AN95: PCT026036 | AO95: PCT026037 | AP95: PCT026038 | AQ95: PCT026039 | AR95: PCT026040 | AS95: PCT026041 | AT95: PCT026042 | AU95: PCT026043 | AV95: PCT026044 | AW95: PCT026045 | AX95: PCT026046 | AY95: PCT026047 | AZ95: PCT026048 | BA95: PCT026049 | BB95: PCT026050 | BC95: PCT026051 | BD95: PCT026052 | BE95: PCT026053 | BF95: PCT026054 | BG95: PCT026055 | BH95: PCT026056 | BI95: PCT026057 | BJ95: PCT026058 | BK95: PCT026059 | BL95: PCT026060 | BM95: PCT026061 | BN95: PCT026062 | BO95: PCT026063 | BP95: PCT026064 | BQ95: PCT026065 | BR95: PCT026066 | BS95: PCT026067 | BT95: PCT026068 | BU95: PCT026069 | BV95: PCT026070 | BW95: PCT026071 | BX95: PCT026072 | BY95: PCT026073 | BZ95: PCT026074 | CA95: PCT026075 | CB95: PCT026076 | CC95: PCT026077 | CD95: PCT026078 | CE95: PCT026079 | CF95: PCT026080 | CG95: PCT026081 | CH95: PCT026082 | CI95: PCT026083 | CJ95: PCT026084 | CK95: PCT026085 | CL95: PCT026086 | CM95: PCT026087 | CN95: PCT026088 | CO95: PCT026089 | CP95: PCT026090 | CQ95: PCT026091 | CR95: PCT026092 | CS95: PCT026093 | CT95: PCT026094 | CU95: PCT026095 | CV95: PCT026096 | CW95: PCT026097 | CX95: PCT026098 | CY95: PCT026099 | CZ95: PCT026100 | DA95: PCT026101
A96: =VLOOKUP(DropDownList!$B$47,CntyQryCensus!$A$510:$DA$553,A$1) -> Antrim | B96: =VLOOKUP(DropDownList!$B$47,CntyQryCensus!$A$510:$DA$553,B$1) -> 0001568 | C96: =VLOOKUP(DropDownList!$B$47,CntyQryCensus!$A$510:$DA$553,C$1) -> 01700 | D96: =VLOOKUP(DropDownList!$B$47,CntyQryCensus!$A$510:$DA$553,D$1) -> 2449 | E96: =VLOOKUP(DropDownList!$B$47,CntyQryCensus!$A$510:$DA$553,E$1) -> 2317 | F96: =VLOOKUP(DropDownList!$B$47,CntyQryCensus!$A$510:$DA$553,F$1) -> 1139 | G96: =VLOOKUP(DropDownList!$B$47,CntyQryCensus!$A$510:$DA$553,G$1) -> 247 | H96: =VLOOKUP(DropDownList!$B$47,CntyQryCensus!$A$510:$DA$553,H$1) -> 0 | I96: =VLOOKUP(DropDownList!$B$47,CntyQryCensus!$A$510:$DA$553,I$1) -> 0 | J96: =VLOOKUP(DropDownList!$B$47,CntyQryCensus!$A$510:$DA$553,J$1) -> 0 | K96: =VLOOKUP(DropDownList!$B$47,CntyQryCensus!$A$510:$DA$553,K$1) -> 0 | L96: =VLOOKUP(DropDownList!$B$47,CntyQryCensus!$A$510:$DA$553,L$1) -> 0 | M96: =VLOOKUP(DropDownList!$B$47,CntyQryCensus!$A$510:$DA$553,M$1) -> 0 | N96: =VLOOKUP(DropDownList!$B$47,CntyQryCensus!$A$510:$DA$553,N$1) -> 0 | O96: =VLOOKUP(DropDownList!$B$47,CntyQryCensus!$A$510:$DA$553,O$1) -> 0 | P96: =VLOOKUP(DropDownList!$B$47,CntyQryCensus!$A$510:$DA$553,P$1) -> 247 | Q96: =VLOOKUP(DropDownList!$B$47,CntyQryCensus!$A$510:$DA$553,Q$1) -> 76 | R96: =VLOOKUP(DropDownList!$B$47,CntyQryCensus!$A$510:$DA$553,R$1) -> 8 | S96: =VLOOKUP(DropDownList!$B$47,CntyQryCensus!$A$510:$DA$553,S$1) -> 0 | T96: =VLOOKUP(DropDownList!$B$47,CntyQryCensus!$A$510:$DA$553,T$1) -> 0 | U96: =VLOOKUP(DropDownList!$B$47,CntyQryCensus!$A$510:$DA$553,U$1) -> 0 | V96: =VLOOKUP(DropDownList!$B$47,CntyQryCensus!$A$510:$DA$553,V$1) -> 0 | W96: =VLOOKUP(DropDownList!$B$47,CntyQryCensus!$A$510:$DA$553,W$1) -> 0 | X96: =VLOOKUP(DropDownList!$B$47,CntyQryCensus!$A$510:$DA$553,X$1) -> 8 | Y96: =VLOOKUP(DropDownList!$B$47,CntyQryCensus!$A$510:$DA$553,Y$1) -> 0 | Z96: =VLOOKUP(DropDownList!$B$47,CntyQryCensus!$A$510:$DA$553,Z$1) -> 0 | AA96: =VLOOKUP(DropDownList!$B$47,CntyQryCensus!$A$510:$DA$553,AA$1) -> 0 | AB96: =VLOOKUP(DropDownList!$B$47,CntyQryCensus!$A$510:$DA$553,AB$1) -> 0 | AC96: =VLOOKUP(DropDownList!$B$47,CntyQryCensus!$A$510:$DA$553,AC$1) -> 0 | AD96: =VLOOKUP(DropDownList!$B$47,CntyQryCensus!$A$510:$DA$553,AD$1) -> 68 | AE96: =VLOOKUP(DropDownList!$B$47,CntyQryCensus!$A$510:$DA$553,AE$1) -> 692 | AF96: =VLOOKUP(DropDownList!$B$47,CntyQryCensus!$A$510:$DA$553,AF$1) -> 56 | AG96: =VLOOKUP(DropDownList!$B$47,CntyQryCensus!$A$510:$DA$553,AG$1) -> 21 | AH96: =VLOOKUP(DropDownList!$B$47,CntyQryCensus!$A$510:$DA$553,AH$1) -> 13 | AI96: =VLOOKUP(DropDownList!$B$47,CntyQryCensus!$A$510:$DA$553,AI$1) -> 0 | AJ96: =VLOOKUP(DropDownList!$B$47,CntyQryCensus!$A$510:$DA$553,AJ$1) -> 0 | AK96: =VLOOKUP(DropDownList!$B$47,CntyQryCensus!$A$510:$DA$553,AK$1) -> 5 | AL96: =VLOOKUP(DropDownList!$B$47,CntyQryCensus!$A$510:$DA$553,AL$1) -> 17 | AM96: =VLOOKUP(DropDownList!$B$47,CntyQryCensus!$A$510:$DA$553,AM$1) -> 25 | AN96: =VLOOKUP(DropDownList!$B$47,CntyQryCensus!$A$510:$DA$553,AN$1) -> 0 | AO96: =VLOOKUP(DropDownList!$B$47,CntyQryCensus!$A$510:$DA$553,AO$1) -> 25 | AP96: =VLOOKUP(DropDownList!$B$47,CntyQryCensus!$A$510:$DA$553,AP$1) -> 14 | AQ96: =VLOOKUP(DropDownList!$B$47,CntyQryCensus!$A$510:$DA$553,AQ$1) -> 11 | AR96: =VLOOKUP(DropDownList!$B$47,CntyQryCensus!$A$510:$DA$553,AR$1) -> 611 | AS96: =VLOOKUP(DropDownList!$B$47,CntyQryCensus!$A$510:$DA$553,AS$1) -> 124 | AT96: =VLOOKUP(DropDownList!$B$47,CntyQryCensus!$A$510:$DA$553,AT$1) -> 24 | AU96: =VLOOKUP(DropDownList!$B$47,CntyQryCensus!$A$510:$DA$553,AU$1) -> 11 | AV96: =VLOOKUP(DropDownList!$B$47,CntyQryCensus!$A$510:$DA$553,AV$1) -> 11 | AW96: =VLOOKUP(DropDownList!$B$47,CntyQryCensus!$A$510:$DA$553,AW$1) -> 0 | AX96: =VLOOKUP(DropDownList!$B$47,CntyQryCensus!$A$510:$DA$553,AX$1) -> 0 | AY96: =VLOOKUP(DropDownList!$B$47,CntyQryCensus!$A$510:$DA$553,AY$1) -> 2 | AZ96: =VLOOKUP(DropDownList!$B$47,CntyQryCensus!$A$510:$DA$553,AZ$1) -> 4 | BA96: =VLOOKUP(DropDownList!$B$47,CntyQryCensus!$A$510:$DA$553,BA$1) -> 0 | BB96: =VLOOKUP(DropDownList!$B$47,CntyQryCensus!$A$510:$DA$553,BB$1) -> 4 | BC96: =VLOOKUP(DropDownList!$B$47,CntyQryCensus!$A$510:$DA$553,BC$1) -> 96 | BD96: =VLOOKUP(DropDownList!$B$47,CntyQryCensus!$A$510:$DA$553,BD$1) -> 1178 | BE96: =VLOOKUP(DropDownList!$B$47,CntyQryCensus!$A$510:$DA$553,BE$1) -> 251 | BF96: =VLOOKUP(DropDownList!$B$47,CntyQryCensus!$A$510:$DA$553,BF$1) -> 4 | BG96: =VLOOKUP(DropDownList!$B$47,CntyQryCensus!$A$510:$DA$553,BG$1) -> 0 | BH96: =VLOOKUP(DropDownList!$B$47,CntyQryCensus!$A$510:$DA$553,BH$1) -> 0 | BI96: =VLOOKUP(DropDownList!$B$47,CntyQryCensus!$A$510:$DA$553,BI$1) -> 4 | BJ96: =VLOOKUP(DropDownList!$B$47,CntyQryCensus!$A$510:$DA$553,BJ$1) -> 0 | BK96: =VLOOKUP(DropDownList!$B$47,CntyQryCensus!$A$510:$DA$553,BK$1) -> 0 | BL96: =VLOOKUP(DropDownList!$B$47,CntyQryCensus!$A$510:$DA$553,BL$1) -> 0 | BM96: =VLOOKUP(DropDownList!$B$47,CntyQryCensus!$A$510:$DA$553,BM$1) -> 0 | BN96: =VLOOKUP(DropDownList!$B$47,CntyQryCensus!$A$510:$DA$553,BN$1) -> 247 | BO96: =VLOOKUP(DropDownList!$B$47,CntyQryCensus!$A$510:$DA$553,BO$1) -> 76 | BP96: =VLOOKUP(DropDownList!$B$47,CntyQryCensus!$A$510:$DA$553,BP$1) -> 3 | BQ96: =VLOOKUP(DropDownList!$B$47,CntyQryCensus!$A$510:$DA$553,BQ$1) -> 0 | BR96: =VLOOKUP(DropDownList!$B$47,CntyQryCensus!$A$510:$DA$553,BR$1) -> 0 | BS96: =VLOOKUP(DropDownList!$B$47,CntyQryCensus!$A$510:$DA$553,BS$1) -> 0 | BT96: =VLOOKUP(DropDownList!$B$47,CntyQryCensus!$A$510:$DA$553,BT$1) -> 0 | BU96: =VLOOKUP(DropDownList!$B$47,CntyQryCensus!$A$510:$DA$553,BU$1) -> 0 | BV96: =VLOOKUP(DropDownList!$B$47,CntyQryCensus!$A$510:$DA$553,BV$1) -> 3 | BW96: =VLOOKUP(DropDownList!$B$47,CntyQryCensus!$A$510:$DA$553,BW$1) -> 0 | BX96: =VLOOKUP(DropDownList!$B$47,CntyQryCensus!$A$510:$DA$553,BX$1) -> 0 | BY96: =VLOOKUP(DropDownList!$B$47,CntyQryCensus!$A$510:$DA$553,BY$1) -> 0 | BZ96: =VLOOKUP(DropDownList!$B$47,CntyQryCensus!$A$510:$DA$553,BZ$1) -> 0 | CA96: =VLOOKUP(DropDownList!$B$47,CntyQryCensus!$A$510:$DA$553,CA$1) -> 0 | CB96: =VLOOKUP(DropDownList!$B$47,CntyQryCensus!$A$510:$DA$553,CB$1) -> 73 | CC96: =VLOOKUP(DropDownList!$B$47,CntyQryCensus!$A$510:$DA$553,CC$1) -> 707 | CD96: =VLOOKUP(DropDownList!$B$47,CntyQryCensus!$A$510:$DA$553,CD$1) -> 53 | CE96: =VLOOKUP(DropDownList!$B$47,CntyQryCensus!$A$510:$DA$553,CE$1) -> 22 | CF96: =VLOOKUP(DropDownList!$B$47,CntyQryCensus!$A$510:$DA$553,CF$1) -> 24 | CG96: =VLOOKUP(DropDownList!$B$47,CntyQryCensus!$A$510:$DA$553,CG$1) -> 3 | CH96: =VLOOKUP(DropDownList!$B$47,CntyQryCensus!$A$510:$DA$553,CH$1) -> 0 | CI96: =VLOOKUP(DropDownList!$B$47,CntyQryCensus!$A$510:$DA$553,CI$1) -> 4 | CJ96: =VLOOKUP(DropDownList!$B$47,CntyQryCensus!$A$510:$DA$553,CJ$1) -> 0 | CK96: =VLOOKUP(DropDownList!$B$47,CntyQryCensus!$A$510:$DA$553,CK$1) -> 40 | CL96: =VLOOKUP(DropDownList!$B$47,CntyQryCensus!$A$510:$DA$553,CL$1) -> 3 | CM96: =VLOOKUP(DropDownList!$B$47,CntyQryCensus!$A$510:$DA$553,CM$1) -> 37 | CN96: =VLOOKUP(DropDownList!$B$47,CntyQryCensus!$A$510:$DA$553,CN$1) -> 4 | CO96: =VLOOKUP(DropDownList!$B$47,CntyQryCensus!$A$510:$DA$553,CO$1) -> 33 | CP96: =VLOOKUP(DropDownList!$B$47,CntyQryCensus!$A$510:$DA$553,CP$1) -> 614 | CQ96: =VLOOKUP(DropDownList!$B$47,CntyQryCensus!$A$510:$DA$553,CQ$1) -> 144 | CR96: =VLOOKUP(DropDownList!$B$47,CntyQryCensus!$A$510:$DA$553,CR$1) -> 27 | CS96: =VLOOKUP(DropDownList!$B$47,CntyQryCensus!$A$510:$DA$553,CS$1) -> 7 | CT96: =VLOOKUP(DropDownList!$B$47,CntyQryCensus!$A$510:$DA$553,CT$1) -> 14 | CU96: =VLOOKUP(DropDownList!$B$47,CntyQryCensus!$A$510:$DA$553,CU$1) -> 6 | CV96: =VLOOKUP(DropDownList!$B$47,CntyQryCensus!$A$510:$DA$553,CV$1) -> 0 | CW96: =VLOOKUP(DropDownList!$B$47,CntyQryCensus!$A$510:$DA$553,CW$1) -> 0 | CX96: =VLOOKUP(DropDownList!$B$47,CntyQryCensus!$A$510:$DA$553,CX$1) -> 14 | CY96: =VLOOKUP(DropDownList!$B$47,CntyQryCensus!$A$510:$DA$553,CY$1) -> 3 | CZ96: =VLOOKUP(DropDownList!$B$47,CntyQryCensus!$A$510:$DA$553,CZ$1) -> 11 | DA96: =VLOOKUP(DropDownList!$B$47,CntyQryCensus!$A$510:$DA$553,DA$1) -> 103
A101: =VLOOKUP(DropDownList!$B$47,CntyQryCensus!$A$510:$DA$553,A$1) -> Antrim
A105: ACS | B105: 2 | C105: =B105+1 -> 3 | D105: =C105+1 -> 4 | E105: 5 | F105: 6 | G105: 7 | H105: 8 | I105: 9 | J105: 10 | K105: 11 | L105: =K105+1 -> 12 | M105: 13 | N105: 14 | O105: 15 | P105: =O105+1 -> 16 | Q105: 17 | R105: 18 | S105: 19 | T105: 20 | U105: 21 | V105: 22 | W105: 23 | X105: 24 | Y105: 25 | Z105: 26 | AA105: 27 | AB105: 28 | AC105: 29 | AD105: 30 | AE105: 31 | AF105: 32 | AG105: 33 | AH105: 34 | AI105: 35 | AJ105: 36 | AK105: 37 | AL105: 38 | AM105: 39 | AN105: 40 | AO105: 41 | AP105: 42 | AQ105: 43 | AR105: 44 | AS105: 45 | AT105: 46 | AU105: 47 | AV105: 48 | AW105: 49 | AX105: 50 | AY105: 51 | AZ105: 52 | BA105: 53 | BB105: 54 | BC105: 55 | BD105: 56 | BE105: 57 | BF105: 58 | BG105: 59 | BH105: 60 | BI105: 61 | BJ105: 62 | BK105: 63 | BL105: 64 | BM105: 65 | BN105: 66 | BO105: 67 | BP105: =BO105+1 -> 68 | BQ105: 69 | BR105: 70 | BS105: 71 | BT105: 72 | BU105: 73 | BV105: 74 | BW105: 75 | BX105: 76 | BY105: 77 | BZ105: 78 | CA105: 79 | CB105: 80 | CC105: 81 | CD105: 82 | CE105: 83 | CF105: 84 | CG105: 85 | CH105: 86 | CI105: 87 | CJ105: 88 | CK105: 89 | CL105: 90 | CM105: 91 | CN105: 92 | CO105: 93 | CP105: 94 | CQ105: 95 | CR105: 96 | CS105: 97 | CT105: 98 | CU105: 99 | CV105: 100 | CW105: 101 | CX105: 102 | CY105: 103 | CZ105: 104 | DA105: 105 | DB105: 106 | DC105: 107 | DD105: 108 | DE105: 109 | DF105: 110 | DG105: 111 | DH105: 112 | DI105: 113 | DJ105: 114 | DK105: 115 | DL105: 116 | DM105: 117 | DN105: 118 | DO105: 119 | DP105: 120 | DQ105: 121 | DR105: 122 | DS105: 123 | DT105: 124 | DU105: 125
A106: Househould Data (Housing Unit Type)
A107: NAME | B107: TotalHU | C107: ="MOE "&B107 -> MOE TotalHU | D107: TotalOccHU | E107: ="MOE "&D107 -> MOE TotalOccHU | F107: TotalOwnerOccUn | G107: ="MOE "&F107 -> MOE TotalOwnerOccUn | H107: TotalRenterOccn | I107: ="MOE "&H107 -> MOE TotalRenterOccn | J107: TotalVacantUntis | K107: ="MOE "&J107 -> MOE TotalVacantUntis | L107: VacantUnitsForRent | M107: ="MOE "&L107 -> MOE VacantUnitsForRent | N107: VacantUnitRentedNotOcc | O107: ="MOE "&N107 -> MOE VacantUnitRentedNotOcc | P107: VacantUnitForSale | Q107: ="MOE "&P107 -> MOE VacantUnitForSale | R107: VacantUnitSoldNotOcc | S107: ="MOE "&R107 -> MOE VacantUnitSoldNotOcc | T107: VacantUnitSeasonalRec | U107: ="MOE "&T107 -> MOE VacantUnitSeasonalRec | V107: TotalPopInHousingUnits | W107: ="MOE "&V107 -> MOE TotalPopInHousingUnits | X107: OwnerOccPopHousingUnits | Y107: ="MOE "&X107 -> MOE OwnerOccPopHousingUnits | Z107: RenterOccPopHousingUnits | AA107: ="MOE "&Z107 -> MOE RenterOccPopHousingUnits | AB107: TotalUntis | AC107: ="MOE "&AB107 -> MOE TotalUntis | AD107: TotalOwnerOccUnits | AE107: ="MOE "&AD107 -> MOE TotalOwnerOccUnits | AF107: SigFamOwnerOcc | AG107: ="MOE "&AF107 -> MOE SigFamOwnerOcc | AH107: MultiFamOwnerOcc | AI107: ="MOE "&AH107 -> MOE MultiFamOwnerOcc | AJ107: MobileOwnerOcc | AK107: ="MOE "&AJ107 -> MOE MobileOwnerOcc | AL107: TotalRenterOccUnits | AM107: ="MOE "&AL107 -> MOE TotalRenterOccUnits | AN107: SigFamRenterOcc | AO107: ="MOE "&AN107 -> MOE SigFamRenterOcc | AP107: MultiFamRenterOcc | AQ107: ="MOE "&AP107 -> MOE MultiFamRenterOcc | AR107: MobileRenterOcc | AS107: ="MOE "&AR107 -> MOE MobileRenterOcc | AT107: TotalSigFamilyUnits | AU107: ="MOE "&AT107 -> MOE TotalSigFamilyUnits | AV107: TotalMultiFamilyUnits | AW107: ="MOE "&AV107 -> MOE TotalMultiFamilyUnits | AX107: TotalMobileUnits | AY107: ="MOE "&AX107 -> MOE TotalMobileUnits | AZ107: YrHouseBuilt2014Later | BA107: ="MOE "&AZ107 -> MOE YrHouseBuilt2014Later | BB107: YrHouseBuilt2010-2013 | BC107: ="MOE "&BB107 -> MOE YrHouseBuilt2010-2013 | BD107: YrHouseBuilt2000-2009 | BE107: ="MOE "&BD107 -> MOE YrHouseBuilt2000-2009 | BF107: YrHouseBuilt1990-1999 | BG107: ="MOE "&BF107 -> MOE YrHouseBuilt1990-1999 | BH107: YrHouseBuilt1980-1989 | BI107: ="MOE "&BH107 -> MOE YrHouseBuilt1980-1989 | BJ107: YrHouseBuilt1970-1979 | BK107: ="MOE "&BJ107 -> MOE YrHouseBuilt1970-1979 | BL107: YrHouseBuilt1960-1969 | BM107: ="MOE "&BL107 -> MOE YrHouseBuilt1960-1969 | BN107: YrHouseBuilt1950-1959 | BO107: ="MOE "&BN107 -> MOE YrHouseBuilt1950-1959 | BP107: YrHouseBuilt1940-1949 | BQ107: ="MOE "&BP107 -> MOE YrHouseBuilt1940-1949 | BR107: YrHouseBuilt1939orEarlier | BS107: ="MOE "&BR107 -> MOE YrHouseBuilt1939orEarlier | BT107: NoBedrooms | BU107: ="MOE "&BT107 -> MOE NoBedrooms | BV107: 1Bedroom | BW107: ="MOE "&BV107 -> MOE 1Bedroom | BX107: 2Bedroom | BY107: ="MOE "&BX107 -> MOE 2Bedroom | BZ107: 3Bedroom | CA107: ="MOE "&BZ107 -> MOE 3Bedroom | CB107: 4+Bedroom | CC107: ="MOE "&CB107 -> MOE 4+Bedroom
A108: =VLOOKUP(DropDownList!$B$47,CntyQryCensus!$A$510:$DA$553,A$1) -> Antrim | B108: 39085 | C108: 801 | D108: 37478 | E108: 849 | F108: 20817 | G108: 669 | H108: 16661 | I108: 855 | J108: 1607 | K108: 407 | L108: 223 | M108: 133 | N108: 244 | O108: 138 | P108: 73 | Q108: 72 | R108: 77 | S108: 74 | T108: 253 | U108: 113 | V108: 89502 | W108: 47 | X108: 54242 | Y108: 1943 | Z108: 35260 | AA108: 1939 | AB108: 37478 | AC108: 849 | AD108: 20817 | AE108: 669 | AF108: 15588 | AG108: 622 | AH108: 4322 | AI108: 556.9452397 | AJ108: 907 | AK108: 231.6980794 | AL108: 16661 | AM108: 855 | AN108: 1550 | AO108: 372 | AP108: 9749 | AQ108: 822.8213658 | AR108: 23.70653918 | AS108: 32.01562119 | AT108: 17455 | AU108: 638 | AV108: 20667 | AW108: 1152.741081 | AX108: 963 | AY108: 226.8832299 | AZ108: 80 | BA108: 78 | BB108: 1909 | BC108: 311 | BD108: 2207 | BE108: 365 | BF108: 2382 | BG108: 461 | BH108: 8931 | BI108: 730 | BJ108: 7214 | BK108: 536 | BL108: 4953 | BM108: 448 | BN108: 2807 | BO108: 400 | BP108: 1132 | BQ108: 291 | BR108: 7470 | BS108: 685 | BT108: 964 | BU108: 289 | BV108: 5898 | BW108: 590 | BX108: 13364 | BY108: 772 | BZ108: 11636 | CA108: 574 | CB108: 7223 | CC108: 565.9257902
A110: Disability Data
A111: NAME | B111: TotalPop | C111: ="MOE "&B111 -> MOE TotalPop | D111: PopUnder 5 years: | E111: ="MOE "&D111 -> MOE PopUnder 5 years: | F111: =D$111&"-WithDisability" -> PopUnder 5 years:-WithDisability | G111: ="MOE "&F111 -> MOE PopUnder 5 years:-WithDisability | H111: =D111&"-NoDisability" -> PopUnder 5 years:-NoDisability | I111: ="MOE "&H111 -> MOE PopUnder 5 years:-NoDisability | J111: PopUnder 5 to 17years: | K111: ="MOE "&J111 -> MOE PopUnder 5 to 17years: | L111: =J$111&"-WithDisability" -> PopUnder 5 to 17years:-WithDisability | M111: ="MOE "&L111 -> MOE PopUnder 5 to 17years:-WithDisability | N111: =J111&"-NoDisability" -> PopUnder 5 to 17years:-NoDisability | O111: ="MOE "&N111 -> MOE PopUnder 5 to 17years:-NoDisability | P111: PopUnder 18 to 34 years: | Q111: ="MOE "&P111 -> MOE PopUnder 18 to 34 years: | R111: =P$111&"-WithDisability" -> PopUnder 18 to 34 years:-WithDisability | S111: ="MOE "&R111 -> MOE PopUnder 18 to 34 years:-WithDisability | T111: =P111&"-NoDisability" -> PopUnder 18 to 34 years:-NoDisability | U111: ="MOE "&T111 -> MOE PopUnder 18 to 34 years:-NoDisability | V111: Pop 35 years to 64: | W111: ="MOE "&V111 -> MOE Pop 35 years to 64: | X111: =$V$111&"-WithDisability" -> Pop 35 years to 64:-WithDisability | Y111: ="MOE "&X111 -> MOE Pop 35 years to 64:-WithDisability | Z111: =$V$111&"-NoDisability" -> Pop 35 years to 64:-NoDisability | AA111: ="MOE "&Z111 -> MOE Pop 35 years to 64:-NoDisability | AB111: Pop 65 years to 74: | AC111: ="MOE "&AB111 -> MOE Pop 65 years to 74: | AD111: =$AB$111&"-WithDisability" -> Pop 65 years to 74:-WithDisability | AE111: ="MOE "&AD111 -> MOE Pop 65 years to 74:-WithDisability | AF111: =$AB$111&"-NoDisability" -> Pop 65 years to 74:-NoDisability | AG111: ="MOE "&AF111 -> MOE Pop 65 years to 74:-NoDisability | AH111: Pop 75 and older: | AI111: ="MOE "&AH111 -> MOE Pop 75 and older: | AJ111: =$AH$111&"-WithDisability" -> Pop 75 and older:-WithDisability | AK111: ="MOE "&AJ111 -> MOE Pop 75 and older:-WithDisability | AL111: =$AH$111&"-NoDisability" -> Pop 75 and older:-NoDisability | AM111: ="MOE "&AL111 -> MOE Pop 75 and older:-NoDisability | AN111: TotalPopUnder5_HearingDisability | AO111: ="MOE "&AN111 -> MOE TotalPopUnder5_HearingDisability | AP111: TotalPopUnder5_HearingDisability | AQ111: ="MOE "&AP111 -> MOE TotalPopUnder5_HearingDisability | AR111: TotalPop18To34_HearingDisability | AS111: ="MOE "&AR111 -> MOE TotalPop18To34_HearingDisability | AT111: TotalPop35To64_HearingDisability | AU111: ="MOE "&AT111 -> MOE TotalPop35To64_HearingDisability | AV111: TotalPop65To74_HearingDisability | AW111: ="MOE "&AV111 -> MOE TotalPop65To74_HearingDisability | AX111: TotalPop75andOlder_HearingDisability | AY111: ="MOE "&AX111 -> MOE TotalPop75andOlder_HearingDisability | AZ111: TotalPopUnder5_VisionDisability | BA111: ="MOE "&AZ111 -> MOE TotalPopUnder5_VisionDisability | BB111: TotalPop5To17_VisionDisability | BC111: ="MOE "&BB111 -> MOE TotalPop5To17_VisionDisability | BD111: TotalPop18To34_VisionDisability | BE111: ="MOE "&BD111 -> MOE TotalPop18To34_VisionDisability | BF111: TotalPop35To64_VisionDisability | BG111: ="MOE "&BF111 -> MOE TotalPop35To64_VisionDisability | BH111: TotalPop65To74_VisionDisability | BI111: ="MOE "&BH111 -> MOE TotalPop65To74_VisionDisability | BJ111: TotalPop75andOlder_VisionDisability | BK111: ="MOE "&BJ111 -> MOE TotalPop75andOlder_VisionDisability | BL111: TotalPop5To17_CongnitiveDisability | BM111: ="MOE "&BL111 -> MOE TotalPop5To17_CongnitiveDisability | BN111: TotalPop18To34_CongnitiveDisability | BO111: ="MOE "&BN111 -> MOE TotalPop18To34_CongnitiveDisability | BP111: TotalPop35To64_CongnitiveDisability | BQ111: ="MOE "&BP111 -> MOE TotalPop35To64_CongnitiveDisability | BR111: TotalPop65To74_CongnitiveDisability | BS111: ="MOE "&BR111 -> MOE TotalPop65To74_CongnitiveDisability | BT111: TotalPop75andOlder_CongnitiveDisability | BU111: ="MOE "&BT111 -> MOE TotalPop75andOlder_CongnitiveDisability | BV111: TotalPop5To17_AmbulatoryDisability | BW111: ="MOE "&BV111 -> MOE TotalPop5To17_AmbulatoryDisability | BX111: TotalPop18To34_AmbulatoryDisability | BY111: ="MOE "&BX111 -> MOE TotalPop18To34_AmbulatoryDisability | BZ111: TotalPop35To64_AmbulatoryDisability | CA111: ="MOE "&BZ111 -> MOE TotalPop35To64_AmbulatoryDisability | CB111: TotalPop65To74_AmbulatoryDisability | CC111: ="MOE "&CB111 -> MOE TotalPop65To74_AmbulatoryDisability | CD111: TotalPop75andOlder_AmbulatoryDisability | CE111: ="MOE "&CD111 -> MOE TotalPop75andOlder_AmbulatoryDisability | CF111: TotalPop5To17_SelfCareDisability | CG111: ="MOE "&CF111 -> MOE TotalPop5To17_SelfCareDisability | CH111: TotalPop18To34_SelfCareDisability | CI111: ="MOE "&CH111 -> MOE TotalPop18To34_SelfCareDisability | CJ111: TotalPop35To64_SelfCareDisability | CK111: ="MOE "&CJ111 -> MOE TotalPop35To64_SelfCareDisability | CL111: TotalPop65To74_SelfCareDisability | CM111: ="MOE "&CL111 -> MOE TotalPop65To74_SelfCareDisability | CN111: TotalPop75andOlder_SelfCareDisability | CO111: ="MOE "&CN111 -> MOE TotalPop75andOlder_SelfCareDisability | CP111: TotalPop18To34_IndependantLivingDisability | CQ111: ="MOE "&CP111 -> MOE TotalPop18To34_IndependantLivingDisability | CR111: TotalPop35To64_IndependantLivingDisability | CS111: ="MOE "&CR111 -> MOE TotalPop35To64_IndependantLivingDisability | CT111: TotalPop65To74_IndependantLivingDisability | CU111: ="MOE "&CT111 -> MOE TotalPop65To74_IndependantLivingDisability | CV111: TotalPop75andOlder_IndependantLivingDisability | CW111: ="MOE "&CV111 -> MOE TotalPop75andOlder_IndependantLivingDisability | CX111: TotalUnder5_HearingorVisionDisability | CY111: ="MOE "&CX111 -> MOE TotalUnder5_HearingorVisionDisability | CZ111: TotalUnder5_HearingandVisionDisability | DA111: ="MOE "&CZ111 -> MOE TotalUnder5_HearingandVisionDisability | DB111: 5to17YearWIthOneDisability | DC111: ="MOE "&DB111 -> MOE 5to17YearWIthOneDisability | DD111: 5to17YearWIthTwoOrMoreDisability | DE111: ="MOE "&DD111 -> MOE 5to17YearWIthTwoOrMoreDisability | DF111: 18to34YearWIthOneDisability | DG111: ="MOE "&DF111 -> MOE 18to34YearWIthOneDisability | DH111: 18to34YearWIthTwoOrMoreDisability | DI111: ="MOE "&DH111 -> MOE 18to34YearWIthTwoOrMoreDisability | DJ111: 35to64YearWIthOneDisability | DK111: ="MOE "&DJ111 -> MOE 35to64YearWIthOneDisability | DL111: 35to64YearWIthTwoOrMoreDisability | DM111: ="MOE "&DL111 -> MOE 35to64YearWIthTwoOrMoreDisability | DN111: 65to74YearWIthOneDisability | DO111: ="MOE "&DN111 -> MOE 65to74YearWIthOneDisability | DP111: 65to74YearWIthTwoOrMoreDisability | DQ111: ="MOE "&DP111 -> MOE 65to74YearWIthTwoOrMoreDisability | DR111: 75AndOlderWIthOneDisability | DS111: ="MOE "&DR111 -> MOE 75AndOlderWIthOneDisability | DT111: 75AndOlderWIthTwoOrMoreDisability | DU111: ="MOE "&DT111 -> MOE 75AndOlderWIthTwoOrMoreDisability
A112: =VLOOKUP(DropDownList!$B$47,CntyQryCensus!$A$510:$DA$553,A$1) -> Antrim | B112: 2644 | C112: 19 | D112: 118 | E112: 49.64876635 | F112: 0 | G112: 16.97056275 | H112: 118 | I112: 49.64876635 | J112: 430 | K112: 101.2422837 | L112: 15 | M112: 17.69180601 | N112: 415 | O112: 98.61541462 | P112: 510 | Q112: 93.43446901 | R112: 55 | S112: 40.31128874 | T112: 455 | U112: 89.93886813 | V112: 1142 | W112: 149.4824404 | X112: 100 | Y112: 40.24922359 | Z112: 1042 | AA112: 144.4229899 | AB112: 282 | AC112: 62.62587325 | AD112: 91 | AE112: 46.95742753 | AF112: 191 | AG112: 47.42362281 | AH112: 162 | AI112: 57.62811814 | AJ112: 72 | AK112: 30.23243292 | AL112: 90 | AM112: 44.55333882 | AN112: 0 | AO112: 16.97056275 | AP112: 6 | AQ112: 15 | AR112: 0 | AS112: 16.97056275 | AT112: 9 | AU112: 15.62049935 | AV112: 9 | AW112: 16.2788206 | AX112: 32 | AY112: 21.26029163 | AZ112: 0 | BA112: 16.97056275 | BB112: 0 | BC112: 16.97056275 | BD112: 0 | BE112: 16.97056275 | BF112: 12 | BG112: 12.72792206 | BH112: 24 | BI112: 26.83281573 | BJ112: 9 | BK112: 10.81665383 | BL112: 5 | BM112: 13.89244399 | BN112: 55 | BO112: 40.31128874 | BP112: 28 | BQ112: 19.79898987 | BR112: 29 | BS112: 27.73084925 | BT112: 17 | BU112: 16.15549442 | BV112: 4 | BW112: 13.89244399 | BX112: 10 | BY112: 19.20937271 | BZ112: 69 | CA112: 35.44009029 | CB112: 72 | CC112: 46.95742753 | CD112: 54 | CE112: 27.20294102 | CF112: 4 | CG112: 13.89244399 | CH112: 28 | CI112: 31.76476035 | CJ112: 33 | CK112: 25.96150997 | CL112: 50 | CM112: 34.17601498 | CN112: 42 | CO112: 24.41311123 | CP112: 28 | CQ112: 31.76476035 | CR112: 26 | CS112: 21.40093456 | CT112: 47 | CU112: 31.25699922 | CV112: 35 | CW112: 23.02172887 | CX112: 11 | CY112: 12 | CZ112: 4 | DA112: 7 | DB112: 74 | DC112: 37 | DD112: 81 | DE112: 45 | DF112: 46 | DG112: 31 | DH112: 117 | DI112: 45
A114: Househould Income By Age
A115: NAME | B115: TotalHouseholds | C115: ="MOE "&B115 -> MOE TotalHouseholds | D115: HHInc<10K | E115: ="MOE "&D115 -> MOE HHInc<10K | F115: HHInc10to15K | G115: ="MOE "&F115 -> MOE HHInc10to15K | H115: HHInc15to20K | I115: ="MOE "&H115 -> MOE HHInc15to20K | J115: HHInc20to25K | K115: ="MOE "&J115 -> MOE HHInc20to25K | L115: HHInc25to30K | M115: ="MOE "&L115 -> MOE HHInc25to30K | N115: HHInc30to35K | O115: ="MOE "&N115 -> MOE HHInc30to35K | P115: HHInc35to40K | Q115: ="MOE "&P115 -> MOE HHInc35to40K | R115: HHInc40to45K | S115: ="MOE "&R115 -> MOE HHInc40to45K | T115: HHInc45to50K | U115: ="MOE "&T115 -> MOE HHInc45to50K | V115: HHInc50to60K | W115: ="MOE "&V115 -> MOE HHInc50to60K | X115: HHInc60to75K | Y115: ="MOE "&X115 -> MOE HHInc60to75K | Z115: HHInc75to100K | AA115: ="MOE "&Z115 -> MOE HHInc75to100K | AB115: HHInc100to125K | AC115: ="MOE "&AB115 -> MOE HHInc100to125K | AD115: HHInc125to150K | AE115: ="MOE "&AD115 -> MOE HHInc125to150K | AF115: HHInc150to200K | AG115: ="MOE "&AF115 -> MOE HHInc150to200K | AH115: HHInc>200K | AI115: ="MOE "&AH115 -> MOE HHInc>200K | AJ115: TotalHH | AK115: ="MOE "&AJ115 -> MOE TotalHH | AL115: HHAgeHHUnder25yrs | AM115: ="MOE "&AL115 -> MOE HHAgeHHUnder25yrs | AN115: HHAgeHH<25HHInc<10K | AO115: ="MOE "&AN115 -> MOE HHAgeHH<25HHInc<10K | AP115: HHAgeHH<25HHInc10to15K | AQ115: ="MOE "&AP115 -> MOE HHAgeHH<25HHInc10to15K | AR115: HHAgeHH<25HHInc15to20K | AS115: ="MOE "&AR115 -> MOE HHAgeHH<25HHInc15to20K | AT115: HHAgeHH<25HHInc20to25K | AU115: ="MOE "&AT115 -> MOE HHAgeHH<25HHInc20to25K | AV115: HHAgeHH<25HHInc25to30K | AW115: ="MOE "&AV115 -> MOE HHAgeHH<25HHInc25to30K | AX115: HHAgeHH<25HHInc30to35K | AY115: ="MOE "&AX115 -> MOE HHAgeHH<25HHInc30to35K | AZ115: HHAgeHH<25HHInc35to40K | BA115: ="MOE "&AZ115 -> MOE HHAgeHH<25HHInc35to40K | BB115: HHAgeHH<25HHInc40to45K | BC115: ="MOE "&BB115 -> MOE HHAgeHH<25HHInc40to45K | BD115: HHAgeHH<25HHInc45to50K | BE115: ="MOE "&BD115 -> MOE HHAgeHH<25HHInc45to50K | BF115: HHAgeHH<25HHInc50to60K | BG115: ="MOE "&BF115 -> MOE HHAgeHH<25HHInc50to60K | BH115: HHAgeHH<25HHInc60to75K | BI115: ="MOE "&BH115 -> MOE HHAgeHH<25HHInc60to75K | BJ115: HHAgeHH<25HHInc75to100K | BK115: ="MOE "&BJ115 -> MOE HHAgeHH<25HHInc75to100K | BL115: HHAgeHH<25HHInc100to125K | BM115: ="MOE "&BL115 -> MOE HHAgeHH<25HHInc100to125K | BN115: HHAgeHH<25HHInc125to150K | BO115: ="MOE "&BN115 -> MOE HHAgeHH<25HHInc125to150K | BP115: HHAgeHH<25HHInc150to200K | BQ115: ="MOE "&BP115 -> MOE HHAgeHH<25HHInc150to200K | BR115: HHAge<25HHInc>200K | BS115: ="MOE "&BR115 -> MOE HHAge<25HHInc>200K | BT115: HHAgeHH25to44yrs | BU115: ="MOE "&BT115 -> MOE HHAgeHH25to44yrs | BV115: HHAgeHH25To44yrsHHInc<10K | BW115: ="MOE "&BV115 -> MOE HHAgeHH25To44yrsHHInc<10K | BX115: HHAgeHH25To44yrsHHInc10to15K | BY115: ="MOE "&BX115 -> MOE HHAgeHH25To44yrsHHInc10to15K | BZ115: HHAgeHH25To44yrsHHInc15to20K | CA115: ="MOE "&BZ115 -> MOE HHAgeHH25To44yrsHHInc15to20K | CB115: HHAgeHH25To44yrsHHInc20to25K | CC115: ="MOE "&CB115 -> MOE HHAgeHH25To44yrsHHInc20to25K | CD115: HHAgeHH25To44yrsHHInc25to30K | CE115: ="MOE "&CD115 -> MOE HHAgeHH25To44yrsHHInc25to30K | CF115: HHAgeHH25To44yrsHHInc30to35K | CG115: ="MOE "&CF115 -> MOE HHAgeHH25To44yrsHHInc30to35K | CH115: HHAgeHH25To44yrsHHInc35to40K | CI115: ="MOE "&CH115 -> MOE HHAgeHH25To44yrsHHInc35to40K | CJ115: HHAgeHH25To44yrsHHInc40to45K | CK115: ="MOE "&CJ115 -> MOE HHAgeHH25To44yrsHHInc40to45K | CL115: HHAgeHH25To44yrsHHInc45to50K | CM115: ="MOE "&CL115 -> MOE HHAgeHH25To44yrsHHInc45to50K | CN115: HHAgeHH25To44yrsHHInc50to60K | CO115: ="MOE "&CN115 -> MOE HHAgeHH25To44yrsHHInc50to60K | CP115: HHAgeHH25To44yrsHHInc60to75K | CQ115: ="MOE "&CP115 -> MOE HHAgeHH25To44yrsHHInc60to75K | CR115: HHAgeHH25To44yrsHHInc75to100K | CS115: ="MOE "&CR115 -> MOE HHAgeHH25To44yrsHHInc75to100K | CT115: HHAgeHH25To44yrsHHInc100to125K | CU115: ="MOE "&CT115 -> MOE HHAgeHH25To44yrsHHInc100to125K | CV115: HHAgeHH25To44yrsHHInc125to150K | CW115: ="MOE "&CV115 -> MOE HHAgeHH25To44yrsHHInc125to150K | CX115: HHAgeHH25To44yrsHHInc150to200K | CY115: ="MOE "&CX115 -> MOE HHAgeHH25To44yrsHHInc150to200K | CZ115: HHAge25To44yrsHHInc>200K | DA115: ="MOE "&CZ115 -> MOE HHAge25To44yrsHHInc>200K | DB115: HHAgeHH45To64yrs | DC115: ="MOE "&DB115 -> MOE HHAgeHH45To64yrs | DD115: HHAgeHH45To64yrsHHInc<10K | DE115: ="MOE "&DD115 -> MOE HHAgeHH45To64yrsHHInc<10K | DF115: HHAgeHH45To64yrsHHInc10to15K | DG115: ="MOE "&DF115 -> MOE HHAgeHH45To64yrsHHInc10to15K | DH115: HHAgeHH45To64yrsHHInc15to20K | DI115: ="MOE "&DH115 -> MOE HHAgeHH45To64yrsHHInc15to20K | DJ115: HHAgeHH45To64yrsHHInc20to25K | DK115: ="MOE "&DJ115 -> MOE HHAgeHH45To64yrsHHInc20to25K | DL115: HHAgeHH45To64yrsHHInc25to30K | DM115: ="MOE "&DL115 -> MOE HHAgeHH45To64yrsHHInc25to30K | DN115: HHAgeHH45To64yrsHHInc30to35K | DO115: ="MOE "&DN115 -> MOE HHAgeHH45To64yrsHHInc30to35K | DP115: HHAgeHH45To64yrsHHInc35to40K | DQ115: ="MOE "&DP115 -> MOE HHAgeHH45To64yrsHHInc35to40K | DR115: HHAgeHH45To64yrsHHInc40to45K | DS115: ="MOE "&DR115 -> MOE HHAgeHH45To64yrsHHInc40to45K | DT115: HHAgeHH45To64yrsHHInc45to50K | DU115: ="MOE "&DT115 -> MOE HHAgeHH45To64yrsHHInc45to50K | DV115: HHAgeHH45To64yrsHHInc50to60K | DW115: ="MOE "&DV115 -> MOE HHAgeHH45To64yrsHHInc50to60K | DX115: HHAgeHH45To64yrsHHInc60to75K | DY115: ="MOE "&DX115 -> MOE HHAgeHH45To64yrsHHInc60to75K | DZ115: HHAgeHH45To64yrsHHInc75to100K | EA115: ="MOE "&DZ115 -> MOE HHAgeHH45To64yrsHHInc75to100K | EB115: HHAgeHH45To64yrsHHInc100to125K | EC115: ="MOE "&EB115 -> MOE HHAgeHH45To64yrsHHInc100to125K | ED115: HHAgeHH45To64yrsHHInc125to150K | EE115: ="MOE "&ED115 -> MOE HHAgeHH45To64yrsHHInc125to150K | EF115: HHAgeHH45To64yrsHHInc150to200K | EG115: ="MOE "&EF115 -> MOE HHAgeHH45To64yrsHHInc150to200K | EH115: HHAge45To64yrsHHInc>200K | EI115: ="MOE "&EH115 -> MOE HHAge45To64yrsHHInc>200K | EJ115: HHAgeHH65yrsorOlder | EK115: ="MOE "&EJ115 -> MOE HHAgeHH65yrsorOlder | EL115: HHAgeHH65yrsorOlderHHInc<10K | EM115: ="MOE "&EL115 -> MOE HHAgeHH65yrsorOlderHHInc<10K | EN115: HHAgeHH65yrsorOlderHHInc10to15K | EO115: ="MOE "&EN115 -> MOE HHAgeHH65yrsorOlderHHInc10to15K | EP115: HHAgeHH65yrsorOlderHHInc15to20K | EQ115: ="MOE "&EP115 -> MOE HHAgeHH65yrsorOlderHHInc15to20K | ER115: HHAgeHH65yrsorOlderHHInc20to25K | ES115: ="MOE "&ER115 -> MOE HHAgeHH65yrsorOlderHHInc20to25K | ET115: HHAgeHH65yrsorOlderHHInc25to30K | EU115: ="MOE "&ET115 -> MOE HHAgeHH65yrsorOlderHHInc25to30K | EV115: HHAgeHH65yrsorOlderHHInc30to35K | EW115: ="MOE "&EV115 -> MOE HHAgeHH65yrsorOlderHHInc30to35K | EX115: HHAgeHH65yrsorOlderHHInc35to40K | EY115: ="MOE "&EX115 -> MOE HHAgeHH65yrsorOlderHHInc35to40K | EZ115: HHAgeHH65yrsorOlderHHInc40to45K | FA115: ="MOE "&EZ115 -> MOE HHAgeHH65yrsorOlderHHInc40to45K | FB115: HHAgeHH65yrsorOlderHHInc45to50K | FC115: ="MOE "&FB115 -> MOE HHAgeHH65yrsorOlderHHInc45to50K | FD115: HHAgeHH65yrsorOlderHHInc50to60K | FE115: ="MOE "&FD115 -> MOE HHAgeHH65yrsorOlderHHInc50to60K | FF115: HHAgeHH65yrsorOlderHHInc60to75K | FG115: ="MOE "&FF115 -> MOE HHAgeHH65yrsorOlderHHInc60to75K | FH115: HHAgeHH65yrsorOlderHHInc75to100K | FI115: ="MOE "&FH115 -> MOE HHAgeHH65yrsorOlderHHInc75to100K | FJ115: HHAgeHH65yrsorOlderHHInc100to125K | FK115: ="MOE "&FJ115 -> MOE HHAgeHH65yrsorOlderHHInc100to125K | FL115: HHAgeHH65yrsorOlderHHInc125to150K | FM115: ="MOE "&FL115 -> MOE HHAgeHH65yrsorOlderHHInc125to150K | FN115: HHAgeHH65yrsorOlderHHInc150to200K | FO115: ="MOE "&FN115 -> MOE HHAgeHH65yrsorOlderHHInc150to200K | FP115: HHAge65yrsorOlderHHInc>200K | FQ115: ="MOE "&FP115 -> MOE HHAge65yrsorOlderHHInc>200K | FR115: MedianHHInc | FS115: ="MOE "&FR115 -> MOE MedianHHInc | FT115: HH under 25 years | FU115: ="MOE "&FT115 -> MOE HH under 25 years | FV115: Householder 25 to 44 years | FW115: ="MOE "&FV115 -> MOE Householder 25 to 44 years | FX115: Householder 45 to 64 years | FY115: ="MOE "&FX115 -> MOE Householder 45 to 64 years | FZ115: Householder 65 years and over | GA115: ="MOE "&FZ115 -> MOE Householder 65 years and over
A116: =VLOOKUP(DropDownList!$B$47,CntyQryCensus!$A$510:$DA$553,A$1) -> Antrim | B116: 1053 | C116: 111 | D116: 8 | E116: 10 | F116: 4 | G116: 6 | H116: 58 | I116: 32 | J116: 24 | K116: 20 | L116: 67 | M116: 66 | N116: 58 | O116: 39 | P116: 34 | Q116: 22 | R116: 14 | S116: 14 | T116: 50 | U116: 35 | V116: 50 | W116: 36 | X116: 93 | Y116: 45 | Z116: 94 | AA116: 48 | AB116: 238 | AC116: 112 | AD116: 42 | AE116: 31 | AF116: 79 | AG116: 34 | AH116: 140 | AI116: 60 | AJ116: 1053 | AK116: 111 | AL116: 16 | AM116: 24 | AN116: 0 | AO116: 12 | AP116: 0 | AQ116: 12 | AR116: 0 | AS116: 12 | AT116: 0 | AU116: 12 | AV116: 0 | AW116: 12 | AX116: 0 | AY116: 12 | AZ116: 4 | BA116: 8 | BB116: 0 | BC116: 12 | BD116: 0 | BE116: 12 | BF116: 0 | BG116: 12 | BH116: 0 | BI116: 12 | BJ116: 0 | BK116: 12 | BL116: 12 | BM116: 19 | BN116: 0 | BO116: 12 | BP116: 0 | BQ116: 12 | BR116: 0 | BS116: 12 | BT116: 248 | BU116: 49 | BV116: 4 | BW116: 7 | BX116: 0 | BY116: 12 | BZ116: 0 | CA116: 12 | CB116: 0 | CC116: 12 | CD116: 0 | CE116: 12 | CF116: 15 | CG116: 24 | CH116: 0 | CI116: 12 | CJ116: 0 | CK116: 12 | CL116: 18 | CM116: 19 | CN116: 6 | CO116: 9 | CP116: 28 | CQ116: 23 | CR116: 40 | CS116: 36 | CT116: 45 | CU116: 28 | CV116: 8 | CW116: 11 | CX116: 12 | CY116: 13 | CZ116: 72 | DA116: 38 | DB116: 559 | DC116: 127 | DD116: 0 | DE116: 12 | DF116: 0 | DG116: 12 | DH116: 35 | DI116: 28 | DJ116: 10 | DK116: 10 | DL116: 53 | DM116: 63 | DN116: 6 | DO116: 9 | DP116: 23 | DQ116: 18 | DR116: 11 | DS116: 16 | DT116: 14 | DU116: 16 | DV116: 33 | DW116: 29 | DX116: 57 | DY116: 35 | DZ116: 10 | EA116: 11 | EB116: 167 | EC116: 106 | ED116: 21 | EE116: 20 | EF116: 63 | EG116: 31 | EH116: 56 | EI116: 34 | EJ116: 230 | EK116: 60 | EL116: 4 | EM116: 7 | EN116: 4 | EO116: 6 | EP116: 23 | EQ116: 15 | ER116: 14 | ES116: 15 | ET116: 14 | EU116: 22 | EV116: 37 | EW116: 30 | EX116: 7 | EY116: 9 | EZ116: 3 | FA116: 6 | FB116: 18 | FC116: 22 | FD116: 11 | FE116: 14 | FF116: 8 | FG116: 12 | FH116: 44 | FI116: 32 | FJ116: 14 | FK116: 14 | FL116: 13 | FM116: 21 | FN116: 4 | FO116: 7 | FP116: 12 | FQ116: 12 | FR116: 85990 | FS116: 27483 | FT116: - | FU116: ** | FV116: 101912 | FW116: 26867 | FX116: 105223 | FY116: 28539 | FZ116: 46250 | GA116: 22090
A118: Number of Households by Income
A119: NAME | B119: HHIncLessThn10k | C119: ="MOE "&B119 -> MOE HHIncLessThn10k | D119: HHInc10to15K | E119: ="MOE "&D119 -> MOE HHInc10to15K | F119: HHInc15to25K | G119: ="MOE "&F119 -> MOE HHInc15to25K | H119: HHInc25to35K | I119: ="MOE "&H119 -> MOE HHInc25to35K | J119: HHInc35to50K | K119: ="MOE "&J119 -> MOE HHInc35to50K | L119: HHInc50to75K | M119: ="MOE "&L119 -> MOE HHInc50to75K | N119: HHInc75to100K | O119: ="MOE "&N119 -> MOE HHInc75to100K | P119: HHInc100to150K | Q119: ="MOE "&P119 -> MOE HHInc100to150K | R119: HHInc150to200K | S119: ="MOE "&R119 -> MOE HHInc150to200K | T119: HHIncOver200K | U119: ="MOE "&T119 -> MOE HHIncOver200K
A120: =VLOOKUP(DropDownList!$B$47,CntyQryCensus!$A$510:$DA$553,A$1) -> Antrim | B120: 8 | C120: 10 | D120: 4 | E120: 6 | F120: 82 | G120: 37.73592453 | H120: 125 | I120: 76.66159404 | J120: 98 | K120: 43.64630569 | L120: 143 | M120: 57.62811814 | N120: 94 | O120: 48 | P120: 280 | Q120: 116.211015 | R120: 79 | S120: 34 | T120: 140 | U120: 60 | V120: 303 | W120: 122 | X120: 473 | Y120: 136 | Z120: 393 | AA120: 108 | AB120: 471 | AC120: 123 | AD120: 677 | AE120: 128 | AF120: 698 | AG120: 119 | AX120: 472 | AY120: 135 | AZ120: 752 | BA120: 166 | BB120: 827 | BC120: 148 | BR120: Amherst | BT120: Estimate | BU120: Margin Of Error | BV120: 3996 | BW120: 178 | BZ120: 60 | CA120: 65 | CB120: 14 | CC120: 16 | CD120: 179 | CE120: 74.41102069 | CF120: 158 | CG120: 71.06335202 | CH120: 231 | CI120: 100.4987562 | CJ120: 321 | CK120: 93.72299611 | CL120: 484 | CM120: 129 | CN120: 970 | CO120: 185.3483207 | CP120: 752 | CQ120: 166 | CR120: 827 | CS120: 148 | DH120: Amherst | DJ120: Estimate | DK120: Margin Of Error | DL120: 4031 | DM120: 153 | DP120: 90 | DQ120: 54 | DR120: 18 | DS120: 16 | DT120: 21 | DU120: 23 | DV120: 60 | DW120: 45 | DX120: 101 | DY120: 57 | DZ120: 100 | EA120: 64 | EB120: 69 | EC120: 45 | ED120: 114 | EE120: 86 | EF120: 129 | EG120: 81 | EH120: 288 | EI120: 97 | EJ120: 280 | EK120: 108 | EL120: 473 | EM120: 184 | EN120: 528 | EO120: 138 | EP120: 472 | EQ120: 127 | ER120: 618 | ES120: 125 | ET120: 670 | EU120: 122 | FJ120: Amherst | FL120: Estimate | FM120: Margin Of Error | FN120: 4031 | FO120: 153 | FR120: 90 | FS120: 54 | FT120: 18 | FU120: 16 | FV120: 81 | FW120: 50.53711507 | FX120: 201 | FY120: 85.70297544 | FZ120: 312 | GA120: 126.4199351 | GB120: 568 | GC120: 145.1654229 | GD120: 473 | GE120: 184 | GF120: 1000 | GG120: 187.5446613 | GH120: 618 | GI120: 125 | GJ120: 670 | GK120: 122
A123: NAME | B123: TotalPop | C123: ="MOE "&B123 -> MOE TotalPop | D123: Total Individuals living in Poverty | E123: ="MOE "&D123 -> MOE Total Individuals living in Poverty | F123: Under 5 yrs. | G123: ="MOE "&F123 -> MOE Under 5 yrs. | H123: 5 to 17 yrs. | I123: ="MOE "&H123 -> MOE 5 to 17 yrs. | J123: 18 to 64 yrs. | K123: ="MOE "&J123 -> MOE 18 to 64 yrs. | L123: 65 to 74 yrs. | M123: ="MOE "&L123 -> MOE 65 to 74 yrs. | N123: 75 yrs. & Over | O123: ="MOE "&N123 -> MOE 75 yrs. & Over | P123: Total Individuals Not living Poverty | Q123: ="MOE "&P123 -> MOE Total Individuals Not living Poverty | R123: Under 5 yrs. | S123: ="MOE "&R123 -> MOE Under 5 yrs. | T123: 5 to 17 yrs. | U123: ="MOE "&T123 -> MOE 5 to 17 yrs. | V123: 18 to 64 yrs. | W123: ="MOE "&V123 -> MOE 18 to 64 yrs. | X123: 65 to 74 yrs. | Y123: ="MOE "&X123 -> MOE 65 to 74 yrs. | Z123: 75 yrs. & Over | AA123: ="MOE "&Z123 -> MOE 75 yrs. & Over | AB123: Total HH | AC123: ="MOE "&AB123 -> MOE Total HH | AD123: Total Households Below Poverty | AE123: ="MOE "&AD123 -> MOE Total Households Below Poverty | AF123: Family Households in Poverty | AG123: ="MOE "&AF123 -> MOE Family Households in Poverty | AH123: Married Couple Fam HH | AI123: ="MOE "&AH123 -> MOE Married Couple Fam HH | AJ123: Other Family | AK123: ="MOE "&AJ123 -> MOE Other Family | AL123: Male Head of Family HH no wife | AM123: ="MOE "&AL123 -> MOE Male Head of Family HH no wife | AN123: Female Head of Family HH no husband | AO123: ="MOE "&AN123 -> MOE Female Head of Family HH no husband | AP123: Non-Family HH | AQ123: ="MOE "&AP123 -> MOE Non-Family HH | AR123: Non-Family Male HH | AS123: ="MOE "&AR123 -> MOE Non-Family Male HH | AT123: Non-Family Female HH | AU123: ="MOE "&AT123 -> MOE Non-Family Female HH | AV123: Total Households at or Above Poverty | AW123: ="MOE "&AV123 -> MOE Total Households at or Above Poverty | AX123: Family Households above Poverty | AY123: ="MOE "&AX123 -> MOE Family Households above Poverty | AZ123: Married Couple Fam HH | BA123: ="MOE "&AZ123 -> MOE Married Couple Fam HH | BB123: Other Family | BC123: ="MOE "&BB123 -> MOE Other Family | BD123: Male Head of Family HH no wife | BE123: ="MOE "&BD123 -> MOE Male Head of Family HH no wife | BF123: Female Head of Family HH no husband | BG123: ="MOE "&BF123 -> MOE Female Head of Family HH no husband | BH123: Non-Family HH | BI123: ="MOE "&BH123 -> MOE Non-Family HH | BJ123: Non-Family Male HH | BK123: ="MOE "&BJ123 -> MOE Non-Family Male HH | BL123: Non-Family Female HH | BM123: ="MOE "&BL123 -> MOE Non-Family Female HH | BN123: Married Couple with Children Below Poverty | BO123: ="MOE "&BN123 -> MOE Married Couple with Children Below Poverty | BP123: Male HH with children below poverty | BQ123: ="MOE "&BP123 -> MOE Male HH with children below poverty | BR123: Female HH with children below poverty | BS123: ="MOE "&BR123 -> MOE Female HH with children below poverty | BT123: Married Couple with Children At or Above Poverty | BU123: ="MOE "&BT123 -> MOE Married Couple with Children At or Above Poverty | BV123: Male HH with children at or above poverty | BW123: ="MOE "&BV123 -> MOE Male HH with children at or above poverty | BX123: Female HH with children at or above poverty | BY123: ="MOE "&BX123 -> MOE Female HH with children at or above poverty
